Workbook

Sheet Contents Overview
B2: Building Decabonization Framework Life Cycle Cost Analysis Tool
B3: Tab | C3: Contents
B4: Life Cycle Analysis Tool | C4: The full life-cycle tool. Starts with a general overview and instructions. User entry flows from top to bottom, with results continuously updating based on user entries. All calculations and results are included on this tab and it can be copied to evaluate multiple projects and/or scenarios if desired.
B5: Life Cycle Results Summary | C5: Summary of modeling results that includes additional reporting figures.
B6: Input Descriptions | C6: Includes a detailed description of each of the allowable user entries. Units or entry type is also included.
B7: TOU Evaluation | C7: A detailed bin calculation worksheet that allows users to evaluate their blended utility rates based on multiple time-of-use impacts and multiple sources of electric energy. This tab is intended for more advanced users and is not fundamental to the LCCA tool itself.
B8: Emissions Factors | C8: A summary of historical emissions factors for the various utilities across the CSU System.
B9: Technologies Table | C9: A full copy of the Technology Report technology alternatives table for reference
B10: Technologies Metric Look-ups | C10: Translation of the Technologies table to usable technical metrics for each technology alternative
B11: Look-up Refs | C11: Look-up tables for user entry fields
B12: Dynamic Look-ups | C12: Look-up tables for user entry fields

Sheet Life Cycle Analysis Tool
P1: A | AB1: A | AH1: Life Cycle Defs | AU1: Plotting | BH1: P1 | BI1: =BH1 -> P1 | BJ1: =BI1 -> P1 | BK1: P1 | BL1: P1 | BM1: =BL1 -> P1 | BN1: =BM1 -> P1 | BO1: =BL1 -> P1 | BP1: =BO1 -> P1 | BQ1: =BP1 -> P1 | BR1: =BQ1 -> P1 | BS1: =BR1 -> P1 | BT1: =BS1 -> P1 | BU1: =BT1 -> P1 | BV1: =BU1 -> P1 | BW1: =BV1 -> P1 | BX1: =BW1 -> P1 | CA1: P2 | CB1: =CA1 -> P2 | CC1: =CB1 -> P2 | CD1: =CC1 -> P2 | CE1: =CD1 -> P2 | CF1: =CE1 -> P2 | CG1: =CF1 -> P2 | CH1: =CE1 -> P2 | CI1: =CH1 -> P2 | CJ1: =CI1 -> P2 | CK1: =CJ1 -> P2 | CL1: =CK1 -> P2 | CM1: =CL1 -> P2 | CN1: =CM1 -> P2 | CO1: =CN1 -> P2 | CP1: =CO1 -> P2 | CQ1: =CP1 -> P2 | CT1: P3 | CU1: =CT1 -> P3 | CV1: =CU1 -> P3 | CW1: =CV1 -> P3 | CX1: =CW1 -> P3 | CY1: =CX1 -> P3 | CZ1: =CY1 -> P3 | DA1: =CX1 -> P3 | DB1: =DA1 -> P3 | DC1: =DB1 -> P3 | DD1: =DC1 -> P3 | DE1: =DD1 -> P3 | DF1: =DE1 -> P3 | DG1: =DF1 -> P3 | DH1: =DG1 -> P3 | DI1: =DH1 -> P3 | DJ1: =DI1 -> P3 | DM1: P4 | DN1: =DM1 -> P4 | DO1: =DN1 -> P4 | DP1: =DO1 -> P4 | DQ1: =DP1 -> P4 | DR1: =DQ1 -> P4 | DS1: =DR1 -> P4 | DT1: =DQ1 -> P4 | DU1: =DT1 -> P4 | DV1: =DU1 -> P4 | DW1: =DV1 -> P4 | DX1: =DW1 -> P4 | DY1: =DX1 -> P4 | DZ1: =DY1 -> P4 | EA1: =DZ1 -> P4 | EB1: =EA1 -> P4 | EC1: =EB1 -> P4 | EF1: P5 | EG1: =EF1 -> P5 | EH1: =EG1 -> P5 | EI1: =EH1 -> P5 | EJ1: =EI1 -> P5 | EK1: =EJ1 -> P5 | EL1: =EK1 -> P5 | EM1: =EJ1 -> P5 | EN1: =EM1 -> P5 | EO1: =EN1 -> P5 | EP1: =EO1 -> P5 | EQ1: =EP1 -> P5 | ER1: =EQ1 -> P5 | ES1: =ER1 -> P5 | ET1: =ES1 -> P5 | EU1: =ET1 -> P5 | EV1: =EU1 -> P5 | EY1: P6 | EZ1: =EY1 -> P6 | FA1: =EZ1 -> P6 | FB1: =FA1 -> P6 | FC1: =FB1 -> P6 | FD1: =FC1 -> P6 | FE1: =FD1 -> P6 | FF1: =FC1 -> P6 | FG1: =FF1 -> P6 | FH1: =FG1 -> P6 | FI1: =FH1 -> P6 | FJ1: =FI1 -> P6 | FK1: =FJ1 -> P6 | FL1: =FK1 -> P6 | FM1: =FL1 -> P6 | FN1: =FM1 -> P6 | FO1: =FN1 -> P6
C2: General Information and Instructions | P2: A | AB2: A | BH2: =IF(INDEX($Z:$Z,MATCH(BH1,$A:$A,0),1)="Yes",1,0) -> 1 | BI2: 1 | BJ2: 1 | BK2: 1 | BL2: 1 | BM2: 1 | BN2: 1 | BO2: 1 | BP2: 1 | BQ2: 1 | BR2: 1 | BS2: 1 | BT2: 1 | BU2: 1 | BV2: 1 | BW2: 1 | BX2: 1 | CA2: =IF(INDEX($Z:$Z,MATCH(CA1,$A:$A,0),1)="Yes",1,0) -> 1 | CB2: 1 | CC2: 1 | CD2: 1 | CE2: 1 | CF2: 1 | CG2: 1 | CH2: 1 | CI2: 1 | CJ2: 1 | CK2: 1 | CL2: 1 | CM2: 1 | CN2: 1 | CO2: 1 | CP2: 1 | CQ2: 1 | CT2: =IF(INDEX($Z:$Z,MATCH(CT1,$A:$A,0),1)="Yes",1,0) -> 1 | CU2: 1 | CV2: 1 | CW2: 1 | CX2: 1 | CY2: 1 | CZ2: 1 | DA2: 1 | DB2: 1 | DC2: 1 | DD2: 1 | DE2: 1 | DF2: 1 | DG2: 1 | DH2: 1 | DI2: 1 | DJ2: 1 | DM2: =IF(INDEX($Z:$Z,MATCH(DM1,$A:$A,0),1)="Yes",1,0) -> 1 | DN2: 1 | DO2: 1 | DP2: 1 | DQ2: 1 | DR2: 1 | DS2: 1 | DT2: 1 | DU2: 1 | DV2: 1 | DW2: 1 | DX2: 1 | DY2: 1 | DZ2: 1 | EA2: 1 | EB2: 1 | EC2: 1 | EF2: =IF(INDEX($Z:$Z,MATCH(EF1,$A:$A,0),1)="Yes",1,0) -> 1 | EG2: 1 | EH2: 1 | EI2: 1 | EJ2: 1 | EK2: 1 | EL2: 1 | EM2: 1 | EN2: 1 | EO2: 1 | EP2: 1 | EQ2: 1 | ER2: 1 | ES2: 1 | ET2: 1 | EU2: 1 | EV2: 1 | EY2: =IF(INDEX($Z:$Z,MATCH(EY1,$A:$A,0),1)="Yes",1,0) -> 1 | EZ2: 1 | FA2: 1 | FB2: 1 | FC2: 1 | FD2: 1 | FE2: 1 | FF2: 1 | FG2: 1 | FH2: 1 | FI2: 1 | FJ2: 1 | FK2: 1 | FL2: 1 | FM2: 1 | FN2: 1 | FO2: 1
C3: The purpose of this Life Cycle Analysis Tool is to provide a simplified first step for campuses to evaluate various low carbon space heating/cooling technologies and strategies. The tool is associated with a suite of reports, collectively referred to as the "Building Decarbonization Framework," which describes available technologies and carbon reduction strategies in detail. It is recommended that the user review those reports prior to diving into calculations with this tool. The tool is structured in a way to evaluate a system boundary as defined by the User. The boundary could be as simple a single boiler or as complex as an entire campus. The User is able to define the load within the boundary and calculate energy consumption to meet that load with various technologies. While the calculations are simple and default values are provided, extensibility was prioritized to allow Users to override almost all input fields. The tool is designed to be filled from top to bottom and instructions/descriptions are given in each section along the way. The six sections are: 1. Life Cycle Assumptions 2. Strategy and Technology Set-Up 3. Existing System Load Calculations 4. Energy Usage Calculations 5. Project Costs 6. Analysis Results While working through the tool, the User should keep these ideas in mind: •The boundary is defined by the User and can represent whatever system scale the user desires •Multiple alternates are offered for comparison, but the user does not need to include or report on them all •The tool is simply the starting point for consideration of these technologies and will only offer results as accurate as the data entered Users should also be aware: •Certain entry types will provoke guidance or warnings in the form of red text •Blue text is used for tool tips or additional guidance | P3: A | AB3: A | BH3: Project Ref | BI3: Project Capital Costs ($) | BJ3: Maintenance Cost ($) | BK3: Electric Energy Use (kWh) | BL3: Natural Gas Energy Use (therm) | BM3: Electric GHG Emissions (MT) | BN3: NG GHG Emissions (MT) | BO3: GHG Emissions (MT) | BP3: Kbtu Use per Year (kBtu/yr) | BQ3: Electric Cost ($) | BR3: Natural Gas Cost ($) | BS3: GHG Emissions Cost ($/yr) | BT3: Total Energy Cost ($) | BU3: Total Utility Cost ($) | BV3: Annual Total Operating Cost ($) | BW3: Cumulative Total Operating Cost ($) | BX3: Breakeven Year | CA3: Project Ref | CB3: Project Capital Costs ($) | CC3: Maintenance Cost ($) | CD3: Electric Energy Use (kWh) | CE3: Natural Gas Energy Use (therm) | CF3: Electric GHG Emissions (MT) | CG3: NG GHG Emissions (MT) | CH3: GHG Emissions (MT) | CI3: Kbtu Use per Year (kBtu/yr) | CJ3: Electric Cost ($) | CK3: Natural Gas Cost ($) | CL3: GHG Emissions Cost ($/yr) | CM3: Total Energy Cost ($) | CN3: Total Utility Cost ($) | CO3: Annual Total Operating Cost ($) | CP3: Cumulative Total Operating Cost ($) | CQ3: Breakeven Year | CT3: Project Ref | CU3: Project Capital Costs ($) | CV3: Maintenance Cost ($) | CW3: Electric Energy Use (kWh) | CX3: Natural Gas Energy Use (therm) | CY3: Electric GHG Emissions (MT) | CZ3: NG GHG Emissions (MT) | DA3: GHG Emissions (MT) | DB3: Kbtu Use per Year (kBtu/yr) | DC3: Electric Cost ($) | DD3: Natural Gas Cost ($) | DE3: GHG Emissions Cost ($/yr) | DF3: Total Energy Cost ($) | DG3: Total Utility Cost ($) | DH3: Annual Total Operating Cost ($) | DI3: Cumulative Total Operating Cost ($) | DJ3: Breakeven Year | DM3: Project Ref | DN3: Project Capital Costs ($) | DO3: Maintenance Cost ($) | DP3: Electric Energy Use (kWh) | DQ3: Natural Gas Energy Use (therm) | DR3: Electric GHG Emissions (MT) | DS3: NG GHG Emissions (MT) | DT3: GHG Emissions (MT) | DU3: Kbtu Use per Year (kBtu/yr) | DV3: Electric Cost ($) | DW3: Natural Gas Cost ($) | DX3: GHG Emissions Cost ($/yr) | DY3: Total Energy Cost ($) | DZ3: Total Utility Cost ($) | EA3: Annual Total Operating Cost ($) | EB3: Cumulative Total Operating Cost ($) | EC3: Breakeven Year | EF3: Project Ref | EG3: Project Capital Costs ($) | EH3: Maintenance Cost ($) | EI3: Electric Energy Use (kWh) | EJ3: Natural Gas Energy Use (therm) | EK3: Electric GHG Emissions (MT) | EL3: NG GHG Emissions (MT) | EM3: GHG Emissions (MT) | EN3: Kbtu Use per Year (kBtu/yr) | EO3: Electric Cost ($) | EP3: Natural Gas Cost ($) | EQ3: GHG Emissions Cost ($/yr) | ER3: Total Energy Cost ($) | ES3: Total Utility Cost ($) | ET3: Annual Total Operating Cost ($) | EU3: Cumulative Total Operating Cost ($) | EV3: Breakeven Year | EY3: Project Ref | EZ3: Project Capital Costs ($) | FA3: Maintenance Cost ($) | FB3: Electric Energy Use (kWh) | FC3: Natural Gas Energy Use (therm) | FD3: Electric GHG Emissions (MT) | FE3: NG GHG Emissions (MT) | FF3: GHG Emissions (MT) | FG3: Kbtu Use per Year (kBtu/yr) | FH3: Electric Cost ($) | FI3: Natural Gas Cost ($) | FJ3: GHG Emissions Cost ($/yr) | FK3: Total Energy Cost ($) | FL3: Total Utility Cost ($) | FM3: Annual Total Operating Cost ($) | FN3: Cumulative Total Operating Cost ($) | FO3: Breakeven Year
P4: A | AB4: A | BH4: Year 1 | BI4: =BI37 -> 0 | BJ4: =BJ37 -> 29851.30741 | BK4: 239795.3746 | BL4: 19512 | BM4: =BM37 -> 61.84500337 | BN4: 103.4566044 | BO4: 165.3016078 | BP4: 2769415.783 | BQ4: 33370.69412 | BR4: 18102.35038 | BS4: 3258.886172 | BT4: 51473.0445 | BU4: =BU37 -> 54731.93067 | BV4: 84583.23809 | BW4: 896075.0901 | BX4: 0 | CA4: Year 1 | CB4: =CB37 -> 0 | CC4: =CC37 -> 33582.72084 | CD4: 99773 | CE4: 0 | CF4: 25.73219576 | CG4: 0 | CH4: 25.73219576 | CI4: 340439.608 | CJ4: 13884.73097 | CK4: 0 | CL4: 507.304787 | CM4: 13884.73097 | CN4: =CN37 -> 14392.03576 | CO4: =CO37 -> 47974.7566 | CP4: 917430.3123 | CQ4: 1 | CT4: Year 1 | CU4: =CU37 -> 0 | CV4: =CV37 -> 29851.30741 | CW4: 393188 | CX4: 0 | CY4: 101.4060977 | CZ4: 0 | DA4: 101.4060977 | DB4: 1341613.148 | DC4: 54717.30429 | DD4: 0 | DE4: 1999.199729 | DF4: 54717.30429 | DG4: =DG37 -> 56716.50402 | DH4: =DH37 -> 86567.81143 | DI4: 376386.33 | DJ4: 0 | DM4: Year 1 | DN4: =DN37 -> 0 | DO4: =DO37 -> 37314.13427 | DP4: 266029 | DQ4: 0 | DR4: 68.61084969 | DS4: 0 | DT4: 68.61084969 | DU4: 907728.6288 | DV4: 37021.44964 | DW4: 0 | DX4: 1352.648364 | DY4: 37021.44964 | DZ4: =DZ37 -> 38374.09801 | EA4: =EA37 -> 75688.23227 | EB4: 655325.2694 | EC4: 0 | EF4: Year 1 | EG4: =EG37 -> 0 | EH4: =EH37 -> 33582.72084 | EI4: 351142 | EJ4: 0 | EK4: 90.56212285 | EL4: 0 | EM4: 90.56212285 | EN4: 1198146.24 | EO4: 48866.04795 | EP4: 0 | EQ4: 1785.413063 | ER4: 48866.04795 | ES4: =ES37 -> 50651.46101 | ET4: =ET37 -> 84234.18185 | EU4: 953689.7376 | EV4: 1 | EY4: Year 1 | EZ4: =EZ37 -> 0 | FA4: =FA37 -> 33582.72084 | FB4: 291618 | FC4: 0 | FD4: 75.21044233 | FE4: 0 | FF4: 75.21044233 | FG4: 995041.9212 | FH4: 40582.49703 | FI4: 0 | FJ4: 1482.757934 | FK4: 40582.49703 | FL4: =FL37 -> 42065.25496 | FM4: =FM37 -> 75647.9758 | FN4: 75647.9758 | FO4: 0
C5: Tool Field Types | P5: A | AB5: A | BH5: Life Cycle | BI5: =SUM(BI36:BI90) -> 811491.852 | BJ5: 802115.8092 | BK5: 4795907.492 | BL5: 390240 | BM5: =SUM(BM36:BM90) -> 618.4500337 | BN5: 2069.132089 | BO5: 2687.582123 | BP5: 55388315.66 | BQ5: 852442.9555 | BR5: 462418.3424 | BS5: 66333.9138 | BT5: 1314861.298 | BU5: 1381195.212 | BV5: 2994802.873 | BW5: 38106753.89 | BX5: =IF(SUM(BX36:BX90)=COUNTIF(BX36:BX90,">0"),"infinite",SUM(BX36:BX90)) -> infinite | CA5: Life Cycle | CB5: =SUM(CB36:CB90) -> 869455.5557 | CC5: 902380.2853 | CD5: 1995460 | CE5: 0 | CF5: =SUM(CF36:CF90) -> 257.3219576 | CG5: 0 | CH5: 257.3219576 | CI5: 6808792.16 | CJ5: 354680.6987 | CK5: 0 | CL5: 5921.750208 | CM5: 354680.6987 | CN5: 360602.4489 | CO5: 2132438.29 | CP5: 30365672.8 | CQ5: =IF(SUM(CQ36:CQ90)=COUNTIF(CQ36:CQ90,">0"),"infinite",SUM(CQ36:CQ90)) -> infinite | CT5: Life Cycle | CU5: =SUM(CU36:CU90) -> 289818.5186 | CV5: 802115.8092 | CW5: 7863760 | CX5: 0 | CY5: =SUM(CY36:CY90) -> 1014.060977 | CZ5: 0 | DA5: 1014.060977 | DB5: 26832262.96 | DC5: 1397734.803 | DD5: 0 | DE5: 23336.58525 | DF5: 1397734.803 | DG5: 1421071.389 | DH5: 2513005.716 | DI5: 27572150.45 | DJ5: =IF(SUM(DJ36:DJ90)=COUNTIF(DJ36:DJ90,">0"),"infinite",SUM(DJ36:DJ90)) -> infinite | DM5: Life Cycle | DN5: =SUM(DN36:DN90) -> 579637.0371 | DO5: 1002644.761 | DP5: 5320580 | DQ5: 0 | DR5: =SUM(DR36:DR90) -> 686.1084969 | DS5: 0 | DT5: 686.1084969 | DU5: 18154572.58 | DV5: 945700.2554 | DW5: 0 | DX5: 15789.41483 | DY5: 945700.2554 | DZ5: 961489.6702 | EA5: 2543771.469 | EB5: 31089589.16 | EC5: =IF(SUM(EC36:EC90)=COUNTIF(EC36:EC90,">0"),"infinite",SUM(EC36:EC90)) -> infinite | EF5: Life Cycle | EG5: =SUM(EG36:EG90) -> 869455.5557 | EH5: 902380.2853 | EI5: 7022840 | EJ5: 0 | EK5: =SUM(EK36:EK90) -> 905.6212285 | EL5: 0 | EM5: 905.6212285 | EN5: 23962924.81 | EO5: 1248266.464 | EP5: 0 | EQ5: 20841.06132 | ER5: 1248266.464 | ES5: 1269107.525 | ET5: 3040943.366 | EU5: 39218532.47 | EV5: =IF(SUM(EV36:EV90)=COUNTIF(EV36:EV90,">0"),"infinite",SUM(EV36:EV90)) -> infinite | EY5: Life Cycle | EZ5: =SUM(EZ36:EZ90) -> 0 | FA5: 902380.2853 | FB5: 5832360 | FC5: 0 | FD5: =SUM(FD36:FD90) -> 752.1044233 | FE5: 0 | FF5: 752.1044233 | FG5: 19900838.42 | FH5: 1036665.992 | FI5: 0 | FJ5: 17308.17909 | FK5: 1036665.992 | FL5: 1053974.171 | FM5: 1956354.456 | FN5: 18863614.94 | FO5: =IF(SUM(FO36:FO90)=COUNTIF(FO36:FO90,">0"),"infinite",SUM(FO36:FO90)) -> infinite
C6: Input - Required, Value | P6: A | AB6: A
C7: Input - Required, Dropdown Entry | P7: A | AB7: A
C8: Input - User Override, Value, Not used if blank | P8: A | AB8: A
C9: Calculated - Analysis Calculation or Default Entry | P9: A | AB9: A
C10: Calculated - Modeled Value, displays used value when override is available | P10: A | AB10: A
P11: A | AB11: A
C12: 1. Life Cycle Assumptions | P12: A | AB12: A
C13: The Life Cycle Assumptions section sets up the duration and year over year factors for the full life cycle analysis. The analysis is set up to evaluate a single implementation and assumed equivalent effective useful lives for each technology considered. | P13: A | AB13: A
C14: 1a. Life cycle start and duration | P14: A | AB14: A
C15: All calculations are performed in whole years. The life cycle is defined by when it starts and the entered effective useful life. •"Pre-project Planning" years can be used to push the implementation of the project into the future. •"Project Effective Useful Life" begins one year after the implementation year. •All rates are escalated to the "Project Effective Start Year" | P15: A | AB15: A
C16: Pre-project Planning Years | D16: 5 | E16: Whole years (between 0 and 10 years), Pushes project implementation into the future and accounts for escalation factors and grid carbon offset | P16: A | AB16: A
C17: Project EUL (years) | D17: 20 | E17: Whole years (between 1 and 40) | P17: A | AB17: A
C18: Current year | D18: 2020 | P18: A | AB18: A
C19: Project Implementation Year | D19: =D16+D18 -> 2025 | E19: Year that project will be installed ("Current Year" + "Pre-Project Planning Years") | P19: A | AB19: A
C20: Project Effective Start Year | D20: =D19+1 -> 2026 | E20: Starting year for the project useful life ("Project Implementation Year" + 1) | P20: A | AB20: A
C21: Project Final Year | D21: =D20+D17-1 -> 2045 | E21: Final year of project useful life ("Project Effective Start Year" + "Project Effective Useful Life" - 1) | P21: A | AB21: A
D22: =IF(D17+D16>25,"Total project life cycle length is quite long. Be cautious in interpreting results escalated this far into the future","") ->  | P22: A | AB22: A
C23: 1b. Carbon Emissions Assumptions | P23: A | AB23: A
C24: Default Carbon Emissions are based on a Campus' location and the primary energy source, although emissions factors can be altered to suit User needs. •Users can toggle the "Project's Primary Electric Energy Source" between "Grid Purchases" and "On-campus Cogeneration" •If set to "Grid Purchases" a default electric utility selected and the current grid characteristics for that utility are applied. •All "Grid Purchase" emissions decrease from current levels to 0 MT/kWh in 2045, by default, consistent with CA SB100 (2018). •Non-cogen natural gas emissions are entered as a flat value by default. •Users can use the override to enter any emissions factors they choose. | P24: A | AB24: A
C25: Campus Selection | D25: CSU Los Angeles | P25: A | Y25: =D25 -> CSU Los Angeles | AB25: A
C26: Project's Primary Electric Energy Source | D26: Grid Purchases | P26: A | AB26: A
C27: Electric Emissions Factor Source | D27: LADWP Electricity | P27: A | Y27: ='Dynamic Look-ups'!M2 -> LADWP Electricity | AB27: A | AI27: Starting Rate | AN27: =H47 -> 0.12 | AO27: =H48 -> 0.8 | AP27: =H49 -> 17
P28: A | AB28: A | AI28: Escalation Rate | AN28: =$I$47 -> 0.025 | AO28: =$I$48 -> 0.025 | AP28: =$I$49 -> 0.025
C29: Electric Emissions Factors | D29: ="Current Year ("&D18&") Emissions (MT/kWh)" -> Current Year (2020) Emissions (MT/kWh) | E29: Year Source Reaches Zero Emissions | P29: A | Y29: Emissions Reduction Slope | Z29: Emissions Reduction Intercept | AB29: A | AI29: Started year of rate value | AN29: =Z47 -> 2020 | AO29: =Z48 -> 2020 | AP29: =Z49 -> 2020
C30: Default Emissions Factor | D30: =INDEX('Emissions Factors'!$G:$G,MATCH(emmissions_source,'Emissions Factors'!$A:$A,0),1) -> 0.0003393518519 | E30: =INDEX('Emissions Factors'!$C:$C,MATCH(emmissions_source,'Emissions Factors'!$A:$A,0),1) -> 2045 | P30: A | Y30: =IFERROR((D30-0)/($D$18-E30),0) -> -1.357407407e-05 | Z30: =$D30-Y30*$D$18 -> 0.02775898148 | AB30: A | AI30: Phase | AL30: 1
C31: Override Emissions Factor | F31: Override emissions should enter for the User's current year. Enter "NA" for the zero year if override emissions remain assumed constant. Zero year should be greater than the current year for a decreasing emissions factor. | P31: A | Y31: =IFERROR((D31-0)/($D$18-E31),0) -> 0 | Z31: =$D31-Y31*$D$18 -> 0 | AB31: A | AI31: Included | AL31: =IF(AL30<=$D$16,1,0) -> 1 | AY31: LC1 | AZ31: LC1 | BA31: LC1 | BB31: LC1 | BC31: LC1 | BD31: LC1
C32: Modeled Emissions Factor | D32: =IF(ISBLANK(D31),D30,D31) -> 0.0003393518519 | E32: =IF(ISBLANK(E31),E30,E31) -> 2045 | P32: A | Y32: =IFERROR((D32-0)/($D$18-E32),0) -> -1.357407407e-05 | Z32: =$D32-Y32*$D$18 -> 0.02775898148 | AB32: A | AI32: Phase Cost | AL32: =(AL33-1)*AL31 -> 0 | AY32: =INDEX($C:$C,MATCH(AY$31,$A:$A,0),1) -> Total Utility Cost ($) | AZ32: Total Utility Cost ($) | BA32: Total Utility Cost ($) | BB32: Total Utility Cost ($) | BC32: Total Utility Cost ($) | BD32: Total Utility Cost ($)
P33: A | AB33: A | AI33: Phase start | AL33: 1 | AY33: P1 | AZ33: P2 | BA33: P3 | BB33: P4 | BC33: P5 | BD33: P6
C34: Natural Gas Emissions | D34: Emissions (MT/therm) | E34: non-cogen gas | P34: A | AB34: A | AI34: Phase End | AL34: =(AL33+$D$17-1)*AL31 -> 20 | AY34: =IF(INDEX($Z:$Z,MATCH(AY$33,$A:$A,0),1)="Yes",1,NA()) -> 1 | AZ34: 1 | BA34: 1 | BB34: 1 | BC34: 1 | BD34: 1
C35: Default Emissions Factor | D35: 0.005302204 | P35: A | AB35: A | AI35: Year | AJ35: Calendar Year | AK35: Start Year | AL35: Operating Year | AM35: In LC Length | AN35: Electric Rate | AO35: Therm Rate | AP35: MT GHG rate | AQ35: Grid GHG Emissions Rate (MT/kwh) | AR35: NG Gas Emissions Rate (MT/Therm) | AW35: LC Include | AX35: Year | AY35: =IF(INDEX($Z:$Z,MATCH(AY$33,$A:$A,0),1)="Yes",INDEX($C:$C,MATCH(AY$33,$A:$A,0),1),"") -> Status Quo Replacement (Replace in Kind) | AZ35: Scenario 1 (WWHP Heating Only) | BA35: Scenario 2 (Air-to-Air Heat Pump ) | BB35: Scenario 3 (WSHP) | BC35: Scenario 4 (VRF Air Cooled) | BD35: Scenario 5 (VRF Water Cooled) | BH35: Project Ref | BI35: Project Capital Costs ($) | BJ35: Maintenance Cost ($) | BK35: Electric Energy Use (kWh) | BL35: Natural Gas Energy Use (therm) | BM35: Electric GHG Emissions (MT) | BN35: NG GHG Emissions (MT) | BO35: GHG Emissions (MT) | BP35: Kbtu Use per Year (kBtu/yr) | BQ35: Electric Cost ($) | BR35: Natural Gas Cost ($) | BS35: GHG Emissions Cost ($/yr) | BT35: Total Energy Cost ($) | BU35: Total Utility Cost ($) | BV35: Annual Total Operating Cost ($) | BW35: Cumulative Total Operating Cost ($) | BX35: Breakeven Year | CA35: Project Ref | CB35: Project First Cost ($) | CC35: Annual Maintenance Cost ($/yr) | CD35: Electric Use (kWh/yr) | CE35: Therm Use (Therm/yr) | CF35: Electric GHG Emissions (MT) | CG35: NG GHG Emissions (MT) | CH35: GHG Emissions (MT) | CI35: Kbtu Use per Year (kBtu/yr) | CJ35: Electric Cost ($/yr) | CK35: Therm Cost ($/yr) | CL35: GHG Cost ($/yr) | CM35: Total Energy Cost ($/yr) | CN35: Total Utility Cost | CO35: Annual Total Operating Cost | CP35: Cumulative Total Operating Cost | CQ35: Breakeven Year | CT35: Project Ref | CU35: Project First Cost ($) | CV35: Annual Maintenance Cost ($/yr) | CW35: Electric Use (kWh/yr) | CX35: Therm Use (Therm/yr) | CY35: Electric GHG Emissions (MT) | CZ35: NG GHG Emissions (MT) | DA35: GHG Emissions (MT) | DB35: Kbtu Use per Year (kBtu/yr) | DC35: Electric Cost ($/yr) | DD35: Therm Cost ($/yr) | DE35: GHG Cost ($/yr) | DF35: Total Energy Cost ($/yr) | DG35: Total Utility Cost | DH35: Annual Total Operating Cost | DI35: Cumulative Total Operating Cost | DJ35: Breakeven Year | DM35: Project Ref | DN35: Project First Cost ($) | DO35: Annual Maintenance Cost ($/yr) | DP35: Electric Use (kWh/yr) | DQ35: Therm Use (Therm/yr) | DR35: Electric GHG Emissions (MT) | DS35: NG GHG Emissions (MT) | DT35: GHG Emissions (MT) | DU35: Kbtu Use per Year (kBtu/yr) | DV35: Electric Cost ($/yr) | DW35: Therm Cost ($/yr) | DX35: GHG Cost ($/yr) | DY35: Total Energy Cost ($/yr) | DZ35: Total Utility Cost | EA35: Annual Total Operating Cost | EB35: Cumulative Total Operating Cost | EC35: Breakeven Year | EF35: Project Ref | EG35: Project First Cost ($) | EH35: Annual Maintenance Cost ($/yr) | EI35: Electric Use (kWh/yr) | EJ35: Therm Use (Therm/yr) | EK35: Electric GHG Emissions (MT) | EL35: NG GHG Emissions (MT) | EM35: GHG Emissions (MT) | EN35: Kbtu Use per Year (kBtu/yr) | EO35: Electric Cost ($/yr) | EP35: Therm Cost ($/yr) | EQ35: GHG Cost ($/yr) | ER35: Total Energy Cost ($/yr) | ES35: Total Utility Cost | ET35: Annual Total Operating Cost | EU35: Cumulative Total Operating Cost | EV35: Breakeven Year | EY35: Project Ref | EZ35: Project First Cost ($) | FA35: Annual Maintenance Cost ($/yr) | FB35: Electric Use (kWh/yr) | FC35: Therm Use (Therm/yr) | FD35: Electric GHG Emissions (MT) | FE35: NG GHG Emissions (MT) | FF35: GHG Emissions (MT) | FG35: Kbtu Use per Year (kBtu/yr) | FH35: Electric Cost ($/yr) | FI35: Therm Cost ($/yr) | FJ35: GHG Cost ($/yr) | FK35: Total Energy Cost ($/yr) | FL35: Total Utility Cost | FM35: Annual Total Operating Cost | FN35: Cumulative Total Operating Cost | FO35: Breakeven Year
C36: Override Emissions Factor | P36: A | AB36: A | AI36: 0 | AJ36: =D19 -> 2025 | AK36: 1 | AL36: =IF(AND($AI36>=AL$33,$AI36<=AL$34),1,0)*AL$31 -> 0 | AM36: =IF(SUM(AK36:AL36)>0,1,0) -> 1 | AN36: =AN$27*(1+AN$28)^($AJ36-AN$29)*$AM36 -> 0.1357689855 | AO36: =AO$27*(1+AO$28)^($AJ36-AO$29)*$AM36 -> 0.9051265703 | AP36: =AP$27*(1+AP$28)^($AJ36-AP$29)*$AM36 -> 19.23393962 | AQ36: =MAX(AJ36*$Y$32+$Z$32,0) -> 0.0002714814815 | AR36: ='Life Cycle Analysis Tool'!$D$37 -> 0.005302204 | AW36: =IF(AM36=1,1,NA()) -> 1 | AX36: =AI36*$AW36 -> 0 | AY36: =IFERROR(SUMIFS($BH36:$AAU36,$BH$3:$AAU$3,AY$32,$BG$1:$AAT$1,AY$33)*$AW36*AY$34,NA()) -> 0 | AZ36: 0 | BA36: 0 | BB36: 0 | BC36: 0 | BD36: 0 | BH36: =BH$1 -> P1 | BI36: =IFERROR(INDEX($D:$D,MATCH(BI$1,$A:$A,0),1)*BI$2*$AM36*$AK36*(1+$F$44)^($AJ36-INDEX($Z:$Z,MATCH(CONCATENATE("C",RIGHT(BI$1,1)),$A:$A,0),1)),0) -> 811491.852 | BJ36: =IFERROR(INDEX($E:$E,MATCH(BJ$1,$A:$A,0),1)*BJ$2*$AM36*$AL36*(1+$F$43)^($AJ36-INDEX($Z:$Z,MATCH(CONCATENATE("M",RIGHT(BJ$1,1)),$A:$A,0),1)),0) -> 0 | BK36: =IFERROR(INDEX($F:$F,MATCH(BK$1,$A:$A,0),1)*BK$2*$AM36*$AL36,0) -> 0 | BL36: =IFERROR(INDEX($G:$G,MATCH(BL$1,$A:$A,0),1)*BL$2*$AM36*$AL36,0) -> 0 | BM36: =BK36*$AQ36 -> 0 | BN36: =BL36*$AR36 -> 0 | BO36: =BM36+BN36 -> 0 | BP36: =BK36*'Look-up Refs'!$D$2+BL36*'Look-up Refs'!$D$3 -> 0 | BQ36: =BK36*$AN36 -> 0 | BR36: =BL36*$AO36 -> 0 | BS36: =BO36*$AP36 -> 0 | BT36: =BQ36+BR36 -> 0 | BU36: =BT36+BS36 -> 0 | BV36: =BI36+BJ36+BU36 -> 811491.852 | BW36: =BV36*$AM36 -> 811491.852 | BX36: =(BW36>$BW36)*$AM36 -> 0 | CA36: =CA$1 -> P2 | CB36: =IFERROR(INDEX($D:$D,MATCH(CB$1,$A:$A,0),1)*CB$2*$AM36*$AK36*(1+$F$44)^($AJ36-INDEX($Z:$Z,MATCH(CONCATENATE("C",RIGHT(CB$1,1)),$A:$A,0),1)),0) -> 869455.5557 | CC36: =IFERROR(INDEX($E:$E,MATCH(CC$1,$A:$A,0),1)*CC$2*$AM36*$AL36*(1+$F$43)^($AJ36-INDEX($Z:$Z,MATCH(CONCATENATE("M",RIGHT(CC$1,1)),$A:$A,0),1)),0) -> 0 | CD36: =IFERROR(INDEX($F:$F,MATCH(CD$1,$A:$A,0),1)*CD$2*$AM36*$AL36,0) -> 0 | CE36: =IFERROR(INDEX($G:$G,MATCH(CE$1,$A:$A,0),1)*CE$2*$AM36*$AL36,0) -> 0 | CF36: =CD36*$AQ36 -> 0 | CG36: =CE36*$AR36 -> 0 | CH36: =CF36+CG36 -> 0 | CI36: =CD36*'Look-up Refs'!$D$2+CE36*'Look-up Refs'!$D$3 -> 0 | CJ36: =CD36*$AN36 -> 0 | CK36: =CE36*$AO36 -> 0 | CL36: =CH36*$AP36 -> 0 | CM36: =CJ36+CK36 -> 0 | CN36: =CM36+CL36 -> 0 | CO36: =CB36+CC36+CN36 -> 869455.5557 | CP36: =CO36*$AM36 -> 869455.5557 | CQ36: =(CP36>$BW36)*$AM36 -> 1 | CT36: =CT$1 -> P3 | CU36: =IFERROR(INDEX($D:$D,MATCH(CU$1,$A:$A,0),1)*CU$2*$AM36*$AK36*(1+$F$44)^($AJ36-INDEX($Z:$Z,MATCH(CONCATENATE("C",RIGHT(CU$1,1)),$A:$A,0),1)),0) -> 289818.5186 | CV36: =IFERROR(INDEX($E:$E,MATCH(CV$1,$A:$A,0),1)*CV$2*$AM36*$AL36*(1+$F$43)^($AJ36-INDEX($Z:$Z,MATCH(CONCATENATE("M",RIGHT(CV$1,1)),$A:$A,0),1)),0) -> 0 | CW36: =IFERROR(INDEX($F:$F,MATCH(CW$1,$A:$A,0),1)*CW$2*$AM36*$AL36,0) -> 0 | CX36: =IFERROR(INDEX($G:$G,MATCH(CX$1,$A:$A,0),1)*CX$2*$AM36*$AL36,0) -> 0 | CY36: =CW36*$AQ36 -> 0 | CZ36: =CX36*$AR36 -> 0 | DA36: =CY36+CZ36 -> 0 | DB36: =CW36*'Look-up Refs'!$D$2+CX36*'Look-up Refs'!$D$3 -> 0 | DC36: =CW36*$AN36 -> 0 | DD36: =CX36*$AO36 -> 0 | DE36: =DA36*$AP36 -> 0 | DF36: =DC36+DD36 -> 0 | DG36: =DF36+DE36 -> 0 | DH36: =CU36+CV36+DG36 -> 289818.5186 | DI36: =DH36*$AM36 -> 289818.5186 | DJ36: =(DI36>$BW36)*$AM36 -> 0 | DM36: =DM$1 -> P4 | DN36: =IFERROR(INDEX($D:$D,MATCH(DN$1,$A:$A,0),1)*DN$2*$AM36*$AK36*(1+$F$44)^($AJ36-INDEX($Z:$Z,MATCH(CONCATENATE("C",RIGHT(DN$1,1)),$A:$A,0),1)),0) -> 579637.0371 | DO36: =IFERROR(INDEX($E:$E,MATCH(DO$1,$A:$A,0),1)*DO$2*$AM36*$AL36*(1+$F$43)^($AJ36-INDEX($Z:$Z,MATCH(CONCATENATE("M",RIGHT(DO$1,1)),$A:$A,0),1)),0) -> 0 | DP36: =IFERROR(INDEX($F:$F,MATCH(DP$1,$A:$A,0),1)*DP$2*$AM36*$AL36,0) -> 0 | DQ36: =IFERROR(INDEX($G:$G,MATCH(DQ$1,$A:$A,0),1)*DQ$2*$AM36*$AL36,0) -> 0 | DR36: =DP36*$AQ36 -> 0 | DS36: =DQ36*$AR36 -> 0 | DT36: =DR36+DS36 -> 0 | DU36: =DP36*'Look-up Refs'!$D$2+DQ36*'Look-up Refs'!$D$3 -> 0 | DV36: =DP36*$AN36 -> 0 | DW36: =DQ36*$AO36 -> 0 | DX36: =DT36*$AP36 -> 0 | DY36: =DV36+DW36 -> 0 | DZ36: =DY36+DX36 -> 0 | EA36: =DN36+DO36+DZ36 -> 579637.0371 | EB36: =EA36*$AM36 -> 579637.0371 | EC36: =(EB36>$BW36)*$AM36 -> 0 | EF36: =EF$1 -> P5 | EG36: =IFERROR(INDEX($D:$D,MATCH(EG$1,$A:$A,0),1)*EG$2*$AM36*$AK36*(1+$F$44)^($AJ36-INDEX($Z:$Z,MATCH(CONCATENATE("C",RIGHT(EG$1,1)),$A:$A,0),1)),0) -> 869455.5557 | EH36: =IFERROR(INDEX($E:$E,MATCH(EH$1,$A:$A,0),1)*EH$2*$AM36*$AL36*(1+$F$43)^($AJ36-INDEX($Z:$Z,MATCH(CONCATENATE("M",RIGHT(EH$1,1)),$A:$A,0),1)),0) -> 0 | EI36: =IFERROR(INDEX($F:$F,MATCH(EI$1,$A:$A,0),1)*EI$2*$AM36*$AL36,0) -> 0 | EJ36: =IFERROR(INDEX($G:$G,MATCH(EJ$1,$A:$A,0),1)*EJ$2*$AM36*$AL36,0) -> 0 | EK36: =EI36*$AQ36 -> 0 | EL36: =EJ36*$AR36 -> 0 | EM36: =EK36+EL36 -> 0 | EN36: =EI36*'Look-up Refs'!$D$2+EJ36*'Look-up Refs'!$D$3 -> 0 | EO36: =EI36*$AN36 -> 0 | EP36: =EJ36*$AO36 -> 0 | EQ36: =EM36*$AP36 -> 0 | ER36: =EO36+EP36 -> 0 | ES36: =ER36+EQ36 -> 0 | ET36: =EG36+EH36+ES36 -> 869455.5557 | EU36: =ET36*$AM36 -> 869455.5557 | EV36: =(EU36>$BW36)*$AM36 -> 1 | EY36: =EY$1 -> P6 | EZ36: =IFERROR(INDEX($D:$D,MATCH(EZ$1,$A:$A,0),1)*EZ$2*$AM36*$AK36*(1+$F$44)^($AJ36-INDEX($Z:$Z,MATCH(CONCATENATE("C",RIGHT(EZ$1,1)),$A:$A,0),1)),0) -> 0 | FA36: =IFERROR(INDEX($E:$E,MATCH(FA$1,$A:$A,0),1)*FA$2*$AM36*$AL36*(1+$F$43)^($AJ36-INDEX($Z:$Z,MATCH(CONCATENATE("M",RIGHT(FA$1,1)),$A:$A,0),1)),0) -> 0 | FB36: =IFERROR(INDEX($F:$F,MATCH(FB$1,$A:$A,0),1)*FB$2*$AM36*$AL36,0) -> 0 | FC36: =IFERROR(INDEX($G:$G,MATCH(FC$1,$A:$A,0),1)*FC$2*$AM36*$AL36,0) -> 0 | FD36: =FB36*$AQ36 -> 0 | FE36: =FC36*$AR36 -> 0 | FF36: =FD36+FE36 -> 0 | FG36: =FB36*'Look-up Refs'!$D$2+FC36*'Look-up Refs'!$D$3 -> 0 | FH36: =FB36*$AN36 -> 0 | FI36: =FC36*$AO36 -> 0 | FJ36: =FF36*$AP36 -> 0 | FK36: =FH36+FI36 -> 0 | FL36: =FK36+FJ36 -> 0 | FM36: =EZ36+FA36+FL36 -> 0 | FN36: =FM36*$AM36 -> 0 | FO36: =(FN36>$BW36)*$AM36 -> 0
C37: Modeled Emissions Factor | D37: =IF(ISBLANK(D36),D35,D36) -> 0.005302204 | P37: A | AB37: A | AI37: =AI36+1 -> 1 | AJ37: =AJ36+1 -> 2026 | AK37: 0 | AL37: =IF(AND($AI37>=AL$33,$AI37<=AL$34),1,0)*AL$31 -> 1 | AM37: =IF(SUM(AK37:AL37)>0,1,0) -> 1 | AN37: =AN$27*(1+AN$28)^($AJ37-AN$29)*$AM37 -> 0.1391632102 | AO37: 0.9277547346 | AP37: 19.71478811 | AQ37: 0.0002579074074 | AR37: ='Life Cycle Analysis Tool'!$D$37 -> 0.005302204 | AW37: 1 | AX37: 1 | AY37: 54731.93067 | AZ37: 14392.03576 | BA37: 56716.50402 | BB37: 38374.09801 | BC37: 50651.46101 | BD37: 42065.25496 | BH37: P1 | BI37: 0 | BJ37: 29851.30741 | BK37: 239795.3746 | BL37: 19512 | BM37: =BK37*$AQ37 -> 61.84500337 | BN37: =BL37*$AR37 -> 103.4566044 | BO37: =BM37+BN37 -> 165.3016078 | BP37: =BK37*'Look-up Refs'!$D$2+BL37*'Look-up Refs'!$D$3 -> 2769415.783 | BQ37: 33370.69412 | BR37: =BL37*$AO37 -> 18102.35038 | BS37: =BO37*$AP37 -> 3258.886172 | BT37: 51473.0445 | BU37: =BT37+BS37 -> 54731.93067 | BV37: 84583.23809 | BW37: =(BV37+BW36)*$AM37 -> 896075.0901 | BX37: 0 | CA37: P2 | CB37: 0 | CC37: 33582.72084 | CD37: 99773 | CE37: 0 | CF37: =CD37*$AQ37 -> 25.73219576 | CG37: =CE37*$AR37 -> 0 | CH37: =CF37+CG37 -> 25.73219576 | CI37: =CD37*'Look-up Refs'!$D$2+CE37*'Look-up Refs'!$D$3 -> 340439.608 | CJ37: 13884.73097 | CK37: 0 | CL37: =CH37*$AP37 -> 507.304787 | CM37: 13884.73097 | CN37: =CM37+CL37 -> 14392.03576 | CO37: 47974.7566 | CP37: =(CO37+CP36)*$AM37 -> 917430.3123 | CQ37: 1 | CT37: P3 | CU37: 0 | CV37: 29851.30741 | CW37: 393188 | CX37: 0 | CY37: =CW37*$AQ37 -> 101.4060977 | CZ37: =CX37*$AR37 -> 0 | DA37: =CY37+CZ37 -> 101.4060977 | DB37: =CW37*'Look-up Refs'!$D$2+CX37*'Look-up Refs'!$D$3 -> 1341613.148 | DC37: 54717.30429 | DD37: 0 | DE37: =DA37*$AP37 -> 1999.199729 | DF37: 54717.30429 | DG37: =DF37+DE37 -> 56716.50402 | DH37: 86567.81143 | DI37: =(DH37+DI36)*$AM37 -> 376386.33 | DJ37: 0 | DM37: P4 | DN37: 0 | DO37: 37314.13427 | DP37: 266029 | DQ37: 0 | DR37: =DP37*$AQ37 -> 68.61084969 | DS37: =DQ37*$AR37 -> 0 | DT37: =DR37+DS37 -> 68.61084969 | DU37: =DP37*'Look-up Refs'!$D$2+DQ37*'Look-up Refs'!$D$3 -> 907728.6288 | DV37: 37021.44964 | DW37: 0 | DX37: =DT37*$AP37 -> 1352.648364 | DY37: 37021.44964 | DZ37: =DY37+DX37 -> 38374.09801 | EA37: 75688.23227 | EB37: =(EA37+EB36)*$AM37 -> 655325.2694 | EC37: 0 | EF37: P5 | EG37: 0 | EH37: 33582.72084 | EI37: 351142 | EJ37: 0 | EK37: =EI37*$AQ37 -> 90.56212285 | EL37: =EJ37*$AR37 -> 0 | EM37: =EK37+EL37 -> 90.56212285 | EN37: =EI37*'Look-up Refs'!$D$2+EJ37*'Look-up Refs'!$D$3 -> 1198146.24 | EO37: 48866.04795 | EP37: 0 | EQ37: =EM37*$AP37 -> 1785.413063 | ER37: 48866.04795 | ES37: =ER37+EQ37 -> 50651.46101 | ET37: 84234.18185 | EU37: =(ET37+EU36)*$AM37 -> 953689.7376 | EV37: 1 | EY37: P6 | EZ37: 0 | FA37: 33582.72084 | FB37: 291618 | FC37: 0 | FD37: =FB37*$AQ37 -> 75.21044233 | FE37: =FC37*$AR37 -> 0 | FF37: =FD37+FE37 -> 75.21044233 | FG37: =FB37*'Look-up Refs'!$D$2+FC37*'Look-up Refs'!$D$3 -> 995041.9212 | FH37: 40582.49703 | FI37: 0 | FJ37: =FF37*$AP37 -> 1482.757934 | FK37: 40582.49703 | FL37: =FK37+FJ37 -> 42065.25496 | FM37: 75647.9758 | FN37: =(FM37+FN36)*$AM37 -> 75647.9758 | FO37: 0
P38: A | AB38: A | AI38: =AI37+1 -> 2 | AJ38: 2027 | AK38: 0 | AL38: 1 | AM38: 1 | AN38: 0.1426422904 | AO38: 0.9509486029 | AP38: 20.20765781 | AQ38: 0.0002443333333 | AR38: ='Life Cycle Analysis Tool'!$D$37 -> 0.005302204 | AW38: 1 | AX38: 2 | AY38: 56034.45301 | AZ38: 14724.46889 | BA38: 58026.56505 | BB38: 39260.47864 | BC38: 51821.4292 | BD38: 43036.89545 | BH38: P1 | BI38: 0 | BJ38: 30746.84664 | BK38: 239795.3746 | BL38: 19512 | BM38: 58.5900032 | BN38: =BL38*$AR38 -> 103.4566044 | BO38: 162.0466076 | BP38: =BK38*'Look-up Refs'!$D$2+BL38*'Look-up Refs'!$D$3 -> 2769415.783 | BQ38: 34204.96147 | BR38: 18554.90914 | BS38: =BO38*$AP38 -> 3274.582397 | BT38: 52759.87061 | BU38: 56034.45301 | BV38: 86781.29964 | BW38: =(BV38+BW37)*$AM38 -> 982856.3897 | BX38: 0 | CA38: P2 | CB38: 0 | CC38: 34590.20247 | CD38: 99773 | CE38: 0 | CF38: 24.37786967 | CG38: =CE38*$AR38 -> 0 | CH38: 24.37786967 | CI38: =CD38*'Look-up Refs'!$D$2+CE38*'Look-up Refs'!$D$3 -> 340439.608 | CJ38: 14231.84924 | CK38: 0 | CL38: 492.6196484 | CM38: 14231.84924 | CN38: 14724.46889 | CO38: 49314.67136 | CP38: =(CO38+CP37)*$AM38 -> 966744.9837 | CQ38: 0 | CT38: P3 | CU38: 0 | CV38: 30746.84664 | CW38: 393188 | CX38: 0 | CY38: 96.06893467 | CZ38: =CX38*$AR38 -> 0 | DA38: 96.06893467 | DB38: =CW38*'Look-up Refs'!$D$2+CX38*'Look-up Refs'!$D$3 -> 1341613.148 | DC38: 56085.23689 | DD38: 0 | DE38: 1941.328158 | DF38: 56085.23689 | DG38: 58026.56505 | DH38: 88773.41169 | DI38: =(DH38+DI37)*$AM38 -> 465159.7417 | DJ38: 0 | DM38: P4 | DN38: 0 | DO38: 38433.55829 | DP38: 266029 | DQ38: 0 | DR38: 64.99975233 | DS38: =DQ38*$AR38 -> 0 | DT38: 64.99975233 | DU38: =DP38*'Look-up Refs'!$D$2+DQ38*'Look-up Refs'!$D$3 -> 907728.6288 | DV38: 37946.98588 | DW38: 0 | DX38: 1313.492753 | DY38: 37946.98588 | DZ38: 39260.47864 | EA38: 77694.03693 | EB38: =(EA38+EB37)*$AM38 -> 733019.3064 | EC38: 0 | EF38: P5 | EG38: 0 | EH38: 34590.20247 | EI38: 351142 | EJ38: 0 | EK38: 85.79569533 | EL38: =EJ38*$AR38 -> 0 | EM38: 85.79569533 | EN38: =EI38*'Look-up Refs'!$D$2+EJ38*'Look-up Refs'!$D$3 -> 1198146.24 | EO38: 50087.69915 | EP38: 0 | EQ38: 1733.730053 | ER38: 50087.69915 | ES38: 51821.4292 | ET38: 86411.63167 | EU38: =(ET38+EU37)*$AM38 -> 1040101.369 | EV38: 1 | EY38: P6 | EZ38: 0 | FA38: 34590.20247 | FB38: 291618 | FC38: 0 | FD38: 71.251998 | FE38: =FC38*$AR38 -> 0 | FF38: 71.251998 | FG38: =FB38*'Look-up Refs'!$D$2+FC38*'Look-up Refs'!$D$3 -> 995041.9212 | FH38: 41597.05945 | FI38: 0 | FJ38: 1439.835994 | FK38: 41597.05945 | FL38: 43036.89545 | FM38: 77627.09791 | FN38: =(FM38+FN37)*$AM38 -> 153275.0737 | FO38: 0
C39: 1c. Financial Cost Assumptions | P39: A | AB39: A | AI39: 3 | AJ39: 2028 | AK39: 0 | AL39: 1 | AM39: 1 | AN39: 0.1462083477 | AO39: 0.974722318 | AP39: 20.71284926 | AQ39: 0.0002307592593 | AR39: ='Life Cycle Analysis Tool'!$D$37 -> 0.005302204 | AW39: 1 | AX39: 3 | AY39: 57367.89401 | AZ39: 15064.52866 | BA39: 59366.68132 | BB39: 40167.19449 | BC39: 53018.23864 | BD39: 44030.82717 | BH39: P1 | BI39: 0 | BJ39: 31669.25203 | BK39: 239795.3746 | BL39: 19512 | BM39: 55.33500302 | BN39: 103.4566044 | BO39: 158.7916075 | BP39: =BK39*'Look-up Refs'!$D$2+BL39*'Look-up Refs'!$D$3 -> 2769415.783 | BQ39: 35060.08551 | BR39: 19018.78187 | BS39: 3289.026629 | BT39: 54078.86738 | BU39: 57367.89401 | BV39: 89037.14604 | BW39: 1071893.536 | BX39: 0 | CA39: P2 | CB39: 0 | CC39: 35627.90854 | CD39: 99773 | CE39: 0 | CF39: 23.02354357 | CG39: 0 | CH39: 23.02354357 | CI39: =CD39*'Look-up Refs'!$D$2+CE39*'Look-up Refs'!$D$3 -> 340439.608 | CJ39: 14587.64548 | CK39: 0 | CL39: 476.8831874 | CM39: 14587.64548 | CN39: 15064.52866 | CO39: 50692.4372 | CP39: 1017437.421 | CQ39: 0 | CT39: P3 | CU39: 0 | CV39: 31669.25203 | CW39: 393188 | CX39: 0 | CY39: 90.73177163 | CZ39: 0 | DA39: 90.73177163 | DB39: =CW39*'Look-up Refs'!$D$2+CX39*'Look-up Refs'!$D$3 -> 1341613.148 | DC39: 57487.36782 | DD39: 0 | DE39: 1879.313509 | DF39: 57487.36782 | DG39: 59366.68132 | DH39: 91035.93336 | DI39: 556195.6751 | DJ39: 0 | DM39: P4 | DN39: 0 | DO39: 39586.56504 | DP39: 266029 | DQ39: 0 | DR39: 61.38865498 | DS39: 0 | DT39: 61.38865498 | DU39: =DP39*'Look-up Refs'!$D$2+DQ39*'Look-up Refs'!$D$3 -> 907728.6288 | DV39: 38895.66053 | DW39: 0 | DX39: 1271.533957 | DY39: 38895.66053 | DZ39: 40167.19449 | EA39: 79753.75953 | EB39: 812773.0659 | EC39: 0 | EF39: P5 | EG39: 0 | EH39: 35627.90854 | EI39: 351142 | EJ39: 0 | EK39: 81.02926781 | EL39: 0 | EM39: 81.02926781 | EN39: =EI39*'Look-up Refs'!$D$2+EJ39*'Look-up Refs'!$D$3 -> 1198146.24 | EO39: 51339.89163 | EP39: 0 | EQ39: 1678.34701 | ER39: 51339.89163 | ES39: 53018.23864 | ET39: 88646.14718 | EU39: 1128747.516 | EV39: 1 | EY39: P6 | EZ39: 0 | FA39: 35627.90854 | FB39: 291618 | FC39: 0 | FD39: 67.29355367 | FE39: 0 | FF39: 67.29355367 | FG39: =FB39*'Look-up Refs'!$D$2+FC39*'Look-up Refs'!$D$3 -> 995041.9212 | FH39: 42636.98594 | FI39: 0 | FJ39: 1393.841233 | FK39: 42636.98594 | FL39: 44030.82717 | FM39: 79658.73571 | FN39: 232933.8094 | FO39: 0
C40: The Financial Cost Assumptions are used to project rates and costs forward in time. •All escalation rates are annual. •Natural gas rates should be for non-cogen fuel supplied to the project boundary. •All override rates should be entered for the User's current year. Defaults are in 2020 dollars. | P40: A | AB40: A | AI40: 4 | AJ40: 2029 | AK40: 0 | AL40: 1 | AM40: 1 | AN40: 0.1498635564 | AO40: 0.999090376 | AP40: 21.23067049 | AQ40: 0.0002171851852 | AR40: ='Life Cycle Analysis Tool'!$D$37 -> 0.005302204 | AW40: 1 | AX40: 4 | AY40: 58732.98552 | AZ40: 15412.38863 | BA40: 60737.53681 | BB40: 41094.70833 | BC40: 54242.50015 | BD40: 45047.55743 | BH40: P1 | BI40: 0 | BJ40: 32619.3296 | BK40: 239795.3746 | BL40: 19512 | BM40: 52.08000284 | BN40: 103.4566044 | BO40: 155.5366073 | BP40: =BK40*'Look-up Refs'!$D$2+BL40*'Look-up Refs'!$D$3 -> 2769415.783 | BQ40: 35936.58765 | BR40: 19494.25142 | BS40: 3302.146458 | BT40: 55430.83906 | BU40: 58732.98552 | BV40: 91352.31512 | BW40: 1163245.851 | BX40: 0 | CA40: P2 | CB40: 0 | CC40: 36696.7458 | CD40: 99773 | CE40: 0 | CF40: 21.66921748 | CG40: 0 | CH40: 21.66921748 | CI40: =CD40*'Look-up Refs'!$D$2+CE40*'Look-up Refs'!$D$3 -> 340439.608 | CJ40: 14952.33661 | CK40: 0 | CL40: 460.0520161 | CM40: 14952.33661 | CN40: 15412.38863 | CO40: 52109.13442 | CP40: 1069546.555 | CQ40: 0 | CT40: P3 | CU40: 0 | CV40: 32619.3296 | CW40: 393188 | CX40: 0 | CY40: 85.39460859 | CZ40: 0 | DA40: 85.39460859 | DB40: =CW40*'Look-up Refs'!$D$2+CX40*'Look-up Refs'!$D$3 -> 1341613.148 | DC40: 58924.55201 | DD40: 0 | DE40: 1812.984797 | DF40: 58924.55201 | DG40: 60737.53681 | DH40: 93356.8664 | DI40: 649552.5415 | DJ40: 0 | DM40: P4 | DN40: 0 | DO40: 40774.16199 | DP40: 266029 | DQ40: 0 | DR40: 57.77755763 | DS40: 0 | DT40: 57.77755763 | DU40: =DP40*'Look-up Refs'!$D$2+DQ40*'Look-up Refs'!$D$3 -> 907728.6288 | DV40: 39868.05204 | DW40: 0 | DX40: 1226.656288 | DY40: 39868.05204 | DZ40: 41094.70833 | EA40: 81868.87033 | EB40: 894641.9362 | EC40: 0 | EF40: P5 | EG40: 0 | EH40: 36696.7458 | EI40: 351142 | EJ40: 0 | EK40: 76.2628403 | EL40: 0 | EM40: 76.2628403 | EN40: =EI40*'Look-up Refs'!$D$2+EJ40*'Look-up Refs'!$D$3 -> 1198146.24 | EO40: 52623.38892 | EP40: 0 | EQ40: 1619.111233 | ER40: 52623.38892 | ES40: 54242.50015 | ET40: 90939.24595 | EU40: 1219686.762 | EV40: 1 | EY40: P6 | EZ40: 0 | FA40: 36696.7458 | FB40: 291618 | FC40: 0 | FD40: 63.33510933 | FE40: 0 | FF40: 63.33510933 | FG40: =FB40*'Look-up Refs'!$D$2+FC40*'Look-up Refs'!$D$3 -> 995041.9212 | FH40: 43702.91059 | FI40: 0 | FJ40: 1344.646837 | FK40: 43702.91059 | FL40: 45047.55743 | FM40: 81744.30322 | FN40: 314678.1126 | FO40: 0
C41: Financial Escalation Rates | D41: Default Rate | E41: User Override | F41: Modeled Assumption | P41: A | AB41: A | AI41: 5 | AJ41: 2030 | AK41: 0 | AL41: 1 | AM41: 1 | AN41: 0.1536101453 | AO41: 1.024067635 | AP41: 21.76143725 | AQ41: 0.0002036111111 | AR41: ='Life Cycle Analysis Tool'!$D$37 -> 0.005302204 | AW41: 1 | AX41: 5 | AY41: 60130.47668 | AZ41: 15768.22626 | BA41: 62139.83089 | BB41: 42043.49337 | BC41: 55494.83834 | BD41: 46087.60492 | BH41: P1 | BI41: 0 | BJ41: 33597.90948 | BK41: 239795.3746 | BL41: 19512 | BM41: 48.82500266 | BN41: 103.4566044 | BO41: 152.2816071 | BP41: =BK41*'Look-up Refs'!$D$2+BL41*'Look-up Refs'!$D$3 -> 2769415.783 | BQ41: 36835.00234 | BR41: 19981.6077 | BS41: 3313.866638 | BT41: 56816.61004 | BU41: 60130.47668 | BV41: 93728.38616 | BW41: 1256974.237 | BX41: 0 | CA41: P2 | CB41: 0 | CC41: 37797.64817 | CD41: 99773 | CE41: 0 | CF41: 20.31489139 | CG41: 0 | CH41: 20.31489139 | CI41: =CD41*'Look-up Refs'!$D$2+CE41*'Look-up Refs'!$D$3 -> 340439.608 | CJ41: 15326.14503 | CK41: 0 | CL41: 442.0812342 | CM41: 15326.14503 | CN41: 15768.22626 | CO41: 53565.87443 | CP41: 1123112.43 | CQ41: 0 | CT41: P3 | CU41: 0 | CV41: 33597.90948 | CW41: 393188 | CX41: 0 | CY41: 80.05744556 | CZ41: 0 | DA41: 80.05744556 | DB41: =CW41*'Look-up Refs'!$D$2+CX41*'Look-up Refs'!$D$3 -> 1341613.148 | DC41: 60397.66581 | DD41: 0 | DE41: 1742.165078 | DF41: 60397.66581 | DG41: 62139.83089 | DH41: 95737.74037 | DI41: 745290.2818 | DJ41: 0 | DM41: P4 | DN41: 0 | DO41: 41997.38685 | DP41: 266029 | DQ41: 0 | DR41: 54.16646028 | DS41: 0 | DT41: 54.16646028 | DU41: =DP41*'Look-up Refs'!$D$2+DQ41*'Look-up Refs'!$D$3 -> 907728.6288 | DV41: 40864.75334 | DW41: 0 | DX41: 1178.740026 | DY41: 40864.75334 | DZ41: 42043.49337 | EA41: 84040.88023 | EB41: 978682.8164 | EC41: 0 | EF41: P5 | EG41: 0 | EH41: 37797.64817 | EI41: 351142 | EJ41: 0 | EK41: 71.49641278 | EL41: 0 | EM41: 71.49641278 | EN41: =EI41*'Look-up Refs'!$D$2+EJ41*'Look-up Refs'!$D$3 -> 1198146.24 | EO41: 53938.97364 | EP41: 0 | EQ41: 1555.8647 | ER41: 53938.97364 | ES41: 55494.83834 | ET41: 93292.48651 | EU41: 1312979.249 | EV41: 1 | EY41: P6 | EZ41: 0 | FA41: 37797.64817 | FB41: 291618 | FC41: 0 | FD41: 59.376665 | FE41: 0 | FF41: 59.376665 | FG41: =FB41*'Look-up Refs'!$D$2+FC41*'Look-up Refs'!$D$3 -> 995041.9212 | FH41: 44795.48335 | FI41: 0 | FJ41: 1292.12157 | FK41: 44795.48335 | FL41: 46087.60492 | FM41: 83885.25309 | FN41: 398563.3657 | FO41: 0
C42: Discount Rate | D42: 0.05 | F42: =IF(E42>0,E42,D42) -> 0.05 | P42: A | AB42: A | AI42: 6 | AJ42: 2031 | AK42: 0 | AL42: 1 | AM42: 1 | AN42: 0.1574503989 | AO42: 1.049669326 | AP42: 22.30547318 | AQ42: 0.000190037037 | AR42: ='Life Cycle Analysis Tool'!$D$37 -> 0.005302204 | AW42: 1 | AX42: 6 | AY42: 61561.13427 | AZ42: 16132.22303 | BA42: 63574.27871 | BB42: 43014.03347 | BC42: 56775.89188 | BD42: 47151.50007 | BH42: P1 | BI42: 0 | BJ42: 34605.84677 | BK42: 239795.3746 | BL42: 19512 | BM42: 45.57000249 | BN42: 103.4566044 | BO42: 149.0266069 | BP42: =BK42*'Look-up Refs'!$D$2+BL42*'Look-up Refs'!$D$3 -> 2769415.783 | BQ42: 37755.8774 | BR42: 20481.14789 | BS42: 3324.108984 | BT42: 58237.02529 | BU42: 61561.13427 | BV42: 96166.98104 | BW42: 1353141.218 | BX42: 0 | CA42: P2 | CB42: 0 | CC42: 38931.57761 | CD42: 99773 | CE42: 0 | CF42: 18.9605653 | CG42: 0 | CH42: 18.9605653 | CI42: =CD42*'Look-up Refs'!$D$2+CE42*'Look-up Refs'!$D$3 -> 340439.608 | CJ42: 15709.29865 | CK42: 0 | CL42: 422.9243807 | CM42: 15709.29865 | CN42: 16132.22303 | CO42: 55063.80065 | CP42: 1178176.23 | CQ42: 0 | CT42: P3 | CU42: 0 | CV42: 34605.84677 | CW42: 393188 | CX42: 0 | CY42: 74.72028252 | CZ42: 0 | DA42: 74.72028252 | DB42: =CW42*'Look-up Refs'!$D$2+CX42*'Look-up Refs'!$D$3 -> 1341613.148 | DC42: 61907.60746 | DD42: 0 | DE42: 1666.671258 | DF42: 61907.60746 | DG42: 63574.27871 | DH42: 98180.12548 | DI42: 843470.4073 | DJ42: 0 | DM42: P4 | DN42: 0 | DO42: 43257.30846 | DP42: 266029 | DQ42: 0 | DR42: 50.55536293 | DS42: 0 | DT42: 50.55536293 | DU42: =DP42*'Look-up Refs'!$D$2+DQ42*'Look-up Refs'!$D$3 -> 907728.6288 | DV42: 41886.37218 | DW42: 0 | DX42: 1127.661292 | DY42: 41886.37218 | DZ42: 43014.03347 | EA42: 86271.34193 | EB42: 1064954.158 | EC42: 0 | EF42: P5 | EG42: 0 | EH42: 38931.57761 | EI42: 351142 | EJ42: 0 | EK42: 66.72998526 | EL42: 0 | EM42: 66.72998526 | EN42: =EI42*'Look-up Refs'!$D$2+EJ42*'Look-up Refs'!$D$3 -> 1198146.24 | EO42: 55287.44798 | EP42: 0 | EQ42: 1488.443897 | ER42: 55287.44798 | ES42: 56775.89188 | ET42: 95707.46949 | EU42: 1408686.718 | EV42: 1 | EY42: P6 | EZ42: 0 | FA42: 38931.57761 | FB42: 291618 | FC42: 0 | FD42: 55.41822067 | FE42: 0 | FF42: 55.41822067 | FG42: =FB42*'Look-up Refs'!$D$2+FC42*'Look-up Refs'!$D$3 -> 995041.9212 | FH42: 45915.37044 | FI42: 0 | FJ42: 1236.129635 | FK42: 45915.37044 | FL42: 47151.50007 | FM42: 86083.07769 | FN42: 484646.4434 | FO42: 0
C43: Maintenance Cost Escalation Rate | D43: 0.03 | F43: =IF(E43>0,E43,D43) -> 0.03 | P43: A | AB43: A | AI43: 7 | AJ43: 2032 | AK43: 0 | AL43: 1 | AM43: 1 | AN43: 0.1613866589 | AO43: 1.075911059 | AP43: 22.86311001 | AQ43: 0.000176462963 | AR43: ='Life Cycle Analysis Tool'!$D$37 -> 0.005302204 | AW43: 1 | AX43: 7 | AY43: 63025.7432 | AZ43: 16504.5645 | BA43: 65041.61154 | BB43: 44006.82339 | BC43: 58086.31382 | BD43: 48239.78523 | BH43: P1 | BI43: 0 | BJ43: 35644.02217 | BK43: 239795.3746 | BL43: 19512 | BM43: 42.31500231 | BN43: 103.4566044 | BO43: 145.7716068 | BP43: =BK43*'Look-up Refs'!$D$2+BL43*'Look-up Refs'!$D$3 -> 2769415.783 | BQ43: 38699.77433 | BR43: 20993.17659 | BS43: 3332.792282 | BT43: 59692.95092 | BU43: 63025.7432 | BV43: 98669.76537 | BW43: 1451810.983 | BX43: 0 | CA43: P2 | CB43: 0 | CC43: 40099.52494 | CD43: 99773 | CE43: 0 | CF43: 17.6062392 | CG43: 0 | CH43: 17.6062392 | CI43: =CD43*'Look-up Refs'!$D$2+CE43*'Look-up Refs'!$D$3 -> 340439.608 | CJ43: 16102.03112 | CK43: 0 | CL43: 402.5333838 | CM43: 16102.03112 | CN43: 16504.5645 | CO43: 56604.08945 | CP43: 1234780.32 | CQ43: 0 | CT43: P3 | CU43: 0 | CV43: 35644.02217 | CW43: 393188 | CX43: 0 | CY43: 69.38311948 | CZ43: 0 | DA43: 69.38311948 | DB43: =CW43*'Look-up Refs'!$D$2+CX43*'Look-up Refs'!$D$3 -> 1341613.148 | DC43: 63455.29764 | DD43: 0 | DE43: 1586.313894 | DF43: 63455.29764 | DG43: 65041.61154 | DH43: 100685.6337 | DI43: 944156.041 | DJ43: 0 | DM43: P4 | DN43: 0 | DO43: 44555.02771 | DP43: 266029 | DQ43: 0 | DR43: 46.94426557 | DS43: 0 | DT43: 46.94426557 | DU43: =DP43*'Look-up Refs'!$D$2+DQ43*'Look-up Refs'!$D$3 -> 907728.6288 | DV43: 42933.53148 | DW43: 0 | DX43: 1073.291908 | DY43: 42933.53148 | DZ43: 44006.82339 | EA43: 88561.85111 | EB43: 1153516.009 | EC43: 0 | EF43: P5 | EG43: 0 | EH43: 40099.52494 | EI43: 351142 | EJ43: 0 | EK43: 61.96355774 | EL43: 0 | EM43: 61.96355774 | EN43: =EI43*'Look-up Refs'!$D$2+EJ43*'Look-up Refs'!$D$3 -> 1198146.24 | EO43: 56669.63418 | EP43: 0 | EQ43: 1416.679637 | ER43: 56669.63418 | ES43: 58086.31382 | ET43: 98185.83876 | EU43: 1506872.557 | EV43: 1 | EY43: P6 | EZ43: 0 | FA43: 40099.52494 | FB43: 291618 | FC43: 0 | FD43: 51.45977633 | FE43: 0 | FF43: 51.45977633 | FG43: =FB43*'Look-up Refs'!$D$2+FC43*'Look-up Refs'!$D$3 -> 995041.9212 | FH43: 47063.2547 | FI43: 0 | FJ43: 1176.530528 | FK43: 47063.2547 | FL43: 48239.78523 | FM43: 88339.31017 | FN43: 572985.7536 | FO43: 0
C44: Capital Cost Escalation Rate | D44: 0.03 | F44: 0.03 | P44: A | AB44: A | AI44: 8 | AJ44: 2033 | AK44: 0 | AL44: 1 | AM44: 1 | AN44: 0.1654213254 | AO44: 1.102808836 | AP44: 23.43468776 | AQ44: 0.0001628888889 | AR44: ='Life Cycle Analysis Tool'!$D$37 -> 0.005302204 | AW44: 1 | AX44: 8 | AY44: 64525.10687 | AZ44: 16885.44041 | BA44: 66542.57708 | BB44: 45022.36904 | BC44: 59426.77193 | BD44: 49353.01495 | BH44: P1 | BI44: 0 | BJ44: 36713.34284 | BK44: 239795.3746 | BL44: 19512 | BM44: 39.06000213 | BN44: 103.4566044 | BO44: 142.5166066 | BP44: =BK44*'Look-up Refs'!$D$2+BL44*'Look-up Refs'!$D$3 -> 2769415.783 | BQ44: 39667.26869 | BR44: 21518.00601 | BS44: 3339.832176 | BT44: 61185.27469 | BU44: 64525.10687 | BV44: 101238.4497 | BW44: 1553049.433 | BX44: 0 | CA44: P2 | CB44: 0 | CC44: 41302.51069 | CD44: 99773 | CE44: 0 | CF44: 16.25191311 | CG44: 0 | CH44: 16.25191311 | CI44: =CD44*'Look-up Refs'!$D$2+CE44*'Look-up Refs'!$D$3 -> 340439.608 | CJ44: 16504.5819 | CK44: 0 | CL44: 380.8585093 | CM44: 16504.5819 | CN44: 16885.44041 | CO44: 58187.9511 | CP44: 1292968.271 | CQ44: 0 | CT44: P3 | CU44: 0 | CV44: 36713.34284 | CW44: 393188 | CX44: 0 | CY44: 64.04595644 | CZ44: 0 | DA44: 64.04595644 | DB44: =CW44*'Look-up Refs'!$D$2+CX44*'Look-up Refs'!$D$3 -> 1341613.148 | DC44: 65041.68008 | DD44: 0 | DE44: 1500.896992 | DF44: 65041.68008 | DG44: 66542.57708 | DH44: 103255.9199 | DI44: 1047411.961 | DJ44: 0 | DM44: P4 | DN44: 0 | DO44: 45891.67855 | DP44: 266029 | DQ44: 0 | DR44: 43.33316822 | DS44: 0 | DT44: 43.33316822 | DU44: =DP44*'Look-up Refs'!$D$2+DQ44*'Look-up Refs'!$D$3 -> 907728.6288 | DV44: 44006.86977 | DW44: 0 | DX44: 1015.499267 | DY44: 44006.86977 | DZ44: 45022.36904 | EA44: 90914.04758 | EB44: 1244430.057 | EC44: 0 | EF44: P5 | EG44: 0 | EH44: 41302.51069 | EI44: 351142 | EJ44: 0 | EK44: 57.19713022 | EL44: 0 | EM44: 57.19713022 | EN44: =EI44*'Look-up Refs'!$D$2+EJ44*'Look-up Refs'!$D$3 -> 1198146.24 | EO44: 58086.37504 | EP44: 0 | EQ44: 1340.396888 | ER44: 58086.37504 | ES44: 59426.77193 | ET44: 100729.2826 | EU44: 1607601.84 | EV44: 1 | EY44: P6 | EZ44: 0 | FA44: 41302.51069 | FB44: 291618 | FC44: 0 | FD44: 47.501332 | FE44: 0 | FF44: 47.501332 | FG44: =FB44*'Look-up Refs'!$D$2+FC44*'Look-up Refs'!$D$3 -> 995041.9212 | FH44: 48239.83607 | FI44: 0 | FJ44: 1113.178884 | FK44: 48239.83607 | FL44: 49353.01495 | FM44: 90655.52564 | FN44: 663641.2792 | FO44: 0
P45: A | AB45: A | AI45: 9 | AJ45: 2034 | AK45: 0 | AL45: 1 | AM45: 1 | AN45: 0.1695568585 | AO45: 1.130379057 | AP45: 24.02055496 | AQ45: 0.0001493148148 | AR45: ='Life Cycle Analysis Tool'!$D$37 -> 0.005302204 | AW45: 1 | AX45: 9 | AY45: 66060.04763 | AZ45: 17275.04475 | BA45: 68077.93988 | BB45: 46061.1877 | BC45: 60797.94899 | BD45: 50491.75629 | BH45: P1 | BI45: 0 | BJ45: 37814.74312 | BK45: 239795.3746 | BL45: 19512 | BM45: 35.80500195 | BN45: 103.4566044 | BO45: 139.2616064 | BP45: =BK45*'Look-up Refs'!$D$2+BL45*'Look-up Refs'!$D$3 -> 2769415.783 | BQ45: 40658.95041 | BR45: 22055.95616 | BS45: 3345.14107 | BT45: 62714.90656 | BU45: 66060.04763 | BV45: 103874.7908 | BW45: 1656924.224 | BX45: 0 | CA45: P2 | CB45: 0 | CC45: 42541.58601 | CD45: 99773 | CE45: 0 | CF45: 14.89758702 | CG45: 0 | CH45: 14.89758702 | CI45: =CD45*'Look-up Refs'!$D$2+CE45*'Look-up Refs'!$D$3 -> 340439.608 | CJ45: 16917.19644 | CK45: 0 | CL45: 357.8483077 | CM45: 16917.19644 | CN45: 17275.04475 | CO45: 59816.63076 | CP45: 1352784.902 | CQ45: 0 | CT45: P3 | CU45: 0 | CV45: 37814.74312 | CW45: 393188 | CX45: 0 | CY45: 58.70879341 | CZ45: 0 | DA45: 58.70879341 | DB45: =CW45*'Look-up Refs'!$D$2+CX45*'Look-up Refs'!$D$3 -> 1341613.148 | DC45: 66667.72209 | DD45: 0 | DE45: 1410.217798 | DF45: 66667.72209 | DG45: 68077.93988 | DH45: 105892.683 | DI45: 1153304.644 | DJ45: 0 | DM45: P4 | DN45: 0 | DO45: 47268.4289 | DP45: 266029 | DQ45: 0 | DR45: 39.72207087 | DS45: 0 | DT45: 39.72207087 | DU45: =DP45*'Look-up Refs'!$D$2+DQ45*'Look-up Refs'!$D$3 -> 907728.6288 | DV45: 45107.04151 | DW45: 0 | DX45: 954.1461863 | DY45: 45107.04151 | DZ45: 46061.1877 | EA45: 93329.6166 | EB45: 1337759.674 | EC45: 0 | EF45: P5 | EG45: 0 | EH45: 42541.58601 | EI45: 351142 | EJ45: 0 | EK45: 52.4307027 | EL45: 0 | EM45: 52.4307027 | EN45: =EI45*'Look-up Refs'!$D$2+EJ45*'Look-up Refs'!$D$3 -> 1198146.24 | EO45: 59538.53441 | EP45: 0 | EQ45: 1259.414576 | ER45: 59538.53441 | ES45: 60797.94899 | ET45: 103339.535 | EU45: 1710941.375 | EV45: 1 | EY45: P6 | EZ45: 0 | FA45: 42541.58601 | FB45: 291618 | FC45: 0 | FD45: 43.54288767 | FE45: 0 | FF45: 43.54288767 | FG45: =FB45*'Look-up Refs'!$D$2+FC45*'Look-up Refs'!$D$3 -> 995041.9212 | FH45: 49445.83197 | FI45: 0 | FJ45: 1045.924326 | FK45: 49445.83197 | FL45: 50491.75629 | FM45: 93033.3423 | FN45: 756674.6215 | FO45: 0
C46: Utility Rates | D46: Default Starting Rate ($/unit) | E46: User Override Rate ($/unit) | F46: Default Escalation Rate (%/yr) | G46: User Override Escalation (%/yr) | H46: Modeled Rate ($/unit) | I46: Modeled Escalation (%/yr) | P46: A | AB46: A | AI46: 10 | AJ46: 2035 | AK46: 0 | AL46: 1 | AM46: 1 | AN46: 0.17379578 | AO46: 1.158638533 | AP46: 24.62106883 | AQ46: 0.0001357407407 | AR46: ='Life Cycle Analysis Tool'!$D$37 -> 0.005302204 | AW46: 1 | AX46: 10 | AY46: =IFERROR(SUMIFS($BH46:$AAU46,$BH$3:$AAU$3,AY$32,$BG$1:$AAT$1,AY$33)*$AW46*AY$34,NA()) -> 67631.40724 | AZ46: 17673.57592 | BA46: 69648.48172 | BB46: 47123.80832 | BC46: 62200.54317 | BD46: 51656.58907 | BH46: P1 | BI46: 0 | BJ46: 38949.18542 | BK46: 239795.3746 | BL46: 19512 | BM46: 32.55000178 | BN46: 103.4566044 | BO46: 136.0066062 | BP46: =BK46*'Look-up Refs'!$D$2+BL46*'Look-up Refs'!$D$3 -> 2769415.783 | BQ46: 41675.42417 | BR46: 22607.35506 | BS46: 3348.628013 | BT46: 64282.77923 | BU46: 67631.40724 | BV46: 106580.5927 | BW46: 1763504.817 | BX46: 0 | CA46: P2 | CB46: 0 | CC46: 43817.83359 | CD46: 99773 | CE46: 0 | CF46: 13.54326093 | CG46: 0 | CH46: 13.54326093 | CI46: =CD46*'Look-up Refs'!$D$2+CE46*'Look-up Refs'!$D$3 -> 340439.608 | CJ46: 17340.12636 | CK46: 0 | CL46: 333.4495594 | CM46: 17340.12636 | CN46: 17673.57592 | CO46: 61491.40951 | CP46: 1414276.311 | CQ46: 0 | CT46: P3 | CU46: 0 | CV46: 38949.18542 | CW46: 393188 | CX46: 0 | CY46: 53.37163037 | CZ46: 0 | DA46: 53.37163037 | DB46: =CW46*'Look-up Refs'!$D$2+CX46*'Look-up Refs'!$D$3 -> 1341613.148 | DC46: 68334.41514 | DD46: 0 | DE46: 1314.066585 | DF46: 68334.41514 | DG46: 69648.48172 | DH46: 108597.6671 | DI46: 1261902.311 | DJ46: 0 | DM46: P4 | DN46: 0 | DO46: 48686.48177 | DP46: 266029 | DQ46: 0 | DR46: 36.11097352 | DS46: 0 | DT46: 36.11097352 | DU46: =DP46*'Look-up Refs'!$D$2+DQ46*'Look-up Refs'!$D$3 -> 907728.6288 | DV46: 46234.71755 | DW46: 0 | DX46: 889.0907645 | DY46: 46234.71755 | DZ46: 47123.80832 | EA46: 95810.29009 | EB46: 1433569.964 | EC46: 0 | EF46: P5 | EG46: 0 | EH46: 43817.83359 | EI46: 351142 | EJ46: 0 | EK46: 47.66427519 | EL46: 0 | EM46: 47.66427519 | EN46: =EI46*'Look-up Refs'!$D$2+EJ46*'Look-up Refs'!$D$3 -> 1198146.24 | EO46: 61026.99777 | EP46: 0 | EQ46: 1173.5454 | ER46: 61026.99777 | ES46: 62200.54317 | ET46: 106018.3768 | EU46: 1816959.752 | EV46: 1 | EY46: P6 | EZ46: 0 | FA46: 43817.83359 | FB46: 291618 | FC46: 0 | FD46: 39.58444333 | FE46: 0 | FF46: 39.58444333 | FG46: =FB46*'Look-up Refs'!$D$2+FC46*'Look-up Refs'!$D$3 -> 995041.9212 | FH46: 50681.97777 | FI46: 0 | FJ46: 974.6113039 | FK46: 50681.97777 | FL46: 51656.58907 | FM46: 95474.42266 | FN46: 852149.0442 | FO46: 0
C47: Electric (kWh) | D47: 0.12 | F47: 0.025 | H47: =IF(ISBLANK(E47),D47,E47) -> 0.12 | I47: =IF(G47>0,G47,F47) -> 0.025 | P47: A | Z47: =$D$18 -> 2020 | AB47: A | AI47: 11 | AJ47: 2036 | AK47: 0 | AL47: 1 | AM47: 1 | AN47: 0.1781406745 | AO47: 1.187604497 | AP47: 25.23659555 | AQ47: 0.0001221666667 | AR47: ='Life Cycle Analysis Tool'!$D$37 -> 0.005302204 | AW47: 1 | AX47: 11 | AY47: 69240.0473 | AZ47: 18081.23673 | BA47: 71255.00194 | BB47: 48210.77172 | BC47: 63635.26835 | BD47: 52848.10614 | BH47: P1 | BI47: 0 | BJ47: 40117.66098 | BK47: 239795.3746 | BL47: 19512 | BM47: 29.2950016 | BN47: 103.4566044 | BO47: 132.751606 | BP47: =BK47*'Look-up Refs'!$D$2+BL47*'Look-up Refs'!$D$3 -> 2769415.783 | BQ47: 42717.30977 | BR47: 23172.53894 | BS47: 3350.198591 | BT47: 65889.84871 | BU47: 69240.0473 | BV47: 109357.7083 | BW47: 1872862.525 | BX47: 0 | CA47: P2 | CB47: 0 | CC47: 45132.3686 | CD47: 99773 | CE47: 0 | CF47: 12.18893483 | CG47: 0 | CH47: 12.18893483 | CI47: =CD47*'Look-up Refs'!$D$2+CE47*'Look-up Refs'!$D$3 -> 340439.608 | CJ47: 17773.62951 | CK47: 0 | CL47: 307.6072186 | CM47: 17773.62951 | CN47: 18081.23673 | CO47: 63213.60533 | CP47: 1477489.917 | CQ47: 0 | CT47: P3 | CU47: 0 | CV47: 40117.66098 | CW47: 393188 | CX47: 0 | CY47: 48.03446733 | CZ47: 0 | DA47: 48.03446733 | DB47: =CW47*'Look-up Refs'!$D$2+CX47*'Look-up Refs'!$D$3 -> 1341613.148 | DC47: 70042.77552 | DD47: 0 | DE47: 1212.226425 | DF47: 70042.77552 | DG47: 71255.00194 | DH47: 111372.6629 | DI47: 1373274.974 | DJ47: 0 | DM47: P4 | DN47: 0 | DO47: 50147.07622 | DP47: 266029 | DQ47: 0 | DR47: 32.49987617 | DS47: 0 | DT47: 32.49987617 | DU47: =DP47*'Look-up Refs'!$D$2+DQ47*'Look-up Refs'!$D$3 -> 907728.6288 | DV47: 47390.58549 | DW47: 0 | DX47: 820.1862303 | DY47: 47390.58549 | DZ47: 48210.77172 | EA47: 98357.84794 | EB47: 1531927.812 | EC47: 0 | EF47: P5 | EG47: 0 | EH47: 45132.3686 | EI47: 351142 | EJ47: 0 | EK47: 42.89784767 | EL47: 0 | EM47: 42.89784767 | EN47: =EI47*'Look-up Refs'!$D$2+EJ47*'Look-up Refs'!$D$3 -> 1198146.24 | EO47: 62552.67272 | EP47: 0 | EQ47: 1082.595632 | ER47: 62552.67272 | ES47: 63635.26835 | ET47: 108767.6369 | EU47: 1925727.388 | EV47: 1 | EY47: P6 | EZ47: 0 | FA47: 45132.3686 | FB47: 291618 | FC47: 0 | FD47: 35.625999 | FE47: 0 | FF47: 35.625999 | FG47: =FB47*'Look-up Refs'!$D$2+FC47*'Look-up Refs'!$D$3 -> 995041.9212 | FH47: 51949.02721 | FI47: 0 | FJ47: 899.0789279 | FK47: 51949.02721 | FL47: 52848.10614 | FM47: 97980.47474 | FN47: 950129.5189 | FO47: 0
C48: Natural Gas (therm) | D48: 0.8 | F48: 0.025 | H48: =IF(ISBLANK(E48),D48,E48) -> 0.8 | I48: =IF(G48>0,G48,F48) -> 0.025 | P48: A | Z48: =$D$18 -> 2020 | AB48: A | AI48: 12 | AJ48: 2037 | AK48: 0 | AL48: 1 | AM48: 1 | AN48: 0.1825941913 | AO48: 1.217294609 | AP48: 25.86751044 | AQ48: 0.0001085925926 | AR48: ='Life Cycle Analysis Tool'!$D$37 -> 0.005302204 | AW48: 1 | AX48: 12 | AY48: 70886.84973 | AZ48: 18498.23461 | BA48: 72898.31787 | BB48: 49322.63092 | BC48: 65102.85444 | BD48: 54066.91369 | BH48: P1 | BI48: 0 | BJ48: 41321.19081 | BK48: 239795.3746 | BL48: 19512 | BM48: 26.04000142 | BN48: 103.4566044 | BO48: 129.4966059 | BP48: =BK48*'Look-up Refs'!$D$2+BL48*'Look-up Refs'!$D$3 -> 2769415.783 | BQ48: 43785.24251 | BR48: 23751.85241 | BS48: 3349.754804 | BT48: 67537.09492 | BU48: 70886.84973 | BV48: 112208.0405 | BW48: 1985070.565 | BX48: 0 | CA48: P2 | CB48: 0 | CC48: 46486.33966 | CD48: 99773 | CE48: 0 | CF48: 10.83460874 | CG48: 0 | CH48: 10.83460874 | CI48: =CD48*'Look-up Refs'!$D$2+CE48*'Look-up Refs'!$D$3 -> 340439.608 | CJ48: 18217.97025 | CK48: 0 | CL48: 280.2643547 | CM48: 18217.97025 | CN48: 18498.23461 | CO48: 64984.57427 | CP48: 1542474.491 | CQ48: 0 | CT48: P3 | CU48: 0 | CV48: 41321.19081 | CW48: 393188 | CX48: 0 | CY48: 42.6973043 | CZ48: 0 | DA48: 42.6973043 | DB48: =CW48*'Look-up Refs'!$D$2+CX48*'Look-up Refs'!$D$3 -> 1341613.148 | DC48: 71793.84491 | DD48: 0 | DE48: 1104.472965 | DF48: 71793.84491 | DG48: 72898.31787 | DH48: 114219.5087 | DI48: 1487494.483 | DJ48: 0 | DM48: P4 | DN48: 0 | DO48: 51651.48851 | DP48: 266029 | DQ48: 0 | DR48: 28.88877881 | DS48: 0 | DT48: 28.88877881 | DU48: =DP48*'Look-up Refs'!$D$2+DQ48*'Look-up Refs'!$D$3 -> 907728.6288 | DV48: 48575.35013 | DW48: 0 | DX48: 747.2807876 | DY48: 48575.35013 | DZ48: 49322.63092 | EA48: 100974.1194 | EB48: 1632901.931 | EC48: 0 | EF48: P5 | EG48: 0 | EH48: 46486.33966 | EI48: 351142 | EJ48: 0 | EK48: 38.13142015 | EL48: 0 | EM48: 38.13142015 | EN48: =EI48*'Look-up Refs'!$D$2+EJ48*'Look-up Refs'!$D$3 -> 1198146.24 | EO48: 64116.48954 | EP48: 0 | EQ48: 986.3649088 | ER48: 64116.48954 | ES48: 65102.85444 | ET48: 111589.1941 | EU48: 2037316.583 | EV48: 1 | EY48: P6 | EZ48: 0 | FA48: 46486.33966 | FB48: 291618 | FC48: 0 | FD48: 31.66755467 | FE48: 0 | FF48: 31.66755467 | FG48: =FB48*'Look-up Refs'!$D$2+FC48*'Look-up Refs'!$D$3 -> 995041.9212 | FH48: 53247.75289 | FI48: 0 | FJ48: 819.1608009 | FK48: 53247.75289 | FL48: 54066.91369 | FM48: 100553.2533 | FN48: 1050682.772 | FO48: 0
C49: GHG (MT) | D49: 17 | F49: 0.025 | H49: 17 | I49: =IF(G49>0,G49,F49) -> 0.025 | P49: A | Z49: 2020 | AB49: A | AI49: 13 | AJ49: 2038 | AK49: 0 | AL49: 1 | AM49: 1 | AN49: 0.1871590461 | AO49: 1.247726974 | AP49: 26.5141982 | AQ49: 9.501851852e-05 | AR49: ='Life Cycle Analysis Tool'!$D$37 -> 0.005302204 | AW49: 1 | AX49: 13 | AY49: 72572.71725 | AZ49: 18924.7816 | BA49: 74579.26522 | BB49: 50459.95134 | BC49: 66604.0478 | BD49: 55313.63156 | BH49: P1 | BI49: 0 | BJ49: 42560.82653 | BK49: 239795.3746 | BL49: 19512 | BM49: 22.78500124 | BN49: 103.4566044 | BO49: 126.2416057 | BP49: =BK49*'Look-up Refs'!$D$2+BL49*'Look-up Refs'!$D$3 -> 2769415.783 | BQ49: 44879.87358 | BR49: 24345.64872 | BS49: 3347.194955 | BT49: 69225.5223 | BU49: 72572.71725 | BV49: 115133.5438 | BW49: 2100204.109 | BX49: 0 | CA49: P2 | CB49: 0 | CC49: 47880.92985 | CD49: 99773 | CE49: 0 | CF49: 9.480282648 | CG49: 0 | CH49: 9.480282648 | CI49: =CD49*'Look-up Refs'!$D$2+CE49*'Look-up Refs'!$D$3 -> 340439.608 | CJ49: 18673.41951 | CK49: 0 | CL49: 251.3620931 | CM49: 18673.41951 | CN49: 18924.7816 | CO49: 66805.71145 | CP49: 1609280.202 | CQ49: 0 | CT49: P3 | CU49: 0 | CV49: 42560.82653 | CW49: 393188 | CX49: 0 | CY49: 37.36014126 | CZ49: 0 | DA49: 37.36014126 | DB49: =CW49*'Look-up Refs'!$D$2+CX49*'Look-up Refs'!$D$3 -> 1341613.148 | DC49: 73588.69103 | DD49: 0 | DE49: 990.5741902 | DF49: 73588.69103 | DG49: 74579.26522 | DH49: 117140.0917 | DI49: 1604634.574 | DJ49: 0 | DM49: P4 | DN49: 0 | DO49: 53201.03316 | DP49: 266029 | DQ49: 0 | DR49: 25.27768146 | DS49: 0 | DT49: 25.27768146 | DU49: =DP49*'Look-up Refs'!$D$2+DQ49*'Look-up Refs'!$D$3 -> 907728.6288 | DV49: 49789.73388 | DW49: 0 | DX49: 670.2174564 | DY49: 49789.73388 | DZ49: 50459.95134 | EA49: 103660.9845 | EB49: 1736562.916 | EC49: 0 | EF49: P5 | EG49: 0 | EH49: 47880.92985 | EI49: 351142 | EJ49: 0 | EK49: 33.36499263 | EL49: 0 | EM49: 33.36499263 | EN49: =EI49*'Look-up Refs'!$D$2+EJ49*'Look-up Refs'!$D$3 -> 1198146.24 | EO49: 65719.40177 | EP49: 0 | EQ49: 884.6460276 | ER49: 65719.40177 | ES49: 66604.0478 | ET49: 114484.9776 | EU49: 2151801.56 | EV49: 1 | EY49: P6 | EZ49: 0 | FA49: 47880.92985 | FB49: 291618 | FC49: 0 | FD49: 27.70911033 | FE49: 0 | FF49: 27.70911033 | FG49: =FB49*'Look-up Refs'!$D$2+FC49*'Look-up Refs'!$D$3 -> 995041.9212 | FH49: 54578.94671 | FI49: 0 | FJ49: 734.6848434 | FK49: 54578.94671 | FL49: 55313.63156 | FM49: 103194.5614 | FN49: 1153877.334 | FO49: 0
P50: A | AB50: A | AI50: 14 | AJ50: 2039 | AK50: 0 | AL50: 1 | AM50: 1 | AN50: 0.1918380223 | AO50: 1.278920149 | AP50: 27.17705316 | AQ50: 8.144444444e-05 | AR50: ='Life Cycle Analysis Tool'!$D$37 -> 0.005302204 | AW50: 1 | AX50: 14 | AY50: 74298.57387 | AZ50: 19361.09455 | BA50: 76298.69848 | BB50: 51623.31114 | BC50: 68139.61154 | BD50: 56588.89349 | BH50: P1 | BI50: 0 | BJ50: 43837.65133 | BK50: 239795.3746 | BL50: 19512 | BM50: 19.53000107 | BN50: 103.4566044 | BO50: 122.9866055 | BP50: =BK50*'Look-up Refs'!$D$2+BL50*'Look-up Refs'!$D$3 -> 2769415.783 | BQ50: 46001.87042 | BR50: 24954.28994 | BS50: 3342.413516 | BT50: 70956.16036 | BU50: 74298.57387 | BV50: 118136.2252 | BW50: 2218340.334 | BX50: 0 | CA50: P2 | CB50: 0 | CC50: 49317.35774 | CD50: 99773 | CE50: 0 | CF50: 8.125956556 | CG50: 0 | CH50: 8.125956556 | CI50: =CD50*'Look-up Refs'!$D$2+CE50*'Look-up Refs'!$D$3 -> 340439.608 | CJ50: 19140.255 | CK50: 0 | CL50: 220.8395533 | CM50: 19140.255 | CN50: 19361.09455 | CO50: 68678.45229 | CP50: 1677958.655 | CQ50: 0 | CT50: P3 | CU50: 0 | CV50: 43837.65133 | CW50: 393188 | CX50: 0 | CY50: 32.02297822 | CZ50: 0 | DA50: 32.02297822 | DB50: =CW50*'Look-up Refs'!$D$2+CX50*'Look-up Refs'!$D$3 -> 1341613.148 | DC50: 75428.4083 | DD50: 0 | DE50: 870.2901814 | DF50: 75428.4083 | DG50: 76298.69848 | DH50: 120136.3498 | DI50: 1724770.924 | DJ50: 0 | DM50: P4 | DN50: 0 | DO50: 54797.06416 | DP50: 266029 | DQ50: 0 | DR50: 21.66658411 | DS50: 0 | DT50: 21.66658411 | DU50: =DP50*'Look-up Refs'!$D$2+DQ50*'Look-up Refs'!$D$3 -> 907728.6288 | DV50: 51034.47723 | DW50: 0 | DX50: 588.8339081 | DY50: 51034.47723 | DZ50: 51623.31114 | EA50: 106420.3753 | EB50: 1842983.291 | EC50: 0 | EF50: P5 | EG50: 0 | EH50: 49317.35774 | EI50: 351142 | EJ50: 0 | EK50: 28.59856511 | EL50: 0 | EM50: 28.59856511 | EN50: =EI50*'Look-up Refs'!$D$2+EJ50*'Look-up Refs'!$D$3 -> 1198146.24 | EO50: 67362.38682 | EP50: 0 | EQ50: 777.2247242 | ER50: 67362.38682 | ES50: 68139.61154 | ET50: 117456.9693 | EU50: 2269258.53 | EV50: 1 | EY50: P6 | EZ50: 0 | FA50: 49317.35774 | FB50: 291618 | FC50: 0 | FD50: 23.750666 | FE50: 0 | FF50: 23.750666 | FG50: =FB50*'Look-up Refs'!$D$2+FC50*'Look-up Refs'!$D$3 -> 995041.9212 | FH50: 55943.42038 | FI50: 0 | FJ50: 645.4731124 | FK50: 55943.42038 | FL50: 56588.89349 | FM50: 105906.2512 | FN50: 1259783.585 | FO50: 0
C51: 2. Strategy and Technology Set-up | P51: A | AB51: A | AI51: 15 | AJ51: 2040 | AK51: 0 | AL51: 1 | AM51: 1 | AN51: 0.1966339728 | AO51: 1.310893152 | AP51: 27.85647948 | AQ51: 6.787037037e-05 | AR51: ='Life Cycle Analysis Tool'!$D$37 -> 0.005302204 | AW51: 1 | AX51: 15 | AY51: 76065.36537 | AZ51: 19807.39516 | BA51: 78057.49137 | BB51: 52813.30146 | BC51: 69710.32594 | BD51: 57893.34751 | BH51: P1 | BI51: 0 | BJ51: 45152.78087 | BK51: 239795.3746 | BL51: 19512 | BM51: 16.27500089 | BN51: 103.4566044 | BO51: 119.7316053 | BP51: =BK51*'Look-up Refs'!$D$2+BL51*'Look-up Refs'!$D$3 -> 2769415.783 | BQ51: 47151.91718 | BR51: 25578.14719 | BS51: 3335.301008 | BT51: 72730.06436 | BU51: 76065.36537 | BV51: 121218.1462 | BW51: 2339558.481 | BX51: 0 | CA51: P2 | CB51: 0 | CC51: 50796.87848 | CD51: 99773 | CE51: 0 | CF51: 6.771630463 | CG51: 0 | CH51: 6.771630463 | CI51: =CD51*'Look-up Refs'!$D$2+CE51*'Look-up Refs'!$D$3 -> 340439.608 | CJ51: 19618.76137 | CK51: 0 | CL51: 188.6337851 | CM51: 19618.76137 | CN51: 19807.39516 | CO51: 70604.27363 | CP51: 1748562.928 | CQ51: 0 | CT51: P3 | CU51: 0 | CV51: 45152.78087 | CW51: 393188 | CX51: 0 | CY51: 26.68581519 | CZ51: 0 | DA51: 26.68581519 | DB51: =CW51*'Look-up Refs'!$D$2+CX51*'Look-up Refs'!$D$3 -> 1341613.148 | DC51: 77314.11851 | DD51: 0 | DE51: 743.3728632 | DF51: 77314.11851 | DG51: 78057.49137 | DH51: 123210.2722 | DI51: 1847981.196 | DJ51: 0 | DM51: P4 | DN51: 0 | DO51: 56440.97608 | DP51: 266029 | DQ51: 0 | DR51: 18.05548676 | DS51: 0 | DT51: 18.05548676 | DU51: =DP51*'Look-up Refs'!$D$2+DQ51*'Look-up Refs'!$D$3 -> 907728.6288 | DV51: 52310.33916 | DW51: 0 | DX51: 502.9622965 | DY51: 52310.33916 | DZ51: 52813.30146 | EA51: 109254.2775 | EB51: 1952237.568 | EC51: 0 | EF51: P5 | EG51: 0 | EH51: 50796.87848 | EI51: 351142 | EJ51: 0 | EK51: 23.83213759 | EL51: 0 | EM51: 23.83213759 | EN51: =EI51*'Look-up Refs'!$D$2+EJ51*'Look-up Refs'!$D$3 -> 1198146.24 | EO51: 69046.44649 | EP51: 0 | EQ51: 663.8794519 | ER51: 69046.44649 | ES51: 69710.32594 | ET51: 120507.2044 | EU51: 2389765.734 | EV51: 1 | EY51: P6 | EZ51: 0 | FA51: 50796.87848 | FB51: 291618 | FC51: 0 | FD51: 19.79222167 | FE51: 0 | FF51: 19.79222167 | FG51: =FB51*'Look-up Refs'!$D$2+FC51*'Look-up Refs'!$D$3 -> 995041.9212 | FH51: 57342.00589 | FI51: 0 | FJ51: 551.3416168 | FK51: 57342.00589 | FL51: 57893.34751 | FM51: 108690.226 | FN51: 1368473.811 | FO51: 0
C52: The Strategy and Technology Set-up section establishes the engineering fundamentals for the existing system that is to be replaced as well as the alternate low carbon technologies that are being considered. The Strategy Selection dropdown provides guidance on applicable alternate technologies for the strategy being pursued. These strategies are fully described in the Building Decarbonization Framework: Conceptual Recommendations Report. •Default "Alternate Technologies" are selected based on the chosen strategy but can be changed. An "Alternate Name" can be used to differentiate multiple variations of the same technology (e.g. to evaluate different costs, models, or specific sub technologies). •Custom strategies and technologies can be used to eliminate any or all pre-filled defaults and proceed based on the User's engineering knowledge. | P52: A | AB52: A | AI52: 16 | AJ52: 2041 | AK52: 0 | AL52: 1 | AM52: 1 | AN52: 0.2015498222 | AO52: 1.343665481 | AP52: 28.55289147 | AQ52: 5.42962963e-05 | AR52: ='Life Cycle Analysis Tool'!$D$37 -> 0.005302204 | AW52: 1 | AX52: 16 | AY52: 77874.05984 | AZ52: 20263.91011 | BA52: 79856.53722 | BB52: 54030.52672 | BC52: 71316.9888 | BD52: 59227.65616 | BH52: P1 | BI52: 0 | BJ52: 46507.36429 | BK52: 239795.3746 | BL52: 19512 | BM52: 13.02000071 | BN52: 103.4566044 | BO52: 116.4766052 | BP52: =BK52*'Look-up Refs'!$D$2+BL52*'Look-up Refs'!$D$3 -> 2769415.783 | BQ52: 48330.71511 | BR52: 26217.60087 | BS52: 3325.743866 | BT52: 74548.31597 | BU52: 77874.05984 | BV52: 124381.4241 | BW52: 2463939.905 | BX52: 0 | CA52: P2 | CB52: 0 | CC52: 52320.78483 | CD52: 99773 | CE52: 0 | CF52: 5.41730437 | CG52: 0 | CH52: 5.41730437 | CI52: =CD52*'Look-up Refs'!$D$2+CE52*'Look-up Refs'!$D$3 -> 340439.608 | CJ52: 20109.23041 | CK52: 0 | CL52: 154.6797038 | CM52: 20109.23041 | CN52: 20263.91011 | CO52: 72584.69494 | CP52: 1821147.623 | CQ52: 0 | CT52: P3 | CU52: 0 | CV52: 46507.36429 | CW52: 393188 | CX52: 0 | CY52: 21.34865215 | CZ52: 0 | DA52: 21.34865215 | DB52: =CW52*'Look-up Refs'!$D$2+CX52*'Look-up Refs'!$D$3 -> 1341613.148 | DC52: 79246.97147 | DD52: 0 | DE52: 609.5657479 | DF52: 79246.97147 | DG52: 79856.53722 | DH52: 126363.9015 | DI52: 1974345.098 | DJ52: 0 | DM52: P4 | DN52: 0 | DO52: 58134.20537 | DP52: 266029 | DQ52: 0 | DR52: 14.44438941 | DS52: 0 | DT52: 14.44438941 | DU52: =DP52*'Look-up Refs'!$D$2+DQ52*'Look-up Refs'!$D$3 -> 907728.6288 | DV52: 53618.09764 | DW52: 0 | DX52: 412.4290831 | DY52: 53618.09764 | DZ52: 54030.52672 | EA52: 112164.7321 | EB52: 2064402.301 | EC52: 0 | EF52: P5 | EG52: 0 | EH52: 52320.78483 | EI52: 351142 | EJ52: 0 | EK52: 19.06571007 | EL52: 0 | EM52: 19.06571007 | EN52: =EI52*'Look-up Refs'!$D$2+EJ52*'Look-up Refs'!$D$3 -> 1198146.24 | EO52: 70772.60765 | EP52: 0 | EQ52: 544.3811506 | ER52: 70772.60765 | ES52: 71316.9888 | ET52: 123637.7736 | EU52: 2513403.508 | EV52: 1 | EY52: P6 | EZ52: 0 | FA52: 52320.78483 | FB52: 291618 | FC52: 0 | FD52: 15.83377733 | FE52: 0 | FF52: 15.83377733 | FG52: =FB52*'Look-up Refs'!$D$2+FC52*'Look-up Refs'!$D$3 -> 995041.9212 | FH52: 58775.55604 | FI52: 0 | FJ52: 452.1001258 | FK52: 58775.55604 | FL52: 59227.65616 | FM52: 111548.441 | FN52: 1480022.252 | FO52: 0
C53: Strategy Selection | D53: Centralized Heat Pumps | P53: A | Y53: =D53 -> Centralized Heat Pumps | AB53: A | AI53: 17 | AJ53: 2042 | AK53: 0 | AL53: 1 | AM53: 1 | AN53: 0.2065885677 | AO53: 1.377257118 | AP53: 29.26671376 | AQ53: 4.072222222e-05 | AR53: ='Life Cycle Analysis Tool'!$D$37 -> 0.005302204 | AW53: 1 | AX53: 17 | AY53: 79725.64818 | AZ53: 20730.87119 | BA53: 81696.74943 | BB53: 55275.60494 | BC53: 72960.41585 | BD53: 60592.49691 | BH53: P1 | BI53: 0 | BJ53: 47902.58522 | BK53: 239795.3746 | BL53: 19512 | BM53: 9.765000533 | BN53: 103.4566044 | BO53: 113.221605 | BP53: =BK53*'Look-up Refs'!$D$2+BL53*'Look-up Refs'!$D$3 -> 2769415.783 | BQ53: 49538.98298 | BR53: 26873.04089 | BS53: 3313.624304 | BT53: 76412.02387 | BU53: 79725.64818 | BV53: 127628.2334 | BW53: 2591568.138 | BX53: 0 | CA53: P2 | CB53: 0 | CC53: 53890.40837 | CD53: 99773 | CE53: 0 | CF53: 4.062978278 | CG53: 0 | CH53: 4.062978278 | CI53: =CD53*'Look-up Refs'!$D$2+CE53*'Look-up Refs'!$D$3 -> 340439.608 | CJ53: 20611.96117 | CK53: 0 | CL53: 118.9100223 | CM53: 20611.96117 | CN53: 20730.87119 | CO53: 74621.27956 | CP53: 1895768.903 | CQ53: 0 | CT53: P3 | CU53: 0 | CV53: 47902.58522 | CW53: 393188 | CX53: 0 | CY53: 16.01148911 | CZ53: 0 | DA53: 16.01148911 | DB53: =CW53*'Look-up Refs'!$D$2+CX53*'Look-up Refs'!$D$3 -> 1341613.148 | DC53: 81228.14576 | DD53: 0 | DE53: 468.6036687 | DF53: 81228.14576 | DG53: 81696.74943 | DH53: 129599.3347 | DI53: 2103944.433 | DJ53: 0 | DM53: P4 | DN53: 0 | DO53: 59878.23153 | DP53: 266029 | DQ53: 0 | DR53: 10.83329206 | DS53: 0 | DT53: 10.83329206 | DU53: =DP53*'Look-up Refs'!$D$2+DQ53*'Look-up Refs'!$D$3 -> 907728.6288 | DV53: 54958.55008 | DW53: 0 | DX53: 317.0548577 | DY53: 54958.55008 | DZ53: 55275.60494 | EA53: 115153.8365 | EB53: 2179556.137 | EC53: 0 | EF53: P5 | EG53: 0 | EH53: 53890.40837 | EI53: 351142 | EJ53: 0 | EK53: 14.29928256 | EL53: 0 | EM53: 14.29928256 | EN53: =EI53*'Look-up Refs'!$D$2+EJ53*'Look-up Refs'!$D$3 -> 1198146.24 | EO53: 72541.92284 | EP53: 0 | EQ53: 418.4930095 | ER53: 72541.92284 | ES53: 72960.41585 | ET53: 126850.8242 | EU53: 2640254.332 | EV53: 1 | EY53: P6 | EZ53: 0 | FA53: 53890.40837 | FB53: 291618 | FC53: 0 | FD53: 11.875333 | FE53: 0 | FF53: 11.875333 | FG53: =FB53*'Look-up Refs'!$D$2+FC53*'Look-up Refs'!$D$3 -> 995041.9212 | FH53: 60244.94494 | FI53: 0 | FJ53: 347.5519717 | FK53: 60244.94494 | FL53: 60592.49691 | FM53: 114482.9053 | FN53: 1594505.157 | FO53: 0
C54: Design Overview and Recommendations | D54: =IFERROR(VLOOKUP($D$53,'Look-up Refs'!$W$2:$Y$8,2,FALSE),"") -> Centralized heat pumps installed in an existing campus central plant to provide HHW to campus loop. This design separates CHW and HHW production and does not recover heat from the campus cooling load. It is therefore better suited to campuses with a HHW loop that have minimal or no chilled water load. Heat pumps should be sized by assessing campus loads and conducting a cost-benefit analysis on meeting peak loads via the heat pumps versus utilizing additional sources of heat for these periods, such as existing boilers. | P54: A | AB54: A | AI54: 18 | AJ54: 2043 | AK54: 0 | AL54: 1 | AM54: 1 | AN54: 0.2117532819 | AO54: 1.411688546 | AP54: 29.9983816 | AQ54: 2.714814815e-05 | AR54: ='Life Cycle Analysis Tool'!$D$37 -> 0.005302204 | AW54: 1 | AX54: 18 | AY54: 81621.14464 | AZ54: 21208.51538 | BA54: 83579.06191 | BB54: 56549.16798 | BC54: 74641.44114 | BD54: 61988.56241 | BH54: P1 | BI54: 0 | BJ54: 49339.66278 | BK54: 239795.3746 | BL54: 19512 | BM54: 6.510000355 | BN54: 103.4566044 | BO54: 109.9666048 | BP54: =BK54*'Look-up Refs'!$D$2+BL54*'Look-up Refs'!$D$3 -> 2769415.783 | BQ54: 50777.45756 | BR54: 27544.86691 | BS54: 3298.820174 | BT54: 78322.32447 | BU54: 81621.14464 | BV54: 130960.8074 | BW54: 2722528.946 | BX54: 0 | CA54: P2 | CB54: 0 | CC54: 55507.12063 | CD54: 99773 | CE54: 0 | CF54: 2.708652185 | CG54: 0 | CH54: 2.708652185 | CI54: =CD54*'Look-up Refs'!$D$2+CE54*'Look-up Refs'!$D$3 -> 340439.608 | CJ54: 21127.2602 | CK54: 0 | CL54: 81.25518188 | CM54: 21127.2602 | CN54: 21208.51538 | CO54: 76715.636 | CP54: 1972484.539 | CQ54: 0 | CT54: P3 | CU54: 0 | CV54: 49339.66278 | CW54: 393188 | CX54: 0 | CY54: 10.67432607 | CZ54: 0 | DA54: 10.67432607 | DB54: =CW54*'Look-up Refs'!$D$2+CX54*'Look-up Refs'!$D$3 -> 1341613.148 | DC54: 83258.8494 | DD54: 0 | DE54: 320.2125069 | DF54: 83258.8494 | DG54: 83579.06191 | DH54: 132918.7247 | DI54: 2236863.157 | DJ54: 0 | DM54: P4 | DN54: 0 | DO54: 61674.57847 | DP54: 266029 | DQ54: 0 | DR54: 7.222194704 | DS54: 0 | DT54: 7.222194704 | DU54: =DP54*'Look-up Refs'!$D$2+DQ54*'Look-up Refs'!$D$3 -> 907728.6288 | DV54: 56332.51383 | DW54: 0 | DX54: 216.6541527 | DY54: 56332.51383 | DZ54: 56549.16798 | EA54: 118223.7465 | EB54: 2297779.883 | EC54: 0 | EF54: P5 | EG54: 0 | EH54: 55507.12063 | EI54: 351142 | EJ54: 0 | EK54: 9.532855037 | EL54: 0 | EM54: 9.532855037 | EN54: =EI54*'Look-up Refs'!$D$2+EJ54*'Look-up Refs'!$D$3 -> 1198146.24 | EO54: 74355.47091 | EP54: 0 | EQ54: 285.9702232 | ER54: 74355.47091 | ES54: 74641.44114 | ET54: 130148.5618 | EU54: 2770402.894 | EV54: 1 | EY54: P6 | EZ54: 0 | FA54: 55507.12063 | FB54: 291618 | FC54: 0 | FD54: 7.916888667 | FE54: 0 | FF54: 7.916888667 | FG54: =FB54*'Look-up Refs'!$D$2+FC54*'Look-up Refs'!$D$3 -> 995041.9212 | FH54: 61751.06856 | FI54: 0 | FJ54: 237.4938473 | FK54: 61751.06856 | FL54: 61988.56241 | FM54: 117495.683 | FN54: 1712000.84 | FO54: 0
C55: Generally Applicable Technologies | D55: =IFERROR(VLOOKUP($D$53,'Look-up Refs'!$W$2:$Y$8,3,FALSE),"") -> • Air-to-Water Heat Pump » Heating Only » Heating / Cooling Only • Water-to-Water Heat Pump » Heating Only » Heating / Cooling Only • Water Source Heat Pump | P55: A | AB55: A | AI55: 19 | AJ55: 2044 | AK55: 0 | AL55: 1 | AM55: 1 | AN55: 0.2170471139 | AO55: 1.44698076 | AP55: 30.74834114 | AQ55: 1.357407407e-05 | AR55: ='Life Cycle Analysis Tool'!$D$37 -> 0.005302204 | AW55: 1 | AX55: 19 | AY55: 83561.5874 | AZ55: 21697.08498 | BA55: 85504.42955 | BB55: 57851.86193 | BC55: 76360.91743 | BD55: 63416.56087 | BH55: P1 | BI55: 0 | BJ55: 50819.85266 | BK55: 239795.3746 | BL55: 19512 | BM55: 3.255000178 | BN55: 103.4566044 | BO55: 106.7116046 | BP55: =BK55*'Look-up Refs'!$D$2+BL55*'Look-up Refs'!$D$3 -> 2769415.783 | BQ55: 52046.894 | BR55: 28233.48858 | BS55: 3281.204823 | BT55: 80280.38258 | BU55: 83561.5874 | BV55: 134381.4401 | BW55: 2856910.386 | BX55: 0 | CA55: P2 | CB55: 0 | CC55: 57172.33424 | CD55: 99773 | CE55: 0 | CF55: 1.354326093 | CG55: 0 | CH55: 1.354326093 | CI55: =CD55*'Look-up Refs'!$D$2+CE55*'Look-up Refs'!$D$3 -> 340439.608 | CJ55: 21655.4417 | CK55: 0 | CL55: 41.64328071 | CM55: 21655.4417 | CN55: 21697.08498 | CO55: 78869.41923 | CP55: 2051353.958 | CQ55: 0 | CT55: P3 | CU55: 0 | CV55: 50819.85266 | CW55: 393188 | CX55: 0 | CY55: 5.337163037 | CZ55: 0 | DA55: 5.337163037 | DB55: =CW55*'Look-up Refs'!$D$2+CX55*'Look-up Refs'!$D$3 -> 1341613.148 | DC55: 85340.32064 | DD55: 0 | DE55: 164.1089098 | DF55: 85340.32064 | DG55: 85504.42955 | DH55: 136324.2822 | DI55: 2373187.44 | DJ55: 0 | DM55: P4 | DN55: 0 | DO55: 63524.81583 | DP55: 266029 | DQ55: 0 | DR55: 3.611097352 | DS55: 0 | DT55: 3.611097352 | DU55: =DP55*'Look-up Refs'!$D$2+DQ55*'Look-up Refs'!$D$3 -> 907728.6288 | DV55: 57740.82668 | DW55: 0 | DX55: 111.0352533 | DY55: 57740.82668 | DZ55: 57851.86193 | EA55: 121376.6778 | EB55: 2419156.561 | EC55: 0 | EF55: P5 | EG55: 0 | EH55: 57172.33424 | EI55: 351142 | EJ55: 0 | EK55: 4.766427519 | EL55: 0 | EM55: 4.766427519 | EN55: =EI55*'Look-up Refs'!$D$2+EJ55*'Look-up Refs'!$D$3 -> 1198146.24 | EO55: 76214.35769 | EP55: 0 | EQ55: 146.5597394 | ER55: 76214.35769 | ES55: 76360.91743 | ET55: 133533.2517 | EU55: 2903936.145 | EV55: 1 | EY55: P6 | EZ55: 0 | FA55: 57172.33424 | FB55: 291618 | FC55: 0 | FD55: 3.958444333 | FE55: 0 | FF55: 3.958444333 | FG55: =FB55*'Look-up Refs'!$D$2+FC55*'Look-up Refs'!$D$3 -> 995041.9212 | FH55: 63294.84528 | FI55: 0 | FJ55: 121.7155968 | FK55: 63294.84528 | FL55: 63416.56087 | FM55: 120588.8951 | FN55: 1832589.735 | FO55: 0
P56: A | AB56: A | AI56: 20 | AJ56: 2045 | AK56: 0 | AL56: 1 | AM56: 1 | AN56: 0.2224732918 | AO56: 1.483155279 | AP56: 31.51704967 | AQ56: 0 | AR56: ='Life Cycle Analysis Tool'!$D$37 -> 0.005302204 | AW56: 1 | AX56: 20 | AY56: =IFERROR(SUMIFS($BH56:$AAU56,$BH$3:$AAU$3,AY$32,$BG$1:$AAT$1,AY$33)*$AW56*AY$34,NA()) -> 85548.03909 | AZ56: 22196.82774 | BA56: 87473.82866 | BB56: 59184.34734 | BC56: 78119.71663 | BD56: 64877.21641 | BH56: P1 | BI56: 0 | BJ56: 52344.44824 | BK56: 239795.3746 | BL56: 19512 | BM56: 0 | BN56: 103.4566044 | BO56: 103.4566044 | BP56: =BK56*'Look-up Refs'!$D$2+BL56*'Look-up Refs'!$D$3 -> 2769415.783 | BQ56: 53348.06635 | BR56: 28939.3258 | BS56: 3260.646941 | BT56: 82287.39215 | BU56: 85548.03909 | BV56: 137892.4873 | BW56: 2994802.873 | BX56: 0 | CA56: P2 | CB56: 0 | CC56: 58887.50427 | CD56: 99773 | CE56: 0 | CF56: 0 | CG56: 0 | CH56: 0 | CI56: =CD56*'Look-up Refs'!$D$2+CE56*'Look-up Refs'!$D$3 -> 340439.608 | CJ56: 22196.82774 | CK56: 0 | CL56: 0 | CM56: 22196.82774 | CN56: 22196.82774 | CO56: 81084.33201 | CP56: 2132438.29 | CQ56: 0 | CT56: P3 | CU56: 0 | CV56: 52344.44824 | CW56: 393188 | CX56: 0 | CY56: 0 | CZ56: 0 | DA56: 0 | DB56: =CW56*'Look-up Refs'!$D$2+CX56*'Look-up Refs'!$D$3 -> 1341613.148 | DC56: 87473.82866 | DD56: 0 | DE56: 0 | DF56: 87473.82866 | DG56: 87473.82866 | DH56: 139818.2769 | DI56: 2513005.716 | DJ56: 0 | DM56: P4 | DN56: 0 | DO56: 65430.5603 | DP56: 266029 | DQ56: 0 | DR56: 0 | DS56: 0 | DT56: 0 | DU56: =DP56*'Look-up Refs'!$D$2+DQ56*'Look-up Refs'!$D$3 -> 907728.6288 | DV56: 59184.34734 | DW56: 0 | DX56: 0 | DY56: 59184.34734 | DZ56: 59184.34734 | EA56: 124614.9076 | EB56: 2543771.469 | EC56: 0 | EF56: P5 | EG56: 0 | EH56: 58887.50427 | EI56: 351142 | EJ56: 0 | EK56: 0 | EL56: 0 | EM56: 0 | EN56: =EI56*'Look-up Refs'!$D$2+EJ56*'Look-up Refs'!$D$3 -> 1198146.24 | EO56: 78119.71663 | EP56: 0 | EQ56: 0 | ER56: 78119.71663 | ES56: 78119.71663 | ET56: 137007.2209 | EU56: 3040943.366 | EV56: 1 | EY56: P6 | EZ56: 0 | FA56: 58887.50427 | FB56: 291618 | FC56: 0 | FD56: 0 | FE56: 0 | FF56: 0 | FG56: =FB56*'Look-up Refs'!$D$2+FC56*'Look-up Refs'!$D$3 -> 995041.9212 | FH56: 64877.21641 | FI56: 0 | FJ56: 0 | FK56: 64877.21641 | FL56: 64877.21641 | FM56: 123764.7207 | FN56: 1956354.456 | FO56: 0
C57: 2a. Technology Alternatives Selection | P57: A | AB57: A | AI57: =AI56+1 -> 21 | AJ57: =AJ56+1 -> 2046 | AK57: 0 | AL57: 0 | AM57: 0 | AN57: 0 | AO57: 0 | AP57: 0 | AQ57: 0 | AR57: ='Life Cycle Analysis Tool'!$D$37 -> 0.005302204 | BH57: P1 | BI57: 0 | BJ57: 0 | BK57: 0 | BL57: 0 | BM57: 0 | BN57: 0 | BO57: 0 | BP57: =BK57*'Look-up Refs'!$D$2+BL57*'Look-up Refs'!$D$3 -> 0 | BQ57: 0 | BR57: 0 | BS57: 0 | BT57: 0 | BU57: 0 | BV57: 0 | BW57: =(BV57+BW56)*$AM57 -> 0 | BX57: 0 | CA57: P2 | CB57: 0 | CC57: 0 | CD57: 0 | CE57: 0 | CF57: 0 | CG57: 0 | CH57: 0 | CI57: =CD57*'Look-up Refs'!$D$2+CE57*'Look-up Refs'!$D$3 -> 0 | CJ57: 0 | CK57: 0 | CL57: 0 | CM57: 0 | CN57: 0 | CO57: 0 | CP57: =(CO57+CP56)*$AM57 -> 0 | CQ57: 0 | CT57: P3 | CU57: 0 | CV57: 0 | CW57: 0 | CX57: 0 | CY57: 0 | CZ57: 0 | DA57: 0 | DB57: =CW57*'Look-up Refs'!$D$2+CX57*'Look-up Refs'!$D$3 -> 0 | DC57: 0 | DD57: 0 | DE57: 0 | DF57: 0 | DG57: 0 | DH57: 0 | DI57: =(DH57+DI56)*$AM57 -> 0 | DJ57: 0 | DM57: P4 | DN57: 0 | DO57: 0 | DP57: 0 | DQ57: 0 | DR57: 0 | DS57: 0 | DT57: 0 | DU57: =DP57*'Look-up Refs'!$D$2+DQ57*'Look-up Refs'!$D$3 -> 0 | DV57: 0 | DW57: 0 | DX57: 0 | DY57: 0 | DZ57: 0 | EA57: 0 | EB57: =(EA57+EB56)*$AM57 -> 0 | EC57: 0 | EF57: P5 | EG57: 0 | EH57: 0 | EI57: 0 | EJ57: 0 | EK57: 0 | EL57: 0 | EM57: 0 | EN57: =EI57*'Look-up Refs'!$D$2+EJ57*'Look-up Refs'!$D$3 -> 0 | EO57: 0 | EP57: 0 | EQ57: 0 | ER57: 0 | ES57: 0 | ET57: 0 | EU57: =(ET57+EU56)*$AM57 -> 0 | EV57: 0 | EY57: P6 | EZ57: 0 | FA57: 0 | FB57: 0 | FC57: 0 | FD57: 0 | FE57: 0 | FF57: 0 | FG57: =FB57*'Look-up Refs'!$D$2+FC57*'Look-up Refs'!$D$3 -> 0 | FH57: 0 | FI57: 0 | FJ57: 0 | FK57: 0 | FL57: 0 | FM57: 0 | FN57: =(FM57+FN56)*$AM57 -> 0 | FO57: 0
C58: The Technology Alternatives Selection allow users to set-up which low carbon technologies are evaluated. The selections made here determine the default efficiencies used in the annual energy calculations. •Status Quo Replacement is assumed to be "Replace in Kind" for a typical electric cooling/gas heating arrangement. •"No Selection" can be used to eliminate calculations for that row moving forward. •"Custom Entry" can be used to have null starting point with no default entries. •Heating Only technologies are noted as such and should be evaluated as such by the user. •Users should be aware that the tool allows selection of any technology for any strategy, however not all technologies may be appropriate for every situation. Users should read the Technology Report and Conceptual Recommendations Report to become familiar with the technologies and their applicability. | P58: A | AB58: A | AI58: 22 | AJ58: 2047 | AK58: 0 | AL58: 0 | AM58: 0 | AN58: 0 | AO58: 0 | AP58: 0 | AQ58: 0 | AR58: ='Life Cycle Analysis Tool'!$D$37 -> 0.005302204 | BH58: P1 | BI58: 0 | BJ58: 0 | BK58: 0 | BL58: 0 | BM58: 0 | BN58: 0 | BO58: 0 | BP58: =BK58*'Look-up Refs'!$D$2+BL58*'Look-up Refs'!$D$3 -> 0 | BQ58: 0 | BR58: 0 | BS58: 0 | BT58: 0 | BU58: 0 | BV58: 0 | BW58: 0 | BX58: 0 | CA58: P2 | CB58: 0 | CC58: 0 | CD58: 0 | CE58: 0 | CF58: 0 | CG58: 0 | CH58: 0 | CI58: =CD58*'Look-up Refs'!$D$2+CE58*'Look-up Refs'!$D$3 -> 0 | CJ58: 0 | CK58: 0 | CL58: 0 | CM58: 0 | CN58: 0 | CO58: 0 | CP58: 0 | CQ58: 0 | CT58: P3 | CU58: 0 | CV58: 0 | CW58: 0 | CX58: 0 | CY58: 0 | CZ58: 0 | DA58: 0 | DB58: =CW58*'Look-up Refs'!$D$2+CX58*'Look-up Refs'!$D$3 -> 0 | DC58: 0 | DD58: 0 | DE58: 0 | DF58: 0 | DG58: 0 | DH58: 0 | DI58: 0 | DJ58: 0 | DM58: P4 | DN58: 0 | DO58: 0 | DP58: 0 | DQ58: 0 | DR58: 0 | DS58: 0 | DT58: 0 | DU58: =DP58*'Look-up Refs'!$D$2+DQ58*'Look-up Refs'!$D$3 -> 0 | DV58: 0 | DW58: 0 | DX58: 0 | DY58: 0 | DZ58: 0 | EA58: 0 | EB58: 0 | EC58: 0 | EF58: P5 | EG58: 0 | EH58: 0 | EI58: 0 | EJ58: 0 | EK58: 0 | EL58: 0 | EM58: 0 | EN58: =EI58*'Look-up Refs'!$D$2+EJ58*'Look-up Refs'!$D$3 -> 0 | EO58: 0 | EP58: 0 | EQ58: 0 | ER58: 0 | ES58: 0 | ET58: 0 | EU58: 0 | EV58: 0 | EY58: P6 | EZ58: 0 | FA58: 0 | FB58: 0 | FC58: 0 | FD58: 0 | FE58: 0 | FF58: 0 | FG58: =FB58*'Look-up Refs'!$D$2+FC58*'Look-up Refs'!$D$3 -> 0 | FH58: 0 | FI58: 0 | FJ58: 0 | FK58: 0 | FL58: 0 | FM58: 0 | FN58: 0 | FO58: 0
C59: Alternate Name | D59: Technology Type | E59: Project Name | F59: Heating/Cooling Capabilities | G59: Include Status Quo | P59: A | Z59: Included In Results | AB59: A | AI59: 23 | AJ59: 2048 | AK59: 0 | AL59: 0 | AM59: 0 | AN59: 0 | AO59: 0 | AP59: 0 | AQ59: 0 | AR59: ='Life Cycle Analysis Tool'!$D$37 -> 0.005302204 | BH59: P1 | BI59: 0 | BJ59: 0 | BK59: 0 | BL59: 0 | BM59: 0 | BN59: 0 | BO59: 0 | BP59: =BK59*'Look-up Refs'!$D$2+BL59*'Look-up Refs'!$D$3 -> 0 | BQ59: 0 | BR59: 0 | BS59: 0 | BT59: 0 | BU59: 0 | BV59: 0 | BW59: 0 | BX59: 0 | CA59: P2 | CB59: 0 | CC59: 0 | CD59: 0 | CE59: 0 | CF59: 0 | CG59: 0 | CH59: 0 | CI59: =CD59*'Look-up Refs'!$D$2+CE59*'Look-up Refs'!$D$3 -> 0 | CJ59: 0 | CK59: 0 | CL59: 0 | CM59: 0 | CN59: 0 | CO59: 0 | CP59: 0 | CQ59: 0 | CT59: P3 | CU59: 0 | CV59: 0 | CW59: 0 | CX59: 0 | CY59: 0 | CZ59: 0 | DA59: 0 | DB59: =CW59*'Look-up Refs'!$D$2+CX59*'Look-up Refs'!$D$3 -> 0 | DC59: 0 | DD59: 0 | DE59: 0 | DF59: 0 | DG59: 0 | DH59: 0 | DI59: 0 | DJ59: 0 | DM59: P4 | DN59: 0 | DO59: 0 | DP59: 0 | DQ59: 0 | DR59: 0 | DS59: 0 | DT59: 0 | DU59: =DP59*'Look-up Refs'!$D$2+DQ59*'Look-up Refs'!$D$3 -> 0 | DV59: 0 | DW59: 0 | DX59: 0 | DY59: 0 | DZ59: 0 | EA59: 0 | EB59: 0 | EC59: 0 | EF59: P5 | EG59: 0 | EH59: 0 | EI59: 0 | EJ59: 0 | EK59: 0 | EL59: 0 | EM59: 0 | EN59: =EI59*'Look-up Refs'!$D$2+EJ59*'Look-up Refs'!$D$3 -> 0 | EO59: 0 | EP59: 0 | EQ59: 0 | ER59: 0 | ES59: 0 | ET59: 0 | EU59: 0 | EV59: 0 | EY59: P6 | EZ59: 0 | FA59: 0 | FB59: 0 | FC59: 0 | FD59: 0 | FE59: 0 | FF59: 0 | FG59: =FB59*'Look-up Refs'!$D$2+FC59*'Look-up Refs'!$D$3 -> 0 | FH59: 0 | FI59: 0 | FJ59: 0 | FK59: 0 | FL59: 0 | FM59: 0 | FN59: 0 | FO59: 0
A60: S1 | C60: Status Quo Replacement | D60: Replace in Kind | E60: =IF(Z60="Yes",C60&" ("&D60&")","") -> Status Quo Replacement (Replace in Kind) | F60: =IFERROR(INDEX('Technology Metric Look-ups'!$1:$1048576,MATCH($D60,'Technology Metric Look-ups'!$A:$A,0),MATCH(F$59,'Technology Metric Look-ups'!$1:$1,0)),"") -> Heating/Cooling | G60: Yes | P60: A | Z60: =G60 -> Yes | AB60: A | AI60: 24 | AJ60: 2049 | AK60: 0 | AL60: 0 | AM60: 0 | AN60: 0 | AO60: 0 | AP60: 0 | AQ60: 0 | AR60: ='Life Cycle Analysis Tool'!$D$37 -> 0.005302204 | BH60: P1 | BI60: 0 | BJ60: 0 | BK60: 0 | BL60: 0 | BM60: 0 | BN60: 0 | BO60: 0 | BP60: =BK60*'Look-up Refs'!$D$2+BL60*'Look-up Refs'!$D$3 -> 0 | BQ60: 0 | BR60: 0 | BS60: 0 | BT60: 0 | BU60: 0 | BV60: 0 | BW60: 0 | BX60: 0 | CA60: P2 | CB60: 0 | CC60: 0 | CD60: 0 | CE60: 0 | CF60: 0 | CG60: 0 | CH60: 0 | CI60: =CD60*'Look-up Refs'!$D$2+CE60*'Look-up Refs'!$D$3 -> 0 | CJ60: 0 | CK60: 0 | CL60: 0 | CM60: 0 | CN60: 0 | CO60: 0 | CP60: 0 | CQ60: 0 | CT60: P3 | CU60: 0 | CV60: 0 | CW60: 0 | CX60: 0 | CY60: 0 | CZ60: 0 | DA60: 0 | DB60: =CW60*'Look-up Refs'!$D$2+CX60*'Look-up Refs'!$D$3 -> 0 | DC60: 0 | DD60: 0 | DE60: 0 | DF60: 0 | DG60: 0 | DH60: 0 | DI60: 0 | DJ60: 0 | DM60: P4 | DN60: 0 | DO60: 0 | DP60: 0 | DQ60: 0 | DR60: 0 | DS60: 0 | DT60: 0 | DU60: =DP60*'Look-up Refs'!$D$2+DQ60*'Look-up Refs'!$D$3 -> 0 | DV60: 0 | DW60: 0 | DX60: 0 | DY60: 0 | DZ60: 0 | EA60: 0 | EB60: 0 | EC60: 0 | EF60: P5 | EG60: 0 | EH60: 0 | EI60: 0 | EJ60: 0 | EK60: 0 | EL60: 0 | EM60: 0 | EN60: =EI60*'Look-up Refs'!$D$2+EJ60*'Look-up Refs'!$D$3 -> 0 | EO60: 0 | EP60: 0 | EQ60: 0 | ER60: 0 | ES60: 0 | ET60: 0 | EU60: 0 | EV60: 0 | EY60: P6 | EZ60: 0 | FA60: 0 | FB60: 0 | FC60: 0 | FD60: 0 | FE60: 0 | FF60: 0 | FG60: =FB60*'Look-up Refs'!$D$2+FC60*'Look-up Refs'!$D$3 -> 0 | FH60: 0 | FI60: 0 | FJ60: 0 | FK60: 0 | FL60: 0 | FM60: 0 | FN60: 0 | FO60: 0
A61: S2 | C61: Scenario 1 | D61: WWHP Heating Only | E61: Scenario 1 (WWHP Heating Only) | F61: =IFERROR(INDEX('Technology Metric Look-ups'!$1:$1048576,MATCH($D61,'Technology Metric Look-ups'!$A:$A,0),MATCH(F$59,'Technology Metric Look-ups'!$1:$1,0)),"") -> Heating Only | G61: =IF(F61="Heating Only","Please note that technology is heating only and cooling loads are not accounted for. Please be cautious of comparing with other heating/cooling technologies and zero out system cooling loads. ","") &IF(LEFT($D61,6)="Custom","Please note that user overrides must be used to appropriately life cycle characteristics use for custom technologies","") -> Please note that technology is heating only and cooling loads are not accounted for. Please be cautious of comparing with other heating/cooling technologies and zero out system cooling loads. | P61: A | Y61: =INDEX('Dynamic Look-ups'!$B$31:$H$35,1,MATCH($D$53,'Dynamic Look-ups'!$B$13:$H$13,0)) -> AWHP Heating Only | Z61: =IF(D61="No Selection","No","Yes") -> Yes | AB61: A | AI61: 25 | AJ61: 2050 | AK61: 0 | AL61: 0 | AM61: 0 | AN61: 0 | AO61: 0 | AP61: 0 | AQ61: 0 | AR61: ='Life Cycle Analysis Tool'!$D$37 -> 0.005302204 | BH61: P1 | BI61: 0 | BJ61: 0 | BK61: 0 | BL61: 0 | BM61: 0 | BN61: 0 | BO61: 0 | BP61: =BK61*'Look-up Refs'!$D$2+BL61*'Look-up Refs'!$D$3 -> 0 | BQ61: 0 | BR61: 0 | BS61: 0 | BT61: 0 | BU61: 0 | BV61: 0 | BW61: 0 | BX61: 0 | CA61: P2 | CB61: 0 | CC61: 0 | CD61: 0 | CE61: 0 | CF61: 0 | CG61: 0 | CH61: 0 | CI61: =CD61*'Look-up Refs'!$D$2+CE61*'Look-up Refs'!$D$3 -> 0 | CJ61: 0 | CK61: 0 | CL61: 0 | CM61: 0 | CN61: 0 | CO61: 0 | CP61: 0 | CQ61: 0 | CT61: P3 | CU61: 0 | CV61: 0 | CW61: 0 | CX61: 0 | CY61: 0 | CZ61: 0 | DA61: 0 | DB61: =CW61*'Look-up Refs'!$D$2+CX61*'Look-up Refs'!$D$3 -> 0 | DC61: 0 | DD61: 0 | DE61: 0 | DF61: 0 | DG61: 0 | DH61: 0 | DI61: 0 | DJ61: 0 | DM61: P4 | DN61: 0 | DO61: 0 | DP61: 0 | DQ61: 0 | DR61: 0 | DS61: 0 | DT61: 0 | DU61: =DP61*'Look-up Refs'!$D$2+DQ61*'Look-up Refs'!$D$3 -> 0 | DV61: 0 | DW61: 0 | DX61: 0 | DY61: 0 | DZ61: 0 | EA61: 0 | EB61: 0 | EC61: 0 | EF61: P5 | EG61: 0 | EH61: 0 | EI61: 0 | EJ61: 0 | EK61: 0 | EL61: 0 | EM61: 0 | EN61: =EI61*'Look-up Refs'!$D$2+EJ61*'Look-up Refs'!$D$3 -> 0 | EO61: 0 | EP61: 0 | EQ61: 0 | ER61: 0 | ES61: 0 | ET61: 0 | EU61: 0 | EV61: 0 | EY61: P6 | EZ61: 0 | FA61: 0 | FB61: 0 | FC61: 0 | FD61: 0 | FE61: 0 | FF61: 0 | FG61: =FB61*'Look-up Refs'!$D$2+FC61*'Look-up Refs'!$D$3 -> 0 | FH61: 0 | FI61: 0 | FJ61: 0 | FK61: 0 | FL61: 0 | FM61: 0 | FN61: 0 | FO61: 0
A62: S3 | C62: Scenario 2 | D62: Air-to-Air Heat Pump | E62: Scenario 2 (Air-to-Air Heat Pump ) | F62: =IFERROR(INDEX('Technology Metric Look-ups'!$1:$1048576,MATCH($D62,'Technology Metric Look-ups'!$A:$A,0),MATCH(F$59,'Technology Metric Look-ups'!$1:$1,0)),"") -> Heating/Cooling | P62: A | Y62: =INDEX('Dynamic Look-ups'!$B$31:$H$35,2,MATCH($D$53,'Dynamic Look-ups'!$B$13:$H$13,0)) -> AWHP Heating/Cooling Only | Z62: =IF(D62="No Selection","No","Yes") -> Yes | AB62: A | AI62: 26 | AJ62: 2051 | AK62: 0 | AL62: 0 | AM62: 0 | AN62: 0 | AO62: 0 | AP62: 0 | AQ62: 0 | AR62: ='Life Cycle Analysis Tool'!$D$37 -> 0.005302204 | BH62: P1 | BI62: 0 | BJ62: 0 | BK62: 0 | BL62: 0 | BM62: 0 | BN62: 0 | BO62: 0 | BP62: =BK62*'Look-up Refs'!$D$2+BL62*'Look-up Refs'!$D$3 -> 0 | BQ62: 0 | BR62: 0 | BS62: 0 | BT62: 0 | BU62: 0 | BV62: 0 | BW62: 0 | BX62: 0 | CA62: P2 | CB62: 0 | CC62: 0 | CD62: 0 | CE62: 0 | CF62: 0 | CG62: 0 | CH62: 0 | CI62: =CD62*'Look-up Refs'!$D$2+CE62*'Look-up Refs'!$D$3 -> 0 | CJ62: 0 | CK62: 0 | CL62: 0 | CM62: 0 | CN62: 0 | CO62: 0 | CP62: 0 | CQ62: 0 | CT62: P3 | CU62: 0 | CV62: 0 | CW62: 0 | CX62: 0 | CY62: 0 | CZ62: 0 | DA62: 0 | DB62: =CW62*'Look-up Refs'!$D$2+CX62*'Look-up Refs'!$D$3 -> 0 | DC62: 0 | DD62: 0 | DE62: 0 | DF62: 0 | DG62: 0 | DH62: 0 | DI62: 0 | DJ62: 0 | DM62: P4 | DN62: 0 | DO62: 0 | DP62: 0 | DQ62: 0 | DR62: 0 | DS62: 0 | DT62: 0 | DU62: =DP62*'Look-up Refs'!$D$2+DQ62*'Look-up Refs'!$D$3 -> 0 | DV62: 0 | DW62: 0 | DX62: 0 | DY62: 0 | DZ62: 0 | EA62: 0 | EB62: 0 | EC62: 0 | EF62: P5 | EG62: 0 | EH62: 0 | EI62: 0 | EJ62: 0 | EK62: 0 | EL62: 0 | EM62: 0 | EN62: =EI62*'Look-up Refs'!$D$2+EJ62*'Look-up Refs'!$D$3 -> 0 | EO62: 0 | EP62: 0 | EQ62: 0 | ER62: 0 | ES62: 0 | ET62: 0 | EU62: 0 | EV62: 0 | EY62: P6 | EZ62: 0 | FA62: 0 | FB62: 0 | FC62: 0 | FD62: 0 | FE62: 0 | FF62: 0 | FG62: =FB62*'Look-up Refs'!$D$2+FC62*'Look-up Refs'!$D$3 -> 0 | FH62: 0 | FI62: 0 | FJ62: 0 | FK62: 0 | FL62: 0 | FM62: 0 | FN62: 0 | FO62: 0
A63: S4 | C63: Scenario 3 | D63: WSHP | E63: Scenario 3 (WSHP) | F63: =IFERROR(INDEX('Technology Metric Look-ups'!$1:$1048576,MATCH($D63,'Technology Metric Look-ups'!$A:$A,0),MATCH(F$59,'Technology Metric Look-ups'!$1:$1,0)),"") -> Heating/Cooling | P63: A | Y63: =INDEX('Dynamic Look-ups'!$B$31:$H$35,3,MATCH($D$53,'Dynamic Look-ups'!$B$13:$H$13,0)) -> WWHP Heating Only | Z63: Yes | AB63: A | AI63: 27 | AJ63: 2052 | AK63: 0 | AL63: 0 | AM63: 0 | AN63: 0 | AO63: 0 | AP63: 0 | AQ63: 0 | AR63: ='Life Cycle Analysis Tool'!$D$37 -> 0.005302204 | BH63: P1 | BI63: 0 | BJ63: 0 | BK63: 0 | BL63: 0 | BM63: 0 | BN63: 0 | BO63: 0 | BP63: =BK63*'Look-up Refs'!$D$2+BL63*'Look-up Refs'!$D$3 -> 0 | BQ63: 0 | BR63: 0 | BS63: 0 | BT63: 0 | BU63: 0 | BV63: 0 | BW63: 0 | BX63: 0 | CA63: P2 | CB63: 0 | CC63: 0 | CD63: 0 | CE63: 0 | CF63: 0 | CG63: 0 | CH63: 0 | CI63: =CD63*'Look-up Refs'!$D$2+CE63*'Look-up Refs'!$D$3 -> 0 | CJ63: 0 | CK63: 0 | CL63: 0 | CM63: 0 | CN63: 0 | CO63: 0 | CP63: 0 | CQ63: 0 | CT63: P3 | CU63: 0 | CV63: 0 | CW63: 0 | CX63: 0 | CY63: 0 | CZ63: 0 | DA63: 0 | DB63: =CW63*'Look-up Refs'!$D$2+CX63*'Look-up Refs'!$D$3 -> 0 | DC63: 0 | DD63: 0 | DE63: 0 | DF63: 0 | DG63: 0 | DH63: 0 | DI63: 0 | DJ63: 0 | DM63: P4 | DN63: 0 | DO63: 0 | DP63: 0 | DQ63: 0 | DR63: 0 | DS63: 0 | DT63: 0 | DU63: =DP63*'Look-up Refs'!$D$2+DQ63*'Look-up Refs'!$D$3 -> 0 | DV63: 0 | DW63: 0 | DX63: 0 | DY63: 0 | DZ63: 0 | EA63: 0 | EB63: 0 | EC63: 0 | EF63: P5 | EG63: 0 | EH63: 0 | EI63: 0 | EJ63: 0 | EK63: 0 | EL63: 0 | EM63: 0 | EN63: =EI63*'Look-up Refs'!$D$2+EJ63*'Look-up Refs'!$D$3 -> 0 | EO63: 0 | EP63: 0 | EQ63: 0 | ER63: 0 | ES63: 0 | ET63: 0 | EU63: 0 | EV63: 0 | EY63: P6 | EZ63: 0 | FA63: 0 | FB63: 0 | FC63: 0 | FD63: 0 | FE63: 0 | FF63: 0 | FG63: =FB63*'Look-up Refs'!$D$2+FC63*'Look-up Refs'!$D$3 -> 0 | FH63: 0 | FI63: 0 | FJ63: 0 | FK63: 0 | FL63: 0 | FM63: 0 | FN63: 0 | FO63: 0
A64: S5 | C64: Scenario 4 | D64: VRF Air Cooled | E64: Scenario 4 (VRF Air Cooled) | F64: =IFERROR(INDEX('Technology Metric Look-ups'!$1:$1048576,MATCH($D64,'Technology Metric Look-ups'!$A:$A,0),MATCH(F$59,'Technology Metric Look-ups'!$1:$1,0)),"") -> Heating/Cooling | P64: A | Y64: =INDEX('Dynamic Look-ups'!$B$31:$H$35,4,MATCH($D$53,'Dynamic Look-ups'!$B$13:$H$13,0)) -> WWHP Heating/Cooling Only | Z64: Yes | AB64: A | AI64: 28 | AJ64: 2053 | AK64: 0 | AL64: 0 | AM64: 0 | AN64: 0 | AO64: 0 | AP64: 0 | AQ64: 0 | AR64: ='Life Cycle Analysis Tool'!$D$37 -> 0.005302204 | BH64: P1 | BI64: 0 | BJ64: 0 | BK64: 0 | BL64: 0 | BM64: 0 | BN64: 0 | BO64: 0 | BP64: =BK64*'Look-up Refs'!$D$2+BL64*'Look-up Refs'!$D$3 -> 0 | BQ64: 0 | BR64: 0 | BS64: 0 | BT64: 0 | BU64: 0 | BV64: 0 | BW64: 0 | BX64: 0 | CA64: P2 | CB64: 0 | CC64: 0 | CD64: 0 | CE64: 0 | CF64: 0 | CG64: 0 | CH64: 0 | CI64: =CD64*'Look-up Refs'!$D$2+CE64*'Look-up Refs'!$D$3 -> 0 | CJ64: 0 | CK64: 0 | CL64: 0 | CM64: 0 | CN64: 0 | CO64: 0 | CP64: 0 | CQ64: 0 | CT64: P3 | CU64: 0 | CV64: 0 | CW64: 0 | CX64: 0 | CY64: 0 | CZ64: 0 | DA64: 0 | DB64: =CW64*'Look-up Refs'!$D$2+CX64*'Look-up Refs'!$D$3 -> 0 | DC64: 0 | DD64: 0 | DE64: 0 | DF64: 0 | DG64: 0 | DH64: 0 | DI64: 0 | DJ64: 0 | DM64: P4 | DN64: 0 | DO64: 0 | DP64: 0 | DQ64: 0 | DR64: 0 | DS64: 0 | DT64: 0 | DU64: =DP64*'Look-up Refs'!$D$2+DQ64*'Look-up Refs'!$D$3 -> 0 | DV64: 0 | DW64: 0 | DX64: 0 | DY64: 0 | DZ64: 0 | EA64: 0 | EB64: 0 | EC64: 0 | EF64: P5 | EG64: 0 | EH64: 0 | EI64: 0 | EJ64: 0 | EK64: 0 | EL64: 0 | EM64: 0 | EN64: =EI64*'Look-up Refs'!$D$2+EJ64*'Look-up Refs'!$D$3 -> 0 | EO64: 0 | EP64: 0 | EQ64: 0 | ER64: 0 | ES64: 0 | ET64: 0 | EU64: 0 | EV64: 0 | EY64: P6 | EZ64: 0 | FA64: 0 | FB64: 0 | FC64: 0 | FD64: 0 | FE64: 0 | FF64: 0 | FG64: =FB64*'Look-up Refs'!$D$2+FC64*'Look-up Refs'!$D$3 -> 0 | FH64: 0 | FI64: 0 | FJ64: 0 | FK64: 0 | FL64: 0 | FM64: 0 | FN64: 0 | FO64: 0
A65: S6 | C65: Scenario 5 | D65: VRF Water Cooled | E65: Scenario 5 (VRF Water Cooled) | F65: =IFERROR(INDEX('Technology Metric Look-ups'!$1:$1048576,MATCH($D65,'Technology Metric Look-ups'!$A:$A,0),MATCH(F$59,'Technology Metric Look-ups'!$1:$1,0)),"") -> Heating/Cooling | P65: A | Y65: =INDEX('Dynamic Look-ups'!$B$31:$H$35,5,MATCH($D$53,'Dynamic Look-ups'!$B$13:$H$13,0)) -> WSHP | Z65: Yes | AB65: A | AI65: 29 | AJ65: 2054 | AK65: 0 | AL65: 0 | AM65: 0 | AN65: 0 | AO65: 0 | AP65: 0 | AQ65: 0 | AR65: ='Life Cycle Analysis Tool'!$D$37 -> 0.005302204 | BH65: P1 | BI65: 0 | BJ65: 0 | BK65: 0 | BL65: 0 | BM65: 0 | BN65: 0 | BO65: 0 | BP65: =BK65*'Look-up Refs'!$D$2+BL65*'Look-up Refs'!$D$3 -> 0 | BQ65: 0 | BR65: 0 | BS65: 0 | BT65: 0 | BU65: 0 | BV65: 0 | BW65: 0 | BX65: 0 | CA65: P2 | CB65: 0 | CC65: 0 | CD65: 0 | CE65: 0 | CF65: 0 | CG65: 0 | CH65: 0 | CI65: =CD65*'Look-up Refs'!$D$2+CE65*'Look-up Refs'!$D$3 -> 0 | CJ65: 0 | CK65: 0 | CL65: 0 | CM65: 0 | CN65: 0 | CO65: 0 | CP65: 0 | CQ65: 0 | CT65: P3 | CU65: 0 | CV65: 0 | CW65: 0 | CX65: 0 | CY65: 0 | CZ65: 0 | DA65: 0 | DB65: =CW65*'Look-up Refs'!$D$2+CX65*'Look-up Refs'!$D$3 -> 0 | DC65: 0 | DD65: 0 | DE65: 0 | DF65: 0 | DG65: 0 | DH65: 0 | DI65: 0 | DJ65: 0 | DM65: P4 | DN65: 0 | DO65: 0 | DP65: 0 | DQ65: 0 | DR65: 0 | DS65: 0 | DT65: 0 | DU65: =DP65*'Look-up Refs'!$D$2+DQ65*'Look-up Refs'!$D$3 -> 0 | DV65: 0 | DW65: 0 | DX65: 0 | DY65: 0 | DZ65: 0 | EA65: 0 | EB65: 0 | EC65: 0 | EF65: P5 | EG65: 0 | EH65: 0 | EI65: 0 | EJ65: 0 | EK65: 0 | EL65: 0 | EM65: 0 | EN65: =EI65*'Look-up Refs'!$D$2+EJ65*'Look-up Refs'!$D$3 -> 0 | EO65: 0 | EP65: 0 | EQ65: 0 | ER65: 0 | ES65: 0 | ET65: 0 | EU65: 0 | EV65: 0 | EY65: P6 | EZ65: 0 | FA65: 0 | FB65: 0 | FC65: 0 | FD65: 0 | FE65: 0 | FF65: 0 | FG65: =FB65*'Look-up Refs'!$D$2+FC65*'Look-up Refs'!$D$3 -> 0 | FH65: 0 | FI65: 0 | FJ65: 0 | FK65: 0 | FL65: 0 | FM65: 0 | FN65: 0 | FO65: 0
P66: A | AB66: A | AI66: 30 | AJ66: 2055 | AK66: 0 | AL66: 0 | AM66: 0 | AN66: 0 | AO66: 0 | AP66: 0 | AQ66: 0 | AR66: ='Life Cycle Analysis Tool'!$D$37 -> 0.005302204 | AY66: =IFERROR(SUMIFS($BH66:$AAU66,$BH$3:$AAU$3,AY$32,$BG$1:$AAT$1,AY$33)*$AW66*AY$34,NA()) ->  | BH66: P1 | BI66: 0 | BJ66: 0 | BK66: 0 | BL66: 0 | BM66: 0 | BN66: 0 | BO66: 0 | BP66: =BK66*'Look-up Refs'!$D$2+BL66*'Look-up Refs'!$D$3 -> 0 | BQ66: 0 | BR66: 0 | BS66: 0 | BT66: 0 | BU66: 0 | BV66: 0 | BW66: 0 | BX66: 0 | CA66: P2 | CB66: 0 | CC66: 0 | CD66: 0 | CE66: 0 | CF66: 0 | CG66: 0 | CH66: 0 | CI66: =CD66*'Look-up Refs'!$D$2+CE66*'Look-up Refs'!$D$3 -> 0 | CJ66: 0 | CK66: 0 | CL66: 0 | CM66: 0 | CN66: 0 | CO66: 0 | CP66: 0 | CQ66: 0 | CT66: P3 | CU66: 0 | CV66: 0 | CW66: 0 | CX66: 0 | CY66: 0 | CZ66: 0 | DA66: 0 | DB66: =CW66*'Look-up Refs'!$D$2+CX66*'Look-up Refs'!$D$3 -> 0 | DC66: 0 | DD66: 0 | DE66: 0 | DF66: 0 | DG66: 0 | DH66: 0 | DI66: 0 | DJ66: 0 | DM66: P4 | DN66: 0 | DO66: 0 | DP66: 0 | DQ66: 0 | DR66: 0 | DS66: 0 | DT66: 0 | DU66: =DP66*'Look-up Refs'!$D$2+DQ66*'Look-up Refs'!$D$3 -> 0 | DV66: 0 | DW66: 0 | DX66: 0 | DY66: 0 | DZ66: 0 | EA66: 0 | EB66: 0 | EC66: 0 | EF66: P5 | EG66: 0 | EH66: 0 | EI66: 0 | EJ66: 0 | EK66: 0 | EL66: 0 | EM66: 0 | EN66: =EI66*'Look-up Refs'!$D$2+EJ66*'Look-up Refs'!$D$3 -> 0 | EO66: 0 | EP66: 0 | EQ66: 0 | ER66: 0 | ES66: 0 | ET66: 0 | EU66: 0 | EV66: 0 | EY66: P6 | EZ66: 0 | FA66: 0 | FB66: 0 | FC66: 0 | FD66: 0 | FE66: 0 | FF66: 0 | FG66: =FB66*'Look-up Refs'!$D$2+FC66*'Look-up Refs'!$D$3 -> 0 | FH66: 0 | FI66: 0 | FJ66: 0 | FK66: 0 | FL66: 0 | FM66: 0 | FN66: 0 | FO66: 0
C67: 3. Existing System Load Calculations | P67: A | AB67: A | AI67: 31 | AJ67: 2056 | AK67: 0 | AL67: 0 | AM67: 0 | AN67: 0 | AO67: 0 | AP67: 0 | AQ67: 0 | AR67: ='Life Cycle Analysis Tool'!$D$37 -> 0.005302204 | BH67: P1 | BI67: 0 | BJ67: 0 | BK67: 0 | BL67: 0 | BM67: 0 | BN67: 0 | BO67: 0 | BP67: =BK67*'Look-up Refs'!$D$2+BL67*'Look-up Refs'!$D$3 -> 0 | BQ67: 0 | BR67: 0 | BS67: 0 | BT67: 0 | BU67: 0 | BV67: 0 | BW67: 0 | BX67: 0 | CA67: P2 | CB67: 0 | CC67: 0 | CD67: 0 | CE67: 0 | CF67: 0 | CG67: 0 | CH67: 0 | CI67: =CD67*'Look-up Refs'!$D$2+CE67*'Look-up Refs'!$D$3 -> 0 | CJ67: 0 | CK67: 0 | CL67: 0 | CM67: 0 | CN67: 0 | CO67: 0 | CP67: 0 | CQ67: 0 | CT67: P3 | CU67: 0 | CV67: 0 | CW67: 0 | CX67: 0 | CY67: 0 | CZ67: 0 | DA67: 0 | DB67: =CW67*'Look-up Refs'!$D$2+CX67*'Look-up Refs'!$D$3 -> 0 | DC67: 0 | DD67: 0 | DE67: 0 | DF67: 0 | DG67: 0 | DH67: 0 | DI67: 0 | DJ67: 0 | DM67: P4 | DN67: 0 | DO67: 0 | DP67: 0 | DQ67: 0 | DR67: 0 | DS67: 0 | DT67: 0 | DU67: =DP67*'Look-up Refs'!$D$2+DQ67*'Look-up Refs'!$D$3 -> 0 | DV67: 0 | DW67: 0 | DX67: 0 | DY67: 0 | DZ67: 0 | EA67: 0 | EB67: 0 | EC67: 0 | EF67: P5 | EG67: 0 | EH67: 0 | EI67: 0 | EJ67: 0 | EK67: 0 | EL67: 0 | EM67: 0 | EN67: =EI67*'Look-up Refs'!$D$2+EJ67*'Look-up Refs'!$D$3 -> 0 | EO67: 0 | EP67: 0 | EQ67: 0 | ER67: 0 | ES67: 0 | ET67: 0 | EU67: 0 | EV67: 0 | EY67: P6 | EZ67: 0 | FA67: 0 | FB67: 0 | FC67: 0 | FD67: 0 | FE67: 0 | FF67: 0 | FG67: =FB67*'Look-up Refs'!$D$2+FC67*'Look-up Refs'!$D$3 -> 0 | FH67: 0 | FI67: 0 | FJ67: 0 | FK67: 0 | FL67: 0 | FM67: 0 | FN67: 0 | FO67: 0
C68: The Existing System Load Calculations serve as the basis for all energy calculations for each alternate being considered. •The calculation is set-up to be based on existing system capacities and effective full load hours. •Alternatively, the User can enter the annual heating and cooling loads if they are known. •The "Future Heating/Cooling Load Multipliers" can be used to project load growth from current levels. | P68: A | AB68: A | AI68: 32 | AJ68: 2057 | AK68: 0 | AL68: 0 | AM68: 0 | AN68: 0 | AO68: 0 | AP68: 0 | AQ68: =MAX(AJ68*$Y$32+$Z$32,0) -> 0 | AR68: ='Life Cycle Analysis Tool'!$D$37 -> 0.005302204 | AW68: =IF(AM68=1,1,NA()) ->  | AX68: =AI68*$AW68 ->  | BH68: =BH$1 -> P1 | BI68: =IFERROR(INDEX($D:$D,MATCH(BI$1,$A:$A,0),1)*BI$2*$AM68*$AK68*(1+$F$44)^($AJ68-INDEX($Z:$Z,MATCH(CONCATENATE("C",RIGHT(BI$1,1)),$A:$A,0),1)),0) -> 0 | BJ68: =IFERROR(INDEX($E:$E,MATCH(BJ$1,$A:$A,0),1)*BJ$2*$AM68*$AL68*(1+$F$43)^($AJ68-INDEX($Z:$Z,MATCH(CONCATENATE("M",RIGHT(BJ$1,1)),$A:$A,0),1)),0) -> 0 | BK68: =IFERROR(INDEX($F:$F,MATCH(BK$1,$A:$A,0),1)*BK$2*$AM68*$AL68,0) -> 0 | BL68: =IFERROR(INDEX($G:$G,MATCH(BL$1,$A:$A,0),1)*BL$2*$AM68*$AL68,0) -> 0 | BM68: 0 | BN68: 0 | BO68: 0 | BP68: =BK68*'Look-up Refs'!$D$2+BL68*'Look-up Refs'!$D$3 -> 0 | BQ68: =BK68*$AN68 -> 0 | BR68: =BL68*$AO68 -> 0 | BS68: 0 | BT68: =BQ68+BR68 -> 0 | BU68: 0 | BV68: =BI68+BJ68+BU68 -> 0 | BW68: 0 | BX68: =(BW68>$BW68)*$AM68 -> 0 | CA68: =CA$1 -> P2 | CB68: =IFERROR(INDEX($D:$D,MATCH(CB$1,$A:$A,0),1)*CB$2*$AM68*$AK68*(1+$F$44)^($AJ68-INDEX($Z:$Z,MATCH(CONCATENATE("C",RIGHT(CB$1,1)),$A:$A,0),1)),0) -> 0 | CC68: =IFERROR(INDEX($E:$E,MATCH(CC$1,$A:$A,0),1)*CC$2*$AM68*$AL68*(1+$F$43)^($AJ68-INDEX($Z:$Z,MATCH(CONCATENATE("M",RIGHT(CC$1,1)),$A:$A,0),1)),0) -> 0 | CD68: =IFERROR(INDEX($F:$F,MATCH(CD$1,$A:$A,0),1)*CD$2*$AM68*$AL68,0) -> 0 | CE68: =IFERROR(INDEX($G:$G,MATCH(CE$1,$A:$A,0),1)*CE$2*$AM68*$AL68,0) -> 0 | CF68: 0 | CG68: 0 | CH68: 0 | CI68: =CD68*'Look-up Refs'!$D$2+CE68*'Look-up Refs'!$D$3 -> 0 | CJ68: =CD68*$AN68 -> 0 | CK68: =CE68*$AO68 -> 0 | CL68: 0 | CM68: =CJ68+CK68 -> 0 | CN68: 0 | CO68: =CB68+CC68+CN68 -> 0 | CP68: 0 | CQ68: =(CP68>$BW68)*$AM68 -> 0 | CT68: =CT$1 -> P3 | CU68: =IFERROR(INDEX($D:$D,MATCH(CU$1,$A:$A,0),1)*CU$2*$AM68*$AK68*(1+$F$44)^($AJ68-INDEX($Z:$Z,MATCH(CONCATENATE("C",RIGHT(CU$1,1)),$A:$A,0),1)),0) -> 0 | CV68: =IFERROR(INDEX($E:$E,MATCH(CV$1,$A:$A,0),1)*CV$2*$AM68*$AL68*(1+$F$43)^($AJ68-INDEX($Z:$Z,MATCH(CONCATENATE("M",RIGHT(CV$1,1)),$A:$A,0),1)),0) -> 0 | CW68: =IFERROR(INDEX($F:$F,MATCH(CW$1,$A:$A,0),1)*CW$2*$AM68*$AL68,0) -> 0 | CX68: =IFERROR(INDEX($G:$G,MATCH(CX$1,$A:$A,0),1)*CX$2*$AM68*$AL68,0) -> 0 | CY68: 0 | CZ68: 0 | DA68: 0 | DB68: =CW68*'Look-up Refs'!$D$2+CX68*'Look-up Refs'!$D$3 -> 0 | DC68: =CW68*$AN68 -> 0 | DD68: =CX68*$AO68 -> 0 | DE68: 0 | DF68: =DC68+DD68 -> 0 | DG68: 0 | DH68: =CU68+CV68+DG68 -> 0 | DI68: 0 | DJ68: =(DI68>$BW68)*$AM68 -> 0 | DM68: =DM$1 -> P4 | DN68: =IFERROR(INDEX($D:$D,MATCH(DN$1,$A:$A,0),1)*DN$2*$AM68*$AK68*(1+$F$44)^($AJ68-INDEX($Z:$Z,MATCH(CONCATENATE("C",RIGHT(DN$1,1)),$A:$A,0),1)),0) -> 0 | DO68: =IFERROR(INDEX($E:$E,MATCH(DO$1,$A:$A,0),1)*DO$2*$AM68*$AL68*(1+$F$43)^($AJ68-INDEX($Z:$Z,MATCH(CONCATENATE("M",RIGHT(DO$1,1)),$A:$A,0),1)),0) -> 0 | DP68: =IFERROR(INDEX($F:$F,MATCH(DP$1,$A:$A,0),1)*DP$2*$AM68*$AL68,0) -> 0 | DQ68: =IFERROR(INDEX($G:$G,MATCH(DQ$1,$A:$A,0),1)*DQ$2*$AM68*$AL68,0) -> 0 | DR68: 0 | DS68: 0 | DT68: 0 | DU68: =DP68*'Look-up Refs'!$D$2+DQ68*'Look-up Refs'!$D$3 -> 0 | DV68: =DP68*$AN68 -> 0 | DW68: =DQ68*$AO68 -> 0 | DX68: 0 | DY68: =DV68+DW68 -> 0 | DZ68: 0 | EA68: =DN68+DO68+DZ68 -> 0 | EB68: 0 | EC68: =(EB68>$BW68)*$AM68 -> 0 | EF68: =EF$1 -> P5 | EG68: =IFERROR(INDEX($D:$D,MATCH(EG$1,$A:$A,0),1)*EG$2*$AM68*$AK68*(1+$F$44)^($AJ68-INDEX($Z:$Z,MATCH(CONCATENATE("C",RIGHT(EG$1,1)),$A:$A,0),1)),0) -> 0 | EH68: =IFERROR(INDEX($E:$E,MATCH(EH$1,$A:$A,0),1)*EH$2*$AM68*$AL68*(1+$F$43)^($AJ68-INDEX($Z:$Z,MATCH(CONCATENATE("M",RIGHT(EH$1,1)),$A:$A,0),1)),0) -> 0 | EI68: =IFERROR(INDEX($F:$F,MATCH(EI$1,$A:$A,0),1)*EI$2*$AM68*$AL68,0) -> 0 | EJ68: =IFERROR(INDEX($G:$G,MATCH(EJ$1,$A:$A,0),1)*EJ$2*$AM68*$AL68,0) -> 0 | EK68: 0 | EL68: 0 | EM68: 0 | EN68: =EI68*'Look-up Refs'!$D$2+EJ68*'Look-up Refs'!$D$3 -> 0 | EO68: =EI68*$AN68 -> 0 | EP68: =EJ68*$AO68 -> 0 | EQ68: 0 | ER68: =EO68+EP68 -> 0 | ES68: 0 | ET68: =EG68+EH68+ES68 -> 0 | EU68: 0 | EV68: =(EU68>$BW68)*$AM68 -> 0 | EY68: =EY$1 -> P6 | EZ68: =IFERROR(INDEX($D:$D,MATCH(EZ$1,$A:$A,0),1)*EZ$2*$AM68*$AK68*(1+$F$44)^($AJ68-INDEX($Z:$Z,MATCH(CONCATENATE("C",RIGHT(EZ$1,1)),$A:$A,0),1)),0) -> 0 | FA68: =IFERROR(INDEX($E:$E,MATCH(FA$1,$A:$A,0),1)*FA$2*$AM68*$AL68*(1+$F$43)^($AJ68-INDEX($Z:$Z,MATCH(CONCATENATE("M",RIGHT(FA$1,1)),$A:$A,0),1)),0) -> 0 | FB68: =IFERROR(INDEX($F:$F,MATCH(FB$1,$A:$A,0),1)*FB$2*$AM68*$AL68,0) -> 0 | FC68: =IFERROR(INDEX($G:$G,MATCH(FC$1,$A:$A,0),1)*FC$2*$AM68*$AL68,0) -> 0 | FD68: 0 | FE68: 0 | FF68: 0 | FG68: =FB68*'Look-up Refs'!$D$2+FC68*'Look-up Refs'!$D$3 -> 0 | FH68: =FB68*$AN68 -> 0 | FI68: =FC68*$AO68 -> 0 | FJ68: 0 | FK68: =FH68+FI68 -> 0 | FL68: 0 | FM68: =EZ68+FA68+FL68 -> 0 | FN68: 0 | FO68: =(FN68>$BW68)*$AM68 -> 0
C69: Existing Conditions | D69: Existing Capacity (kBTU for Heating, Tons for Cooling) | E69: Existing System(s) Operating Hours (Full Load Hours per Year) | P69: A | AB69: A | AI69: 33 | AJ69: 2058 | AK69: 0 | AL69: 0 | AM69: 0 | AN69: =AN$27*(1+AN$28)^($AJ69-AN$29)*$AM69 -> 0 | AO69: 0 | AP69: 0 | AQ69: 0 | AR69: ='Life Cycle Analysis Tool'!$D$37 -> 0.005302204 | BH69: P1 | BI69: 0 | BJ69: 0 | BK69: 0 | BL69: 0 | BM69: 0 | BN69: 0 | BO69: 0 | BP69: =BK69*'Look-up Refs'!$D$2+BL69*'Look-up Refs'!$D$3 -> 0 | BQ69: 0 | BR69: 0 | BS69: 0 | BT69: 0 | BU69: 0 | BV69: 0 | BW69: 0 | BX69: 0 | CA69: P2 | CB69: 0 | CC69: 0 | CD69: 0 | CE69: 0 | CF69: 0 | CG69: 0 | CH69: 0 | CI69: =CD69*'Look-up Refs'!$D$2+CE69*'Look-up Refs'!$D$3 -> 0 | CJ69: 0 | CK69: 0 | CL69: 0 | CM69: 0 | CN69: 0 | CO69: 0 | CP69: 0 | CQ69: 0 | CT69: P3 | CU69: 0 | CV69: 0 | CW69: 0 | CX69: 0 | CY69: 0 | CZ69: 0 | DA69: 0 | DB69: =CW69*'Look-up Refs'!$D$2+CX69*'Look-up Refs'!$D$3 -> 0 | DC69: 0 | DD69: 0 | DE69: 0 | DF69: 0 | DG69: 0 | DH69: 0 | DI69: 0 | DJ69: 0 | DM69: P4 | DN69: 0 | DO69: 0 | DP69: 0 | DQ69: 0 | DR69: 0 | DS69: 0 | DT69: 0 | DU69: =DP69*'Look-up Refs'!$D$2+DQ69*'Look-up Refs'!$D$3 -> 0 | DV69: 0 | DW69: 0 | DX69: 0 | DY69: 0 | DZ69: 0 | EA69: 0 | EB69: 0 | EC69: 0 | EF69: P5 | EG69: 0 | EH69: 0 | EI69: 0 | EJ69: 0 | EK69: 0 | EL69: 0 | EM69: 0 | EN69: =EI69*'Look-up Refs'!$D$2+EJ69*'Look-up Refs'!$D$3 -> 0 | EO69: 0 | EP69: 0 | EQ69: 0 | ER69: 0 | ES69: 0 | ET69: 0 | EU69: 0 | EV69: 0 | EY69: P6 | EZ69: 0 | FA69: 0 | FB69: 0 | FC69: 0 | FD69: 0 | FE69: 0 | FF69: 0 | FG69: =FB69*'Look-up Refs'!$D$2+FC69*'Look-up Refs'!$D$3 -> 0 | FH69: 0 | FI69: 0 | FJ69: 0 | FK69: 0 | FL69: 0 | FM69: 0 | FN69: 0 | FO69: 0
C70: Boundary's Existing Heating System | D70: 2000 | E70: 800 | F70: =CONCATENATE(CONCATENATE("Heating source is roughly equivalent to ", TEXT(D70*0.293071039,"#,### kW")," in new electrical demand. Please consider if impacts campus peak billing demand costs, and adding additional infrastructure costs to accomodate service upgrades as appropriate."), IF(ISBLANK(D70), "Please enter the exiting system's heating capacity as this serves as a system cost metric later in the calculation. The load can still be overriden below.","")) -> Heating source is roughly equivalent to 586 kW in new electrical demand. Please consider if impacts campus peak billing demand costs, and adding additional infrastructure costs to accomodate service upgrades as appropriate. | P70: A | AB70: A | AI70: 34 | AJ70: 2059 | AK70: 0 | AL70: 0 | AM70: 0 | AN70: 0 | AO70: 0 | AP70: 0 | AQ70: 0 | AR70: ='Life Cycle Analysis Tool'!$D$37 -> 0.005302204 | BH70: P1 | BI70: 0 | BJ70: 0 | BK70: 0 | BL70: 0 | BM70: 0 | BN70: 0 | BO70: 0 | BP70: =BK70*'Look-up Refs'!$D$2+BL70*'Look-up Refs'!$D$3 -> 0 | BQ70: 0 | BR70: 0 | BS70: 0 | BT70: 0 | BU70: 0 | BV70: 0 | BW70: 0 | BX70: 0 | CA70: P2 | CB70: 0 | CC70: 0 | CD70: 0 | CE70: 0 | CF70: 0 | CG70: 0 | CH70: 0 | CI70: =CD70*'Look-up Refs'!$D$2+CE70*'Look-up Refs'!$D$3 -> 0 | CJ70: 0 | CK70: 0 | CL70: 0 | CM70: 0 | CN70: 0 | CO70: 0 | CP70: 0 | CQ70: 0 | CT70: P3 | CU70: 0 | CV70: 0 | CW70: 0 | CX70: 0 | CY70: 0 | CZ70: 0 | DA70: 0 | DB70: =CW70*'Look-up Refs'!$D$2+CX70*'Look-up Refs'!$D$3 -> 0 | DC70: 0 | DD70: 0 | DE70: 0 | DF70: 0 | DG70: 0 | DH70: 0 | DI70: 0 | DJ70: 0 | DM70: P4 | DN70: 0 | DO70: 0 | DP70: 0 | DQ70: 0 | DR70: 0 | DS70: 0 | DT70: 0 | DU70: =DP70*'Look-up Refs'!$D$2+DQ70*'Look-up Refs'!$D$3 -> 0 | DV70: 0 | DW70: 0 | DX70: 0 | DY70: 0 | DZ70: 0 | EA70: 0 | EB70: 0 | EC70: 0 | EF70: P5 | EG70: 0 | EH70: 0 | EI70: 0 | EJ70: 0 | EK70: 0 | EL70: 0 | EM70: 0 | EN70: =EI70*'Look-up Refs'!$D$2+EJ70*'Look-up Refs'!$D$3 -> 0 | EO70: 0 | EP70: 0 | EQ70: 0 | ER70: 0 | ES70: 0 | ET70: 0 | EU70: 0 | EV70: 0 | EY70: P6 | EZ70: 0 | FA70: 0 | FB70: 0 | FC70: 0 | FD70: 0 | FE70: 0 | FF70: 0 | FG70: =FB70*'Look-up Refs'!$D$2+FC70*'Look-up Refs'!$D$3 -> 0 | FH70: 0 | FI70: 0 | FJ70: 0 | FK70: 0 | FL70: 0 | FM70: 0 | FN70: 0 | FO70: 0
C71: Boundary's Existing Cooling System | D71: 150 | E71: 1500 | F71: =IF(strategy_select_main="Electric Boilers", "Consider setting cooling system loads to zero for the strategy you are evaluating", "") ->  | P71: A | AB71: A | AI71: 35 | AJ71: 2060 | AK71: 0 | AL71: 0 | AM71: 0 | AN71: 0 | AO71: 0 | AP71: 0 | AQ71: 0 | AR71: ='Life Cycle Analysis Tool'!$D$37 -> 0.005302204 | BH71: P1 | BI71: 0 | BJ71: 0 | BK71: 0 | BL71: 0 | BM71: 0 | BN71: 0 | BO71: 0 | BP71: =BK71*'Look-up Refs'!$D$2+BL71*'Look-up Refs'!$D$3 -> 0 | BQ71: 0 | BR71: 0 | BS71: 0 | BT71: 0 | BU71: 0 | BV71: 0 | BW71: 0 | BX71: 0 | CA71: P2 | CB71: 0 | CC71: 0 | CD71: 0 | CE71: 0 | CF71: 0 | CG71: 0 | CH71: 0 | CI71: =CD71*'Look-up Refs'!$D$2+CE71*'Look-up Refs'!$D$3 -> 0 | CJ71: 0 | CK71: 0 | CL71: 0 | CM71: 0 | CN71: 0 | CO71: 0 | CP71: 0 | CQ71: 0 | CT71: P3 | CU71: 0 | CV71: 0 | CW71: 0 | CX71: 0 | CY71: 0 | CZ71: 0 | DA71: 0 | DB71: =CW71*'Look-up Refs'!$D$2+CX71*'Look-up Refs'!$D$3 -> 0 | DC71: 0 | DD71: 0 | DE71: 0 | DF71: 0 | DG71: 0 | DH71: 0 | DI71: 0 | DJ71: 0 | DM71: P4 | DN71: 0 | DO71: 0 | DP71: 0 | DQ71: 0 | DR71: 0 | DS71: 0 | DT71: 0 | DU71: =DP71*'Look-up Refs'!$D$2+DQ71*'Look-up Refs'!$D$3 -> 0 | DV71: 0 | DW71: 0 | DX71: 0 | DY71: 0 | DZ71: 0 | EA71: 0 | EB71: 0 | EC71: 0 | EF71: P5 | EG71: 0 | EH71: 0 | EI71: 0 | EJ71: 0 | EK71: 0 | EL71: 0 | EM71: 0 | EN71: =EI71*'Look-up Refs'!$D$2+EJ71*'Look-up Refs'!$D$3 -> 0 | EO71: 0 | EP71: 0 | EQ71: 0 | ER71: 0 | ES71: 0 | ET71: 0 | EU71: 0 | EV71: 0 | EY71: P6 | EZ71: 0 | FA71: 0 | FB71: 0 | FC71: 0 | FD71: 0 | FE71: 0 | FF71: 0 | FG71: =FB71*'Look-up Refs'!$D$2+FC71*'Look-up Refs'!$D$3 -> 0 | FH71: 0 | FI71: 0 | FJ71: 0 | FK71: 0 | FL71: 0 | FM71: 0 | FN71: 0 | FO71: 0
P72: A | AB72: A | AI72: 36 | AJ72: 2061 | AK72: 0 | AL72: 0 | AM72: 0 | AN72: 0 | AO72: 0 | AP72: 0 | AQ72: 0 | AR72: ='Life Cycle Analysis Tool'!$D$37 -> 0.005302204 | BH72: P1 | BI72: 0 | BJ72: 0 | BK72: 0 | BL72: 0 | BM72: 0 | BN72: 0 | BO72: 0 | BP72: =BK72*'Look-up Refs'!$D$2+BL72*'Look-up Refs'!$D$3 -> 0 | BQ72: 0 | BR72: 0 | BS72: 0 | BT72: 0 | BU72: 0 | BV72: 0 | BW72: 0 | BX72: 0 | CA72: P2 | CB72: 0 | CC72: 0 | CD72: 0 | CE72: 0 | CF72: 0 | CG72: 0 | CH72: 0 | CI72: =CD72*'Look-up Refs'!$D$2+CE72*'Look-up Refs'!$D$3 -> 0 | CJ72: 0 | CK72: 0 | CL72: 0 | CM72: 0 | CN72: 0 | CO72: 0 | CP72: 0 | CQ72: 0 | CT72: P3 | CU72: 0 | CV72: 0 | CW72: 0 | CX72: 0 | CY72: 0 | CZ72: 0 | DA72: 0 | DB72: =CW72*'Look-up Refs'!$D$2+CX72*'Look-up Refs'!$D$3 -> 0 | DC72: 0 | DD72: 0 | DE72: 0 | DF72: 0 | DG72: 0 | DH72: 0 | DI72: 0 | DJ72: 0 | DM72: P4 | DN72: 0 | DO72: 0 | DP72: 0 | DQ72: 0 | DR72: 0 | DS72: 0 | DT72: 0 | DU72: =DP72*'Look-up Refs'!$D$2+DQ72*'Look-up Refs'!$D$3 -> 0 | DV72: 0 | DW72: 0 | DX72: 0 | DY72: 0 | DZ72: 0 | EA72: 0 | EB72: 0 | EC72: 0 | EF72: P5 | EG72: 0 | EH72: 0 | EI72: 0 | EJ72: 0 | EK72: 0 | EL72: 0 | EM72: 0 | EN72: =EI72*'Look-up Refs'!$D$2+EJ72*'Look-up Refs'!$D$3 -> 0 | EO72: 0 | EP72: 0 | EQ72: 0 | ER72: 0 | ES72: 0 | ET72: 0 | EU72: 0 | EV72: 0 | EY72: P6 | EZ72: 0 | FA72: 0 | FB72: 0 | FC72: 0 | FD72: 0 | FE72: 0 | FF72: 0 | FG72: =FB72*'Look-up Refs'!$D$2+FC72*'Look-up Refs'!$D$3 -> 0 | FH72: 0 | FI72: 0 | FJ72: 0 | FK72: 0 | FL72: 0 | FM72: 0 | FN72: 0 | FO72: 0
C73: Existing Load Calculation | D73: Calculated Annual Heating Load (kBTU/yr) | E73: Calculated Annual Cooling Load (kBTU/yr) | F73: User Override Annual Heating Load (kBTU/yr) | G73: User Override Annual Cooling Load (kBTU/yr) | H73: Future Heating Load % Multiplier | I73: Future Cooling Load % multiplier | J73: Modeled Annual Heating Load (kBTU/yr) | K73: Modeled Annual Cooling Load (kBTU/yr) | P73: A | AB73: A | AI73: 37 | AJ73: 2062 | AK73: 0 | AL73: 0 | AM73: 0 | AN73: 0 | AO73: 0 | AP73: 0 | AQ73: 0 | AR73: ='Life Cycle Analysis Tool'!$D$37 -> 0.005302204 | BH73: P1 | BI73: 0 | BJ73: 0 | BK73: 0 | BL73: 0 | BM73: 0 | BN73: 0 | BO73: 0 | BP73: =BK73*'Look-up Refs'!$D$2+BL73*'Look-up Refs'!$D$3 -> 0 | BQ73: 0 | BR73: 0 | BS73: 0 | BT73: 0 | BU73: 0 | BV73: 0 | BW73: 0 | BX73: 0 | CA73: P2 | CB73: 0 | CC73: 0 | CD73: 0 | CE73: 0 | CF73: 0 | CG73: 0 | CH73: 0 | CI73: =CD73*'Look-up Refs'!$D$2+CE73*'Look-up Refs'!$D$3 -> 0 | CJ73: 0 | CK73: 0 | CL73: 0 | CM73: 0 | CN73: 0 | CO73: 0 | CP73: 0 | CQ73: 0 | CT73: P3 | CU73: 0 | CV73: 0 | CW73: 0 | CX73: 0 | CY73: 0 | CZ73: 0 | DA73: 0 | DB73: =CW73*'Look-up Refs'!$D$2+CX73*'Look-up Refs'!$D$3 -> 0 | DC73: 0 | DD73: 0 | DE73: 0 | DF73: 0 | DG73: 0 | DH73: 0 | DI73: 0 | DJ73: 0 | DM73: P4 | DN73: 0 | DO73: 0 | DP73: 0 | DQ73: 0 | DR73: 0 | DS73: 0 | DT73: 0 | DU73: =DP73*'Look-up Refs'!$D$2+DQ73*'Look-up Refs'!$D$3 -> 0 | DV73: 0 | DW73: 0 | DX73: 0 | DY73: 0 | DZ73: 0 | EA73: 0 | EB73: 0 | EC73: 0 | EF73: P5 | EG73: 0 | EH73: 0 | EI73: 0 | EJ73: 0 | EK73: 0 | EL73: 0 | EM73: 0 | EN73: =EI73*'Look-up Refs'!$D$2+EJ73*'Look-up Refs'!$D$3 -> 0 | EO73: 0 | EP73: 0 | EQ73: 0 | ER73: 0 | ES73: 0 | ET73: 0 | EU73: 0 | EV73: 0 | EY73: P6 | EZ73: 0 | FA73: 0 | FB73: 0 | FC73: 0 | FD73: 0 | FE73: 0 | FF73: 0 | FG73: =FB73*'Look-up Refs'!$D$2+FC73*'Look-up Refs'!$D$3 -> 0 | FH73: 0 | FI73: 0 | FJ73: 0 | FK73: 0 | FL73: 0 | FM73: 0 | FN73: 0 | FO73: 0
C74: System Heat and Cooling Loads | D74: =+E70*D70 -> 1600000 | E74: =+D71*E71*12 -> 2700000 | J74: =IF(F74>0,F74,D74)*IF(H74>0,H74,1) -> 1600000 | K74: =IF(G74>0,G74,E74)*IF(I74>0,I74,1) -> 2700000 | L74: note load multiplier is applied to either the calculated load or the user entered override | P74: A | AB74: A | AI74: 38 | AJ74: 2063 | AK74: 0 | AL74: 0 | AM74: 0 | AN74: 0 | AO74: 0 | AP74: 0 | AQ74: 0 | AR74: ='Life Cycle Analysis Tool'!$D$37 -> 0.005302204 | BH74: P1 | BI74: 0 | BJ74: 0 | BK74: 0 | BL74: 0 | BM74: 0 | BN74: 0 | BO74: 0 | BP74: =BK74*'Look-up Refs'!$D$2+BL74*'Look-up Refs'!$D$3 -> 0 | BQ74: 0 | BR74: 0 | BS74: 0 | BT74: 0 | BU74: 0 | BV74: 0 | BW74: 0 | BX74: 0 | CA74: P2 | CB74: 0 | CC74: 0 | CD74: 0 | CE74: 0 | CF74: 0 | CG74: 0 | CH74: 0 | CI74: =CD74*'Look-up Refs'!$D$2+CE74*'Look-up Refs'!$D$3 -> 0 | CJ74: 0 | CK74: 0 | CL74: 0 | CM74: 0 | CN74: 0 | CO74: 0 | CP74: 0 | CQ74: 0 | CT74: P3 | CU74: 0 | CV74: 0 | CW74: 0 | CX74: 0 | CY74: 0 | CZ74: 0 | DA74: 0 | DB74: =CW74*'Look-up Refs'!$D$2+CX74*'Look-up Refs'!$D$3 -> 0 | DC74: 0 | DD74: 0 | DE74: 0 | DF74: 0 | DG74: 0 | DH74: 0 | DI74: 0 | DJ74: 0 | DM74: P4 | DN74: 0 | DO74: 0 | DP74: 0 | DQ74: 0 | DR74: 0 | DS74: 0 | DT74: 0 | DU74: =DP74*'Look-up Refs'!$D$2+DQ74*'Look-up Refs'!$D$3 -> 0 | DV74: 0 | DW74: 0 | DX74: 0 | DY74: 0 | DZ74: 0 | EA74: 0 | EB74: 0 | EC74: 0 | EF74: P5 | EG74: 0 | EH74: 0 | EI74: 0 | EJ74: 0 | EK74: 0 | EL74: 0 | EM74: 0 | EN74: =EI74*'Look-up Refs'!$D$2+EJ74*'Look-up Refs'!$D$3 -> 0 | EO74: 0 | EP74: 0 | EQ74: 0 | ER74: 0 | ES74: 0 | ET74: 0 | EU74: 0 | EV74: 0 | EY74: P6 | EZ74: 0 | FA74: 0 | FB74: 0 | FC74: 0 | FD74: 0 | FE74: 0 | FF74: 0 | FG74: =FB74*'Look-up Refs'!$D$2+FC74*'Look-up Refs'!$D$3 -> 0 | FH74: 0 | FI74: 0 | FJ74: 0 | FK74: 0 | FL74: 0 | FM74: 0 | FN74: 0 | FO74: 0
P75: A | AB75: A | AI75: 39 | AJ75: 2064 | AK75: 0 | AL75: 0 | AM75: 0 | AN75: 0 | AO75: 0 | AP75: 0 | AQ75: 0 | AR75: ='Life Cycle Analysis Tool'!$D$37 -> 0.005302204 | BH75: P1 | BI75: 0 | BJ75: 0 | BK75: 0 | BL75: 0 | BM75: 0 | BN75: 0 | BO75: 0 | BP75: =BK75*'Look-up Refs'!$D$2+BL75*'Look-up Refs'!$D$3 -> 0 | BQ75: 0 | BR75: 0 | BS75: 0 | BT75: 0 | BU75: 0 | BV75: 0 | BW75: 0 | BX75: 0 | CA75: P2 | CB75: 0 | CC75: 0 | CD75: 0 | CE75: 0 | CF75: 0 | CG75: 0 | CH75: 0 | CI75: =CD75*'Look-up Refs'!$D$2+CE75*'Look-up Refs'!$D$3 -> 0 | CJ75: 0 | CK75: 0 | CL75: 0 | CM75: 0 | CN75: 0 | CO75: 0 | CP75: 0 | CQ75: 0 | CT75: P3 | CU75: 0 | CV75: 0 | CW75: 0 | CX75: 0 | CY75: 0 | CZ75: 0 | DA75: 0 | DB75: =CW75*'Look-up Refs'!$D$2+CX75*'Look-up Refs'!$D$3 -> 0 | DC75: 0 | DD75: 0 | DE75: 0 | DF75: 0 | DG75: 0 | DH75: 0 | DI75: 0 | DJ75: 0 | DM75: P4 | DN75: 0 | DO75: 0 | DP75: 0 | DQ75: 0 | DR75: 0 | DS75: 0 | DT75: 0 | DU75: =DP75*'Look-up Refs'!$D$2+DQ75*'Look-up Refs'!$D$3 -> 0 | DV75: 0 | DW75: 0 | DX75: 0 | DY75: 0 | DZ75: 0 | EA75: 0 | EB75: 0 | EC75: 0 | EF75: P5 | EG75: 0 | EH75: 0 | EI75: 0 | EJ75: 0 | EK75: 0 | EL75: 0 | EM75: 0 | EN75: =EI75*'Look-up Refs'!$D$2+EJ75*'Look-up Refs'!$D$3 -> 0 | EO75: 0 | EP75: 0 | EQ75: 0 | ER75: 0 | ES75: 0 | ET75: 0 | EU75: 0 | EV75: 0 | EY75: P6 | EZ75: 0 | FA75: 0 | FB75: 0 | FC75: 0 | FD75: 0 | FE75: 0 | FF75: 0 | FG75: =FB75*'Look-up Refs'!$D$2+FC75*'Look-up Refs'!$D$3 -> 0 | FH75: 0 | FI75: 0 | FJ75: 0 | FK75: 0 | FL75: 0 | FM75: 0 | FN75: 0 | FO75: 0
C76: HHW Temperature | D76: Default HHW Temperature (°F) | E76: Override HHW Temperature (°F) | F76: Modeled HHW Temperature (°F) | P76: A | AB76: A | AI76: 40 | AJ76: 2065 | AK76: 0 | AL76: 0 | AM76: 0 | AN76: 0 | AO76: 0 | AP76: 0 | AQ76: 0 | AR76: ='Life Cycle Analysis Tool'!$D$37 -> 0.005302204 | AY76: =IFERROR(SUMIFS($BH76:$AAU76,$BH$3:$AAU$3,AY$32,$BG$1:$AAT$1,AY$33)*$AW76*AY$34,NA()) ->  | BH76: P1 | BI76: 0 | BJ76: 0 | BK76: 0 | BL76: 0 | BM76: 0 | BN76: 0 | BO76: 0 | BP76: =BK76*'Look-up Refs'!$D$2+BL76*'Look-up Refs'!$D$3 -> 0 | BQ76: 0 | BR76: 0 | BS76: 0 | BT76: 0 | BU76: 0 | BV76: 0 | BW76: 0 | BX76: 0 | CA76: P2 | CB76: 0 | CC76: 0 | CD76: 0 | CE76: 0 | CF76: 0 | CG76: 0 | CH76: 0 | CI76: =CD76*'Look-up Refs'!$D$2+CE76*'Look-up Refs'!$D$3 -> 0 | CJ76: 0 | CK76: 0 | CL76: 0 | CM76: 0 | CN76: 0 | CO76: 0 | CP76: 0 | CQ76: 0 | CT76: P3 | CU76: 0 | CV76: 0 | CW76: 0 | CX76: 0 | CY76: 0 | CZ76: 0 | DA76: 0 | DB76: =CW76*'Look-up Refs'!$D$2+CX76*'Look-up Refs'!$D$3 -> 0 | DC76: 0 | DD76: 0 | DE76: 0 | DF76: 0 | DG76: 0 | DH76: 0 | DI76: 0 | DJ76: 0 | DM76: P4 | DN76: 0 | DO76: 0 | DP76: 0 | DQ76: 0 | DR76: 0 | DS76: 0 | DT76: 0 | DU76: =DP76*'Look-up Refs'!$D$2+DQ76*'Look-up Refs'!$D$3 -> 0 | DV76: 0 | DW76: 0 | DX76: 0 | DY76: 0 | DZ76: 0 | EA76: 0 | EB76: 0 | EC76: 0 | EF76: P5 | EG76: 0 | EH76: 0 | EI76: 0 | EJ76: 0 | EK76: 0 | EL76: 0 | EM76: 0 | EN76: =EI76*'Look-up Refs'!$D$2+EJ76*'Look-up Refs'!$D$3 -> 0 | EO76: 0 | EP76: 0 | EQ76: 0 | ER76: 0 | ES76: 0 | ET76: 0 | EU76: 0 | EV76: 0 | EY76: P6 | EZ76: 0 | FA76: 0 | FB76: 0 | FC76: 0 | FD76: 0 | FE76: 0 | FF76: 0 | FG76: =FB76*'Look-up Refs'!$D$2+FC76*'Look-up Refs'!$D$3 -> 0 | FH76: 0 | FI76: 0 | FJ76: 0 | FK76: 0 | FL76: 0 | FM76: 0 | FN76: 0 | FO76: 0
C77: Operating Temperature (°F) | D77: 140 | F77: =IF(E77>0,E77,D77) -> 140 | G77: used as applicable to calculate default COP on a technology by technology basis | P77: A | AB77: A
P78: A | AB78: A
C79: 4. Energy Usage Calculations | P79: A | AB79: A
C80: Energy calculations for each alternate are performed based on assumed efficiencies for technology using the existing loads calculated above. •Users can override all defaults to match more specific knowledge, as necessary. | P80: A | AB80: A
C81: Replace in Kind Energy Usage | D81: Assumed Heating Efficiency (%) | E81: Assumed Cooling Efficiency (COP) | F81: User Override Heating Efficiency (%) | G81: User Override Cooling Efficiency (COP) | H81: Electricity Use (kWh/yr) | I81: Natural Gas Use (therms/yr) | P81: A | AB81: A
A82: E1 | C82: =IF(Z60="Yes",E60,"") -> Status Quo Replacement (Replace in Kind) | D82: =IF($Z61="Yes",IFERROR(INDEX('Technology Metric Look-ups'!$1:$1048576,MATCH($D60,'Technology Metric Look-ups'!$A:$A,0),MATCH(D$81,'Technology Metric Look-ups'!$1:$1,0)),""),"") -> 0.82 | E82: =IF($Z61="Yes",IFERROR(INDEX('Technology Metric Look-ups'!$1:$1048576,MATCH($D60,'Technology Metric Look-ups'!$A:$A,0),MATCH(E$81,'Technology Metric Look-ups'!$1:$1,0)),""),"") -> 3.3 | H82: =IF(Z60="Yes",IF(G82>0,+K74/G82/3.412,+K74/E82/3.412),"") -> 239795.3746 | I82: =IF(Z60="Yes",IF(F82>0,ROUND(J74/F82/100,0),ROUND(J74/D82/100,0)),"") -> 19512 | P82: A | AB82: A
P83: A | AB83: A
C84: Low Carbon Technology Characteristics | D84: Assumed Heat Recovery Operation (% heating load) | E84: Assumed Heating Only Efficiency (COP) | F84: Assumed Heat Recover Mode (COP) | G84: Assumed Cooling Only Efficiency (COP) | H84: User Override Heat Recovery Operation (% heating load) | I84: User Override Heating Only Efficiency (COP) | J84: User Override Heat Recover Mode (COP) | K84: User Override Cooling Only (COP) | P84: A | AB84: A
A85: E2 | C85: =IF(Z61="Yes",E61,"") -> Scenario 1 (WWHP Heating Only) | D85: =IF($Z61="Yes",IFERROR(INDEX('Technology Metric Look-ups'!$1:$1048576,MATCH($D61,'Technology Metric Look-ups'!$A:$A,0),MATCH(D$84,'Technology Metric Look-ups'!$1:$1,0)),""),"") -> 0 | E85: =IF($Z61="Yes",IFERROR(INDEX('Technology Metric Look-ups'!$1:$1048576,MATCH($D61,'Technology Metric Look-ups'!$A:$A,0),MATCH(E$84,'Technology Metric Look-ups'!$1:$1,0)),""),"") -> 4.7 | F85: =IF($Z61="Yes",IFERROR(INDEX('Technology Metric Look-ups'!$1:$1048576,MATCH($D61,'Technology Metric Look-ups'!$A:$A,0),MATCH(F$84,'Technology Metric Look-ups'!$1:$1,0)),""),"") -> 0 | G85: =IF($Z61="Yes",IFERROR(INDEX('Technology Metric Look-ups'!$1:$1048576,MATCH($D61,'Technology Metric Look-ups'!$A:$A,0),MATCH(G$84,'Technology Metric Look-ups'!$1:$1,0)),""),"") -> 0 | L85: =IF(LEFT($D61,6)="Custom","Please note that user overrides must be used to appropriately life cycle characteristics use for custom technologies","") ->  | P85: A | AB85: A
A86: E3 | C86: =IF(Z62="Yes",E62,"") -> Scenario 2 (Air-to-Air Heat Pump ) | D86: =IF($Z62="Yes",IFERROR(INDEX('Technology Metric Look-ups'!$1:$1048576,MATCH($D62,'Technology Metric Look-ups'!$A:$A,0),MATCH(D$84,'Technology Metric Look-ups'!$1:$1,0)),""),"") -> 0 | E86: =IF($Z62="Yes",IFERROR(INDEX('Technology Metric Look-ups'!$1:$1048576,MATCH($D62,'Technology Metric Look-ups'!$A:$A,0),MATCH(E$84,'Technology Metric Look-ups'!$1:$1,0)),""),"") -> 3.4 | F86: =IF($Z62="Yes",IFERROR(INDEX('Technology Metric Look-ups'!$1:$1048576,MATCH($D62,'Technology Metric Look-ups'!$A:$A,0),MATCH(F$84,'Technology Metric Look-ups'!$1:$1,0)),""),"") -> 0 | G86: =IF($Z62="Yes",IFERROR(INDEX('Technology Metric Look-ups'!$1:$1048576,MATCH($D62,'Technology Metric Look-ups'!$A:$A,0),MATCH(G$84,'Technology Metric Look-ups'!$1:$1,0)),""),"") -> 3.1 | L86: =IF(LEFT($D62,6)="Custom","Please note that user overrides must be used to appropriately life cycle characteristics use for custom technologies","") ->  | P86: A | AB86: A
A87: E4 | C87: =IF(Z63="Yes",E63,"") -> Scenario 3 (WSHP) | D87: =IF($Z63="Yes",IFERROR(INDEX('Technology Metric Look-ups'!$1:$1048576,MATCH($D63,'Technology Metric Look-ups'!$A:$A,0),MATCH(D$84,'Technology Metric Look-ups'!$1:$1,0)),""),"") -> 0 | E87: =IF($Z63="Yes",IFERROR(INDEX('Technology Metric Look-ups'!$1:$1048576,MATCH($D63,'Technology Metric Look-ups'!$A:$A,0),MATCH(E$84,'Technology Metric Look-ups'!$1:$1,0)),""),"") -> 5.2 | F87: =IF($Z63="Yes",IFERROR(INDEX('Technology Metric Look-ups'!$1:$1048576,MATCH($D63,'Technology Metric Look-ups'!$A:$A,0),MATCH(F$84,'Technology Metric Look-ups'!$1:$1,0)),""),"") -> 0 | G87: =IF($Z63="Yes",IFERROR(INDEX('Technology Metric Look-ups'!$1:$1048576,MATCH($D63,'Technology Metric Look-ups'!$A:$A,0),MATCH(G$84,'Technology Metric Look-ups'!$1:$1,0)),""),"") -> 4.5 | L87: =IF(LEFT($D63,6)="Custom","Please note that user overrides must be used to appropriately life cycle characteristics use for custom technologies","") ->  | P87: A | AB87: A
A88: E5 | C88: =IF(Z64="Yes",E64,"") -> Scenario 4 (VRF Air Cooled) | D88: =IF($Z64="Yes",IFERROR(INDEX('Technology Metric Look-ups'!$1:$1048576,MATCH($D64,'Technology Metric Look-ups'!$A:$A,0),MATCH(D$84,'Technology Metric Look-ups'!$1:$1,0)),""),"") -> 0 | E88: =IF($Z64="Yes",IFERROR(INDEX('Technology Metric Look-ups'!$1:$1048576,MATCH($D64,'Technology Metric Look-ups'!$A:$A,0),MATCH(E$84,'Technology Metric Look-ups'!$1:$1,0)),""),"") -> 3.75 | F88: =IF($Z64="Yes",IFERROR(INDEX('Technology Metric Look-ups'!$1:$1048576,MATCH($D64,'Technology Metric Look-ups'!$A:$A,0),MATCH(F$84,'Technology Metric Look-ups'!$1:$1,0)),""),"") -> 0 | G88: =IF($Z64="Yes",IFERROR(INDEX('Technology Metric Look-ups'!$1:$1048576,MATCH($D64,'Technology Metric Look-ups'!$A:$A,0),MATCH(G$84,'Technology Metric Look-ups'!$1:$1,0)),""),"") -> 3.5 | L88: =IF(LEFT($D64,6)="Custom","Please note that user overrides must be used to appropriately life cycle characteristics use for custom technologies","") ->  | P88: A | AB88: A
A89: E6 | C89: =IF(Z65="Yes",E65,"") -> Scenario 5 (VRF Water Cooled) | D89: =IF($Z65="Yes",IFERROR(INDEX('Technology Metric Look-ups'!$1:$1048576,MATCH($D65,'Technology Metric Look-ups'!$A:$A,0),MATCH(D$84,'Technology Metric Look-ups'!$1:$1,0)),""),"") -> 0 | E89: =IF($Z65="Yes",IFERROR(INDEX('Technology Metric Look-ups'!$1:$1048576,MATCH($D65,'Technology Metric Look-ups'!$A:$A,0),MATCH(E$84,'Technology Metric Look-ups'!$1:$1,0)),""),"") -> 5 | F89: =IF($Z65="Yes",IFERROR(INDEX('Technology Metric Look-ups'!$1:$1048576,MATCH($D65,'Technology Metric Look-ups'!$A:$A,0),MATCH(F$84,'Technology Metric Look-ups'!$1:$1,0)),""),"") -> 0 | G89: =IF($Z65="Yes",IFERROR(INDEX('Technology Metric Look-ups'!$1:$1048576,MATCH($D65,'Technology Metric Look-ups'!$A:$A,0),MATCH(G$84,'Technology Metric Look-ups'!$1:$1,0)),""),"") -> 4 | L89: =IF(LEFT($D65,6)="Custom","Please note that user overrides must be used to appropriately life cycle characteristics use for custom technologies","") ->  | P89: A | AB89: A
P90: A | AB90: A
C91: Low Carbon Technology Energy Use | D91: Heating Load - Heat Only (kBTU/yr) | E91: Heating Load - Heat Recovery (kBTU/yr) | F91: Cooling Load - Heat Recovery (kBTU/yr) | G91: Cooling Load - Cooling Only (kBTU/yr) | H91: Heating Energy (kWh/yr) | I91: Cooling Energy (kWh/yr) | J91: Electricity Use (kWh/yr) | P91: A | AB91: A
A92: E2 | C92: =C85 -> Scenario 1 (WWHP Heating Only) | D92: =IF(Z61="Yes",+$J$74-E92,"") -> 1600000 | E92: =IF(Z61="Yes",IF(+H85>0,H85,D85)*$J$74,"") -> 0 | F92: =IF(Z61="Yes",E92*IF($F61="Heating Only",0,1),"") -> 0 | G92: =IF(Z61="Yes",($K$74-F92)*IF($F61="Heating Only",0,1),"") -> 0 | H92: =IF(Z61="Yes",ROUND((D92/IF(I85>0,I85,E85)+IFERROR(E92/IF(J85>0,J85,F85),0))/3.412,0),"") -> 99773 | I92: =IF(Z61="Yes",ROUND((IF(F92>0,F92/IF(J85>0,J85,F85),0)+IF(G92>0,G92/IF(K85>0,K85,G85),0))/3.412,0),"") -> 0 | J92: =IF(Z61="Yes",SUM(H92:I92),"") -> 99773 | K92: =IF(LEFT($C92,6)="Custom","Please note that user overrides must be used to appropriately life cycle characteristics use for custom technologies","") ->  | P92: A | AB92: A
A93: E3 | C93: =C86 -> Scenario 2 (Air-to-Air Heat Pump ) | D93: =IF(Z62="Yes",+$J$74-E93,"") -> 1600000 | E93: =IF(Z62="Yes",IF(+H86>0,H86,D86)*$J$74,"") -> 0 | F93: =IF(Z62="Yes",E93*IF($F62="Heating Only",0,1),"") -> 0 | G93: =IF(Z62="Yes",($K$74-F93)*IF($F62="Heating Only",0,1),"") -> 2700000 | H93: =IF(Z62="Yes",ROUND((D93/IF(I86>0,I86,E86)+IFERROR(E93/IF(J86>0,J86,F86),0))/3.412,0),"") -> 137922 | I93: =IF(Z62="Yes",ROUND((IF(F93>0,F93/IF(J86>0,J86,F86),0)+IF(G93>0,G93/IF(K86>0,K86,G86),0))/3.412,0),"") -> 255266 | J93: =IF(Z62="Yes",SUM(H93:I93),"") -> 393188 | K93: =IF(LEFT($C93,6)="Custom","Please note that user overrides must be used to appropriately life cycle characteristics use for custom technologies","") ->  | P93: A | AB93: A
A94: E4 | C94: Scenario 3 (WSHP) | D94: =IF(Z63="Yes",+$J$74-E94,"") -> 1600000 | E94: =IF(Z63="Yes",IF(+H87>0,H87,D87)*$J$74,"") -> 0 | F94: =IF(Z63="Yes",E94*IF($F63="Heating Only",0,1),"") -> 0 | G94: =IF(Z63="Yes",($K$74-F94)*IF($F63="Heating Only",0,1),"") -> 2700000 | H94: =IF(Z63="Yes",ROUND((D94/IF(I87>0,I87,E87)+IFERROR(E94/IF(J87>0,J87,F87),0))/3.412,0),"") -> 90179 | I94: =IF(Z63="Yes",ROUND((IF(F94>0,F94/IF(J87>0,J87,F87),0)+IF(G94>0,G94/IF(K87>0,K87,G87),0))/3.412,0),"") -> 175850 | J94: =IF(Z63="Yes",SUM(H94:I94),"") -> 266029 | P94: A | AB94: A
A95: E5 | C95: Scenario 4 (VRF Air Cooled) | D95: =IF(Z64="Yes",+$J$74-E95,"") -> 1600000 | E95: =IF(Z64="Yes",IF(+H88>0,H88,D88)*$J$74,"") -> 0 | F95: =IF(Z64="Yes",E95*IF($F64="Heating Only",0,1),"") -> 0 | G95: =IF(Z64="Yes",($K$74-F95)*IF($F64="Heating Only",0,1),"") -> 2700000 | H95: =IF(Z64="Yes",ROUND((D95/IF(I88>0,I88,E88)+IFERROR(E95/IF(J88>0,J88,F88),0))/3.412,0),"") -> 125049 | I95: =IF(Z64="Yes",ROUND((IF(F95>0,F95/IF(J88>0,J88,F88),0)+IF(G95>0,G95/IF(K88>0,K88,G88),0))/3.412,0),"") -> 226093 | J95: =IF(Z64="Yes",SUM(H95:I95),"") -> 351142 | P95: A | AB95: A
A96: E6 | C96: Scenario 5 (VRF Water Cooled) | D96: =IF(Z65="Yes",+$J$74-E96,"") -> 1600000 | E96: =IF(Z65="Yes",IF(+H89>0,H89,D89)*$J$74,"") -> 0 | F96: =IF(Z65="Yes",E96*IF($F65="Heating Only",0,1),"") -> 0 | G96: =IF(Z65="Yes",($K$74-F96)*IF($F65="Heating Only",0,1),"") -> 2700000 | H96: =IF(Z65="Yes",ROUND((D96/IF(I89>0,I89,E89)+IFERROR(E96/IF(J89>0,J89,F89),0))/3.412,0),"") -> 93787 | I96: =IF(Z65="Yes",ROUND((IF(F96>0,F96/IF(J89>0,J89,F89),0)+IF(G96>0,G96/IF(K89>0,K89,G89),0))/3.412,0),"") -> 197831 | J96: =IF(Z65="Yes",SUM(H96:I96),"") -> 291618 | P96: A | AB96: A
P97: A | AB97: A
C98: 5. Project Costs | P98: A | AB98: A
C99: Default Project Costs are based on metrics outlined in the associated Technology Report and described on the Technologies Table tab. •All override costs should be entered for the User's current year. Defaults are in 2020 dollars. •In-kind replacement costs are based on $50/kBTU and $1,200/ton for equipment only. •Default low carbon technology costs apply to the heating capacity entered above in the Existing System Load Calculations section. •Installation costs are assumed to be 150% of the equipment only costs. •Users can either override the total project costs using the "User Override Project Cost" entry or add/subtract to using the "Additional Required Infrastructure Costs" entry to accommodate for more specific User knowledge. •Maintenance costs are based on a multiplier to the forward looking maintenance cost of a new in-kind system. | P99: A | AB99: A
C100: Technology and Installation Costs | D100: Assumed Technology Report Cost Metric ($/MBH) | E100: Default Technology Only Project Cost ($) | F100: Installation Cost Markup (%) | G100: Total Default Project Cost ($) | H100: User Override Project Cost ($) | I100: Additional Required Infrastructure Costs ($) | J100: Modeled Project Cost ($) | P100: A | AB100: A
A101: C1 | C101: =C82 -> Status Quo Replacement (Replace in Kind) | E101: =IF($Z60="Yes",IFERROR(D70*50+D71*1200,""),"") -> 280000 | F101: =IF($Z60="Yes",150%,"") -> 1.5 | G101: =IF($Z60="Yes",E101*F101+E101,"") -> 700000 | I101: 0 | J101: =IFERROR(IF(Z60="Yes",IF(H101>0,H101,G101)+I101,""),"") -> 700000 | K101: in-kind replacement is calculated using $50/MBH for heating equipment and $1,200/ton for cooling equipment | P101: A | Z101: =$D$18 -> 2020 | AB101: A
A102: C2 | C102: =C85 -> Scenario 1 (WWHP Heating Only) | D102: =IF($Z61="Yes",IFERROR(INDEX('Technology Metric Look-ups'!$1:$1048576,MATCH($D61,'Technology Metric Look-ups'!$A:$A,0),MATCH(D$100,'Technology Metric Look-ups'!$1:$1,0)),""),"") -> 150 | E102: =IFERROR(D102*($D$70),"") -> 300000 | F102: =IF(Z61="Yes",150%,"") -> 1.5 | G102: 750000 | I102: 0 | J102: 750000 | K102: =IF(LEFT($D61,6)="Custom","Please note that user overrides must be used to appropriately life cycle characteristics use for custom technologies","") ->  | P102: A | Z102: 2020 | AB102: A
A103: C3 | C103: =C86 -> Scenario 2 (Air-to-Air Heat Pump ) | D103: =IF($Z62="Yes",IFERROR(INDEX('Technology Metric Look-ups'!$1:$1048576,MATCH($D62,'Technology Metric Look-ups'!$A:$A,0),MATCH(D$100,'Technology Metric Look-ups'!$1:$1,0)),""),"") -> 50 | E103: =IFERROR(D103*($D$70),"") -> 100000 | F103: 1.5 | G103: 250000 | I103: 0 | J103: 250000 | K103: =IF(LEFT($D62,6)="Custom","Please note that user overrides must be used to appropriately life cycle characteristics use for custom technologies","") ->  | P103: A | Z103: 2020 | AB103: A
A104: C4 | C104: =C87 -> Scenario 3 (WSHP) | D104: =IF($Z63="Yes",IFERROR(INDEX('Technology Metric Look-ups'!$1:$1048576,MATCH($D63,'Technology Metric Look-ups'!$A:$A,0),MATCH(D$100,'Technology Metric Look-ups'!$1:$1,0)),""),"") -> 100 | E104: =IFERROR(D104*($D$70),"") -> 200000 | F104: 1.5 | G104: 500000 | I104: 0 | J104: 500000 | K104: =IF(LEFT($D63,6)="Custom","Please note that user overrides must be used to appropriately life cycle characteristics use for custom technologies","") ->  | P104: A | Z104: 2020 | AB104: A
A105: C5 | C105: =C88 -> Scenario 4 (VRF Air Cooled) | D105: =IF($Z64="Yes",IFERROR(INDEX('Technology Metric Look-ups'!$1:$1048576,MATCH($D64,'Technology Metric Look-ups'!$A:$A,0),MATCH(D$100,'Technology Metric Look-ups'!$1:$1,0)),""),"") -> 150 | E105: =IFERROR(D105*($D$70),"") -> 300000 | F105: 1.5 | G105: 750000 | I105: 0 | J105: 750000 | K105: =IF(LEFT($D64,6)="Custom","Please note that user overrides must be used to appropriately life cycle characteristics use for custom technologies","") ->  | P105: A | Z105: 2020 | AB105: A
A106: C6 | C106: =C89 -> Scenario 5 (VRF Water Cooled) | D106: =IF($Z65="Yes",IFERROR(INDEX('Technology Metric Look-ups'!$1:$1048576,MATCH($D65,'Technology Metric Look-ups'!$A:$A,0),MATCH(D$100,'Technology Metric Look-ups'!$1:$1,0)),""),"") -> 150 | E106: =IFERROR(D106*N78/8760,"") -> 0 | F106: 1.5 | G106: 0 | I106: 0 | J106: 0 | K106: =IF(LEFT($D65,6)="Custom","Please note that user overrides must be used to appropriately life cycle characteristics use for custom technologies","") ->  | P106: A | Z106: 2020 | AB106: A
P107: A | AB107: A
C108: Existing Annual Maintenance Costs | D108: 25000 | E108: forward looking with new in-kind equipment | P108: A | AB108: A
P109: A | AB109: A
C110: Annual Maintenance Costs | D110: Assumed System Annual Maintenance Cost Multiplier (% of new in-kind) | E110: Default Annual Maintenance Cost ($) | F110: User Override Annual Maintenance Cost ($) | G110: Modeled Annual Maintenance Cost ($) | P110: A | AB110: A
A111: M1 | C111: =C101 -> Status Quo Replacement (Replace in Kind) | D111: =IF($Z60="Yes",IFERROR(INDEX('Technology Metric Look-ups'!$1:$1048576,MATCH($D60,'Technology Metric Look-ups'!$A:$A,0),MATCH(D$110,'Technology Metric Look-ups'!$1:$1,0)),""),"") -> 1 | E111: =IFERROR(D111*$D$108,"") -> 25000 | G111: =IF(Z60="Yes",IF(F111>0,F111,E111),"") -> 25000 | P111: A | Z111: =$D$18 -> 2020 | AB111: A
A112: M2 | C112: =C85 -> Scenario 1 (WWHP Heating Only) | D112: =IF($Z61="Yes",IFERROR(INDEX('Technology Metric Look-ups'!$1:$1048576,MATCH($D61,'Technology Metric Look-ups'!$A:$A,0),MATCH(D$110,'Technology Metric Look-ups'!$1:$1,0)),""),"") -> 1.125 | E112: 28125 | G112: 28125 | H112: =IF(LEFT($D61,6)="Custom","Please note that user overrides must be used to appropriately life cycle characteristics use for custom technologies","") ->  | P112: A | Z112: 2020 | AB112: A
A113: M3 | C113: =C86 -> Scenario 2 (Air-to-Air Heat Pump ) | D113: =IF($Z62="Yes",IFERROR(INDEX('Technology Metric Look-ups'!$1:$1048576,MATCH($D62,'Technology Metric Look-ups'!$A:$A,0),MATCH(D$110,'Technology Metric Look-ups'!$1:$1,0)),""),"") -> 1 | E113: 25000 | G113: 25000 | H113: =IF(LEFT($D62,6)="Custom","Please note that user overrides must be used to appropriately life cycle characteristics use for custom technologies","") ->  | P113: A | Z113: 2020 | AB113: A
A114: M4 | C114: =C87 -> Scenario 3 (WSHP) | D114: =IF($Z63="Yes",IFERROR(INDEX('Technology Metric Look-ups'!$1:$1048576,MATCH($D63,'Technology Metric Look-ups'!$A:$A,0),MATCH(D$110,'Technology Metric Look-ups'!$1:$1,0)),""),"") -> 1.25 | E114: 31250 | G114: 31250 | H114: =IF(LEFT($D63,6)="Custom","Please note that user overrides must be used to appropriately life cycle characteristics use for custom technologies","") ->  | P114: A | Z114: 2020 | AB114: A
A115: M5 | C115: =C88 -> Scenario 4 (VRF Air Cooled) | D115: =IF($Z64="Yes",IFERROR(INDEX('Technology Metric Look-ups'!$1:$1048576,MATCH($D64,'Technology Metric Look-ups'!$A:$A,0),MATCH(D$110,'Technology Metric Look-ups'!$1:$1,0)),""),"") -> 1.125 | E115: 28125 | G115: 28125 | H115: =IF(LEFT($D64,6)="Custom","Please note that user overrides must be used to appropriately life cycle characteristics use for custom technologies","") ->  | P115: A | Z115: 2020 | AB115: A
A116: M6 | C116: =C89 -> Scenario 5 (VRF Water Cooled) | D116: =IF($Z65="Yes",IFERROR(INDEX('Technology Metric Look-ups'!$1:$1048576,MATCH($D65,'Technology Metric Look-ups'!$A:$A,0),MATCH(D$110,'Technology Metric Look-ups'!$1:$1,0)),""),"") -> 1.125 | E116: 28125 | G116: 28125 | H116: =IF(LEFT($D65,6)="Custom","Please note that user overrides must be used to appropriately life cycle characteristics use for custom technologies","") ->  | P116: A | Z116: 2020 | AB116: A
P117: A | AB117: A
C118: 6. Analysis Results | P118: A | AB118: A
C119: The resulting annual and life cycle results for each project are included below. •First year numbers highlight the total project cost and the starting maintenance costs for each project as well as the annual energy usage •Life cycle numbers summarize each project performance over the project duration as defined above. •The life cycle comparison dropdown can be used to view different project characteristics over the full life of the project. | P119: A | AB119: A
C120: Project Fundamentals | D120: Full Project First Cost ($) | E120: Full Project Annual Maintenance Cost ($/yr) | F120: Full Project Electric Use (kWh/yr) | G120: Full Project Therm Use (Therm/yr) | H120: Starting Project Total GHG Emissions (MT/yr) | P120: A | Z120: Include in Life Cycle Comparison | AB120: A
A121: P1 | C121: =C101 -> Status Quo Replacement (Replace in Kind) | D121: =J101 -> 700000 | E121: =G111 -> 25000 | F121: =H82 -> 239795.3746 | G121: =I82 -> 19512 | H121: =IF($Z60="Yes",(F121*'Look-up Refs'!$H$2+G121*'Life Cycle Analysis Tool'!$D$37),"") -> 175.375074 | P121: A | Z121: =Z60 -> Yes | AB121: A
A122: P2 | C122: Scenario 1 (WWHP Heating Only) | D122: 750000 | E122: 28125 | F122: =J92 -> 99773 | H122: =IF($Z61="Yes",(F122*'Look-up Refs'!$H$2+G122*'Life Cycle Analysis Tool'!$D$37),"") -> 29.92351907 | P122: A | Z122: Yes | AB122: A
A123: P3 | C123: Scenario 2 (Air-to-Air Heat Pump ) | D123: 250000 | E123: 25000 | F123: =J93 -> 393188 | H123: =IF($Z62="Yes",(F123*'Look-up Refs'!$H$2+G123*'Life Cycle Analysis Tool'!$D$37),"") -> 117.9233722 | P123: A | Z123: Yes | AB123: A
A124: P4 | C124: Scenario 3 (WSHP) | D124: 500000 | E124: 31250 | F124: =J94 -> 266029 | H124: =IF($Z63="Yes",(F124*'Look-up Refs'!$H$2+G124*'Life Cycle Analysis Tool'!$D$37),"") -> 79.78635356 | P124: A | Z124: Yes | AB124: A
A125: P5 | C125: Scenario 4 (VRF Air Cooled) | D125: 750000 | E125: 28125 | F125: =J95 -> 351142 | H125: =IF($Z64="Yes",(F125*'Look-up Refs'!$H$2+G125*'Life Cycle Analysis Tool'!$D$37),"") -> 105.3131041 | P125: A | Z125: Yes | AB125: A
A126: P6 | C126: Scenario 5 (VRF Water Cooled) | D126: 0 | E126: 28125 | F126: =J96 -> 291618 | H126: =IF($Z65="Yes",(F126*'Look-up Refs'!$H$2+G126*'Life Cycle Analysis Tool'!$D$37),"") -> 87.46090409 | P126: A | Z126: Yes | AB126: A
P127: A | AB127: A
C128: Life Cycle Operating Summary | D128: Electric Energy Use (kWh) | E128: Natural Gas Energy Use (therm) | F128: GHG Emissions (MT) | G128: Project Capital Costs ($) | H128: Maintenance Cost ($) | I128: Electric Cost ($) | J128: Natural Gas Cost ($) | K128: GHG Emissions Cost ($/yr) | L128: Total Energy Cost ($/yr) | M128: Total Project Cost ($) | P128: A | AB128: A
A129: R1 | C129: =C101 -> Status Quo Replacement (Replace in Kind) | D129: =IF($Z60="Yes",SUMIFS($BH$5:$AAR$5,$BH$1:$AAR$1,$A121,$BH$3:$AAR$3,D$128),"") -> 4795907.492 | E129: 390240 | F129: 2687.582123 | G129: 811491.852 | H129: 802115.8092 | I129: 852442.9555 | J129: 462418.3424 | K129: 66333.9138 | L129: =IF($Z60="Yes",I129+J129,"") -> 1314861.298 | M129: =IF($Z60="Yes",SUM(G129:K129),"") -> 2994802.873 | P129: A | AB129: A
A130: R2 | C130: Scenario 1 (WWHP Heating Only) | D130: =IF($Z61="Yes",SUMIFS($BH$5:$AAR$5,$BH$1:$AAR$1,$A122,$BH$3:$AAR$3,D$128),"") -> 1995460 | F130: =IF($Z61="Yes",SUMIFS($BH$5:$AAR$5,$BH$1:$AAR$1,$A122,$BH$3:$AAR$3,F$128),"") -> 257.3219576 | G130: 869455.5557 | H130: 902380.2853 | I130: 354680.6987 | K130: =IF($Z61="Yes",SUMIFS($BH$5:$AAR$5,$BH$1:$AAR$1,$A122,$BH$3:$AAR$3,K$128),"") -> 5921.750208 | L130: 354680.6987 | M130: 2132438.29 | P130: A | AB130: A
A131: R3 | C131: Scenario 2 (Air-to-Air Heat Pump ) | D131: =IF($Z62="Yes",SUMIFS($BH$5:$AAR$5,$BH$1:$AAR$1,$A123,$BH$3:$AAR$3,D$128),"") -> 7863760 | F131: 1014.060977 | G131: 289818.5186 | H131: 802115.8092 | I131: 1397734.803 | K131: =IF($Z62="Yes",SUMIFS($BH$5:$AAR$5,$BH$1:$AAR$1,$A123,$BH$3:$AAR$3,K$128),"") -> 23336.58525 | L131: 1397734.803 | M131: 2513005.716 | P131: A | AB131: A
A132: R4 | C132: Scenario 3 (WSHP) | D132: =IF($Z63="Yes",SUMIFS($BH$5:$AAR$5,$BH$1:$AAR$1,$A124,$BH$3:$AAR$3,D$128),"") -> 5320580 | F132: 686.1084969 | G132: 579637.0371 | H132: 1002644.761 | I132: 945700.2554 | K132: =IF($Z63="Yes",SUMIFS($BH$5:$AAR$5,$BH$1:$AAR$1,$A124,$BH$3:$AAR$3,K$128),"") -> 15789.41483 | L132: 945700.2554 | M132: 2543771.469 | P132: A | AB132: A
A133: R5 | C133: Scenario 4 (VRF Air Cooled) | D133: =IF($Z64="Yes",SUMIFS($BH$5:$AAR$5,$BH$1:$AAR$1,$A125,$BH$3:$AAR$3,D$128),"") -> 7022840 | F133: 905.6212285 | G133: 869455.5557 | H133: 902380.2853 | I133: 1248266.464 | K133: =IF($Z64="Yes",SUMIFS($BH$5:$AAR$5,$BH$1:$AAR$1,$A125,$BH$3:$AAR$3,K$128),"") -> 20841.06132 | L133: 1248266.464 | M133: 3040943.366 | P133: A | AB133: A
A134: R6 | C134: Scenario 5 (VRF Water Cooled) | D134: =IF($Z65="Yes",SUMIFS($BH$5:$AAR$5,$BH$1:$AAR$1,$A126,$BH$3:$AAR$3,D$128),"") -> 5832360 | F134: 752.1044233 | G134: 0 | H134: 902380.2853 | I134: 1036665.992 | K134: =IF($Z65="Yes",SUMIFS($BH$5:$AAR$5,$BH$1:$AAR$1,$A126,$BH$3:$AAR$3,K$128),"") -> 17308.17909 | L134: 1036665.992 | M134: 1956354.456 | P134: A | AB134: A
P135: A | AB135: A
C136: 6a. Reporting Figures | P136: A | AB136: A
C137: Lifecycle Comparison | P137: A | AB137: A
A138: LC1 | C138: Total Utility Cost ($) | D138: toggle to view different variables | P138: A | AB138: A
P139: A | AB139: A
P140: A | AB140: A
P141: A | AB141: A
P142: A | AB142: A
P143: A | AB143: A
P144: A | AB144: A
P145: A | AB145: A
P146: A | AB146: A
P147: A | AB147: A
P148: A | AB148: A
P149: A | AB149: A
P150: A | AB150: A
P151: A | AB151: A
P152: A | AB152: A
P153: A | AB153: A
P154: A | AB154: A
P155: A | AB155: A
P156: A | AB156: A
P157: A | AB157: A
P158: A | AB158: A
P159: A | AB159: A
P160: A | AB160: A
P161: A | AB161: A

Sheet Life Cycle Results Summary
AA1: A
O2: A | AA2: A | AG2: =CONCATENATE(AG4,"-",AG3) -> P1-Cumulative Total Operating Cost ($) | AH2: =CONCATENATE(AH4,"-",AH3) -> P2-Cumulative Total Operating Cost ($) | AI2: P3-Cumulative Total Operating Cost ($) | AJ2: P4-Cumulative Total Operating Cost ($) | AK2: P5-Cumulative Total Operating Cost ($) | AL2: P6-Cumulative Total Operating Cost ($) | AN2: =CONCATENATE(AN4,"-",AN3) -> P1-Cumulative Capital and Maintenance Costs ($) | AO2: =CONCATENATE(AO4,"-",AO3) -> P2-Cumulative Capital and Maintenance Costs ($) | AP2: =CONCATENATE(AP4,"-",AP3) -> P3-Cumulative Capital and Maintenance Costs ($) | AQ2: =CONCATENATE(AQ4,"-",AQ3) -> P4-Cumulative Capital and Maintenance Costs ($) | AR2: =CONCATENATE(AR4,"-",AR3) -> P5-Cumulative Capital and Maintenance Costs ($) | AS2: =CONCATENATE(AS4,"-",AS3) -> P6-Cumulative Capital and Maintenance Costs ($) | AU2: =CONCATENATE(AU4,"-",AU3) -> P1-Cumulative Energy Costs ($) | AV2: =CONCATENATE(AV4,"-",AV3) -> P2-Cumulative Energy Costs ($) | AW2: =CONCATENATE(AW4,"-",AW3) -> P3-Cumulative Energy Costs ($) | AX2: =CONCATENATE(AX4,"-",AX3) -> P4-Cumulative Energy Costs ($) | AY2: =CONCATENATE(AY4,"-",AY3) -> P5-Cumulative Energy Costs ($) | AZ2: =CONCATENATE(AZ4,"-",AZ3) -> P6-Cumulative Energy Costs ($) | BB2: =CONCATENATE(BB4,"-",BB3) -> P1-Cumulative GHG Costs ($) | BC2: =CONCATENATE(BC4,"-",BC3) -> P2-Cumulative GHG Costs ($) | BD2: =CONCATENATE(BD4,"-",BD3) -> P3-Cumulative GHG Costs ($) | BE2: =CONCATENATE(BE4,"-",BE3) -> P4-Cumulative GHG Costs ($) | BF2: =CONCATENATE(BF4,"-",BF3) -> P5-Cumulative GHG Costs ($) | BG2: =CONCATENATE(BG4,"-",BG3) -> P6-Cumulative GHG Costs ($) | BI2: =CONCATENATE(BI4,"-",BI3) -> P1-Cumulative GHG Emissions (MT) | BJ2: =CONCATENATE(BJ4,"-",BJ3) -> P2-Cumulative GHG Emissions (MT) | BK2: =CONCATENATE(BK4,"-",BK3) -> P3-Cumulative GHG Emissions (MT) | BL2: =CONCATENATE(BL4,"-",BL3) -> P4-Cumulative GHG Emissions (MT) | BM2: =CONCATENATE(BM4,"-",BM3) -> P5-Cumulative GHG Emissions (MT) | BN2: =CONCATENATE(BN4,"-",BN3) -> P6-Cumulative GHG Emissions (MT) | BP2: =CONCATENATE(BP4,"-",BP3) -> P1-Cumulative Energy Use (kBtu) | BQ2: =CONCATENATE(BQ4,"-",BQ3) -> P2-Cumulative Energy Use (kBtu) | BR2: =CONCATENATE(BR4,"-",BR3) -> P3-Cumulative Energy Use (kBtu) | BS2: =CONCATENATE(BS4,"-",BS3) -> P4-Cumulative Energy Use (kBtu) | BT2: =CONCATENATE(BT4,"-",BT3) -> P5-Cumulative Energy Use (kBtu) | BU2: =CONCATENATE(BU4,"-",BU3) -> P6-Cumulative Energy Use (kBtu)
B3: Life Cycle Analysis Results Summary | O3: A | AA3: A | AG3: Cumulative Total Operating Cost ($) | AH3: =AG3 -> Cumulative Total Operating Cost ($) | AI3: =AH3 -> Cumulative Total Operating Cost ($) | AJ3: Cumulative Total Operating Cost ($) | AK3: Cumulative Total Operating Cost ($) | AL3: Cumulative Total Operating Cost ($) | AN3: Cumulative Capital and Maintenance Costs ($) | AO3: =AN3 -> Cumulative Capital and Maintenance Costs ($) | AP3: =AO3 -> Cumulative Capital and Maintenance Costs ($) | AQ3: Cumulative Capital and Maintenance Costs ($) | AR3: Cumulative Capital and Maintenance Costs ($) | AS3: Cumulative Capital and Maintenance Costs ($) | AU3: Cumulative Energy Costs ($) | AV3: =AU3 -> Cumulative Energy Costs ($) | AW3: =AV3 -> Cumulative Energy Costs ($) | AX3: Cumulative Energy Costs ($) | AY3: Cumulative Energy Costs ($) | AZ3: Cumulative Energy Costs ($) | BB3: Cumulative GHG Costs ($) | BC3: =BB3 -> Cumulative GHG Costs ($) | BD3: =BC3 -> Cumulative GHG Costs ($) | BE3: Cumulative GHG Costs ($) | BF3: Cumulative GHG Costs ($) | BG3: Cumulative GHG Costs ($) | BI3: Cumulative GHG Emissions (MT) | BJ3: =BI3 -> Cumulative GHG Emissions (MT) | BK3: =BJ3 -> Cumulative GHG Emissions (MT) | BL3: Cumulative GHG Emissions (MT) | BM3: Cumulative GHG Emissions (MT) | BN3: Cumulative GHG Emissions (MT) | BP3: Cumulative Energy Use (kBtu) | BQ3: =BP3 -> Cumulative Energy Use (kBtu) | BR3: =BQ3 -> Cumulative Energy Use (kBtu) | BS3: Cumulative Energy Use (kBtu) | BT3: Cumulative Energy Use (kBtu) | BU3: Cumulative Energy Use (kBtu)
B4: Project Fundamentals | C4: Full Project First Cost ($) | D4: Full Project Annual Maintenance Cost ($/yr) | E4: Full Project Electric Use (kWh/yr) | F4: Full Project Therm Use (Therm/yr) | G4: Starting Project Total GHG Emissions (MT/yr) | O4: A | Y4: Include in Life Cycle Comparison | AA4: A | AG4: P1 | AH4: P2 | AI4: P3 | AJ4: P4 | AK4: P5 | AL4: P6 | AN4: P1 | AO4: P2 | AP4: P3 | AQ4: P4 | AR4: P5 | AS4: P6 | AU4: P1 | AV4: P2 | AW4: P3 | AX4: P4 | AY4: P5 | AZ4: P6 | BB4: P1 | BC4: P2 | BD4: P3 | BE4: P4 | BF4: P5 | BG4: P6 | BI4: P1 | BJ4: P2 | BK4: P3 | BL4: P4 | BM4: P5 | BN4: P6 | BP4: P1 | BQ4: P2 | BR4: P3 | BS4: P4 | BT4: P5 | BU4: P6 | BY4: =BY7 -> P1 | BZ4: =BY4 -> P1 | CA4: =BZ4 -> P1 | CB4: P1 | CC4: P1 | CD4: P1 | CE4: P1 | CF4: P1 | CG4: P1 | CH4: P1 | CI4: P1 | CJ4: P1 | CK4: P1 | CL4: P1 | CM4: P1 | CN4: P1 | CO4: P1 | CP4: P1 | CQ4: P1 | CR4: P1 | CS4: P1 | CW4: =CW7 -> P2 | CX4: =CW4 -> P2 | CY4: =CX4 -> P2 | CZ4: P2 | DA4: P2 | DB4: P2 | DC4: P2 | DD4: P2 | DE4: P2 | DF4: P2 | DG4: P2 | DH4: P2 | DI4: P2 | DJ4: P2 | DK4: P2 | DL4: P2 | DM4: P2 | DN4: P2 | DO4: P2 | DP4: P2 | DQ4: P2 | DV4: =DV7 -> P3 | DW4: =DV4 -> P3 | DX4: =DW4 -> P3 | DY4: P3 | DZ4: P3 | EA4: P3 | EB4: P3 | EC4: P3 | ED4: P3 | EE4: P3 | EF4: P3 | EG4: P3 | EH4: P3 | EI4: P3 | EJ4: P3 | EK4: P3 | EL4: P3 | EM4: P3 | EN4: P3 | EO4: P3 | EP4: P3 | ET4: =ET7 -> P4 | EU4: =ET4 -> P4 | EV4: =EU4 -> P4 | EW4: P4 | EX4: P4 | EY4: P4 | EZ4: P4 | FA4: P4 | FB4: P4 | FC4: P4 | FD4: P4 | FE4: P4 | FF4: P4 | FG4: P4 | FH4: P4 | FI4: P4 | FJ4: P4 | FK4: P4 | FL4: P4 | FM4: P4 | FN4: P4 | FR4: =FR7 -> P5 | FS4: =FR4 -> P5 | FT4: =FS4 -> P5 | FU4: P5 | FV4: P5 | FW4: P5 | FX4: P5 | FY4: P5 | FZ4: P5 | GA4: P5 | GB4: P5 | GC4: P5 | GD4: P5 | GE4: P5 | GF4: P5 | GG4: P5 | GH4: P5 | GI4: P5 | GJ4: P5 | GK4: P5 | GL4: P5 | GP4: =GP7 -> P6 | GQ4: =GP4 -> P6 | GR4: =GQ4 -> P6 | GS4: P6 | GT4: P6 | GU4: P6 | GV4: P6 | GW4: P6 | GX4: P6 | GY4: P6 | GZ4: P6 | HA4: P6 | HB4: P6 | HC4: P6 | HD4: P6 | HE4: P6 | HF4: P6 | HG4: P6 | HH4: P6 | HI4: P6 | HJ4: P6
B5: =IF($Y5="Yes",'Life Cycle Analysis Tool'!C121,"") -> Status Quo Replacement (Replace in Kind) | C5: =IF($Y5="Yes",'Life Cycle Analysis Tool'!D121,"") -> 700000 | D5: =IF($Y5="Yes",'Life Cycle Analysis Tool'!E121,"") -> 25000 | E5: =IF($Y5="Yes",'Life Cycle Analysis Tool'!F121,"") -> 239795.3746 | F5: =IF($Y5="Yes",'Life Cycle Analysis Tool'!G121,"") -> 19512 | G5: =IF($Y5="Yes",'Life Cycle Analysis Tool'!H121,"") -> 175.375074 | O5: A | X5: P1 | Y5: ='Life Cycle Analysis Tool'!Z121 -> Yes | AA5: A | AG5: =IF(INDEX($Y:$Y,MATCH(AG$4,$X:$X,0),1)="Yes",1,NA()) -> 1 | AH5: 1 | AI5: 1 | AJ5: 1 | AK5: 1 | AL5: 1 | AN5: =IF(INDEX($Y:$Y,MATCH(AN$4,$X:$X,0),1)="Yes",1,NA()) -> 1 | AO5: 1 | AP5: 1 | AQ5: 1 | AR5: 1 | AS5: 1 | AU5: =IF(INDEX($Y:$Y,MATCH(AU$4,$X:$X,0),1)="Yes",1,NA()) -> 1 | AV5: 1 | AW5: 1 | AX5: 1 | AY5: 1 | AZ5: 1 | BB5: =IF(INDEX($Y:$Y,MATCH(BB$4,$X:$X,0),1)="Yes",1,NA()) -> 1 | BC5: 1 | BD5: 1 | BE5: 1 | BF5: 1 | BG5: 1 | BI5: =IF(INDEX($Y:$Y,MATCH(BI$4,$X:$X,0),1)="Yes",1,NA()) -> 1 | BJ5: 1 | BK5: 1 | BL5: 1 | BM5: 1 | BN5: 1 | BP5: =IF(INDEX($Y:$Y,MATCH(BP$4,$X:$X,0),1)="Yes",1,NA()) -> 1 | BQ5: 1 | BR5: 1 | BS5: 1 | BT5: 1 | BU5: 1 | BY5: =CONCATENATE(BY4,"-",BY6) -> P1-Project Ref | BZ5: =CONCATENATE(BZ4,"-",BZ6) -> P1-Project Capital Costs ($) | CA5: P1-Maintenance Cost ($) | CB5: P1-Electric Energy Use (kWh) | CC5: P1-Natural Gas Energy Use (therm) | CD5: P1-Electric GHG Emissions (MT) | CE5: P1-NG GHG Emissions (MT) | CF5: P1-GHG Emissions (MT) | CG5: P1-Kbtu Use per Year (kBtu/yr) | CH5: P1-Electric Cost ($) | CI5: P1-Natural Gas Cost ($) | CJ5: P1-GHG Emissions Cost ($/yr) | CK5: P1-Total Energy Cost ($) | CL5: P1-Total Utility Cost ($) | CM5: P1-Annual Total Operating Cost ($) | CN5: P1-Cumulative Total Operating Cost ($) | CO5: P1-Cumulative Capital and Maintenance Costs ($) | CP5: P1-Cumulative Energy Costs ($) | CQ5: P1-Cumulative GHG Costs ($) | CR5: P1-Cumulative GHG Emissions (MT) | CS5: P1-Cumulative Energy Use (kBtu) | CW5: =CONCATENATE(CW4,"-",CW6) -> P2-Project Ref | CX5: =CONCATENATE(CX4,"-",CX6) -> P2-Project First Cost ($) | CY5: =CONCATENATE(CY4,"-",CY6) -> P2-Annual Maintenance Cost ($/yr) | CZ5: =CONCATENATE(CZ4,"-",CZ6) -> P2-Electric Use (kWh/yr) | DA5: =CONCATENATE(DA4,"-",DA6) -> P2-Therm Use (Therm/yr) | DB5: =CONCATENATE(DB4,"-",DB6) -> P2-Electric GHG Emissions (MT) | DC5: =CONCATENATE(DC4,"-",DC6) -> P2-NG GHG Emissions (MT) | DD5: =CONCATENATE(DD4,"-",DD6) -> P2-GHG Emissions (MT) | DE5: =CONCATENATE(DE4,"-",DE6) -> P2-Kbtu Use per Year (kBtu/yr) | DF5: =CONCATENATE(DF4,"-",DF6) -> P2-Electric Cost ($/yr) | DG5: =CONCATENATE(DG4,"-",DG6) -> P2-Therm Cost ($/yr) | DH5: =CONCATENATE(DH4,"-",DH6) -> P2-GHG Cost ($/yr) | DI5: =CONCATENATE(DI4,"-",DI6) -> P2-Total Energy Cost ($/yr) | DJ5: =CONCATENATE(DJ4,"-",DJ6) -> P2-Total Utility Cost | DK5: =CONCATENATE(DK4,"-",DK6) -> P2-Annual Total Operating Cost | DL5: =CONCATENATE(DL4,"-",DL6) -> P2-Cumulative Total Operating Cost ($) | DM5: =CONCATENATE(DM4,"-",DM6) -> P2-Cumulative Capital and Maintenance Costs ($) | DN5: =CONCATENATE(DN4,"-",DN6) -> P2-Cumulative Energy Costs ($) | DO5: =CONCATENATE(DO4,"-",DO6) -> P2-Cumulative GHG Costs ($) | DP5: =CONCATENATE(DP4,"-",DP6) -> P2-Cumulative GHG Emissions (MT) | DQ5: =CONCATENATE(DQ4,"-",DQ6) -> P2-Cumulative Energy Use (kBtu) | DV5: =CONCATENATE(DV4,"-",DV6) -> P3-Project Ref | DW5: =CONCATENATE(DW4,"-",DW6) -> P3-Project First Cost ($) | DX5: =CONCATENATE(DX4,"-",DX6) -> P3-Annual Maintenance Cost ($/yr) | DY5: =CONCATENATE(DY4,"-",DY6) -> P3-Electric Use (kWh/yr) | DZ5: =CONCATENATE(DZ4,"-",DZ6) -> P3-Therm Use (Therm/yr) | EA5: =CONCATENATE(EA4,"-",EA6) -> P3-Electric GHG Emissions (MT) | EB5: =CONCATENATE(EB4,"-",EB6) -> P3-NG GHG Emissions (MT) | EC5: =CONCATENATE(EC4,"-",EC6) -> P3-GHG Emissions (MT) | ED5: =CONCATENATE(ED4,"-",ED6) -> P3-Kbtu Use per Year (kBtu/yr) | EE5: =CONCATENATE(EE4,"-",EE6) -> P3-Electric Cost ($/yr) | EF5: =CONCATENATE(EF4,"-",EF6) -> P3-Therm Cost ($/yr) | EG5: =CONCATENATE(EG4,"-",EG6) -> P3-GHG Cost ($/yr) | EH5: =CONCATENATE(EH4,"-",EH6) -> P3-Total Energy Cost ($/yr) | EI5: =CONCATENATE(EI4,"-",EI6) -> P3-Total Utility Cost | EJ5: =CONCATENATE(EJ4,"-",EJ6) -> P3-Annual Total Operating Cost | EK5: =CONCATENATE(EK4,"-",EK6) -> P3-Cumulative Total Operating Cost ($) | EL5: =CONCATENATE(EL4,"-",EL6) -> P3-Cumulative Capital and Maintenance Costs ($) | EM5: =CONCATENATE(EM4,"-",EM6) -> P3-Cumulative Energy Costs ($) | EN5: =CONCATENATE(EN4,"-",EN6) -> P3-Cumulative GHG Costs ($) | EO5: =CONCATENATE(EO4,"-",EO6) -> P3-Cumulative GHG Emissions (MT) | EP5: =CONCATENATE(EP4,"-",EP6) -> P3-Cumulative Energy Use (kBtu) | ET5: =CONCATENATE(ET4,"-",ET6) -> P4-Project Ref | EU5: =CONCATENATE(EU4,"-",EU6) -> P4-Project First Cost ($) | EV5: =CONCATENATE(EV4,"-",EV6) -> P4-Annual Maintenance Cost ($/yr) | EW5: =CONCATENATE(EW4,"-",EW6) -> P4-Electric Use (kWh/yr) | EX5: =CONCATENATE(EX4,"-",EX6) -> P4-Therm Use (Therm/yr) | EY5: =CONCATENATE(EY4,"-",EY6) -> P4-Electric GHG Emissions (MT) | EZ5: =CONCATENATE(EZ4,"-",EZ6) -> P4-NG GHG Emissions (MT) | FA5: =CONCATENATE(FA4,"-",FA6) -> P4-GHG Emissions (MT) | FB5: =CONCATENATE(FB4,"-",FB6) -> P4-Kbtu Use per Year (kBtu/yr) | FC5: =CONCATENATE(FC4,"-",FC6) -> P4-Electric Cost ($/yr) | FD5: =CONCATENATE(FD4,"-",FD6) -> P4-Therm Cost ($/yr) | FE5: =CONCATENATE(FE4,"-",FE6) -> P4-GHG Cost ($/yr) | FF5: =CONCATENATE(FF4,"-",FF6) -> P4-Total Energy Cost ($/yr) | FG5: =CONCATENATE(FG4,"-",FG6) -> P4-Total Utility Cost | FH5: =CONCATENATE(FH4,"-",FH6) -> P4-Annual Total Operating Cost | FI5: =CONCATENATE(FI4,"-",FI6) -> P4-Cumulative Total Operating Cost ($) | FJ5: =CONCATENATE(FJ4,"-",FJ6) -> P4-Cumulative Capital and Maintenance Costs ($) | FK5: =CONCATENATE(FK4,"-",FK6) -> P4-Cumulative Energy Costs ($) | FL5: =CONCATENATE(FL4,"-",FL6) -> P4-Cumulative GHG Costs ($) | FM5: =CONCATENATE(FM4,"-",FM6) -> P4-Cumulative GHG Emissions (MT) | FN5: =CONCATENATE(FN4,"-",FN6) -> P4-Cumulative Energy Use (kBtu) | FR5: =CONCATENATE(FR4,"-",FR6) -> P5-Project Ref | FS5: =CONCATENATE(FS4,"-",FS6) -> P5-Project First Cost ($) | FT5: =CONCATENATE(FT4,"-",FT6) -> P5-Annual Maintenance Cost ($/yr) | FU5: =CONCATENATE(FU4,"-",FU6) -> P5-Electric Use (kWh/yr) | FV5: =CONCATENATE(FV4,"-",FV6) -> P5-Therm Use (Therm/yr) | FW5: =CONCATENATE(FW4,"-",FW6) -> P5-Electric GHG Emissions (MT) | FX5: =CONCATENATE(FX4,"-",FX6) -> P5-NG GHG Emissions (MT) | FY5: =CONCATENATE(FY4,"-",FY6) -> P5-GHG Emissions (MT) | FZ5: =CONCATENATE(FZ4,"-",FZ6) -> P5-Kbtu Use per Year (kBtu/yr) | GA5: =CONCATENATE(GA4,"-",GA6) -> P5-Electric Cost ($/yr) | GB5: =CONCATENATE(GB4,"-",GB6) -> P5-Therm Cost ($/yr) | GC5: =CONCATENATE(GC4,"-",GC6) -> P5-GHG Cost ($/yr) | GD5: =CONCATENATE(GD4,"-",GD6) -> P5-Total Energy Cost ($/yr) | GE5: =CONCATENATE(GE4,"-",GE6) -> P5-Total Utility Cost | GF5: =CONCATENATE(GF4,"-",GF6) -> P5-Annual Total Operating Cost | GG5: =CONCATENATE(GG4,"-",GG6) -> P5-Cumulative Total Operating Cost ($) | GH5: =CONCATENATE(GH4,"-",GH6) -> P5-Cumulative Capital and Maintenance Costs ($) | GI5: =CONCATENATE(GI4,"-",GI6) -> P5-Cumulative Energy Costs ($) | GJ5: =CONCATENATE(GJ4,"-",GJ6) -> P5-Cumulative GHG Costs ($) | GK5: =CONCATENATE(GK4,"-",GK6) -> P5-Cumulative GHG Emissions (MT) | GL5: =CONCATENATE(GL4,"-",GL6) -> P5-Cumulative Energy Use (kBtu) | GP5: =CONCATENATE(GP4,"-",GP6) -> P6-Project Ref | GQ5: =CONCATENATE(GQ4,"-",GQ6) -> P6-Project First Cost ($) | GR5: =CONCATENATE(GR4,"-",GR6) -> P6-Annual Maintenance Cost ($/yr) | GS5: =CONCATENATE(GS4,"-",GS6) -> P6-Electric Use (kWh/yr) | GT5: =CONCATENATE(GT4,"-",GT6) -> P6-Therm Use (Therm/yr) | GU5: =CONCATENATE(GU4,"-",GU6) -> P6-Electric GHG Emissions (MT) | GV5: =CONCATENATE(GV4,"-",GV6) -> P6-NG GHG Emissions (MT) | GW5: =CONCATENATE(GW4,"-",GW6) -> P6-GHG Emissions (MT) | GX5: =CONCATENATE(GX4,"-",GX6) -> P6-Kbtu Use per Year (kBtu/yr) | GY5: =CONCATENATE(GY4,"-",GY6) -> P6-Electric Cost ($/yr) | GZ5: =CONCATENATE(GZ4,"-",GZ6) -> P6-Therm Cost ($/yr) | HA5: =CONCATENATE(HA4,"-",HA6) -> P6-GHG Cost ($/yr) | HB5: =CONCATENATE(HB4,"-",HB6) -> P6-Total Energy Cost ($/yr) | HC5: =CONCATENATE(HC4,"-",HC6) -> P6-Total Utility Cost | HD5: =CONCATENATE(HD4,"-",HD6) -> P6-Annual Total Operating Cost | HE5: =CONCATENATE(HE4,"-",HE6) -> P6-Cumulative Total Operating Cost ($) | HF5: =CONCATENATE(HF4,"-",HF6) -> P6-Cumulative Capital and Maintenance Costs ($) | HG5: =CONCATENATE(HG4,"-",HG6) -> P6-Cumulative Energy Costs ($) | HH5: =CONCATENATE(HH4,"-",HH6) -> P6-Cumulative GHG Costs ($) | HI5: =CONCATENATE(HI4,"-",HI6) -> P6-Cumulative GHG Emissions (MT) | HJ5: =CONCATENATE(HJ4,"-",HJ6) -> P6-Cumulative Energy Use (kBtu)
B6: =IF($Y6="Yes",'Life Cycle Analysis Tool'!C122,"") -> Scenario 1 (WWHP Heating Only) | C6: =IF($Y6="Yes",'Life Cycle Analysis Tool'!D122,"") -> 750000 | D6: =IF($Y6="Yes",'Life Cycle Analysis Tool'!E122,"") -> 28125 | E6: =IF($Y6="Yes",'Life Cycle Analysis Tool'!F122,"") -> 99773 | G6: =IF($Y6="Yes",'Life Cycle Analysis Tool'!H122,"") -> 29.92351907 | O6: A | X6: P2 | Y6: ='Life Cycle Analysis Tool'!Z122 -> Yes | AA6: A | AC6: LC Include | AD6: LC Include | AE6: Year | AF6: Calendar Year | AG6: =IF(INDEX($Y:$Y,MATCH(AG$4,$X:$X,0),1)="Yes",INDEX($B:$B,MATCH(AG$4,$X:$X,0),1),"") -> Status Quo Replacement (Replace in Kind) | AH6: Scenario 1 (WWHP Heating Only) | AI6: Scenario 2 (Air-to-Air Heat Pump ) | AJ6: Scenario 3 (WSHP) | AK6: Scenario 4 (VRF Air Cooled) | AL6: Scenario 5 (VRF Water Cooled) | AN6: =IF(INDEX($Y:$Y,MATCH(AN$4,$X:$X,0),1)="Yes",INDEX($B:$B,MATCH(AN$4,$X:$X,0),1),"") -> Status Quo Replacement (Replace in Kind) | AO6: Scenario 1 (WWHP Heating Only) | AP6: Scenario 2 (Air-to-Air Heat Pump ) | AQ6: Scenario 3 (WSHP) | AR6: Scenario 4 (VRF Air Cooled) | AS6: Scenario 5 (VRF Water Cooled) | AU6: =IF(INDEX($Y:$Y,MATCH(AU$4,$X:$X,0),1)="Yes",INDEX($B:$B,MATCH(AU$4,$X:$X,0),1),"") -> Status Quo Replacement (Replace in Kind) | AV6: Scenario 1 (WWHP Heating Only) | AW6: Scenario 2 (Air-to-Air Heat Pump ) | AX6: Scenario 3 (WSHP) | AY6: Scenario 4 (VRF Air Cooled) | AZ6: Scenario 5 (VRF Water Cooled) | BB6: =IF(INDEX($Y:$Y,MATCH(BB$4,$X:$X,0),1)="Yes",INDEX($B:$B,MATCH(BB$4,$X:$X,0),1),"") -> Status Quo Replacement (Replace in Kind) | BC6: Scenario 1 (WWHP Heating Only) | BD6: Scenario 2 (Air-to-Air Heat Pump ) | BE6: Scenario 3 (WSHP) | BF6: Scenario 4 (VRF Air Cooled) | BG6: Scenario 5 (VRF Water Cooled) | BI6: =IF(INDEX($Y:$Y,MATCH(BI$4,$X:$X,0),1)="Yes",INDEX($B:$B,MATCH(BI$4,$X:$X,0),1),"") -> Status Quo Replacement (Replace in Kind) | BJ6: Scenario 1 (WWHP Heating Only) | BK6: Scenario 2 (Air-to-Air Heat Pump ) | BL6: Scenario 3 (WSHP) | BM6: Scenario 4 (VRF Air Cooled) | BN6: Scenario 5 (VRF Water Cooled) | BP6: =IF(INDEX($Y:$Y,MATCH(BP$4,$X:$X,0),1)="Yes",INDEX($B:$B,MATCH(BP$4,$X:$X,0),1),"") -> Status Quo Replacement (Replace in Kind) | BQ6: Scenario 1 (WWHP Heating Only) | BR6: Scenario 2 (Air-to-Air Heat Pump ) | BS6: Scenario 3 (WSHP) | BT6: Scenario 4 (VRF Air Cooled) | BU6: Scenario 5 (VRF Water Cooled) | BY6: Project Ref | BZ6: Project Capital Costs ($) | CA6: Maintenance Cost ($) | CB6: Electric Energy Use (kWh) | CC6: Natural Gas Energy Use (therm) | CD6: Electric GHG Emissions (MT) | CE6: NG GHG Emissions (MT) | CF6: GHG Emissions (MT) | CG6: Kbtu Use per Year (kBtu/yr) | CH6: Electric Cost ($) | CI6: Natural Gas Cost ($) | CJ6: GHG Emissions Cost ($/yr) | CK6: Total Energy Cost ($) | CL6: Total Utility Cost ($) | CM6: Annual Total Operating Cost ($) | CN6: Cumulative Total Operating Cost ($) | CO6: Cumulative Capital and Maintenance Costs ($) | CP6: Cumulative Energy Costs ($) | CQ6: Cumulative GHG Costs ($) | CR6: Cumulative GHG Emissions (MT) | CS6: Cumulative Energy Use (kBtu) | CW6: Project Ref | CX6: Project First Cost ($) | CY6: Annual Maintenance Cost ($/yr) | CZ6: Electric Use (kWh/yr) | DA6: Therm Use (Therm/yr) | DB6: Electric GHG Emissions (MT) | DC6: NG GHG Emissions (MT) | DD6: GHG Emissions (MT) | DE6: Kbtu Use per Year (kBtu/yr) | DF6: Electric Cost ($/yr) | DG6: Therm Cost ($/yr) | DH6: GHG Cost ($/yr) | DI6: Total Energy Cost ($/yr) | DJ6: Total Utility Cost | DK6: Annual Total Operating Cost | DL6: Cumulative Total Operating Cost ($) | DM6: Cumulative Capital and Maintenance Costs ($) | DN6: Cumulative Energy Costs ($) | DO6: Cumulative GHG Costs ($) | DP6: Cumulative GHG Emissions (MT) | DQ6: Cumulative Energy Use (kBtu) | DV6: Project Ref | DW6: Project First Cost ($) | DX6: Annual Maintenance Cost ($/yr) | DY6: Electric Use (kWh/yr) | DZ6: Therm Use (Therm/yr) | EA6: Electric GHG Emissions (MT) | EB6: NG GHG Emissions (MT) | EC6: GHG Emissions (MT) | ED6: Kbtu Use per Year (kBtu/yr) | EE6: Electric Cost ($/yr) | EF6: Therm Cost ($/yr) | EG6: GHG Cost ($/yr) | EH6: Total Energy Cost ($/yr) | EI6: Total Utility Cost | EJ6: Annual Total Operating Cost | EK6: Cumulative Total Operating Cost ($) | EL6: Cumulative Capital and Maintenance Costs ($) | EM6: Cumulative Energy Costs ($) | EN6: Cumulative GHG Costs ($) | EO6: Cumulative GHG Emissions (MT) | EP6: Cumulative Energy Use (kBtu) | ET6: Project Ref | EU6: Project First Cost ($) | EV6: Annual Maintenance Cost ($/yr) | EW6: Electric Use (kWh/yr) | EX6: Therm Use (Therm/yr) | EY6: Electric GHG Emissions (MT) | EZ6: NG GHG Emissions (MT) | FA6: GHG Emissions (MT) | FB6: Kbtu Use per Year (kBtu/yr) | FC6: Electric Cost ($/yr) | FD6: Therm Cost ($/yr) | FE6: GHG Cost ($/yr) | FF6: Total Energy Cost ($/yr) | FG6: Total Utility Cost | FH6: Annual Total Operating Cost | FI6: Cumulative Total Operating Cost ($) | FJ6: Cumulative Capital and Maintenance Costs ($) | FK6: Cumulative Energy Costs ($) | FL6: Cumulative GHG Costs ($) | FM6: Cumulative GHG Emissions (MT) | FN6: Cumulative Energy Use (kBtu) | FR6: Project Ref | FS6: Project First Cost ($) | FT6: Annual Maintenance Cost ($/yr) | FU6: Electric Use (kWh/yr) | FV6: Therm Use (Therm/yr) | FW6: Electric GHG Emissions (MT) | FX6: NG GHG Emissions (MT) | FY6: GHG Emissions (MT) | FZ6: Kbtu Use per Year (kBtu/yr) | GA6: Electric Cost ($/yr) | GB6: Therm Cost ($/yr) | GC6: GHG Cost ($/yr) | GD6: Total Energy Cost ($/yr) | GE6: Total Utility Cost | GF6: Annual Total Operating Cost | GG6: Cumulative Total Operating Cost ($) | GH6: Cumulative Capital and Maintenance Costs ($) | GI6: Cumulative Energy Costs ($) | GJ6: Cumulative GHG Costs ($) | GK6: Cumulative GHG Emissions (MT) | GL6: Cumulative Energy Use (kBtu) | GP6: Project Ref | GQ6: Project First Cost ($) | GR6: Annual Maintenance Cost ($/yr) | GS6: Electric Use (kWh/yr) | GT6: Therm Use (Therm/yr) | GU6: Electric GHG Emissions (MT) | GV6: NG GHG Emissions (MT) | GW6: GHG Emissions (MT) | GX6: Kbtu Use per Year (kBtu/yr) | GY6: Electric Cost ($/yr) | GZ6: Therm Cost ($/yr) | HA6: GHG Cost ($/yr) | HB6: Total Energy Cost ($/yr) | HC6: Total Utility Cost | HD6: Annual Total Operating Cost | HE6: Cumulative Total Operating Cost ($) | HF6: Cumulative Capital and Maintenance Costs ($) | HG6: Cumulative Energy Costs ($) | HH6: Cumulative GHG Costs ($) | HI6: Cumulative GHG Emissions (MT) | HJ6: Cumulative Energy Use (kBtu)
B7: =IF($Y7="Yes",'Life Cycle Analysis Tool'!C123,"") -> Scenario 2 (Air-to-Air Heat Pump ) | C7: =IF($Y7="Yes",'Life Cycle Analysis Tool'!D123,"") -> 250000 | D7: =IF($Y7="Yes",'Life Cycle Analysis Tool'!E123,"") -> 25000 | E7: =IF($Y7="Yes",'Life Cycle Analysis Tool'!F123,"") -> 393188 | G7: =IF($Y7="Yes",'Life Cycle Analysis Tool'!H123,"") -> 117.9233722 | O7: A | X7: P3 | Y7: ='Life Cycle Analysis Tool'!Z123 -> Yes | AA7: A | AC7: ='Life Cycle Analysis Tool'!AM36 -> 1 | AD7: ='Life Cycle Analysis Tool'!AW36 -> 1 | AE7: ='Life Cycle Analysis Tool'!AX36 -> 0 | AF7: ='Life Cycle Analysis Tool'!AJ36*AD7 -> 2025 | AG7: =INDEX($BY7:$HJ7,1,MATCH(AG$2,$BY$5:$HJ$5,0))*AG$5*$AD7 -> 811491.852 | AH7: =INDEX($BY7:$HJ7,1,MATCH(AH$2,$BY$5:$HJ$5,0))*AH$5*$AD7 -> 869455.5557 | AI7: 289818.5186 | AJ7: 579637.0371 | AK7: 869455.5557 | AL7: 0 | AN7: =INDEX($BY7:$HJ7,1,MATCH(AN$2,$BY$5:$HJ$5,0))*AN$5*$AD7 -> 811491.852 | AO7: =INDEX($BY7:$HJ7,1,MATCH(AO$2,$BY$5:$HJ$5,0))*AO$5*$AD7 -> 869455.5557 | AP7: 289818.5186 | AQ7: 579637.0371 | AR7: 869455.5557 | AS7: 0 | AU7: =INDEX($BY7:$HJ7,1,MATCH(AU$2,$BY$5:$HJ$5,0))*AU$5*$AD7 -> 0 | AV7: =INDEX($BY7:$HJ7,1,MATCH(AV$2,$BY$5:$HJ$5,0))*AV$5*$AD7 -> 0 | AW7: 0 | AX7: 0 | AY7: 0 | AZ7: 0 | BB7: =INDEX($BY7:$HJ7,1,MATCH(BB$2,$BY$5:$HJ$5,0))*BB$5*$AD7 -> 0 | BC7: =INDEX($BY7:$HJ7,1,MATCH(BC$2,$BY$5:$HJ$5,0))*BC$5*$AD7 -> 0 | BD7: 0 | BE7: 0 | BF7: 0 | BG7: 0 | BI7: =INDEX($BY7:$HJ7,1,MATCH(BI$2,$BY$5:$HJ$5,0))*BI$5*$AD7 -> 0 | BJ7: =INDEX($BY7:$HJ7,1,MATCH(BJ$2,$BY$5:$HJ$5,0))*BJ$5*$AD7 -> 0 | BK7: 0 | BL7: 0 | BM7: 0 | BN7: 0 | BP7: =INDEX($BY7:$HJ7,1,MATCH(BP$2,$BY$5:$HJ$5,0))*BP$5*$AD7 -> 0 | BQ7: =INDEX($BY7:$HJ7,1,MATCH(BQ$2,$BY$5:$HJ$5,0))*BQ$5*$AD7 -> 0 | BR7: 0 | BS7: 0 | BT7: 0 | BU7: 0 | BY7: ='Life Cycle Analysis Tool'!BH36 -> P1 | BZ7: ='Life Cycle Analysis Tool'!BI36 -> 811491.852 | CA7: ='Life Cycle Analysis Tool'!BJ36 -> 0 | CB7: ='Life Cycle Analysis Tool'!BK36 -> 0 | CC7: ='Life Cycle Analysis Tool'!BL36 -> 0 | CD7: ='Life Cycle Analysis Tool'!BM36 -> 0 | CE7: ='Life Cycle Analysis Tool'!BN36 -> 0 | CF7: ='Life Cycle Analysis Tool'!BO36 -> 0 | CG7: ='Life Cycle Analysis Tool'!BP36 -> 0 | CH7: ='Life Cycle Analysis Tool'!BQ36 -> 0 | CI7: ='Life Cycle Analysis Tool'!BR36 -> 0 | CJ7: ='Life Cycle Analysis Tool'!BS36 -> 0 | CK7: ='Life Cycle Analysis Tool'!BT36 -> 0 | CL7: ='Life Cycle Analysis Tool'!BU36 -> 0 | CM7: ='Life Cycle Analysis Tool'!BV36 -> 811491.852 | CN7: =CM7 -> 811491.852 | CO7: =SUM(BZ7:CA7) -> 811491.852 | CP7: =SUM(CH7:CI7) -> 0 | CQ7: =CJ7 -> 0 | CR7: =CF7 -> 0 | CS7: =CG7 -> 0 | CW7: ='Life Cycle Analysis Tool'!CA36 -> P2 | CX7: ='Life Cycle Analysis Tool'!CB36 -> 869455.5557 | CY7: ='Life Cycle Analysis Tool'!CC36 -> 0 | CZ7: ='Life Cycle Analysis Tool'!CD36 -> 0 | DA7: ='Life Cycle Analysis Tool'!CE36 -> 0 | DB7: ='Life Cycle Analysis Tool'!CF36 -> 0 | DC7: ='Life Cycle Analysis Tool'!CG36 -> 0 | DD7: ='Life Cycle Analysis Tool'!CH36 -> 0 | DE7: ='Life Cycle Analysis Tool'!CI36 -> 0 | DF7: ='Life Cycle Analysis Tool'!CJ36 -> 0 | DG7: ='Life Cycle Analysis Tool'!CK36 -> 0 | DH7: ='Life Cycle Analysis Tool'!CL36 -> 0 | DI7: ='Life Cycle Analysis Tool'!CM36 -> 0 | DJ7: ='Life Cycle Analysis Tool'!CN36 -> 0 | DK7: ='Life Cycle Analysis Tool'!CO36 -> 869455.5557 | DL7: =DK7 -> 869455.5557 | DM7: =SUM(CX7:CY7) -> 869455.5557 | DN7: =SUM(DF7:DG7) -> 0 | DO7: =DH7 -> 0 | DP7: =DD7 -> 0 | DQ7: =DE7 -> 0 | DV7: ='Life Cycle Analysis Tool'!CT36 -> P3 | DW7: ='Life Cycle Analysis Tool'!CU36 -> 289818.5186 | DX7: ='Life Cycle Analysis Tool'!CV36 -> 0 | DY7: ='Life Cycle Analysis Tool'!CW36 -> 0 | DZ7: ='Life Cycle Analysis Tool'!CX36 -> 0 | EA7: ='Life Cycle Analysis Tool'!CY36 -> 0 | EB7: ='Life Cycle Analysis Tool'!CZ36 -> 0 | EC7: ='Life Cycle Analysis Tool'!DA36 -> 0 | ED7: ='Life Cycle Analysis Tool'!DB36 -> 0 | EE7: ='Life Cycle Analysis Tool'!DC36 -> 0 | EF7: ='Life Cycle Analysis Tool'!DD36 -> 0 | EG7: ='Life Cycle Analysis Tool'!DE36 -> 0 | EH7: ='Life Cycle Analysis Tool'!DF36 -> 0 | EI7: ='Life Cycle Analysis Tool'!DG36 -> 0 | EJ7: ='Life Cycle Analysis Tool'!DH36 -> 289818.5186 | EK7: =EJ7 -> 289818.5186 | EL7: =SUM(DW7:DX7) -> 289818.5186 | EM7: =SUM(EE7:EF7) -> 0 | EN7: =EG7 -> 0 | EO7: =EC7 -> 0 | EP7: =ED7 -> 0 | ET7: ='Life Cycle Analysis Tool'!DM36 -> P4 | EU7: ='Life Cycle Analysis Tool'!DN36 -> 579637.0371 | EV7: ='Life Cycle Analysis Tool'!DO36 -> 0 | EW7: ='Life Cycle Analysis Tool'!DP36 -> 0 | EX7: ='Life Cycle Analysis Tool'!DQ36 -> 0 | EY7: ='Life Cycle Analysis Tool'!DR36 -> 0 | EZ7: ='Life Cycle Analysis Tool'!DS36 -> 0 | FA7: ='Life Cycle Analysis Tool'!DT36 -> 0 | FB7: ='Life Cycle Analysis Tool'!DU36 -> 0 | FC7: ='Life Cycle Analysis Tool'!DV36 -> 0 | FD7: ='Life Cycle Analysis Tool'!DW36 -> 0 | FE7: ='Life Cycle Analysis Tool'!DX36 -> 0 | FF7: ='Life Cycle Analysis Tool'!DY36 -> 0 | FG7: ='Life Cycle Analysis Tool'!DZ36 -> 0 | FH7: ='Life Cycle Analysis Tool'!EA36 -> 579637.0371 | FI7: =FH7 -> 579637.0371 | FJ7: =SUM(EU7:EV7) -> 579637.0371 | FK7: =SUM(FC7:FD7) -> 0 | FL7: =FE7 -> 0 | FM7: =FA7 -> 0 | FN7: =FB7 -> 0 | FR7: ='Life Cycle Analysis Tool'!EF36 -> P5 | FS7: ='Life Cycle Analysis Tool'!EG36 -> 869455.5557 | FT7: ='Life Cycle Analysis Tool'!EH36 -> 0 | FU7: ='Life Cycle Analysis Tool'!EI36 -> 0 | FV7: ='Life Cycle Analysis Tool'!EJ36 -> 0 | FW7: ='Life Cycle Analysis Tool'!EK36 -> 0 | FX7: ='Life Cycle Analysis Tool'!EL36 -> 0 | FY7: ='Life Cycle Analysis Tool'!EM36 -> 0 | FZ7: ='Life Cycle Analysis Tool'!EN36 -> 0 | GA7: ='Life Cycle Analysis Tool'!EO36 -> 0 | GB7: ='Life Cycle Analysis Tool'!EP36 -> 0 | GC7: ='Life Cycle Analysis Tool'!EQ36 -> 0 | GD7: ='Life Cycle Analysis Tool'!ER36 -> 0 | GE7: ='Life Cycle Analysis Tool'!ES36 -> 0 | GF7: ='Life Cycle Analysis Tool'!ET36 -> 869455.5557 | GG7: =GF7 -> 869455.5557 | GH7: =SUM(FS7:FT7) -> 869455.5557 | GI7: =SUM(GA7:GB7) -> 0 | GJ7: =GC7 -> 0 | GK7: =FY7 -> 0 | GL7: =FZ7 -> 0 | GP7: ='Life Cycle Analysis Tool'!EY36 -> P6 | GQ7: ='Life Cycle Analysis Tool'!EZ36 -> 0 | GR7: ='Life Cycle Analysis Tool'!FA36 -> 0 | GS7: ='Life Cycle Analysis Tool'!FB36 -> 0 | GT7: ='Life Cycle Analysis Tool'!FC36 -> 0 | GU7: ='Life Cycle Analysis Tool'!FD36 -> 0 | GV7: ='Life Cycle Analysis Tool'!FE36 -> 0 | GW7: ='Life Cycle Analysis Tool'!FF36 -> 0 | GX7: ='Life Cycle Analysis Tool'!FG36 -> 0 | GY7: ='Life Cycle Analysis Tool'!FH36 -> 0 | GZ7: ='Life Cycle Analysis Tool'!FI36 -> 0 | HA7: ='Life Cycle Analysis Tool'!FJ36 -> 0 | HB7: ='Life Cycle Analysis Tool'!FK36 -> 0 | HC7: ='Life Cycle Analysis Tool'!FL36 -> 0 | HD7: ='Life Cycle Analysis Tool'!FM36 -> 0 | HE7: =HD7 -> 0 | HF7: =SUM(GQ7:GR7) -> 0 | HG7: =SUM(GY7:GZ7) -> 0 | HH7: =HA7 -> 0 | HI7: =GW7 -> 0 | HJ7: =GX7 -> 0
B8: =IF($Y8="Yes",'Life Cycle Analysis Tool'!C124,"") -> Scenario 3 (WSHP) | C8: =IF($Y8="Yes",'Life Cycle Analysis Tool'!D124,"") -> 500000 | D8: =IF($Y8="Yes",'Life Cycle Analysis Tool'!E124,"") -> 31250 | E8: =IF($Y8="Yes",'Life Cycle Analysis Tool'!F124,"") -> 266029 | G8: =IF($Y8="Yes",'Life Cycle Analysis Tool'!H124,"") -> 79.78635356 | O8: A | X8: P4 | Y8: ='Life Cycle Analysis Tool'!Z124 -> Yes | AA8: A | AC8: ='Life Cycle Analysis Tool'!AM37 -> 1 | AD8: ='Life Cycle Analysis Tool'!AW37 -> 1 | AE8: ='Life Cycle Analysis Tool'!AX37 -> 1 | AF8: ='Life Cycle Analysis Tool'!AJ37*AD8 -> 2026 | AG8: =INDEX($BY8:$HJ8,1,MATCH(AG$2,$BY$5:$HJ$5,0))*AG$5*$AD8 -> 896075.0901 | AH8: 917430.3123 | AI8: 376386.33 | AJ8: 655325.2694 | AK8: 953689.7376 | AL8: 75647.9758 | AN8: =INDEX($BY8:$HJ8,1,MATCH(AN$2,$BY$5:$HJ$5,0))*AN$5*$AD8 -> 841343.1594 | AO8: 903038.2766 | AP8: 319669.826 | AQ8: 616951.1714 | AR8: 903038.2766 | AS8: 33582.72084 | AU8: =INDEX($BY8:$HJ8,1,MATCH(AU$2,$BY$5:$HJ$5,0))*AU$5*$AD8 -> 51473.0445 | AV8: 13884.73097 | AW8: 54717.30429 | AX8: 37021.44964 | AY8: 48866.04795 | AZ8: 40582.49703 | BB8: =INDEX($BY8:$HJ8,1,MATCH(BB$2,$BY$5:$HJ$5,0))*BB$5*$AD8 -> 3258.886172 | BC8: 507.304787 | BD8: 1999.199729 | BE8: 1352.648364 | BF8: 1785.413063 | BG8: 1482.757934 | BI8: =INDEX($BY8:$HJ8,1,MATCH(BI$2,$BY$5:$HJ$5,0))*BI$5*$AD8 -> 165.3016078 | BJ8: 25.73219576 | BK8: 101.4060977 | BL8: 68.61084969 | BM8: 90.56212285 | BN8: 75.21044233 | BP8: =INDEX($BY8:$HJ8,1,MATCH(BP$2,$BY$5:$HJ$5,0))*BP$5*$AD8 -> 2769415.783 | BQ8: 340439.608 | BR8: 1341613.148 | BS8: 907728.6288 | BT8: 1198146.24 | BU8: 995041.9212 | BY8: ='Life Cycle Analysis Tool'!BH37 -> P1 | BZ8: ='Life Cycle Analysis Tool'!BI37 -> 0 | CA8: ='Life Cycle Analysis Tool'!BJ37 -> 29851.30741 | CB8: ='Life Cycle Analysis Tool'!BK37 -> 239795.3746 | CC8: ='Life Cycle Analysis Tool'!BL37 -> 19512 | CD8: ='Life Cycle Analysis Tool'!BM37 -> 61.84500337 | CE8: ='Life Cycle Analysis Tool'!BN37 -> 103.4566044 | CF8: ='Life Cycle Analysis Tool'!BO37 -> 165.3016078 | CG8: ='Life Cycle Analysis Tool'!BP37 -> 2769415.783 | CH8: ='Life Cycle Analysis Tool'!BQ37 -> 33370.69412 | CI8: ='Life Cycle Analysis Tool'!BR37 -> 18102.35038 | CJ8: ='Life Cycle Analysis Tool'!BS37 -> 3258.886172 | CK8: ='Life Cycle Analysis Tool'!BT37 -> 51473.0445 | CL8: ='Life Cycle Analysis Tool'!BU37 -> 54731.93067 | CM8: ='Life Cycle Analysis Tool'!BV37 -> 84583.23809 | CN8: =(CN7+CM8)*$AC8 -> 896075.0901 | CO8: =(SUM(BZ8:CA8)+CO7)*$AC8 -> 841343.1594 | CP8: =(SUM(CH8:CI8)+CP7)*$AC8 -> 51473.0445 | CQ8: =(CQ7+CJ8)*$AC8 -> 3258.886172 | CR8: =(CR7+CF8)*$AC8 -> 165.3016078 | CS8: =(CS7+CG8)*$AC8 -> 2769415.783 | CW8: ='Life Cycle Analysis Tool'!CA37 -> P2 | CX8: ='Life Cycle Analysis Tool'!CB37 -> 0 | CY8: ='Life Cycle Analysis Tool'!CC37 -> 33582.72084 | CZ8: ='Life Cycle Analysis Tool'!CD37 -> 99773 | DA8: ='Life Cycle Analysis Tool'!CE37 -> 0 | DB8: ='Life Cycle Analysis Tool'!CF37 -> 25.73219576 | DC8: ='Life Cycle Analysis Tool'!CG37 -> 0 | DD8: ='Life Cycle Analysis Tool'!CH37 -> 25.73219576 | DE8: ='Life Cycle Analysis Tool'!CI37 -> 340439.608 | DF8: ='Life Cycle Analysis Tool'!CJ37 -> 13884.73097 | DG8: ='Life Cycle Analysis Tool'!CK37 -> 0 | DH8: ='Life Cycle Analysis Tool'!CL37 -> 507.304787 | DI8: ='Life Cycle Analysis Tool'!CM37 -> 13884.73097 | DJ8: ='Life Cycle Analysis Tool'!CN37 -> 14392.03576 | DK8: ='Life Cycle Analysis Tool'!CO37 -> 47974.7566 | DL8: =(DL7+DK8)*$AC8 -> 917430.3123 | DM8: =(SUM(CX8:CY8)+DM7)*$AC8 -> 903038.2766 | DN8: =(SUM(DF8:DG8)+DN7)*$AC8 -> 13884.73097 | DO8: =(DO7+DH8)*$AC8 -> 507.304787 | DP8: =(DP7+DD8)*$AC8 -> 25.73219576 | DQ8: =(DQ7+DE8)*$AC8 -> 340439.608 | DV8: ='Life Cycle Analysis Tool'!CT37 -> P3 | DW8: ='Life Cycle Analysis Tool'!CU37 -> 0 | DX8: ='Life Cycle Analysis Tool'!CV37 -> 29851.30741 | DY8: ='Life Cycle Analysis Tool'!CW37 -> 393188 | DZ8: ='Life Cycle Analysis Tool'!CX37 -> 0 | EA8: ='Life Cycle Analysis Tool'!CY37 -> 101.4060977 | EB8: ='Life Cycle Analysis Tool'!CZ37 -> 0 | EC8: ='Life Cycle Analysis Tool'!DA37 -> 101.4060977 | ED8: ='Life Cycle Analysis Tool'!DB37 -> 1341613.148 | EE8: ='Life Cycle Analysis Tool'!DC37 -> 54717.30429 | EF8: ='Life Cycle Analysis Tool'!DD37 -> 0 | EG8: ='Life Cycle Analysis Tool'!DE37 -> 1999.199729 | EH8: ='Life Cycle Analysis Tool'!DF37 -> 54717.30429 | EI8: ='Life Cycle Analysis Tool'!DG37 -> 56716.50402 | EJ8: ='Life Cycle Analysis Tool'!DH37 -> 86567.81143 | EK8: =(EK7+EJ8)*$AC8 -> 376386.33 | EL8: =(SUM(DW8:DX8)+EL7)*$AC8 -> 319669.826 | EM8: =(SUM(EE8:EF8)+EM7)*$AC8 -> 54717.30429 | EN8: =(EN7+EG8)*$AC8 -> 1999.199729 | EO8: =(EO7+EC8)*$AC8 -> 101.4060977 | EP8: =(EP7+ED8)*$AC8 -> 1341613.148 | ET8: ='Life Cycle Analysis Tool'!DM37 -> P4 | EU8: ='Life Cycle Analysis Tool'!DN37 -> 0 | EV8: ='Life Cycle Analysis Tool'!DO37 -> 37314.13427 | EW8: ='Life Cycle Analysis Tool'!DP37 -> 266029 | EX8: ='Life Cycle Analysis Tool'!DQ37 -> 0 | EY8: ='Life Cycle Analysis Tool'!DR37 -> 68.61084969 | EZ8: ='Life Cycle Analysis Tool'!DS37 -> 0 | FA8: ='Life Cycle Analysis Tool'!DT37 -> 68.61084969 | FB8: ='Life Cycle Analysis Tool'!DU37 -> 907728.6288 | FC8: ='Life Cycle Analysis Tool'!DV37 -> 37021.44964 | FD8: ='Life Cycle Analysis Tool'!DW37 -> 0 | FE8: ='Life Cycle Analysis Tool'!DX37 -> 1352.648364 | FF8: ='Life Cycle Analysis Tool'!DY37 -> 37021.44964 | FG8: ='Life Cycle Analysis Tool'!DZ37 -> 38374.09801 | FH8: ='Life Cycle Analysis Tool'!EA37 -> 75688.23227 | FI8: =(FI7+FH8)*$AC8 -> 655325.2694 | FJ8: =(SUM(EU8:EV8)+FJ7)*$AC8 -> 616951.1714 | FK8: =(SUM(FC8:FD8)+FK7)*$AC8 -> 37021.44964 | FL8: =(FL7+FE8)*$AC8 -> 1352.648364 | FM8: =(FM7+FA8)*$AC8 -> 68.61084969 | FN8: =(FN7+FB8)*$AC8 -> 907728.6288 | FR8: ='Life Cycle Analysis Tool'!EF37 -> P5 | FS8: ='Life Cycle Analysis Tool'!EG37 -> 0 | FT8: ='Life Cycle Analysis Tool'!EH37 -> 33582.72084 | FU8: ='Life Cycle Analysis Tool'!EI37 -> 351142 | FV8: ='Life Cycle Analysis Tool'!EJ37 -> 0 | FW8: ='Life Cycle Analysis Tool'!EK37 -> 90.56212285 | FX8: ='Life Cycle Analysis Tool'!EL37 -> 0 | FY8: ='Life Cycle Analysis Tool'!EM37 -> 90.56212285 | FZ8: ='Life Cycle Analysis Tool'!EN37 -> 1198146.24 | GA8: ='Life Cycle Analysis Tool'!EO37 -> 48866.04795 | GB8: ='Life Cycle Analysis Tool'!EP37 -> 0 | GC8: ='Life Cycle Analysis Tool'!EQ37 -> 1785.413063 | GD8: ='Life Cycle Analysis Tool'!ER37 -> 48866.04795 | GE8: ='Life Cycle Analysis Tool'!ES37 -> 50651.46101 | GF8: ='Life Cycle Analysis Tool'!ET37 -> 84234.18185 | GG8: =(GG7+GF8)*$AC8 -> 953689.7376 | GH8: =(SUM(FS8:FT8)+GH7)*$AC8 -> 903038.2766 | GI8: =(SUM(GA8:GB8)+GI7)*$AC8 -> 48866.04795 | GJ8: =(GJ7+GC8)*$AC8 -> 1785.413063 | GK8: =(GK7+FY8)*$AC8 -> 90.56212285 | GL8: =(GL7+FZ8)*$AC8 -> 1198146.24 | GP8: ='Life Cycle Analysis Tool'!EY37 -> P6 | GQ8: ='Life Cycle Analysis Tool'!EZ37 -> 0 | GR8: ='Life Cycle Analysis Tool'!FA37 -> 33582.72084 | GS8: ='Life Cycle Analysis Tool'!FB37 -> 291618 | GT8: ='Life Cycle Analysis Tool'!FC37 -> 0 | GU8: ='Life Cycle Analysis Tool'!FD37 -> 75.21044233 | GV8: ='Life Cycle Analysis Tool'!FE37 -> 0 | GW8: ='Life Cycle Analysis Tool'!FF37 -> 75.21044233 | GX8: ='Life Cycle Analysis Tool'!FG37 -> 995041.9212 | GY8: ='Life Cycle Analysis Tool'!FH37 -> 40582.49703 | GZ8: ='Life Cycle Analysis Tool'!FI37 -> 0 | HA8: ='Life Cycle Analysis Tool'!FJ37 -> 1482.757934 | HB8: ='Life Cycle Analysis Tool'!FK37 -> 40582.49703 | HC8: ='Life Cycle Analysis Tool'!FL37 -> 42065.25496 | HD8: ='Life Cycle Analysis Tool'!FM37 -> 75647.9758 | HE8: =(HE7+HD8)*$AC8 -> 75647.9758 | HF8: =(SUM(GQ8:GR8)+HF7)*$AC8 -> 33582.72084 | HG8: =(SUM(GY8:GZ8)+HG7)*$AC8 -> 40582.49703 | HH8: =(HH7+HA8)*$AC8 -> 1482.757934 | HI8: =(HI7+GW8)*$AC8 -> 75.21044233 | HJ8: =(HJ7+GX8)*$AC8 -> 995041.9212
B9: =IF($Y9="Yes",'Life Cycle Analysis Tool'!C125,"") -> Scenario 4 (VRF Air Cooled) | C9: =IF($Y9="Yes",'Life Cycle Analysis Tool'!D125,"") -> 750000 | D9: =IF($Y9="Yes",'Life Cycle Analysis Tool'!E125,"") -> 28125 | E9: =IF($Y9="Yes",'Life Cycle Analysis Tool'!F125,"") -> 351142 | G9: =IF($Y9="Yes",'Life Cycle Analysis Tool'!H125,"") -> 105.3131041 | O9: A | X9: P5 | Y9: ='Life Cycle Analysis Tool'!Z125 -> Yes | AA9: A | AC9: ='Life Cycle Analysis Tool'!AM38 -> 1 | AD9: ='Life Cycle Analysis Tool'!AW38 -> 1 | AE9: ='Life Cycle Analysis Tool'!AX38 -> 2 | AF9: ='Life Cycle Analysis Tool'!AJ38*AD9 -> 2027 | AG9: 982856.3897 | AH9: 966744.9837 | AI9: 465159.7417 | AJ9: 733019.3064 | AK9: 1040101.369 | AL9: 153275.0737 | AN9: 872090.0061 | AO9: 937628.479 | AP9: 350416.6726 | AQ9: 655384.7297 | AR9: 937628.479 | AS9: 68172.9233 | AU9: 104232.9151 | AV9: 28116.58021 | AW9: 110802.5412 | AX9: 74968.43553 | AY9: 98953.7471 | AZ9: 82179.55648 | BB9: 6533.468569 | BC9: 999.9244354 | BD9: 3940.527887 | BE9: 2666.141117 | BF9: 3519.143116 | BG9: 2922.593928 | BI9: 327.3482155 | BJ9: 50.11006543 | BK9: 197.4750324 | BL9: 133.610602 | BM9: 176.3578182 | BN9: 146.4624403 | BP9: 5538831.566 | BQ9: 680879.216 | BR9: 2683226.296 | BS9: 1815457.258 | BT9: 2396292.481 | BU9: 1990083.842 | BY9: ='Life Cycle Analysis Tool'!BH38 -> P1 | BZ9: ='Life Cycle Analysis Tool'!BI38 -> 0 | CA9: ='Life Cycle Analysis Tool'!BJ38 -> 30746.84664 | CB9: ='Life Cycle Analysis Tool'!BK38 -> 239795.3746 | CC9: ='Life Cycle Analysis Tool'!BL38 -> 19512 | CD9: ='Life Cycle Analysis Tool'!BM38 -> 58.5900032 | CE9: ='Life Cycle Analysis Tool'!BN38 -> 103.4566044 | CF9: ='Life Cycle Analysis Tool'!BO38 -> 162.0466076 | CG9: ='Life Cycle Analysis Tool'!BP38 -> 2769415.783 | CH9: ='Life Cycle Analysis Tool'!BQ38 -> 34204.96147 | CI9: ='Life Cycle Analysis Tool'!BR38 -> 18554.90914 | CJ9: ='Life Cycle Analysis Tool'!BS38 -> 3274.582397 | CK9: ='Life Cycle Analysis Tool'!BT38 -> 52759.87061 | CL9: ='Life Cycle Analysis Tool'!BU38 -> 56034.45301 | CM9: ='Life Cycle Analysis Tool'!BV38 -> 86781.29964 | CN9: =(CN8+CM9)*$AC8 -> 982856.3897 | CO9: =(SUM(BZ9:CA9)+CO8)*$AC8 -> 872090.0061 | CP9: =(SUM(CH9:CI9)+CP8)*$AC8 -> 104232.9151 | CQ9: =(CQ8+CJ9)*$AC8 -> 6533.468569 | CR9: =(CR8+CF9)*$AC8 -> 327.3482155 | CS9: =(CS8+CG9)*$AC8 -> 5538831.566 | CW9: ='Life Cycle Analysis Tool'!CA38 -> P2 | CX9: ='Life Cycle Analysis Tool'!CB38 -> 0 | CY9: ='Life Cycle Analysis Tool'!CC38 -> 34590.20247 | CZ9: ='Life Cycle Analysis Tool'!CD38 -> 99773 | DA9: ='Life Cycle Analysis Tool'!CE38 -> 0 | DB9: ='Life Cycle Analysis Tool'!CF38 -> 24.37786967 | DC9: ='Life Cycle Analysis Tool'!CG38 -> 0 | DD9: ='Life Cycle Analysis Tool'!CH38 -> 24.37786967 | DE9: ='Life Cycle Analysis Tool'!CI38 -> 340439.608 | DF9: ='Life Cycle Analysis Tool'!CJ38 -> 14231.84924 | DG9: ='Life Cycle Analysis Tool'!CK38 -> 0 | DH9: ='Life Cycle Analysis Tool'!CL38 -> 492.6196484 | DI9: ='Life Cycle Analysis Tool'!CM38 -> 14231.84924 | DJ9: ='Life Cycle Analysis Tool'!CN38 -> 14724.46889 | DK9: ='Life Cycle Analysis Tool'!CO38 -> 49314.67136 | DL9: =(DL8+DK9)*$AC8 -> 966744.9837 | DM9: =(SUM(CX9:CY9)+DM8)*$AC8 -> 937628.479 | DN9: =(SUM(DF9:DG9)+DN8)*$AC8 -> 28116.58021 | DO9: =(DO8+DH9)*$AC8 -> 999.9244354 | DP9: =(DP8+DD9)*$AC8 -> 50.11006543 | DQ9: =(DQ8+DE9)*$AC8 -> 680879.216 | DV9: ='Life Cycle Analysis Tool'!CT38 -> P3 | DW9: ='Life Cycle Analysis Tool'!CU38 -> 0 | DX9: ='Life Cycle Analysis Tool'!CV38 -> 30746.84664 | DY9: ='Life Cycle Analysis Tool'!CW38 -> 393188 | DZ9: ='Life Cycle Analysis Tool'!CX38 -> 0 | EA9: ='Life Cycle Analysis Tool'!CY38 -> 96.06893467 | EB9: ='Life Cycle Analysis Tool'!CZ38 -> 0 | EC9: ='Life Cycle Analysis Tool'!DA38 -> 96.06893467 | ED9: ='Life Cycle Analysis Tool'!DB38 -> 1341613.148 | EE9: ='Life Cycle Analysis Tool'!DC38 -> 56085.23689 | EF9: ='Life Cycle Analysis Tool'!DD38 -> 0 | EG9: ='Life Cycle Analysis Tool'!DE38 -> 1941.328158 | EH9: ='Life Cycle Analysis Tool'!DF38 -> 56085.23689 | EI9: ='Life Cycle Analysis Tool'!DG38 -> 58026.56505 | EJ9: ='Life Cycle Analysis Tool'!DH38 -> 88773.41169 | EK9: =(EK8+EJ9)*$AC8 -> 465159.7417 | EL9: =(SUM(DW9:DX9)+EL8)*$AC8 -> 350416.6726 | EM9: =(SUM(EE9:EF9)+EM8)*$AC8 -> 110802.5412 | EN9: =(EN8+EG9)*$AC8 -> 3940.527887 | EO9: =(EO8+EC9)*$AC8 -> 197.4750324 | EP9: =(EP8+ED9)*$AC8 -> 2683226.296 | ET9: ='Life Cycle Analysis Tool'!DM38 -> P4 | EU9: ='Life Cycle Analysis Tool'!DN38 -> 0 | EV9: ='Life Cycle Analysis Tool'!DO38 -> 38433.55829 | EW9: ='Life Cycle Analysis Tool'!DP38 -> 266029 | EX9: ='Life Cycle Analysis Tool'!DQ38 -> 0 | EY9: ='Life Cycle Analysis Tool'!DR38 -> 64.99975233 | EZ9: ='Life Cycle Analysis Tool'!DS38 -> 0 | FA9: ='Life Cycle Analysis Tool'!DT38 -> 64.99975233 | FB9: ='Life Cycle Analysis Tool'!DU38 -> 907728.6288 | FC9: ='Life Cycle Analysis Tool'!DV38 -> 37946.98588 | FD9: ='Life Cycle Analysis Tool'!DW38 -> 0 | FE9: ='Life Cycle Analysis Tool'!DX38 -> 1313.492753 | FF9: ='Life Cycle Analysis Tool'!DY38 -> 37946.98588 | FG9: ='Life Cycle Analysis Tool'!DZ38 -> 39260.47864 | FH9: ='Life Cycle Analysis Tool'!EA38 -> 77694.03693 | FI9: =(FI8+FH9)*$AC8 -> 733019.3064 | FJ9: =(SUM(EU9:EV9)+FJ8)*$AC8 -> 655384.7297 | FK9: =(SUM(FC9:FD9)+FK8)*$AC8 -> 74968.43553 | FL9: =(FL8+FE9)*$AC8 -> 2666.141117 | FM9: =(FM8+FA9)*$AC8 -> 133.610602 | FN9: =(FN8+FB9)*$AC8 -> 1815457.258 | FR9: ='Life Cycle Analysis Tool'!EF38 -> P5 | FS9: ='Life Cycle Analysis Tool'!EG38 -> 0 | FT9: ='Life Cycle Analysis Tool'!EH38 -> 34590.20247 | FU9: ='Life Cycle Analysis Tool'!EI38 -> 351142 | FV9: ='Life Cycle Analysis Tool'!EJ38 -> 0 | FW9: ='Life Cycle Analysis Tool'!EK38 -> 85.79569533 | FX9: ='Life Cycle Analysis Tool'!EL38 -> 0 | FY9: ='Life Cycle Analysis Tool'!EM38 -> 85.79569533 | FZ9: ='Life Cycle Analysis Tool'!EN38 -> 1198146.24 | GA9: ='Life Cycle Analysis Tool'!EO38 -> 50087.69915 | GB9: ='Life Cycle Analysis Tool'!EP38 -> 0 | GC9: ='Life Cycle Analysis Tool'!EQ38 -> 1733.730053 | GD9: ='Life Cycle Analysis Tool'!ER38 -> 50087.69915 | GE9: ='Life Cycle Analysis Tool'!ES38 -> 51821.4292 | GF9: ='Life Cycle Analysis Tool'!ET38 -> 86411.63167 | GG9: =(GG8+GF9)*$AC8 -> 1040101.369 | GH9: =(SUM(FS9:FT9)+GH8)*$AC8 -> 937628.479 | GI9: =(SUM(GA9:GB9)+GI8)*$AC8 -> 98953.7471 | GJ9: =(GJ8+GC9)*$AC8 -> 3519.143116 | GK9: =(GK8+FY9)*$AC8 -> 176.3578182 | GL9: =(GL8+FZ9)*$AC8 -> 2396292.481 | GP9: ='Life Cycle Analysis Tool'!EY38 -> P6 | GQ9: ='Life Cycle Analysis Tool'!EZ38 -> 0 | GR9: ='Life Cycle Analysis Tool'!FA38 -> 34590.20247 | GS9: ='Life Cycle Analysis Tool'!FB38 -> 291618 | GT9: ='Life Cycle Analysis Tool'!FC38 -> 0 | GU9: ='Life Cycle Analysis Tool'!FD38 -> 71.251998 | GV9: ='Life Cycle Analysis Tool'!FE38 -> 0 | GW9: ='Life Cycle Analysis Tool'!FF38 -> 71.251998 | GX9: ='Life Cycle Analysis Tool'!FG38 -> 995041.9212 | GY9: ='Life Cycle Analysis Tool'!FH38 -> 41597.05945 | GZ9: ='Life Cycle Analysis Tool'!FI38 -> 0 | HA9: ='Life Cycle Analysis Tool'!FJ38 -> 1439.835994 | HB9: ='Life Cycle Analysis Tool'!FK38 -> 41597.05945 | HC9: ='Life Cycle Analysis Tool'!FL38 -> 43036.89545 | HD9: ='Life Cycle Analysis Tool'!FM38 -> 77627.09791 | HE9: =(HE8+HD9)*$AC8 -> 153275.0737 | HF9: =(SUM(GQ9:GR9)+HF8)*$AC8 -> 68172.9233 | HG9: =(SUM(GY9:GZ9)+HG8)*$AC8 -> 82179.55648 | HH9: =(HH8+HA9)*$AC8 -> 2922.593928 | HI9: =(HI8+GW9)*$AC8 -> 146.4624403 | HJ9: =(HJ8+GX9)*$AC8 -> 1990083.842
B10: =IF($Y10="Yes",'Life Cycle Analysis Tool'!C126,"") -> Scenario 5 (VRF Water Cooled) | C10: =IF($Y10="Yes",'Life Cycle Analysis Tool'!D126,"") -> 0 | D10: =IF($Y10="Yes",'Life Cycle Analysis Tool'!E126,"") -> 28125 | E10: =IF($Y10="Yes",'Life Cycle Analysis Tool'!F126,"") -> 291618 | G10: =IF($Y10="Yes",'Life Cycle Analysis Tool'!H126,"") -> 87.46090409 | O10: A | X10: P6 | Y10: ='Life Cycle Analysis Tool'!Z126 -> Yes | AA10: A | AC10: ='Life Cycle Analysis Tool'!AM39 -> 1 | AD10: ='Life Cycle Analysis Tool'!AW39 -> 1 | AE10: ='Life Cycle Analysis Tool'!AX39 -> 3 | AF10: ='Life Cycle Analysis Tool'!AJ39*AD10 -> 2028 | AG10: 1071893.536 | AH10: 1017437.421 | AI10: 556195.6751 | AJ10: 812773.0659 | AK10: 1128747.516 | AL10: 232933.8094 | AN10: 903759.2581 | AO10: 973256.3876 | AP10: 382085.9247 | AQ10: 694971.2948 | AR10: 973256.3876 | AS10: 103800.8318 | AU10: 158311.7825 | AV10: 42704.22569 | AW10: 168289.909 | AX10: 113864.0961 | AY10: 150293.6387 | AZ10: 124816.5424 | BB10: 9822.495198 | BC10: 1476.807623 | BD10: 5819.841396 | BE10: 3937.675073 | BF10: 5197.490126 | BG10: 4316.435161 | BI10: 486.1398229 | BJ10: 73.133609 | BK10: 288.206804 | BL10: 194.999257 | BM10: 257.387086 | BN10: 213.755994 | BP10: 8308247.35 | BQ10: 1021318.824 | BR10: 4024839.443 | BS10: 2723185.886 | BT10: 3594438.721 | BU10: 2985125.764 | BY10: ='Life Cycle Analysis Tool'!BH39 -> P1 | BZ10: ='Life Cycle Analysis Tool'!BI39 -> 0 | CA10: ='Life Cycle Analysis Tool'!BJ39 -> 31669.25203 | CB10: ='Life Cycle Analysis Tool'!BK39 -> 239795.3746 | CC10: ='Life Cycle Analysis Tool'!BL39 -> 19512 | CD10: ='Life Cycle Analysis Tool'!BM39 -> 55.33500302 | CE10: ='Life Cycle Analysis Tool'!BN39 -> 103.4566044 | CF10: ='Life Cycle Analysis Tool'!BO39 -> 158.7916075 | CG10: ='Life Cycle Analysis Tool'!BP39 -> 2769415.783 | CH10: ='Life Cycle Analysis Tool'!BQ39 -> 35060.08551 | CI10: ='Life Cycle Analysis Tool'!BR39 -> 19018.78187 | CJ10: ='Life Cycle Analysis Tool'!BS39 -> 3289.026629 | CK10: ='Life Cycle Analysis Tool'!BT39 -> 54078.86738 | CL10: ='Life Cycle Analysis Tool'!BU39 -> 57367.89401 | CM10: ='Life Cycle Analysis Tool'!BV39 -> 89037.14604 | CN10: 1071893.536 | CO10: 903759.2581 | CP10: 158311.7825 | CQ10: 9822.495198 | CR10: 486.1398229 | CS10: 8308247.35 | CW10: ='Life Cycle Analysis Tool'!CA39 -> P2 | CX10: ='Life Cycle Analysis Tool'!CB39 -> 0 | CY10: ='Life Cycle Analysis Tool'!CC39 -> 35627.90854 | CZ10: ='Life Cycle Analysis Tool'!CD39 -> 99773 | DA10: ='Life Cycle Analysis Tool'!CE39 -> 0 | DB10: ='Life Cycle Analysis Tool'!CF39 -> 23.02354357 | DC10: ='Life Cycle Analysis Tool'!CG39 -> 0 | DD10: ='Life Cycle Analysis Tool'!CH39 -> 23.02354357 | DE10: ='Life Cycle Analysis Tool'!CI39 -> 340439.608 | DF10: ='Life Cycle Analysis Tool'!CJ39 -> 14587.64548 | DG10: ='Life Cycle Analysis Tool'!CK39 -> 0 | DH10: ='Life Cycle Analysis Tool'!CL39 -> 476.8831874 | DI10: ='Life Cycle Analysis Tool'!CM39 -> 14587.64548 | DJ10: ='Life Cycle Analysis Tool'!CN39 -> 15064.52866 | DK10: ='Life Cycle Analysis Tool'!CO39 -> 50692.4372 | DL10: 1017437.421 | DM10: 973256.3876 | DN10: 42704.22569 | DO10: 1476.807623 | DP10: 73.133609 | DQ10: 1021318.824 | DV10: ='Life Cycle Analysis Tool'!CT39 -> P3 | DW10: ='Life Cycle Analysis Tool'!CU39 -> 0 | DX10: ='Life Cycle Analysis Tool'!CV39 -> 31669.25203 | DY10: ='Life Cycle Analysis Tool'!CW39 -> 393188 | DZ10: ='Life Cycle Analysis Tool'!CX39 -> 0 | EA10: ='Life Cycle Analysis Tool'!CY39 -> 90.73177163 | EB10: ='Life Cycle Analysis Tool'!CZ39 -> 0 | EC10: ='Life Cycle Analysis Tool'!DA39 -> 90.73177163 | ED10: ='Life Cycle Analysis Tool'!DB39 -> 1341613.148 | EE10: ='Life Cycle Analysis Tool'!DC39 -> 57487.36782 | EF10: ='Life Cycle Analysis Tool'!DD39 -> 0 | EG10: ='Life Cycle Analysis Tool'!DE39 -> 1879.313509 | EH10: ='Life Cycle Analysis Tool'!DF39 -> 57487.36782 | EI10: ='Life Cycle Analysis Tool'!DG39 -> 59366.68132 | EJ10: ='Life Cycle Analysis Tool'!DH39 -> 91035.93336 | EK10: 556195.6751 | EL10: 382085.9247 | EM10: 168289.909 | EN10: 5819.841396 | EO10: 288.206804 | EP10: 4024839.443 | ET10: ='Life Cycle Analysis Tool'!DM39 -> P4 | EU10: ='Life Cycle Analysis Tool'!DN39 -> 0 | EV10: ='Life Cycle Analysis Tool'!DO39 -> 39586.56504 | EW10: ='Life Cycle Analysis Tool'!DP39 -> 266029 | EX10: ='Life Cycle Analysis Tool'!DQ39 -> 0 | EY10: ='Life Cycle Analysis Tool'!DR39 -> 61.38865498 | EZ10: ='Life Cycle Analysis Tool'!DS39 -> 0 | FA10: ='Life Cycle Analysis Tool'!DT39 -> 61.38865498 | FB10: ='Life Cycle Analysis Tool'!DU39 -> 907728.6288 | FC10: ='Life Cycle Analysis Tool'!DV39 -> 38895.66053 | FD10: ='Life Cycle Analysis Tool'!DW39 -> 0 | FE10: ='Life Cycle Analysis Tool'!DX39 -> 1271.533957 | FF10: ='Life Cycle Analysis Tool'!DY39 -> 38895.66053 | FG10: ='Life Cycle Analysis Tool'!DZ39 -> 40167.19449 | FH10: ='Life Cycle Analysis Tool'!EA39 -> 79753.75953 | FI10: 812773.0659 | FJ10: 694971.2948 | FK10: 113864.0961 | FL10: 3937.675073 | FM10: 194.999257 | FN10: 2723185.886 | FR10: ='Life Cycle Analysis Tool'!EF39 -> P5 | FS10: ='Life Cycle Analysis Tool'!EG39 -> 0 | FT10: ='Life Cycle Analysis Tool'!EH39 -> 35627.90854 | FU10: ='Life Cycle Analysis Tool'!EI39 -> 351142 | FV10: ='Life Cycle Analysis Tool'!EJ39 -> 0 | FW10: ='Life Cycle Analysis Tool'!EK39 -> 81.02926781 | FX10: ='Life Cycle Analysis Tool'!EL39 -> 0 | FY10: ='Life Cycle Analysis Tool'!EM39 -> 81.02926781 | FZ10: ='Life Cycle Analysis Tool'!EN39 -> 1198146.24 | GA10: ='Life Cycle Analysis Tool'!EO39 -> 51339.89163 | GB10: ='Life Cycle Analysis Tool'!EP39 -> 0 | GC10: ='Life Cycle Analysis Tool'!EQ39 -> 1678.34701 | GD10: ='Life Cycle Analysis Tool'!ER39 -> 51339.89163 | GE10: ='Life Cycle Analysis Tool'!ES39 -> 53018.23864 | GF10: ='Life Cycle Analysis Tool'!ET39 -> 88646.14718 | GG10: 1128747.516 | GH10: 973256.3876 | GI10: 150293.6387 | GJ10: 5197.490126 | GK10: 257.387086 | GL10: 3594438.721 | GP10: ='Life Cycle Analysis Tool'!EY39 -> P6 | GQ10: ='Life Cycle Analysis Tool'!EZ39 -> 0 | GR10: ='Life Cycle Analysis Tool'!FA39 -> 35627.90854 | GS10: ='Life Cycle Analysis Tool'!FB39 -> 291618 | GT10: ='Life Cycle Analysis Tool'!FC39 -> 0 | GU10: ='Life Cycle Analysis Tool'!FD39 -> 67.29355367 | GV10: ='Life Cycle Analysis Tool'!FE39 -> 0 | GW10: ='Life Cycle Analysis Tool'!FF39 -> 67.29355367 | GX10: ='Life Cycle Analysis Tool'!FG39 -> 995041.9212 | GY10: ='Life Cycle Analysis Tool'!FH39 -> 42636.98594 | GZ10: ='Life Cycle Analysis Tool'!FI39 -> 0 | HA10: ='Life Cycle Analysis Tool'!FJ39 -> 1393.841233 | HB10: ='Life Cycle Analysis Tool'!FK39 -> 42636.98594 | HC10: ='Life Cycle Analysis Tool'!FL39 -> 44030.82717 | HD10: ='Life Cycle Analysis Tool'!FM39 -> 79658.73571 | HE10: 232933.8094 | HF10: 103800.8318 | HG10: 124816.5424 | HH10: 4316.435161 | HI10: 213.755994 | HJ10: 2985125.764
O11: A | AA11: A | AC11: ='Life Cycle Analysis Tool'!AM40 -> 1 | AD11: ='Life Cycle Analysis Tool'!AW40 -> 1 | AE11: ='Life Cycle Analysis Tool'!AX40 -> 4 | AF11: ='Life Cycle Analysis Tool'!AJ40*AD11 -> 2029 | AG11: 1163245.851 | AH11: 1069546.555 | AI11: 649552.5415 | AJ11: 894641.9362 | AK11: 1219686.762 | AL11: 314678.1126 | AN11: 936378.5877 | AO11: 1009953.133 | AP11: 414705.2543 | AQ11: 735745.4567 | AR11: 1009953.133 | AS11: 140497.5776 | AU11: 213742.6216 | AV11: 57656.5623 | AW11: 227214.461 | AX11: 153732.1481 | AY11: 202917.0276 | AZ11: 168519.453 | BB11: 13124.64166 | BC11: 1936.859639 | BD11: 7632.826193 | BE11: 5164.331361 | BF11: 6816.601358 | BG11: 5661.081998 | BI11: 641.6764302 | BJ11: 94.80282648 | BK11: 373.6014126 | BL11: 252.7768146 | BM11: 333.6499263 | BN11: 277.0911033 | BP11: 11077663.13 | BQ11: 1361758.432 | BR11: 5366452.591 | BS11: 3630914.515 | BT11: 4792584.961 | BU11: 3980167.685 | BY11: ='Life Cycle Analysis Tool'!BH40 -> P1 | BZ11: ='Life Cycle Analysis Tool'!BI40 -> 0 | CA11: ='Life Cycle Analysis Tool'!BJ40 -> 32619.3296 | CB11: ='Life Cycle Analysis Tool'!BK40 -> 239795.3746 | CC11: ='Life Cycle Analysis Tool'!BL40 -> 19512 | CD11: ='Life Cycle Analysis Tool'!BM40 -> 52.08000284 | CE11: ='Life Cycle Analysis Tool'!BN40 -> 103.4566044 | CF11: ='Life Cycle Analysis Tool'!BO40 -> 155.5366073 | CG11: ='Life Cycle Analysis Tool'!BP40 -> 2769415.783 | CH11: ='Life Cycle Analysis Tool'!BQ40 -> 35936.58765 | CI11: ='Life Cycle Analysis Tool'!BR40 -> 19494.25142 | CJ11: ='Life Cycle Analysis Tool'!BS40 -> 3302.146458 | CK11: ='Life Cycle Analysis Tool'!BT40 -> 55430.83906 | CL11: ='Life Cycle Analysis Tool'!BU40 -> 58732.98552 | CM11: ='Life Cycle Analysis Tool'!BV40 -> 91352.31512 | CN11: 1163245.851 | CO11: 936378.5877 | CP11: 213742.6216 | CQ11: 13124.64166 | CR11: 641.6764302 | CS11: 11077663.13 | CW11: ='Life Cycle Analysis Tool'!CA40 -> P2 | CX11: ='Life Cycle Analysis Tool'!CB40 -> 0 | CY11: ='Life Cycle Analysis Tool'!CC40 -> 36696.7458 | CZ11: ='Life Cycle Analysis Tool'!CD40 -> 99773 | DA11: ='Life Cycle Analysis Tool'!CE40 -> 0 | DB11: ='Life Cycle Analysis Tool'!CF40 -> 21.66921748 | DC11: ='Life Cycle Analysis Tool'!CG40 -> 0 | DD11: ='Life Cycle Analysis Tool'!CH40 -> 21.66921748 | DE11: ='Life Cycle Analysis Tool'!CI40 -> 340439.608 | DF11: ='Life Cycle Analysis Tool'!CJ40 -> 14952.33661 | DG11: ='Life Cycle Analysis Tool'!CK40 -> 0 | DH11: ='Life Cycle Analysis Tool'!CL40 -> 460.0520161 | DI11: ='Life Cycle Analysis Tool'!CM40 -> 14952.33661 | DJ11: ='Life Cycle Analysis Tool'!CN40 -> 15412.38863 | DK11: ='Life Cycle Analysis Tool'!CO40 -> 52109.13442 | DL11: 1069546.555 | DM11: 1009953.133 | DN11: 57656.5623 | DO11: 1936.859639 | DP11: 94.80282648 | DQ11: 1361758.432 | DV11: ='Life Cycle Analysis Tool'!CT40 -> P3 | DW11: ='Life Cycle Analysis Tool'!CU40 -> 0 | DX11: ='Life Cycle Analysis Tool'!CV40 -> 32619.3296 | DY11: ='Life Cycle Analysis Tool'!CW40 -> 393188 | DZ11: ='Life Cycle Analysis Tool'!CX40 -> 0 | EA11: ='Life Cycle Analysis Tool'!CY40 -> 85.39460859 | EB11: ='Life Cycle Analysis Tool'!CZ40 -> 0 | EC11: ='Life Cycle Analysis Tool'!DA40 -> 85.39460859 | ED11: ='Life Cycle Analysis Tool'!DB40 -> 1341613.148 | EE11: ='Life Cycle Analysis Tool'!DC40 -> 58924.55201 | EF11: ='Life Cycle Analysis Tool'!DD40 -> 0 | EG11: ='Life Cycle Analysis Tool'!DE40 -> 1812.984797 | EH11: ='Life Cycle Analysis Tool'!DF40 -> 58924.55201 | EI11: ='Life Cycle Analysis Tool'!DG40 -> 60737.53681 | EJ11: ='Life Cycle Analysis Tool'!DH40 -> 93356.8664 | EK11: 649552.5415 | EL11: 414705.2543 | EM11: 227214.461 | EN11: 7632.826193 | EO11: 373.6014126 | EP11: 5366452.591 | ET11: ='Life Cycle Analysis Tool'!DM40 -> P4 | EU11: ='Life Cycle Analysis Tool'!DN40 -> 0 | EV11: ='Life Cycle Analysis Tool'!DO40 -> 40774.16199 | EW11: ='Life Cycle Analysis Tool'!DP40 -> 266029 | EX11: ='Life Cycle Analysis Tool'!DQ40 -> 0 | EY11: ='Life Cycle Analysis Tool'!DR40 -> 57.77755763 | EZ11: ='Life Cycle Analysis Tool'!DS40 -> 0 | FA11: ='Life Cycle Analysis Tool'!DT40 -> 57.77755763 | FB11: ='Life Cycle Analysis Tool'!DU40 -> 907728.6288 | FC11: ='Life Cycle Analysis Tool'!DV40 -> 39868.05204 | FD11: ='Life Cycle Analysis Tool'!DW40 -> 0 | FE11: ='Life Cycle Analysis Tool'!DX40 -> 1226.656288 | FF11: ='Life Cycle Analysis Tool'!DY40 -> 39868.05204 | FG11: ='Life Cycle Analysis Tool'!DZ40 -> 41094.70833 | FH11: ='Life Cycle Analysis Tool'!EA40 -> 81868.87033 | FI11: 894641.9362 | FJ11: 735745.4567 | FK11: 153732.1481 | FL11: 5164.331361 | FM11: 252.7768146 | FN11: 3630914.515 | FR11: ='Life Cycle Analysis Tool'!EF40 -> P5 | FS11: ='Life Cycle Analysis Tool'!EG40 -> 0 | FT11: ='Life Cycle Analysis Tool'!EH40 -> 36696.7458 | FU11: ='Life Cycle Analysis Tool'!EI40 -> 351142 | FV11: ='Life Cycle Analysis Tool'!EJ40 -> 0 | FW11: ='Life Cycle Analysis Tool'!EK40 -> 76.2628403 | FX11: ='Life Cycle Analysis Tool'!EL40 -> 0 | FY11: ='Life Cycle Analysis Tool'!EM40 -> 76.2628403 | FZ11: ='Life Cycle Analysis Tool'!EN40 -> 1198146.24 | GA11: ='Life Cycle Analysis Tool'!EO40 -> 52623.38892 | GB11: ='Life Cycle Analysis Tool'!EP40 -> 0 | GC11: ='Life Cycle Analysis Tool'!EQ40 -> 1619.111233 | GD11: ='Life Cycle Analysis Tool'!ER40 -> 52623.38892 | GE11: ='Life Cycle Analysis Tool'!ES40 -> 54242.50015 | GF11: ='Life Cycle Analysis Tool'!ET40 -> 90939.24595 | GG11: 1219686.762 | GH11: 1009953.133 | GI11: 202917.0276 | GJ11: 6816.601358 | GK11: 333.6499263 | GL11: 4792584.961 | GP11: ='Life Cycle Analysis Tool'!EY40 -> P6 | GQ11: ='Life Cycle Analysis Tool'!EZ40 -> 0 | GR11: ='Life Cycle Analysis Tool'!FA40 -> 36696.7458 | GS11: ='Life Cycle Analysis Tool'!FB40 -> 291618 | GT11: ='Life Cycle Analysis Tool'!FC40 -> 0 | GU11: ='Life Cycle Analysis Tool'!FD40 -> 63.33510933 | GV11: ='Life Cycle Analysis Tool'!FE40 -> 0 | GW11: ='Life Cycle Analysis Tool'!FF40 -> 63.33510933 | GX11: ='Life Cycle Analysis Tool'!FG40 -> 995041.9212 | GY11: ='Life Cycle Analysis Tool'!FH40 -> 43702.91059 | GZ11: ='Life Cycle Analysis Tool'!FI40 -> 0 | HA11: ='Life Cycle Analysis Tool'!FJ40 -> 1344.646837 | HB11: ='Life Cycle Analysis Tool'!FK40 -> 43702.91059 | HC11: ='Life Cycle Analysis Tool'!FL40 -> 45047.55743 | HD11: ='Life Cycle Analysis Tool'!FM40 -> 81744.30322 | HE11: 314678.1126 | HF11: 140497.5776 | HG11: 168519.453 | HH11: 5661.081998 | HI11: 277.0911033 | HJ11: 3980167.685
B12: Life Cycle Operating Summary | C12: Electric Energy Use (kWh) | D12: Natural Gas Energy Use (therm) | E12: GHG Emissions (MT) | F12: Project Capital Costs ($) | G12: Maintenance Cost ($) | H12: Electric Cost ($) | I12: Natural Gas Cost ($) | J12: GHG Emissions Cost ($/yr) | K12: Total Energy Cost ($/yr) | L12: Total Project Cost ($) | O12: A | AA12: A | AC12: ='Life Cycle Analysis Tool'!AM41 -> 1 | AD12: ='Life Cycle Analysis Tool'!AW41 -> 1 | AE12: ='Life Cycle Analysis Tool'!AX41 -> 5 | AF12: ='Life Cycle Analysis Tool'!AJ41*AD12 -> 2030 | AG12: 1256974.237 | AH12: 1123112.43 | AI12: 745290.2818 | AJ12: 978682.8164 | AK12: 1312979.249 | AL12: 398563.3657 | AN12: 969976.4972 | AO12: 1047750.782 | AP12: 448303.1637 | AQ12: 777742.8436 | AR12: 1047750.782 | AS12: 178295.2258 | AU12: 270559.2316 | AV12: 72982.70733 | AW12: 287612.1268 | AX12: 194596.9014 | AY12: 256856.0013 | AZ12: 213314.9364 | BB12: 16438.50829 | BC12: 2378.940873 | BD12: 9374.991271 | BE12: 6343.071388 | BF12: 8372.466059 | BG12: 6953.203568 | BI12: 793.9580373 | BJ12: 115.1177179 | BK12: 453.6588581 | BL12: 306.9432749 | BM12: 405.1463391 | BN12: 336.4677683 | BP12: 13847078.92 | BQ12: 1702198.04 | BR12: 6708065.739 | BS12: 4538643.144 | BT12: 5990731.202 | BU12: 4975209.606 | BY12: ='Life Cycle Analysis Tool'!BH41 -> P1 | BZ12: ='Life Cycle Analysis Tool'!BI41 -> 0 | CA12: ='Life Cycle Analysis Tool'!BJ41 -> 33597.90948 | CB12: ='Life Cycle Analysis Tool'!BK41 -> 239795.3746 | CC12: ='Life Cycle Analysis Tool'!BL41 -> 19512 | CD12: ='Life Cycle Analysis Tool'!BM41 -> 48.82500266 | CE12: ='Life Cycle Analysis Tool'!BN41 -> 103.4566044 | CF12: ='Life Cycle Analysis Tool'!BO41 -> 152.2816071 | CG12: ='Life Cycle Analysis Tool'!BP41 -> 2769415.783 | CH12: ='Life Cycle Analysis Tool'!BQ41 -> 36835.00234 | CI12: ='Life Cycle Analysis Tool'!BR41 -> 19981.6077 | CJ12: ='Life Cycle Analysis Tool'!BS41 -> 3313.866638 | CK12: ='Life Cycle Analysis Tool'!BT41 -> 56816.61004 | CL12: ='Life Cycle Analysis Tool'!BU41 -> 60130.47668 | CM12: ='Life Cycle Analysis Tool'!BV41 -> 93728.38616 | CN12: 1256974.237 | CO12: 969976.4972 | CP12: 270559.2316 | CQ12: 16438.50829 | CR12: 793.9580373 | CS12: 13847078.92 | CW12: ='Life Cycle Analysis Tool'!CA41 -> P2 | CX12: ='Life Cycle Analysis Tool'!CB41 -> 0 | CY12: ='Life Cycle Analysis Tool'!CC41 -> 37797.64817 | CZ12: ='Life Cycle Analysis Tool'!CD41 -> 99773 | DA12: ='Life Cycle Analysis Tool'!CE41 -> 0 | DB12: ='Life Cycle Analysis Tool'!CF41 -> 20.31489139 | DC12: ='Life Cycle Analysis Tool'!CG41 -> 0 | DD12: ='Life Cycle Analysis Tool'!CH41 -> 20.31489139 | DE12: ='Life Cycle Analysis Tool'!CI41 -> 340439.608 | DF12: ='Life Cycle Analysis Tool'!CJ41 -> 15326.14503 | DG12: ='Life Cycle Analysis Tool'!CK41 -> 0 | DH12: ='Life Cycle Analysis Tool'!CL41 -> 442.0812342 | DI12: ='Life Cycle Analysis Tool'!CM41 -> 15326.14503 | DJ12: ='Life Cycle Analysis Tool'!CN41 -> 15768.22626 | DK12: ='Life Cycle Analysis Tool'!CO41 -> 53565.87443 | DL12: 1123112.43 | DM12: 1047750.782 | DN12: 72982.70733 | DO12: 2378.940873 | DP12: 115.1177179 | DQ12: 1702198.04 | DV12: ='Life Cycle Analysis Tool'!CT41 -> P3 | DW12: ='Life Cycle Analysis Tool'!CU41 -> 0 | DX12: ='Life Cycle Analysis Tool'!CV41 -> 33597.90948 | DY12: ='Life Cycle Analysis Tool'!CW41 -> 393188 | DZ12: ='Life Cycle Analysis Tool'!CX41 -> 0 | EA12: ='Life Cycle Analysis Tool'!CY41 -> 80.05744556 | EB12: ='Life Cycle Analysis Tool'!CZ41 -> 0 | EC12: ='Life Cycle Analysis Tool'!DA41 -> 80.05744556 | ED12: ='Life Cycle Analysis Tool'!DB41 -> 1341613.148 | EE12: ='Life Cycle Analysis Tool'!DC41 -> 60397.66581 | EF12: ='Life Cycle Analysis Tool'!DD41 -> 0 | EG12: ='Life Cycle Analysis Tool'!DE41 -> 1742.165078 | EH12: ='Life Cycle Analysis Tool'!DF41 -> 60397.66581 | EI12: ='Life Cycle Analysis Tool'!DG41 -> 62139.83089 | EJ12: ='Life Cycle Analysis Tool'!DH41 -> 95737.74037 | EK12: 745290.2818 | EL12: 448303.1637 | EM12: 287612.1268 | EN12: 9374.991271 | EO12: 453.6588581 | EP12: 6708065.739 | ET12: ='Life Cycle Analysis Tool'!DM41 -> P4 | EU12: ='Life Cycle Analysis Tool'!DN41 -> 0 | EV12: ='Life Cycle Analysis Tool'!DO41 -> 41997.38685 | EW12: ='Life Cycle Analysis Tool'!DP41 -> 266029 | EX12: ='Life Cycle Analysis Tool'!DQ41 -> 0 | EY12: ='Life Cycle Analysis Tool'!DR41 -> 54.16646028 | EZ12: ='Life Cycle Analysis Tool'!DS41 -> 0 | FA12: ='Life Cycle Analysis Tool'!DT41 -> 54.16646028 | FB12: ='Life Cycle Analysis Tool'!DU41 -> 907728.6288 | FC12: ='Life Cycle Analysis Tool'!DV41 -> 40864.75334 | FD12: ='Life Cycle Analysis Tool'!DW41 -> 0 | FE12: ='Life Cycle Analysis Tool'!DX41 -> 1178.740026 | FF12: ='Life Cycle Analysis Tool'!DY41 -> 40864.75334 | FG12: ='Life Cycle Analysis Tool'!DZ41 -> 42043.49337 | FH12: ='Life Cycle Analysis Tool'!EA41 -> 84040.88023 | FI12: 978682.8164 | FJ12: 777742.8436 | FK12: 194596.9014 | FL12: 6343.071388 | FM12: 306.9432749 | FN12: 4538643.144 | FR12: ='Life Cycle Analysis Tool'!EF41 -> P5 | FS12: ='Life Cycle Analysis Tool'!EG41 -> 0 | FT12: ='Life Cycle Analysis Tool'!EH41 -> 37797.64817 | FU12: ='Life Cycle Analysis Tool'!EI41 -> 351142 | FV12: ='Life Cycle Analysis Tool'!EJ41 -> 0 | FW12: ='Life Cycle Analysis Tool'!EK41 -> 71.49641278 | FX12: ='Life Cycle Analysis Tool'!EL41 -> 0 | FY12: ='Life Cycle Analysis Tool'!EM41 -> 71.49641278 | FZ12: ='Life Cycle Analysis Tool'!EN41 -> 1198146.24 | GA12: ='Life Cycle Analysis Tool'!EO41 -> 53938.97364 | GB12: ='Life Cycle Analysis Tool'!EP41 -> 0 | GC12: ='Life Cycle Analysis Tool'!EQ41 -> 1555.8647 | GD12: ='Life Cycle Analysis Tool'!ER41 -> 53938.97364 | GE12: ='Life Cycle Analysis Tool'!ES41 -> 55494.83834 | GF12: ='Life Cycle Analysis Tool'!ET41 -> 93292.48651 | GG12: 1312979.249 | GH12: 1047750.782 | GI12: 256856.0013 | GJ12: 8372.466059 | GK12: 405.1463391 | GL12: 5990731.202 | GP12: ='Life Cycle Analysis Tool'!EY41 -> P6 | GQ12: ='Life Cycle Analysis Tool'!EZ41 -> 0 | GR12: ='Life Cycle Analysis Tool'!FA41 -> 37797.64817 | GS12: ='Life Cycle Analysis Tool'!FB41 -> 291618 | GT12: ='Life Cycle Analysis Tool'!FC41 -> 0 | GU12: ='Life Cycle Analysis Tool'!FD41 -> 59.376665 | GV12: ='Life Cycle Analysis Tool'!FE41 -> 0 | GW12: ='Life Cycle Analysis Tool'!FF41 -> 59.376665 | GX12: ='Life Cycle Analysis Tool'!FG41 -> 995041.9212 | GY12: ='Life Cycle Analysis Tool'!FH41 -> 44795.48335 | GZ12: ='Life Cycle Analysis Tool'!FI41 -> 0 | HA12: ='Life Cycle Analysis Tool'!FJ41 -> 1292.12157 | HB12: ='Life Cycle Analysis Tool'!FK41 -> 44795.48335 | HC12: ='Life Cycle Analysis Tool'!FL41 -> 46087.60492 | HD12: ='Life Cycle Analysis Tool'!FM41 -> 83885.25309 | HE12: 398563.3657 | HF12: 178295.2258 | HG12: 213314.9364 | HH12: 6953.203568 | HI12: 336.4677683 | HJ12: 4975209.606
B13: =IF($Y13="Yes",'Life Cycle Analysis Tool'!C129,"") -> Status Quo Replacement (Replace in Kind) | C13: =IF($Y13="Yes",'Life Cycle Analysis Tool'!D129,"") -> 4795907.492 | D13: =IF($Y13="Yes",'Life Cycle Analysis Tool'!E129,"") -> 390240 | E13: =IF($Y13="Yes",'Life Cycle Analysis Tool'!F129,"") -> 2687.582123 | F13: =IF($Y13="Yes",'Life Cycle Analysis Tool'!G129,"") -> 811491.852 | G13: =IF($Y13="Yes",'Life Cycle Analysis Tool'!H129,"") -> 802115.8092 | H13: =IF($Y13="Yes",'Life Cycle Analysis Tool'!I129,"") -> 852442.9555 | I13: =IF($Y13="Yes",'Life Cycle Analysis Tool'!J129,"") -> 462418.3424 | J13: =IF($Y13="Yes",'Life Cycle Analysis Tool'!K129,"") -> 66333.9138 | K13: =IF($Y13="Yes",'Life Cycle Analysis Tool'!L129,"") -> 1314861.298 | L13: =IF($Y13="Yes",'Life Cycle Analysis Tool'!M129,"") -> 2994802.873 | O13: A | X13: R1 | Y13: =Y5 -> Yes | AA13: A | AC13: ='Life Cycle Analysis Tool'!AM42 -> 1 | AD13: ='Life Cycle Analysis Tool'!AW42 -> 1 | AE13: ='Life Cycle Analysis Tool'!AX42 -> 6 | AF13: ='Life Cycle Analysis Tool'!AJ42*AD13 -> 2031 | AG13: 1353141.218 | AH13: 1178176.23 | AI13: 843470.4073 | AJ13: 1064954.158 | AK13: 1408686.718 | AL13: 484646.4434 | AN13: 1004582.344 | AO13: 1086682.359 | AP13: 482909.0105 | AQ13: 821000.1521 | AR13: 1086682.359 | AS13: 217226.8034 | AU13: 328796.2569 | AV13: 88692.00598 | AW13: 349519.7343 | AX13: 236483.2736 | AY13: 312143.4493 | AZ13: 259230.3068 | BB13: 19762.61728 | BC13: 2801.865254 | BD13: 11041.66253 | BE13: 7470.73268 | BF13: 9860.909955 | BG13: 8189.333203 | BI13: 942.9846443 | BJ13: 134.0782832 | BK13: 528.3791407 | BL13: 357.4986378 | BM13: 471.8763243 | BN13: 391.885989 | BP13: 16616494.7 | BQ13: 2042637.648 | BR13: 8049678.887 | BS13: 5446371.773 | BT13: 7188877.442 | BU13: 5970251.527 | BY13: ='Life Cycle Analysis Tool'!BH42 -> P1 | BZ13: ='Life Cycle Analysis Tool'!BI42 -> 0 | CA13: ='Life Cycle Analysis Tool'!BJ42 -> 34605.84677 | CB13: ='Life Cycle Analysis Tool'!BK42 -> 239795.3746 | CC13: ='Life Cycle Analysis Tool'!BL42 -> 19512 | CD13: ='Life Cycle Analysis Tool'!BM42 -> 45.57000249 | CE13: ='Life Cycle Analysis Tool'!BN42 -> 103.4566044 | CF13: ='Life Cycle Analysis Tool'!BO42 -> 149.0266069 | CG13: ='Life Cycle Analysis Tool'!BP42 -> 2769415.783 | CH13: ='Life Cycle Analysis Tool'!BQ42 -> 37755.8774 | CI13: ='Life Cycle Analysis Tool'!BR42 -> 20481.14789 | CJ13: ='Life Cycle Analysis Tool'!BS42 -> 3324.108984 | CK13: ='Life Cycle Analysis Tool'!BT42 -> 58237.02529 | CL13: ='Life Cycle Analysis Tool'!BU42 -> 61561.13427 | CM13: ='Life Cycle Analysis Tool'!BV42 -> 96166.98104 | CN13: 1353141.218 | CO13: 1004582.344 | CP13: 328796.2569 | CQ13: 19762.61728 | CR13: 942.9846443 | CS13: 16616494.7 | CW13: ='Life Cycle Analysis Tool'!CA42 -> P2 | CX13: ='Life Cycle Analysis Tool'!CB42 -> 0 | CY13: ='Life Cycle Analysis Tool'!CC42 -> 38931.57761 | CZ13: ='Life Cycle Analysis Tool'!CD42 -> 99773 | DA13: ='Life Cycle Analysis Tool'!CE42 -> 0 | DB13: ='Life Cycle Analysis Tool'!CF42 -> 18.9605653 | DC13: ='Life Cycle Analysis Tool'!CG42 -> 0 | DD13: ='Life Cycle Analysis Tool'!CH42 -> 18.9605653 | DE13: ='Life Cycle Analysis Tool'!CI42 -> 340439.608 | DF13: ='Life Cycle Analysis Tool'!CJ42 -> 15709.29865 | DG13: ='Life Cycle Analysis Tool'!CK42 -> 0 | DH13: ='Life Cycle Analysis Tool'!CL42 -> 422.9243807 | DI13: ='Life Cycle Analysis Tool'!CM42 -> 15709.29865 | DJ13: ='Life Cycle Analysis Tool'!CN42 -> 16132.22303 | DK13: ='Life Cycle Analysis Tool'!CO42 -> 55063.80065 | DL13: 1178176.23 | DM13: 1086682.359 | DN13: 88692.00598 | DO13: 2801.865254 | DP13: 134.0782832 | DQ13: 2042637.648 | DV13: ='Life Cycle Analysis Tool'!CT42 -> P3 | DW13: ='Life Cycle Analysis Tool'!CU42 -> 0 | DX13: ='Life Cycle Analysis Tool'!CV42 -> 34605.84677 | DY13: ='Life Cycle Analysis Tool'!CW42 -> 393188 | DZ13: ='Life Cycle Analysis Tool'!CX42 -> 0 | EA13: ='Life Cycle Analysis Tool'!CY42 -> 74.72028252 | EB13: ='Life Cycle Analysis Tool'!CZ42 -> 0 | EC13: ='Life Cycle Analysis Tool'!DA42 -> 74.72028252 | ED13: ='Life Cycle Analysis Tool'!DB42 -> 1341613.148 | EE13: ='Life Cycle Analysis Tool'!DC42 -> 61907.60746 | EF13: ='Life Cycle Analysis Tool'!DD42 -> 0 | EG13: ='Life Cycle Analysis Tool'!DE42 -> 1666.671258 | EH13: ='Life Cycle Analysis Tool'!DF42 -> 61907.60746 | EI13: ='Life Cycle Analysis Tool'!DG42 -> 63574.27871 | EJ13: ='Life Cycle Analysis Tool'!DH42 -> 98180.12548 | EK13: 843470.4073 | EL13: 482909.0105 | EM13: 349519.7343 | EN13: 11041.66253 | EO13: 528.3791407 | EP13: 8049678.887 | ET13: ='Life Cycle Analysis Tool'!DM42 -> P4 | EU13: ='Life Cycle Analysis Tool'!DN42 -> 0 | EV13: ='Life Cycle Analysis Tool'!DO42 -> 43257.30846 | EW13: ='Life Cycle Analysis Tool'!DP42 -> 266029 | EX13: ='Life Cycle Analysis Tool'!DQ42 -> 0 | EY13: ='Life Cycle Analysis Tool'!DR42 -> 50.55536293 | EZ13: ='Life Cycle Analysis Tool'!DS42 -> 0 | FA13: ='Life Cycle Analysis Tool'!DT42 -> 50.55536293 | FB13: ='Life Cycle Analysis Tool'!DU42 -> 907728.6288 | FC13: ='Life Cycle Analysis Tool'!DV42 -> 41886.37218 | FD13: ='Life Cycle Analysis Tool'!DW42 -> 0 | FE13: ='Life Cycle Analysis Tool'!DX42 -> 1127.661292 | FF13: ='Life Cycle Analysis Tool'!DY42 -> 41886.37218 | FG13: ='Life Cycle Analysis Tool'!DZ42 -> 43014.03347 | FH13: ='Life Cycle Analysis Tool'!EA42 -> 86271.34193 | FI13: 1064954.158 | FJ13: 821000.1521 | FK13: 236483.2736 | FL13: 7470.73268 | FM13: 357.4986378 | FN13: 5446371.773 | FR13: ='Life Cycle Analysis Tool'!EF42 -> P5 | FS13: ='Life Cycle Analysis Tool'!EG42 -> 0 | FT13: ='Life Cycle Analysis Tool'!EH42 -> 38931.57761 | FU13: ='Life Cycle Analysis Tool'!EI42 -> 351142 | FV13: ='Life Cycle Analysis Tool'!EJ42 -> 0 | FW13: ='Life Cycle Analysis Tool'!EK42 -> 66.72998526 | FX13: ='Life Cycle Analysis Tool'!EL42 -> 0 | FY13: ='Life Cycle Analysis Tool'!EM42 -> 66.72998526 | FZ13: ='Life Cycle Analysis Tool'!EN42 -> 1198146.24 | GA13: ='Life Cycle Analysis Tool'!EO42 -> 55287.44798 | GB13: ='Life Cycle Analysis Tool'!EP42 -> 0 | GC13: ='Life Cycle Analysis Tool'!EQ42 -> 1488.443897 | GD13: ='Life Cycle Analysis Tool'!ER42 -> 55287.44798 | GE13: ='Life Cycle Analysis Tool'!ES42 -> 56775.89188 | GF13: ='Life Cycle Analysis Tool'!ET42 -> 95707.46949 | GG13: 1408686.718 | GH13: 1086682.359 | GI13: 312143.4493 | GJ13: 9860.909955 | GK13: 471.8763243 | GL13: 7188877.442 | GP13: ='Life Cycle Analysis Tool'!EY42 -> P6 | GQ13: ='Life Cycle Analysis Tool'!EZ42 -> 0 | GR13: ='Life Cycle Analysis Tool'!FA42 -> 38931.57761 | GS13: ='Life Cycle Analysis Tool'!FB42 -> 291618 | GT13: ='Life Cycle Analysis Tool'!FC42 -> 0 | GU13: ='Life Cycle Analysis Tool'!FD42 -> 55.41822067 | GV13: ='Life Cycle Analysis Tool'!FE42 -> 0 | GW13: ='Life Cycle Analysis Tool'!FF42 -> 55.41822067 | GX13: ='Life Cycle Analysis Tool'!FG42 -> 995041.9212 | GY13: ='Life Cycle Analysis Tool'!FH42 -> 45915.37044 | GZ13: ='Life Cycle Analysis Tool'!FI42 -> 0 | HA13: ='Life Cycle Analysis Tool'!FJ42 -> 1236.129635 | HB13: ='Life Cycle Analysis Tool'!FK42 -> 45915.37044 | HC13: ='Life Cycle Analysis Tool'!FL42 -> 47151.50007 | HD13: ='Life Cycle Analysis Tool'!FM42 -> 86083.07769 | HE13: 484646.4434 | HF13: 217226.8034 | HG13: 259230.3068 | HH13: 8189.333203 | HI13: 391.885989 | HJ13: 5970251.527
B14: =IF($Y14="Yes",'Life Cycle Analysis Tool'!C130,"") -> Scenario 1 (WWHP Heating Only) | C14: =IF($Y14="Yes",'Life Cycle Analysis Tool'!D130,"") -> 1995460 | E14: =IF($Y14="Yes",'Life Cycle Analysis Tool'!F130,"") -> 257.3219576 | F14: =IF($Y14="Yes",'Life Cycle Analysis Tool'!G130,"") -> 869455.5557 | G14: =IF($Y14="Yes",'Life Cycle Analysis Tool'!H130,"") -> 902380.2853 | H14: =IF($Y14="Yes",'Life Cycle Analysis Tool'!I130,"") -> 354680.6987 | J14: =IF($Y14="Yes",'Life Cycle Analysis Tool'!K130,"") -> 5921.750208 | K14: =IF($Y14="Yes",'Life Cycle Analysis Tool'!L130,"") -> 354680.6987 | L14: =IF($Y14="Yes",'Life Cycle Analysis Tool'!M130,"") -> 2132438.29 | O14: A | X14: R2 | Y14: =Y6 -> Yes | AA14: A | AC14: ='Life Cycle Analysis Tool'!AM43 -> 1 | AD14: ='Life Cycle Analysis Tool'!AW43 -> 1 | AE14: ='Life Cycle Analysis Tool'!AX43 -> 7 | AF14: ='Life Cycle Analysis Tool'!AJ43*AD14 -> 2032 | AG14: 1451810.983 | AH14: 1234780.32 | AI14: 944156.041 | AJ14: 1153516.009 | AK14: 1506872.557 | AL14: 572985.7536 | AN14: 1040226.366 | AO14: 1126781.884 | AP14: 518553.0327 | AQ14: 865555.1798 | AR14: 1126781.884 | AS14: 257326.3284 | AU14: 388489.2078 | AV14: 104794.0371 | AW14: 412975.0319 | AX14: 279416.8051 | AY14: 368813.0835 | AZ14: 306293.5615 | BB14: 23095.40956 | BC14: 3204.398638 | BD14: 12627.97642 | BE14: 8544.024588 | BF14: 11277.58959 | BG14: 9365.86373 | BI14: 1088.756251 | BJ14: 151.6845224 | BK14: 597.7622601 | BL14: 404.4429034 | BM14: 533.8398821 | BN14: 443.3457653 | BP14: 19385910.48 | BQ14: 2383077.256 | BR14: 9391292.034 | BS14: 6354100.401 | BT14: 8387023.682 | BU14: 6965293.449 | BY14: ='Life Cycle Analysis Tool'!BH43 -> P1 | BZ14: ='Life Cycle Analysis Tool'!BI43 -> 0 | CA14: ='Life Cycle Analysis Tool'!BJ43 -> 35644.02217 | CB14: ='Life Cycle Analysis Tool'!BK43 -> 239795.3746 | CC14: ='Life Cycle Analysis Tool'!BL43 -> 19512 | CD14: ='Life Cycle Analysis Tool'!BM43 -> 42.31500231 | CE14: ='Life Cycle Analysis Tool'!BN43 -> 103.4566044 | CF14: ='Life Cycle Analysis Tool'!BO43 -> 145.7716068 | CG14: ='Life Cycle Analysis Tool'!BP43 -> 2769415.783 | CH14: ='Life Cycle Analysis Tool'!BQ43 -> 38699.77433 | CI14: ='Life Cycle Analysis Tool'!BR43 -> 20993.17659 | CJ14: ='Life Cycle Analysis Tool'!BS43 -> 3332.792282 | CK14: ='Life Cycle Analysis Tool'!BT43 -> 59692.95092 | CL14: ='Life Cycle Analysis Tool'!BU43 -> 63025.7432 | CM14: ='Life Cycle Analysis Tool'!BV43 -> 98669.76537 | CN14: 1451810.983 | CO14: 1040226.366 | CP14: 388489.2078 | CQ14: 23095.40956 | CR14: 1088.756251 | CS14: 19385910.48 | CW14: ='Life Cycle Analysis Tool'!CA43 -> P2 | CX14: ='Life Cycle Analysis Tool'!CB43 -> 0 | CY14: ='Life Cycle Analysis Tool'!CC43 -> 40099.52494 | CZ14: ='Life Cycle Analysis Tool'!CD43 -> 99773 | DA14: ='Life Cycle Analysis Tool'!CE43 -> 0 | DB14: ='Life Cycle Analysis Tool'!CF43 -> 17.6062392 | DC14: ='Life Cycle Analysis Tool'!CG43 -> 0 | DD14: ='Life Cycle Analysis Tool'!CH43 -> 17.6062392 | DE14: ='Life Cycle Analysis Tool'!CI43 -> 340439.608 | DF14: ='Life Cycle Analysis Tool'!CJ43 -> 16102.03112 | DG14: ='Life Cycle Analysis Tool'!CK43 -> 0 | DH14: ='Life Cycle Analysis Tool'!CL43 -> 402.5333838 | DI14: ='Life Cycle Analysis Tool'!CM43 -> 16102.03112 | DJ14: ='Life Cycle Analysis Tool'!CN43 -> 16504.5645 | DK14: ='Life Cycle Analysis Tool'!CO43 -> 56604.08945 | DL14: 1234780.32 | DM14: 1126781.884 | DN14: 104794.0371 | DO14: 3204.398638 | DP14: 151.6845224 | DQ14: 2383077.256 | DV14: ='Life Cycle Analysis Tool'!CT43 -> P3 | DW14: ='Life Cycle Analysis Tool'!CU43 -> 0 | DX14: ='Life Cycle Analysis Tool'!CV43 -> 35644.02217 | DY14: ='Life Cycle Analysis Tool'!CW43 -> 393188 | DZ14: ='Life Cycle Analysis Tool'!CX43 -> 0 | EA14: ='Life Cycle Analysis Tool'!CY43 -> 69.38311948 | EB14: ='Life Cycle Analysis Tool'!CZ43 -> 0 | EC14: ='Life Cycle Analysis Tool'!DA43 -> 69.38311948 | ED14: ='Life Cycle Analysis Tool'!DB43 -> 1341613.148 | EE14: ='Life Cycle Analysis Tool'!DC43 -> 63455.29764 | EF14: ='Life Cycle Analysis Tool'!DD43 -> 0 | EG14: ='Life Cycle Analysis Tool'!DE43 -> 1586.313894 | EH14: ='Life Cycle Analysis Tool'!DF43 -> 63455.29764 | EI14: ='Life Cycle Analysis Tool'!DG43 -> 65041.61154 | EJ14: ='Life Cycle Analysis Tool'!DH43 -> 100685.6337 | EK14: 944156.041 | EL14: 518553.0327 | EM14: 412975.0319 | EN14: 12627.97642 | EO14: 597.7622601 | EP14: 9391292.034 | ET14: ='Life Cycle Analysis Tool'!DM43 -> P4 | EU14: ='Life Cycle Analysis Tool'!DN43 -> 0 | EV14: ='Life Cycle Analysis Tool'!DO43 -> 44555.02771 | EW14: ='Life Cycle Analysis Tool'!DP43 -> 266029 | EX14: ='Life Cycle Analysis Tool'!DQ43 -> 0 | EY14: ='Life Cycle Analysis Tool'!DR43 -> 46.94426557 | EZ14: ='Life Cycle Analysis Tool'!DS43 -> 0 | FA14: ='Life Cycle Analysis Tool'!DT43 -> 46.94426557 | FB14: ='Life Cycle Analysis Tool'!DU43 -> 907728.6288 | FC14: ='Life Cycle Analysis Tool'!DV43 -> 42933.53148 | FD14: ='Life Cycle Analysis Tool'!DW43 -> 0 | FE14: ='Life Cycle Analysis Tool'!DX43 -> 1073.291908 | FF14: ='Life Cycle Analysis Tool'!DY43 -> 42933.53148 | FG14: ='Life Cycle Analysis Tool'!DZ43 -> 44006.82339 | FH14: ='Life Cycle Analysis Tool'!EA43 -> 88561.85111 | FI14: 1153516.009 | FJ14: 865555.1798 | FK14: 279416.8051 | FL14: 8544.024588 | FM14: 404.4429034 | FN14: 6354100.401 | FR14: ='Life Cycle Analysis Tool'!EF43 -> P5 | FS14: ='Life Cycle Analysis Tool'!EG43 -> 0 | FT14: ='Life Cycle Analysis Tool'!EH43 -> 40099.52494 | FU14: ='Life Cycle Analysis Tool'!EI43 -> 351142 | FV14: ='Life Cycle Analysis Tool'!EJ43 -> 0 | FW14: ='Life Cycle Analysis Tool'!EK43 -> 61.96355774 | FX14: ='Life Cycle Analysis Tool'!EL43 -> 0 | FY14: ='Life Cycle Analysis Tool'!EM43 -> 61.96355774 | FZ14: ='Life Cycle Analysis Tool'!EN43 -> 1198146.24 | GA14: ='Life Cycle Analysis Tool'!EO43 -> 56669.63418 | GB14: ='Life Cycle Analysis Tool'!EP43 -> 0 | GC14: ='Life Cycle Analysis Tool'!EQ43 -> 1416.679637 | GD14: ='Life Cycle Analysis Tool'!ER43 -> 56669.63418 | GE14: ='Life Cycle Analysis Tool'!ES43 -> 58086.31382 | GF14: ='Life Cycle Analysis Tool'!ET43 -> 98185.83876 | GG14: 1506872.557 | GH14: 1126781.884 | GI14: 368813.0835 | GJ14: 11277.58959 | GK14: 533.8398821 | GL14: 8387023.682 | GP14: ='Life Cycle Analysis Tool'!EY43 -> P6 | GQ14: ='Life Cycle Analysis Tool'!EZ43 -> 0 | GR14: ='Life Cycle Analysis Tool'!FA43 -> 40099.52494 | GS14: ='Life Cycle Analysis Tool'!FB43 -> 291618 | GT14: ='Life Cycle Analysis Tool'!FC43 -> 0 | GU14: ='Life Cycle Analysis Tool'!FD43 -> 51.45977633 | GV14: ='Life Cycle Analysis Tool'!FE43 -> 0 | GW14: ='Life Cycle Analysis Tool'!FF43 -> 51.45977633 | GX14: ='Life Cycle Analysis Tool'!FG43 -> 995041.9212 | GY14: ='Life Cycle Analysis Tool'!FH43 -> 47063.2547 | GZ14: ='Life Cycle Analysis Tool'!FI43 -> 0 | HA14: ='Life Cycle Analysis Tool'!FJ43 -> 1176.530528 | HB14: ='Life Cycle Analysis Tool'!FK43 -> 47063.2547 | HC14: ='Life Cycle Analysis Tool'!FL43 -> 48239.78523 | HD14: ='Life Cycle Analysis Tool'!FM43 -> 88339.31017 | HE14: 572985.7536 | HF14: 257326.3284 | HG14: 306293.5615 | HH14: 9365.86373 | HI14: 443.3457653 | HJ14: 6965293.449
B15: =IF($Y15="Yes",'Life Cycle Analysis Tool'!C131,"") -> Scenario 2 (Air-to-Air Heat Pump ) | C15: =IF($Y15="Yes",'Life Cycle Analysis Tool'!D131,"") -> 7863760 | E15: =IF($Y15="Yes",'Life Cycle Analysis Tool'!F131,"") -> 1014.060977 | F15: =IF($Y15="Yes",'Life Cycle Analysis Tool'!G131,"") -> 289818.5186 | G15: =IF($Y15="Yes",'Life Cycle Analysis Tool'!H131,"") -> 802115.8092 | H15: =IF($Y15="Yes",'Life Cycle Analysis Tool'!I131,"") -> 1397734.803 | J15: =IF($Y15="Yes",'Life Cycle Analysis Tool'!K131,"") -> 23336.58525 | K15: =IF($Y15="Yes",'Life Cycle Analysis Tool'!L131,"") -> 1397734.803 | L15: =IF($Y15="Yes",'Life Cycle Analysis Tool'!M131,"") -> 2513005.716 | O15: A | X15: R3 | Y15: Yes | AA15: A | AC15: ='Life Cycle Analysis Tool'!AM44 -> 1 | AD15: ='Life Cycle Analysis Tool'!AW44 -> 1 | AE15: ='Life Cycle Analysis Tool'!AX44 -> 8 | AF15: ='Life Cycle Analysis Tool'!AJ44*AD15 -> 2033 | AG15: 1553049.433 | AH15: 1292968.271 | AI15: 1047411.961 | AJ15: 1244430.057 | AK15: 1607601.84 | AL15: 663641.2792 | AN15: 1076939.709 | AO15: 1168084.395 | AP15: 555266.3755 | AQ15: 911446.8583 | AR15: 1168084.395 | AS15: 298628.8391 | AU15: 449674.4825 | AV15: 121298.619 | AW15: 478016.712 | AX15: 323423.6749 | AY15: 426899.4585 | AZ15: 354533.3976 | BB15: 26435.24174 | BC15: 3585.257147 | BD15: 14128.87341 | BE15: 9559.523855 | BF15: 12617.98648 | BG15: 10479.04261 | BI15: 1231.272858 | BJ15: 167.9364355 | BK15: 661.8082166 | BL15: 447.7760716 | BM15: 591.0370123 | BN15: 490.8470973 | BP15: 22155326.27 | BQ15: 2723516.864 | BR15: 10732905.18 | BS15: 7261829.03 | BT15: 9585169.923 | BU15: 7960335.37 | BY15: ='Life Cycle Analysis Tool'!BH44 -> P1 | BZ15: ='Life Cycle Analysis Tool'!BI44 -> 0 | CA15: ='Life Cycle Analysis Tool'!BJ44 -> 36713.34284 | CB15: ='Life Cycle Analysis Tool'!BK44 -> 239795.3746 | CC15: ='Life Cycle Analysis Tool'!BL44 -> 19512 | CD15: ='Life Cycle Analysis Tool'!BM44 -> 39.06000213 | CE15: ='Life Cycle Analysis Tool'!BN44 -> 103.4566044 | CF15: ='Life Cycle Analysis Tool'!BO44 -> 142.5166066 | CG15: ='Life Cycle Analysis Tool'!BP44 -> 2769415.783 | CH15: ='Life Cycle Analysis Tool'!BQ44 -> 39667.26869 | CI15: ='Life Cycle Analysis Tool'!BR44 -> 21518.00601 | CJ15: ='Life Cycle Analysis Tool'!BS44 -> 3339.832176 | CK15: ='Life Cycle Analysis Tool'!BT44 -> 61185.27469 | CL15: ='Life Cycle Analysis Tool'!BU44 -> 64525.10687 | CM15: ='Life Cycle Analysis Tool'!BV44 -> 101238.4497 | CN15: 1553049.433 | CO15: 1076939.709 | CP15: 449674.4825 | CQ15: 26435.24174 | CR15: 1231.272858 | CS15: 22155326.27 | CW15: ='Life Cycle Analysis Tool'!CA44 -> P2 | CX15: ='Life Cycle Analysis Tool'!CB44 -> 0 | CY15: ='Life Cycle Analysis Tool'!CC44 -> 41302.51069 | CZ15: ='Life Cycle Analysis Tool'!CD44 -> 99773 | DA15: ='Life Cycle Analysis Tool'!CE44 -> 0 | DB15: ='Life Cycle Analysis Tool'!CF44 -> 16.25191311 | DC15: ='Life Cycle Analysis Tool'!CG44 -> 0 | DD15: ='Life Cycle Analysis Tool'!CH44 -> 16.25191311 | DE15: ='Life Cycle Analysis Tool'!CI44 -> 340439.608 | DF15: ='Life Cycle Analysis Tool'!CJ44 -> 16504.5819 | DG15: ='Life Cycle Analysis Tool'!CK44 -> 0 | DH15: ='Life Cycle Analysis Tool'!CL44 -> 380.8585093 | DI15: ='Life Cycle Analysis Tool'!CM44 -> 16504.5819 | DJ15: ='Life Cycle Analysis Tool'!CN44 -> 16885.44041 | DK15: ='Life Cycle Analysis Tool'!CO44 -> 58187.9511 | DL15: 1292968.271 | DM15: 1168084.395 | DN15: 121298.619 | DO15: 3585.257147 | DP15: 167.9364355 | DQ15: 2723516.864 | DV15: ='Life Cycle Analysis Tool'!CT44 -> P3 | DW15: ='Life Cycle Analysis Tool'!CU44 -> 0 | DX15: ='Life Cycle Analysis Tool'!CV44 -> 36713.34284 | DY15: ='Life Cycle Analysis Tool'!CW44 -> 393188 | DZ15: ='Life Cycle Analysis Tool'!CX44 -> 0 | EA15: ='Life Cycle Analysis Tool'!CY44 -> 64.04595644 | EB15: ='Life Cycle Analysis Tool'!CZ44 -> 0 | EC15: ='Life Cycle Analysis Tool'!DA44 -> 64.04595644 | ED15: ='Life Cycle Analysis Tool'!DB44 -> 1341613.148 | EE15: ='Life Cycle Analysis Tool'!DC44 -> 65041.68008 | EF15: ='Life Cycle Analysis Tool'!DD44 -> 0 | EG15: ='Life Cycle Analysis Tool'!DE44 -> 1500.896992 | EH15: ='Life Cycle Analysis Tool'!DF44 -> 65041.68008 | EI15: ='Life Cycle Analysis Tool'!DG44 -> 66542.57708 | EJ15: ='Life Cycle Analysis Tool'!DH44 -> 103255.9199 | EK15: 1047411.961 | EL15: 555266.3755 | EM15: 478016.712 | EN15: 14128.87341 | EO15: 661.8082166 | EP15: 10732905.18 | ET15: ='Life Cycle Analysis Tool'!DM44 -> P4 | EU15: ='Life Cycle Analysis Tool'!DN44 -> 0 | EV15: ='Life Cycle Analysis Tool'!DO44 -> 45891.67855 | EW15: ='Life Cycle Analysis Tool'!DP44 -> 266029 | EX15: ='Life Cycle Analysis Tool'!DQ44 -> 0 | EY15: ='Life Cycle Analysis Tool'!DR44 -> 43.33316822 | EZ15: ='Life Cycle Analysis Tool'!DS44 -> 0 | FA15: ='Life Cycle Analysis Tool'!DT44 -> 43.33316822 | FB15: ='Life Cycle Analysis Tool'!DU44 -> 907728.6288 | FC15: ='Life Cycle Analysis Tool'!DV44 -> 44006.86977 | FD15: ='Life Cycle Analysis Tool'!DW44 -> 0 | FE15: ='Life Cycle Analysis Tool'!DX44 -> 1015.499267 | FF15: ='Life Cycle Analysis Tool'!DY44 -> 44006.86977 | FG15: ='Life Cycle Analysis Tool'!DZ44 -> 45022.36904 | FH15: ='Life Cycle Analysis Tool'!EA44 -> 90914.04758 | FI15: 1244430.057 | FJ15: 911446.8583 | FK15: 323423.6749 | FL15: 9559.523855 | FM15: 447.7760716 | FN15: 7261829.03 | FR15: ='Life Cycle Analysis Tool'!EF44 -> P5 | FS15: ='Life Cycle Analysis Tool'!EG44 -> 0 | FT15: ='Life Cycle Analysis Tool'!EH44 -> 41302.51069 | FU15: ='Life Cycle Analysis Tool'!EI44 -> 351142 | FV15: ='Life Cycle Analysis Tool'!EJ44 -> 0 | FW15: ='Life Cycle Analysis Tool'!EK44 -> 57.19713022 | FX15: ='Life Cycle Analysis Tool'!EL44 -> 0 | FY15: ='Life Cycle Analysis Tool'!EM44 -> 57.19713022 | FZ15: ='Life Cycle Analysis Tool'!EN44 -> 1198146.24 | GA15: ='Life Cycle Analysis Tool'!EO44 -> 58086.37504 | GB15: ='Life Cycle Analysis Tool'!EP44 -> 0 | GC15: ='Life Cycle Analysis Tool'!EQ44 -> 1340.396888 | GD15: ='Life Cycle Analysis Tool'!ER44 -> 58086.37504 | GE15: ='Life Cycle Analysis Tool'!ES44 -> 59426.77193 | GF15: ='Life Cycle Analysis Tool'!ET44 -> 100729.2826 | GG15: 1607601.84 | GH15: 1168084.395 | GI15: 426899.4585 | GJ15: 12617.98648 | GK15: 591.0370123 | GL15: 9585169.923 | GP15: ='Life Cycle Analysis Tool'!EY44 -> P6 | GQ15: ='Life Cycle Analysis Tool'!EZ44 -> 0 | GR15: ='Life Cycle Analysis Tool'!FA44 -> 41302.51069 | GS15: ='Life Cycle Analysis Tool'!FB44 -> 291618 | GT15: ='Life Cycle Analysis Tool'!FC44 -> 0 | GU15: ='Life Cycle Analysis Tool'!FD44 -> 47.501332 | GV15: ='Life Cycle Analysis Tool'!FE44 -> 0 | GW15: ='Life Cycle Analysis Tool'!FF44 -> 47.501332 | GX15: ='Life Cycle Analysis Tool'!FG44 -> 995041.9212 | GY15: ='Life Cycle Analysis Tool'!FH44 -> 48239.83607 | GZ15: ='Life Cycle Analysis Tool'!FI44 -> 0 | HA15: ='Life Cycle Analysis Tool'!FJ44 -> 1113.178884 | HB15: ='Life Cycle Analysis Tool'!FK44 -> 48239.83607 | HC15: ='Life Cycle Analysis Tool'!FL44 -> 49353.01495 | HD15: ='Life Cycle Analysis Tool'!FM44 -> 90655.52564 | HE15: 663641.2792 | HF15: 298628.8391 | HG15: 354533.3976 | HH15: 10479.04261 | HI15: 490.8470973 | HJ15: 7960335.37
B16: =IF($Y16="Yes",'Life Cycle Analysis Tool'!C132,"") -> Scenario 3 (WSHP) | C16: =IF($Y16="Yes",'Life Cycle Analysis Tool'!D132,"") -> 5320580 | E16: =IF($Y16="Yes",'Life Cycle Analysis Tool'!F132,"") -> 686.1084969 | F16: =IF($Y16="Yes",'Life Cycle Analysis Tool'!G132,"") -> 579637.0371 | G16: =IF($Y16="Yes",'Life Cycle Analysis Tool'!H132,"") -> 1002644.761 | H16: =IF($Y16="Yes",'Life Cycle Analysis Tool'!I132,"") -> 945700.2554 | J16: =IF($Y16="Yes",'Life Cycle Analysis Tool'!K132,"") -> 15789.41483 | K16: =IF($Y16="Yes",'Life Cycle Analysis Tool'!L132,"") -> 945700.2554 | L16: =IF($Y16="Yes",'Life Cycle Analysis Tool'!M132,"") -> 2543771.469 | O16: A | X16: R4 | Y16: Yes | AA16: A | AC16: ='Life Cycle Analysis Tool'!AM45 -> 1 | AD16: ='Life Cycle Analysis Tool'!AW45 -> 1 | AE16: ='Life Cycle Analysis Tool'!AX45 -> 9 | AF16: ='Life Cycle Analysis Tool'!AJ45*AD16 -> 2034 | AG16: 1656924.224 | AH16: 1352784.902 | AI16: 1153304.644 | AJ16: 1337759.674 | AK16: 1710941.375 | AL16: 756674.6215 | AN16: 1114754.452 | AO16: 1210625.981 | AP16: 593081.1186 | AQ16: 958715.2872 | AR16: 1210625.981 | AS16: 341170.4251 | AU16: 512389.3891 | AV16: 138215.8154 | AW16: 544684.4341 | AX16: 368530.7164 | AY16: 486437.9929 | AZ16: 403979.2295 | BB16: 29780.38281 | BC16: 3943.105455 | BD16: 15539.09121 | BE16: 10513.67004 | BF16: 13877.40106 | BG16: 11524.96694 | BI16: 1370.534464 | BJ16: 182.8340225 | BK16: 720.51701 | BL16: 487.4981425 | BM16: 643.467715 | BN16: 534.389985 | BP16: 24924742.05 | BQ16: 3063956.472 | BR16: 12074518.33 | BS16: 8169557.659 | BT16: 10783316.16 | BU16: 8955377.291 | BY16: ='Life Cycle Analysis Tool'!BH45 -> P1 | BZ16: ='Life Cycle Analysis Tool'!BI45 -> 0 | CA16: ='Life Cycle Analysis Tool'!BJ45 -> 37814.74312 | CB16: ='Life Cycle Analysis Tool'!BK45 -> 239795.3746 | CC16: ='Life Cycle Analysis Tool'!BL45 -> 19512 | CD16: ='Life Cycle Analysis Tool'!BM45 -> 35.80500195 | CE16: ='Life Cycle Analysis Tool'!BN45 -> 103.4566044 | CF16: ='Life Cycle Analysis Tool'!BO45 -> 139.2616064 | CG16: ='Life Cycle Analysis Tool'!BP45 -> 2769415.783 | CH16: ='Life Cycle Analysis Tool'!BQ45 -> 40658.95041 | CI16: ='Life Cycle Analysis Tool'!BR45 -> 22055.95616 | CJ16: ='Life Cycle Analysis Tool'!BS45 -> 3345.14107 | CK16: ='Life Cycle Analysis Tool'!BT45 -> 62714.90656 | CL16: ='Life Cycle Analysis Tool'!BU45 -> 66060.04763 | CM16: ='Life Cycle Analysis Tool'!BV45 -> 103874.7908 | CN16: 1656924.224 | CO16: 1114754.452 | CP16: 512389.3891 | CQ16: 29780.38281 | CR16: 1370.534464 | CS16: 24924742.05 | CW16: ='Life Cycle Analysis Tool'!CA45 -> P2 | CX16: ='Life Cycle Analysis Tool'!CB45 -> 0 | CY16: ='Life Cycle Analysis Tool'!CC45 -> 42541.58601 | CZ16: ='Life Cycle Analysis Tool'!CD45 -> 99773 | DA16: ='Life Cycle Analysis Tool'!CE45 -> 0 | DB16: ='Life Cycle Analysis Tool'!CF45 -> 14.89758702 | DC16: ='Life Cycle Analysis Tool'!CG45 -> 0 | DD16: ='Life Cycle Analysis Tool'!CH45 -> 14.89758702 | DE16: ='Life Cycle Analysis Tool'!CI45 -> 340439.608 | DF16: ='Life Cycle Analysis Tool'!CJ45 -> 16917.19644 | DG16: ='Life Cycle Analysis Tool'!CK45 -> 0 | DH16: ='Life Cycle Analysis Tool'!CL45 -> 357.8483077 | DI16: ='Life Cycle Analysis Tool'!CM45 -> 16917.19644 | DJ16: ='Life Cycle Analysis Tool'!CN45 -> 17275.04475 | DK16: ='Life Cycle Analysis Tool'!CO45 -> 59816.63076 | DL16: 1352784.902 | DM16: 1210625.981 | DN16: 138215.8154 | DO16: 3943.105455 | DP16: 182.8340225 | DQ16: 3063956.472 | DV16: ='Life Cycle Analysis Tool'!CT45 -> P3 | DW16: ='Life Cycle Analysis Tool'!CU45 -> 0 | DX16: ='Life Cycle Analysis Tool'!CV45 -> 37814.74312 | DY16: ='Life Cycle Analysis Tool'!CW45 -> 393188 | DZ16: ='Life Cycle Analysis Tool'!CX45 -> 0 | EA16: ='Life Cycle Analysis Tool'!CY45 -> 58.70879341 | EB16: ='Life Cycle Analysis Tool'!CZ45 -> 0 | EC16: ='Life Cycle Analysis Tool'!DA45 -> 58.70879341 | ED16: ='Life Cycle Analysis Tool'!DB45 -> 1341613.148 | EE16: ='Life Cycle Analysis Tool'!DC45 -> 66667.72209 | EF16: ='Life Cycle Analysis Tool'!DD45 -> 0 | EG16: ='Life Cycle Analysis Tool'!DE45 -> 1410.217798 | EH16: ='Life Cycle Analysis Tool'!DF45 -> 66667.72209 | EI16: ='Life Cycle Analysis Tool'!DG45 -> 68077.93988 | EJ16: ='Life Cycle Analysis Tool'!DH45 -> 105892.683 | EK16: 1153304.644 | EL16: 593081.1186 | EM16: 544684.4341 | EN16: 15539.09121 | EO16: 720.51701 | EP16: 12074518.33 | ET16: ='Life Cycle Analysis Tool'!DM45 -> P4 | EU16: ='Life Cycle Analysis Tool'!DN45 -> 0 | EV16: ='Life Cycle Analysis Tool'!DO45 -> 47268.4289 | EW16: ='Life Cycle Analysis Tool'!DP45 -> 266029 | EX16: ='Life Cycle Analysis Tool'!DQ45 -> 0 | EY16: ='Life Cycle Analysis Tool'!DR45 -> 39.72207087 | EZ16: ='Life Cycle Analysis Tool'!DS45 -> 0 | FA16: ='Life Cycle Analysis Tool'!DT45 -> 39.72207087 | FB16: ='Life Cycle Analysis Tool'!DU45 -> 907728.6288 | FC16: ='Life Cycle Analysis Tool'!DV45 -> 45107.04151 | FD16: ='Life Cycle Analysis Tool'!DW45 -> 0 | FE16: ='Life Cycle Analysis Tool'!DX45 -> 954.1461863 | FF16: ='Life Cycle Analysis Tool'!DY45 -> 45107.04151 | FG16: ='Life Cycle Analysis Tool'!DZ45 -> 46061.1877 | FH16: ='Life Cycle Analysis Tool'!EA45 -> 93329.6166 | FI16: 1337759.674 | FJ16: 958715.2872 | FK16: 368530.7164 | FL16: 10513.67004 | FM16: 487.4981425 | FN16: 8169557.659 | FR16: ='Life Cycle Analysis Tool'!EF45 -> P5 | FS16: ='Life Cycle Analysis Tool'!EG45 -> 0 | FT16: ='Life Cycle Analysis Tool'!EH45 -> 42541.58601 | FU16: ='Life Cycle Analysis Tool'!EI45 -> 351142 | FV16: ='Life Cycle Analysis Tool'!EJ45 -> 0 | FW16: ='Life Cycle Analysis Tool'!EK45 -> 52.4307027 | FX16: ='Life Cycle Analysis Tool'!EL45 -> 0 | FY16: ='Life Cycle Analysis Tool'!EM45 -> 52.4307027 | FZ16: ='Life Cycle Analysis Tool'!EN45 -> 1198146.24 | GA16: ='Life Cycle Analysis Tool'!EO45 -> 59538.53441 | GB16: ='Life Cycle Analysis Tool'!EP45 -> 0 | GC16: ='Life Cycle Analysis Tool'!EQ45 -> 1259.414576 | GD16: ='Life Cycle Analysis Tool'!ER45 -> 59538.53441 | GE16: ='Life Cycle Analysis Tool'!ES45 -> 60797.94899 | GF16: ='Life Cycle Analysis Tool'!ET45 -> 103339.535 | GG16: 1710941.375 | GH16: 1210625.981 | GI16: 486437.9929 | GJ16: 13877.40106 | GK16: 643.467715 | GL16: 10783316.16 | GP16: ='Life Cycle Analysis Tool'!EY45 -> P6 | GQ16: ='Life Cycle Analysis Tool'!EZ45 -> 0 | GR16: ='Life Cycle Analysis Tool'!FA45 -> 42541.58601 | GS16: ='Life Cycle Analysis Tool'!FB45 -> 291618 | GT16: ='Life Cycle Analysis Tool'!FC45 -> 0 | GU16: ='Life Cycle Analysis Tool'!FD45 -> 43.54288767 | GV16: ='Life Cycle Analysis Tool'!FE45 -> 0 | GW16: ='Life Cycle Analysis Tool'!FF45 -> 43.54288767 | GX16: ='Life Cycle Analysis Tool'!FG45 -> 995041.9212 | GY16: ='Life Cycle Analysis Tool'!FH45 -> 49445.83197 | GZ16: ='Life Cycle Analysis Tool'!FI45 -> 0 | HA16: ='Life Cycle Analysis Tool'!FJ45 -> 1045.924326 | HB16: ='Life Cycle Analysis Tool'!FK45 -> 49445.83197 | HC16: ='Life Cycle Analysis Tool'!FL45 -> 50491.75629 | HD16: ='Life Cycle Analysis Tool'!FM45 -> 93033.3423 | HE16: 756674.6215 | HF16: 341170.4251 | HG16: 403979.2295 | HH16: 11524.96694 | HI16: 534.389985 | HJ16: 8955377.291
B17: =IF($Y17="Yes",'Life Cycle Analysis Tool'!C133,"") -> Scenario 4 (VRF Air Cooled) | C17: =IF($Y17="Yes",'Life Cycle Analysis Tool'!D133,"") -> 7022840 | E17: =IF($Y17="Yes",'Life Cycle Analysis Tool'!F133,"") -> 905.6212285 | F17: =IF($Y17="Yes",'Life Cycle Analysis Tool'!G133,"") -> 869455.5557 | G17: =IF($Y17="Yes",'Life Cycle Analysis Tool'!H133,"") -> 902380.2853 | H17: =IF($Y17="Yes",'Life Cycle Analysis Tool'!I133,"") -> 1248266.464 | J17: =IF($Y17="Yes",'Life Cycle Analysis Tool'!K133,"") -> 20841.06132 | K17: =IF($Y17="Yes",'Life Cycle Analysis Tool'!L133,"") -> 1248266.464 | L17: =IF($Y17="Yes",'Life Cycle Analysis Tool'!M133,"") -> 3040943.366 | O17: A | X17: R5 | Y17: Yes | AC17: ='Life Cycle Analysis Tool'!AM46 -> 1 | AD17: ='Life Cycle Analysis Tool'!AW46 -> 1 | AE17: ='Life Cycle Analysis Tool'!AX46 -> 10 | AF17: ='Life Cycle Analysis Tool'!AJ46*AD17 -> 2035 | AG17: 1763504.817 | AH17: 1414276.311 | AI17: 1261902.311 | AJ17: 1433569.964 | AK17: 1816959.752 | AL17: 852149.0442 | AN17: 1153703.637 | AO17: 1254443.814 | AP17: 632030.304 | AQ17: 1007401.769 | AR17: 1254443.814 | AS17: 384988.2587 | AU17: 576672.1683 | AV17: 155555.9418 | AW17: 613018.8492 | AX17: 414765.4339 | AY17: 547464.9907 | AZ17: 454661.2073 | BB17: 33129.01082 | BC17: 4276.555014 | BD17: 16853.1578 | BE17: 11402.76081 | BF17: 15050.94646 | BG17: 12499.57824 | BI17: 1506.54107 | BJ17: 196.3772834 | BK17: 773.8886404 | BL17: 523.609116 | BM17: 691.1319902 | BN17: 573.9744283 | BP17: 27694157.83 | BQ17: 3404396.08 | BR17: 13416131.48 | BS17: 9077286.288 | BT17: 11981462.4 | BU17: 9950419.212 | BY17: ='Life Cycle Analysis Tool'!BH46 -> P1 | BZ17: ='Life Cycle Analysis Tool'!BI46 -> 0 | CA17: ='Life Cycle Analysis Tool'!BJ46 -> 38949.18542 | CB17: ='Life Cycle Analysis Tool'!BK46 -> 239795.3746 | CC17: ='Life Cycle Analysis Tool'!BL46 -> 19512 | CD17: ='Life Cycle Analysis Tool'!BM46 -> 32.55000178 | CE17: ='Life Cycle Analysis Tool'!BN46 -> 103.4566044 | CF17: ='Life Cycle Analysis Tool'!BO46 -> 136.0066062 | CG17: ='Life Cycle Analysis Tool'!BP46 -> 2769415.783 | CH17: ='Life Cycle Analysis Tool'!BQ46 -> 41675.42417 | CI17: ='Life Cycle Analysis Tool'!BR46 -> 22607.35506 | CJ17: ='Life Cycle Analysis Tool'!BS46 -> 3348.628013 | CK17: ='Life Cycle Analysis Tool'!BT46 -> 64282.77923 | CL17: ='Life Cycle Analysis Tool'!BU46 -> 67631.40724 | CM17: ='Life Cycle Analysis Tool'!BV46 -> 106580.5927 | CN17: 1763504.817 | CO17: 1153703.637 | CP17: 576672.1683 | CQ17: 33129.01082 | CR17: 1506.54107 | CS17: 27694157.83 | CW17: ='Life Cycle Analysis Tool'!CA46 -> P2 | CX17: ='Life Cycle Analysis Tool'!CB46 -> 0 | CY17: ='Life Cycle Analysis Tool'!CC46 -> 43817.83359 | CZ17: ='Life Cycle Analysis Tool'!CD46 -> 99773 | DA17: ='Life Cycle Analysis Tool'!CE46 -> 0 | DB17: ='Life Cycle Analysis Tool'!CF46 -> 13.54326093 | DC17: ='Life Cycle Analysis Tool'!CG46 -> 0 | DD17: ='Life Cycle Analysis Tool'!CH46 -> 13.54326093 | DE17: ='Life Cycle Analysis Tool'!CI46 -> 340439.608 | DF17: ='Life Cycle Analysis Tool'!CJ46 -> 17340.12636 | DG17: ='Life Cycle Analysis Tool'!CK46 -> 0 | DH17: ='Life Cycle Analysis Tool'!CL46 -> 333.4495594 | DI17: ='Life Cycle Analysis Tool'!CM46 -> 17340.12636 | DJ17: ='Life Cycle Analysis Tool'!CN46 -> 17673.57592 | DK17: ='Life Cycle Analysis Tool'!CO46 -> 61491.40951 | DL17: 1414276.311 | DM17: 1254443.814 | DN17: 155555.9418 | DO17: 4276.555014 | DP17: 196.3772834 | DQ17: 3404396.08 | DV17: ='Life Cycle Analysis Tool'!CT46 -> P3 | DW17: ='Life Cycle Analysis Tool'!CU46 -> 0 | DX17: ='Life Cycle Analysis Tool'!CV46 -> 38949.18542 | DY17: ='Life Cycle Analysis Tool'!CW46 -> 393188 | DZ17: ='Life Cycle Analysis Tool'!CX46 -> 0 | EA17: ='Life Cycle Analysis Tool'!CY46 -> 53.37163037 | EB17: ='Life Cycle Analysis Tool'!CZ46 -> 0 | EC17: ='Life Cycle Analysis Tool'!DA46 -> 53.37163037 | ED17: ='Life Cycle Analysis Tool'!DB46 -> 1341613.148 | EE17: ='Life Cycle Analysis Tool'!DC46 -> 68334.41514 | EF17: ='Life Cycle Analysis Tool'!DD46 -> 0 | EG17: ='Life Cycle Analysis Tool'!DE46 -> 1314.066585 | EH17: ='Life Cycle Analysis Tool'!DF46 -> 68334.41514 | EI17: ='Life Cycle Analysis Tool'!DG46 -> 69648.48172 | EJ17: ='Life Cycle Analysis Tool'!DH46 -> 108597.6671 | EK17: 1261902.311 | EL17: 632030.304 | EM17: 613018.8492 | EN17: 16853.1578 | EO17: 773.8886404 | EP17: 13416131.48 | ET17: ='Life Cycle Analysis Tool'!DM46 -> P4 | EU17: ='Life Cycle Analysis Tool'!DN46 -> 0 | EV17: ='Life Cycle Analysis Tool'!DO46 -> 48686.48177 | EW17: ='Life Cycle Analysis Tool'!DP46 -> 266029 | EX17: ='Life Cycle Analysis Tool'!DQ46 -> 0 | EY17: ='Life Cycle Analysis Tool'!DR46 -> 36.11097352 | EZ17: ='Life Cycle Analysis Tool'!DS46 -> 0 | FA17: ='Life Cycle Analysis Tool'!DT46 -> 36.11097352 | FB17: ='Life Cycle Analysis Tool'!DU46 -> 907728.6288 | FC17: ='Life Cycle Analysis Tool'!DV46 -> 46234.71755 | FD17: ='Life Cycle Analysis Tool'!DW46 -> 0 | FE17: ='Life Cycle Analysis Tool'!DX46 -> 889.0907645 | FF17: ='Life Cycle Analysis Tool'!DY46 -> 46234.71755 | FG17: ='Life Cycle Analysis Tool'!DZ46 -> 47123.80832 | FH17: ='Life Cycle Analysis Tool'!EA46 -> 95810.29009 | FI17: 1433569.964 | FJ17: 1007401.769 | FK17: 414765.4339 | FL17: 11402.76081 | FM17: 523.609116 | FN17: 9077286.288 | FR17: ='Life Cycle Analysis Tool'!EF46 -> P5 | FS17: ='Life Cycle Analysis Tool'!EG46 -> 0 | FT17: ='Life Cycle Analysis Tool'!EH46 -> 43817.83359 | FU17: ='Life Cycle Analysis Tool'!EI46 -> 351142 | FV17: ='Life Cycle Analysis Tool'!EJ46 -> 0 | FW17: ='Life Cycle Analysis Tool'!EK46 -> 47.66427519 | FX17: ='Life Cycle Analysis Tool'!EL46 -> 0 | FY17: ='Life Cycle Analysis Tool'!EM46 -> 47.66427519 | FZ17: ='Life Cycle Analysis Tool'!EN46 -> 1198146.24 | GA17: ='Life Cycle Analysis Tool'!EO46 -> 61026.99777 | GB17: ='Life Cycle Analysis Tool'!EP46 -> 0 | GC17: ='Life Cycle Analysis Tool'!EQ46 -> 1173.5454 | GD17: ='Life Cycle Analysis Tool'!ER46 -> 61026.99777 | GE17: ='Life Cycle Analysis Tool'!ES46 -> 62200.54317 | GF17: ='Life Cycle Analysis Tool'!ET46 -> 106018.3768 | GG17: 1816959.752 | GH17: 1254443.814 | GI17: 547464.9907 | GJ17: 15050.94646 | GK17: 691.1319902 | GL17: 11981462.4 | GP17: ='Life Cycle Analysis Tool'!EY46 -> P6 | GQ17: ='Life Cycle Analysis Tool'!EZ46 -> 0 | GR17: ='Life Cycle Analysis Tool'!FA46 -> 43817.83359 | GS17: ='Life Cycle Analysis Tool'!FB46 -> 291618 | GT17: ='Life Cycle Analysis Tool'!FC46 -> 0 | GU17: ='Life Cycle Analysis Tool'!FD46 -> 39.58444333 | GV17: ='Life Cycle Analysis Tool'!FE46 -> 0 | GW17: ='Life Cycle Analysis Tool'!FF46 -> 39.58444333 | GX17: ='Life Cycle Analysis Tool'!FG46 -> 995041.9212 | GY17: ='Life Cycle Analysis Tool'!FH46 -> 50681.97777 | GZ17: ='Life Cycle Analysis Tool'!FI46 -> 0 | HA17: ='Life Cycle Analysis Tool'!FJ46 -> 974.6113039 | HB17: ='Life Cycle Analysis Tool'!FK46 -> 50681.97777 | HC17: ='Life Cycle Analysis Tool'!FL46 -> 51656.58907 | HD17: ='Life Cycle Analysis Tool'!FM46 -> 95474.42266 | HE17: 852149.0442 | HF17: 384988.2587 | HG17: 454661.2073 | HH17: 12499.57824 | HI17: 573.9744283 | HJ17: 9950419.212
B18: =IF($Y18="Yes",'Life Cycle Analysis Tool'!C134,"") -> Scenario 5 (VRF Water Cooled) | C18: =IF($Y18="Yes",'Life Cycle Analysis Tool'!D134,"") -> 5832360 | E18: =IF($Y18="Yes",'Life Cycle Analysis Tool'!F134,"") -> 752.1044233 | F18: =IF($Y18="Yes",'Life Cycle Analysis Tool'!G134,"") -> 0 | G18: =IF($Y18="Yes",'Life Cycle Analysis Tool'!H134,"") -> 902380.2853 | H18: =IF($Y18="Yes",'Life Cycle Analysis Tool'!I134,"") -> 1036665.992 | J18: =IF($Y18="Yes",'Life Cycle Analysis Tool'!K134,"") -> 17308.17909 | K18: =IF($Y18="Yes",'Life Cycle Analysis Tool'!L134,"") -> 1036665.992 | L18: =IF($Y18="Yes",'Life Cycle Analysis Tool'!M134,"") -> 1956354.456 | O18: A | X18: R6 | Y18: Yes | AC18: ='Life Cycle Analysis Tool'!AM47 -> 1 | AD18: ='Life Cycle Analysis Tool'!AW47 -> 1 | AE18: ='Life Cycle Analysis Tool'!AX47 -> 11 | AF18: ='Life Cycle Analysis Tool'!AJ47*AD18 -> 2036 | AG18: 1872862.525 | AH18: 1477489.917 | AI18: 1373274.974 | AJ18: 1531927.812 | AK18: 1925727.388 | AL18: 950129.5189 | AN18: 1193821.298 | AO18: 1299576.183 | AP18: 672147.965 | AQ18: 1057548.845 | AR18: 1299576.183 | AS18: 430120.6273 | AU18: 642562.017 | AV18: 173329.5713 | AW18: 683061.6247 | AX18: 462156.0194 | AY18: 610017.6634 | AZ18: 506610.2345 | BB18: 36479.20941 | BC18: 4584.162233 | BD18: 18065.38422 | BE18: 12222.94704 | BF18: 16133.54209 | BG18: 13398.65717 | BI18: 1639.292676 | BJ18: 208.5662183 | BK18: 821.9231077 | BL18: 556.1089922 | BM18: 734.0298379 | BN18: 609.6004273 | BP18: 30463573.62 | BQ18: 3744835.688 | BR18: 14757744.63 | BS18: 9985014.917 | BT18: 13179608.64 | BU18: 10945461.13 | BY18: ='Life Cycle Analysis Tool'!BH47 -> P1 | BZ18: ='Life Cycle Analysis Tool'!BI47 -> 0 | CA18: ='Life Cycle Analysis Tool'!BJ47 -> 40117.66098 | CB18: ='Life Cycle Analysis Tool'!BK47 -> 239795.3746 | CC18: ='Life Cycle Analysis Tool'!BL47 -> 19512 | CD18: ='Life Cycle Analysis Tool'!BM47 -> 29.2950016 | CE18: ='Life Cycle Analysis Tool'!BN47 -> 103.4566044 | CF18: ='Life Cycle Analysis Tool'!BO47 -> 132.751606 | CG18: ='Life Cycle Analysis Tool'!BP47 -> 2769415.783 | CH18: ='Life Cycle Analysis Tool'!BQ47 -> 42717.30977 | CI18: ='Life Cycle Analysis Tool'!BR47 -> 23172.53894 | CJ18: ='Life Cycle Analysis Tool'!BS47 -> 3350.198591 | CK18: ='Life Cycle Analysis Tool'!BT47 -> 65889.84871 | CL18: ='Life Cycle Analysis Tool'!BU47 -> 69240.0473 | CM18: ='Life Cycle Analysis Tool'!BV47 -> 109357.7083 | CN18: 1872862.525 | CO18: 1193821.298 | CP18: 642562.017 | CQ18: 36479.20941 | CR18: 1639.292676 | CS18: 30463573.62 | CW18: ='Life Cycle Analysis Tool'!CA47 -> P2 | CX18: ='Life Cycle Analysis Tool'!CB47 -> 0 | CY18: ='Life Cycle Analysis Tool'!CC47 -> 45132.3686 | CZ18: ='Life Cycle Analysis Tool'!CD47 -> 99773 | DA18: ='Life Cycle Analysis Tool'!CE47 -> 0 | DB18: ='Life Cycle Analysis Tool'!CF47 -> 12.18893483 | DC18: ='Life Cycle Analysis Tool'!CG47 -> 0 | DD18: ='Life Cycle Analysis Tool'!CH47 -> 12.18893483 | DE18: ='Life Cycle Analysis Tool'!CI47 -> 340439.608 | DF18: ='Life Cycle Analysis Tool'!CJ47 -> 17773.62951 | DG18: ='Life Cycle Analysis Tool'!CK47 -> 0 | DH18: ='Life Cycle Analysis Tool'!CL47 -> 307.6072186 | DI18: ='Life Cycle Analysis Tool'!CM47 -> 17773.62951 | DJ18: ='Life Cycle Analysis Tool'!CN47 -> 18081.23673 | DK18: ='Life Cycle Analysis Tool'!CO47 -> 63213.60533 | DL18: 1477489.917 | DM18: 1299576.183 | DN18: 173329.5713 | DO18: 4584.162233 | DP18: 208.5662183 | DQ18: 3744835.688 | DV18: ='Life Cycle Analysis Tool'!CT47 -> P3 | DW18: ='Life Cycle Analysis Tool'!CU47 -> 0 | DX18: ='Life Cycle Analysis Tool'!CV47 -> 40117.66098 | DY18: ='Life Cycle Analysis Tool'!CW47 -> 393188 | DZ18: ='Life Cycle Analysis Tool'!CX47 -> 0 | EA18: ='Life Cycle Analysis Tool'!CY47 -> 48.03446733 | EB18: ='Life Cycle Analysis Tool'!CZ47 -> 0 | EC18: ='Life Cycle Analysis Tool'!DA47 -> 48.03446733 | ED18: ='Life Cycle Analysis Tool'!DB47 -> 1341613.148 | EE18: ='Life Cycle Analysis Tool'!DC47 -> 70042.77552 | EF18: ='Life Cycle Analysis Tool'!DD47 -> 0 | EG18: ='Life Cycle Analysis Tool'!DE47 -> 1212.226425 | EH18: ='Life Cycle Analysis Tool'!DF47 -> 70042.77552 | EI18: ='Life Cycle Analysis Tool'!DG47 -> 71255.00194 | EJ18: ='Life Cycle Analysis Tool'!DH47 -> 111372.6629 | EK18: 1373274.974 | EL18: 672147.965 | EM18: 683061.6247 | EN18: 18065.38422 | EO18: 821.9231077 | EP18: 14757744.63 | ET18: ='Life Cycle Analysis Tool'!DM47 -> P4 | EU18: ='Life Cycle Analysis Tool'!DN47 -> 0 | EV18: ='Life Cycle Analysis Tool'!DO47 -> 50147.07622 | EW18: ='Life Cycle Analysis Tool'!DP47 -> 266029 | EX18: ='Life Cycle Analysis Tool'!DQ47 -> 0 | EY18: ='Life Cycle Analysis Tool'!DR47 -> 32.49987617 | EZ18: ='Life Cycle Analysis Tool'!DS47 -> 0 | FA18: ='Life Cycle Analysis Tool'!DT47 -> 32.49987617 | FB18: ='Life Cycle Analysis Tool'!DU47 -> 907728.6288 | FC18: ='Life Cycle Analysis Tool'!DV47 -> 47390.58549 | FD18: ='Life Cycle Analysis Tool'!DW47 -> 0 | FE18: ='Life Cycle Analysis Tool'!DX47 -> 820.1862303 | FF18: ='Life Cycle Analysis Tool'!DY47 -> 47390.58549 | FG18: ='Life Cycle Analysis Tool'!DZ47 -> 48210.77172 | FH18: ='Life Cycle Analysis Tool'!EA47 -> 98357.84794 | FI18: 1531927.812 | FJ18: 1057548.845 | FK18: 462156.0194 | FL18: 12222.94704 | FM18: 556.1089922 | FN18: 9985014.917 | FR18: ='Life Cycle Analysis Tool'!EF47 -> P5 | FS18: ='Life Cycle Analysis Tool'!EG47 -> 0 | FT18: ='Life Cycle Analysis Tool'!EH47 -> 45132.3686 | FU18: ='Life Cycle Analysis Tool'!EI47 -> 351142 | FV18: ='Life Cycle Analysis Tool'!EJ47 -> 0 | FW18: ='Life Cycle Analysis Tool'!EK47 -> 42.89784767 | FX18: ='Life Cycle Analysis Tool'!EL47 -> 0 | FY18: ='Life Cycle Analysis Tool'!EM47 -> 42.89784767 | FZ18: ='Life Cycle Analysis Tool'!EN47 -> 1198146.24 | GA18: ='Life Cycle Analysis Tool'!EO47 -> 62552.67272 | GB18: ='Life Cycle Analysis Tool'!EP47 -> 0 | GC18: ='Life Cycle Analysis Tool'!EQ47 -> 1082.595632 | GD18: ='Life Cycle Analysis Tool'!ER47 -> 62552.67272 | GE18: ='Life Cycle Analysis Tool'!ES47 -> 63635.26835 | GF18: ='Life Cycle Analysis Tool'!ET47 -> 108767.6369 | GG18: 1925727.388 | GH18: 1299576.183 | GI18: 610017.6634 | GJ18: 16133.54209 | GK18: 734.0298379 | GL18: 13179608.64 | GP18: ='Life Cycle Analysis Tool'!EY47 -> P6 | GQ18: ='Life Cycle Analysis Tool'!EZ47 -> 0 | GR18: ='Life Cycle Analysis Tool'!FA47 -> 45132.3686 | GS18: ='Life Cycle Analysis Tool'!FB47 -> 291618 | GT18: ='Life Cycle Analysis Tool'!FC47 -> 0 | GU18: ='Life Cycle Analysis Tool'!FD47 -> 35.625999 | GV18: ='Life Cycle Analysis Tool'!FE47 -> 0 | GW18: ='Life Cycle Analysis Tool'!FF47 -> 35.625999 | GX18: ='Life Cycle Analysis Tool'!FG47 -> 995041.9212 | GY18: ='Life Cycle Analysis Tool'!FH47 -> 51949.02721 | GZ18: ='Life Cycle Analysis Tool'!FI47 -> 0 | HA18: ='Life Cycle Analysis Tool'!FJ47 -> 899.0789279 | HB18: ='Life Cycle Analysis Tool'!FK47 -> 51949.02721 | HC18: ='Life Cycle Analysis Tool'!FL47 -> 52848.10614 | HD18: ='Life Cycle Analysis Tool'!FM47 -> 97980.47474 | HE18: 950129.5189 | HF18: 430120.6273 | HG18: 506610.2345 | HH18: 13398.65717 | HI18: 609.6004273 | HJ18: 10945461.13
O19: A | AC19: ='Life Cycle Analysis Tool'!AM48 -> 1 | AD19: ='Life Cycle Analysis Tool'!AW48 -> 1 | AE19: ='Life Cycle Analysis Tool'!AX48 -> 12 | AF19: ='Life Cycle Analysis Tool'!AJ48*AD19 -> 2037 | AG19: 1985070.565 | AH19: 1542474.491 | AI19: 1487494.483 | AJ19: 1632901.931 | AK19: 2037316.583 | AL19: 1050682.772 | AN19: 1235142.489 | AO19: 1346062.523 | AP19: 713469.1558 | AQ19: 1109200.334 | AR19: 1346062.523 | AS19: 476606.9669 | AU19: 710099.1119 | AV19: 191547.5416 | AW19: 754855.4697 | AX19: 510731.3696 | AY19: 674134.1529 | AZ19: 559857.9874 | BB19: 39828.96421 | BC19: 4864.426587 | BD19: 19169.85719 | BE19: 12970.22782 | BF19: 17119.907 | BG19: 14217.81797 | BI19: 1768.789282 | BJ19: 219.400827 | BK19: 864.620412 | BL19: 584.997771 | BM19: 772.161258 | BN19: 641.267982 | BP19: 33232989.4 | BQ19: 4085275.296 | BR19: 16099357.77 | BS19: 10892743.55 | BT19: 14377754.88 | BU19: 11940503.05 | BY19: ='Life Cycle Analysis Tool'!BH48 -> P1 | BZ19: ='Life Cycle Analysis Tool'!BI48 -> 0 | CA19: ='Life Cycle Analysis Tool'!BJ48 -> 41321.19081 | CB19: ='Life Cycle Analysis Tool'!BK48 -> 239795.3746 | CC19: ='Life Cycle Analysis Tool'!BL48 -> 19512 | CD19: ='Life Cycle Analysis Tool'!BM48 -> 26.04000142 | CE19: ='Life Cycle Analysis Tool'!BN48 -> 103.4566044 | CF19: ='Life Cycle Analysis Tool'!BO48 -> 129.4966059 | CG19: ='Life Cycle Analysis Tool'!BP48 -> 2769415.783 | CH19: ='Life Cycle Analysis Tool'!BQ48 -> 43785.24251 | CI19: ='Life Cycle Analysis Tool'!BR48 -> 23751.85241 | CJ19: ='Life Cycle Analysis Tool'!BS48 -> 3349.754804 | CK19: ='Life Cycle Analysis Tool'!BT48 -> 67537.09492 | CL19: ='Life Cycle Analysis Tool'!BU48 -> 70886.84973 | CM19: ='Life Cycle Analysis Tool'!BV48 -> 112208.0405 | CN19: 1985070.565 | CO19: 1235142.489 | CP19: 710099.1119 | CQ19: 39828.96421 | CR19: 1768.789282 | CS19: 33232989.4 | CW19: ='Life Cycle Analysis Tool'!CA48 -> P2 | CX19: ='Life Cycle Analysis Tool'!CB48 -> 0 | CY19: ='Life Cycle Analysis Tool'!CC48 -> 46486.33966 | CZ19: ='Life Cycle Analysis Tool'!CD48 -> 99773 | DA19: ='Life Cycle Analysis Tool'!CE48 -> 0 | DB19: ='Life Cycle Analysis Tool'!CF48 -> 10.83460874 | DC19: ='Life Cycle Analysis Tool'!CG48 -> 0 | DD19: ='Life Cycle Analysis Tool'!CH48 -> 10.83460874 | DE19: ='Life Cycle Analysis Tool'!CI48 -> 340439.608 | DF19: ='Life Cycle Analysis Tool'!CJ48 -> 18217.97025 | DG19: ='Life Cycle Analysis Tool'!CK48 -> 0 | DH19: ='Life Cycle Analysis Tool'!CL48 -> 280.2643547 | DI19: ='Life Cycle Analysis Tool'!CM48 -> 18217.97025 | DJ19: ='Life Cycle Analysis Tool'!CN48 -> 18498.23461 | DK19: ='Life Cycle Analysis Tool'!CO48 -> 64984.57427 | DL19: 1542474.491 | DM19: 1346062.523 | DN19: 191547.5416 | DO19: 4864.426587 | DP19: 219.400827 | DQ19: 4085275.296 | DV19: ='Life Cycle Analysis Tool'!CT48 -> P3 | DW19: ='Life Cycle Analysis Tool'!CU48 -> 0 | DX19: ='Life Cycle Analysis Tool'!CV48 -> 41321.19081 | DY19: ='Life Cycle Analysis Tool'!CW48 -> 393188 | DZ19: ='Life Cycle Analysis Tool'!CX48 -> 0 | EA19: ='Life Cycle Analysis Tool'!CY48 -> 42.6973043 | EB19: ='Life Cycle Analysis Tool'!CZ48 -> 0 | EC19: ='Life Cycle Analysis Tool'!DA48 -> 42.6973043 | ED19: ='Life Cycle Analysis Tool'!DB48 -> 1341613.148 | EE19: ='Life Cycle Analysis Tool'!DC48 -> 71793.84491 | EF19: ='Life Cycle Analysis Tool'!DD48 -> 0 | EG19: ='Life Cycle Analysis Tool'!DE48 -> 1104.472965 | EH19: ='Life Cycle Analysis Tool'!DF48 -> 71793.84491 | EI19: ='Life Cycle Analysis Tool'!DG48 -> 72898.31787 | EJ19: ='Life Cycle Analysis Tool'!DH48 -> 114219.5087 | EK19: 1487494.483 | EL19: 713469.1558 | EM19: 754855.4697 | EN19: 19169.85719 | EO19: 864.620412 | EP19: 16099357.77 | ET19: ='Life Cycle Analysis Tool'!DM48 -> P4 | EU19: ='Life Cycle Analysis Tool'!DN48 -> 0 | EV19: ='Life Cycle Analysis Tool'!DO48 -> 51651.48851 | EW19: ='Life Cycle Analysis Tool'!DP48 -> 266029 | EX19: ='Life Cycle Analysis Tool'!DQ48 -> 0 | EY19: ='Life Cycle Analysis Tool'!DR48 -> 28.88877881 | EZ19: ='Life Cycle Analysis Tool'!DS48 -> 0 | FA19: ='Life Cycle Analysis Tool'!DT48 -> 28.88877881 | FB19: ='Life Cycle Analysis Tool'!DU48 -> 907728.6288 | FC19: ='Life Cycle Analysis Tool'!DV48 -> 48575.35013 | FD19: ='Life Cycle Analysis Tool'!DW48 -> 0 | FE19: ='Life Cycle Analysis Tool'!DX48 -> 747.2807876 | FF19: ='Life Cycle Analysis Tool'!DY48 -> 48575.35013 | FG19: ='Life Cycle Analysis Tool'!DZ48 -> 49322.63092 | FH19: ='Life Cycle Analysis Tool'!EA48 -> 100974.1194 | FI19: 1632901.931 | FJ19: 1109200.334 | FK19: 510731.3696 | FL19: 12970.22782 | FM19: 584.997771 | FN19: 10892743.55 | FR19: ='Life Cycle Analysis Tool'!EF48 -> P5 | FS19: ='Life Cycle Analysis Tool'!EG48 -> 0 | FT19: ='Life Cycle Analysis Tool'!EH48 -> 46486.33966 | FU19: ='Life Cycle Analysis Tool'!EI48 -> 351142 | FV19: ='Life Cycle Analysis Tool'!EJ48 -> 0 | FW19: ='Life Cycle Analysis Tool'!EK48 -> 38.13142015 | FX19: ='Life Cycle Analysis Tool'!EL48 -> 0 | FY19: ='Life Cycle Analysis Tool'!EM48 -> 38.13142015 | FZ19: ='Life Cycle Analysis Tool'!EN48 -> 1198146.24 | GA19: ='Life Cycle Analysis Tool'!EO48 -> 64116.48954 | GB19: ='Life Cycle Analysis Tool'!EP48 -> 0 | GC19: ='Life Cycle Analysis Tool'!EQ48 -> 986.3649088 | GD19: ='Life Cycle Analysis Tool'!ER48 -> 64116.48954 | GE19: ='Life Cycle Analysis Tool'!ES48 -> 65102.85444 | GF19: ='Life Cycle Analysis Tool'!ET48 -> 111589.1941 | GG19: 2037316.583 | GH19: 1346062.523 | GI19: 674134.1529 | GJ19: 17119.907 | GK19: 772.161258 | GL19: 14377754.88 | GP19: ='Life Cycle Analysis Tool'!EY48 -> P6 | GQ19: ='Life Cycle Analysis Tool'!EZ48 -> 0 | GR19: ='Life Cycle Analysis Tool'!FA48 -> 46486.33966 | GS19: ='Life Cycle Analysis Tool'!FB48 -> 291618 | GT19: ='Life Cycle Analysis Tool'!FC48 -> 0 | GU19: ='Life Cycle Analysis Tool'!FD48 -> 31.66755467 | GV19: ='Life Cycle Analysis Tool'!FE48 -> 0 | GW19: ='Life Cycle Analysis Tool'!FF48 -> 31.66755467 | GX19: ='Life Cycle Analysis Tool'!FG48 -> 995041.9212 | GY19: ='Life Cycle Analysis Tool'!FH48 -> 53247.75289 | GZ19: ='Life Cycle Analysis Tool'!FI48 -> 0 | HA19: ='Life Cycle Analysis Tool'!FJ48 -> 819.1608009 | HB19: ='Life Cycle Analysis Tool'!FK48 -> 53247.75289 | HC19: ='Life Cycle Analysis Tool'!FL48 -> 54066.91369 | HD19: ='Life Cycle Analysis Tool'!FM48 -> 100553.2533 | HE19: 1050682.772 | HF19: 476606.9669 | HG19: 559857.9874 | HH19: 14217.81797 | HI19: 641.267982 | HJ19: 11940503.05
O20: A | AC20: ='Life Cycle Analysis Tool'!AM49 -> 1 | AD20: ='Life Cycle Analysis Tool'!AW49 -> 1 | AE20: ='Life Cycle Analysis Tool'!AX49 -> 13 | AF20: ='Life Cycle Analysis Tool'!AJ49*AD20 -> 2038 | AG20: 2100204.109 | AH20: 1609280.202 | AI20: 1604634.574 | AJ20: 1736562.916 | AK20: 2151801.56 | AL20: 1153877.334 | AN20: 1277703.316 | AO20: 1393943.452 | AP20: 756029.9824 | AQ20: 1162401.367 | AR20: 1393943.452 | AS20: 524487.8968 | AU20: 779324.6342 | AV20: 210220.9611 | AW20: 828444.1607 | AX20: 560521.1034 | AY20: 739853.5547 | AZ20: 614436.9341 | BB20: 43176.15917 | BC20: 5115.788681 | BD20: 20160.43138 | BE20: 13640.44528 | BF20: 18004.55302 | BG20: 14952.50282 | BI20: 1895.030888 | BJ20: 228.8811096 | BK20: 901.9805533 | BL20: 610.2754525 | BM20: 805.5262506 | BN20: 668.9770923 | BP20: 36002405.18 | BQ20: 4425714.904 | BR20: 17440970.92 | BS20: 11800472.17 | BT20: 15575901.12 | BU20: 12935544.98 | BY20: ='Life Cycle Analysis Tool'!BH49 -> P1 | BZ20: ='Life Cycle Analysis Tool'!BI49 -> 0 | CA20: ='Life Cycle Analysis Tool'!BJ49 -> 42560.82653 | CB20: ='Life Cycle Analysis Tool'!BK49 -> 239795.3746 | CC20: ='Life Cycle Analysis Tool'!BL49 -> 19512 | CD20: ='Life Cycle Analysis Tool'!BM49 -> 22.78500124 | CE20: ='Life Cycle Analysis Tool'!BN49 -> 103.4566044 | CF20: ='Life Cycle Analysis Tool'!BO49 -> 126.2416057 | CG20: ='Life Cycle Analysis Tool'!BP49 -> 2769415.783 | CH20: ='Life Cycle Analysis Tool'!BQ49 -> 44879.87358 | CI20: ='Life Cycle Analysis Tool'!BR49 -> 24345.64872 | CJ20: ='Life Cycle Analysis Tool'!BS49 -> 3347.194955 | CK20: ='Life Cycle Analysis Tool'!BT49 -> 69225.5223 | CL20: ='Life Cycle Analysis Tool'!BU49 -> 72572.71725 | CM20: ='Life Cycle Analysis Tool'!BV49 -> 115133.5438 | CN20: 2100204.109 | CO20: 1277703.316 | CP20: 779324.6342 | CQ20: 43176.15917 | CR20: 1895.030888 | CS20: 36002405.18 | CW20: ='Life Cycle Analysis Tool'!CA49 -> P2 | CX20: ='Life Cycle Analysis Tool'!CB49 -> 0 | CY20: ='Life Cycle Analysis Tool'!CC49 -> 47880.92985 | CZ20: ='Life Cycle Analysis Tool'!CD49 -> 99773 | DA20: ='Life Cycle Analysis Tool'!CE49 -> 0 | DB20: ='Life Cycle Analysis Tool'!CF49 -> 9.480282648 | DC20: ='Life Cycle Analysis Tool'!CG49 -> 0 | DD20: ='Life Cycle Analysis Tool'!CH49 -> 9.480282648 | DE20: ='Life Cycle Analysis Tool'!CI49 -> 340439.608 | DF20: ='Life Cycle Analysis Tool'!CJ49 -> 18673.41951 | DG20: ='Life Cycle Analysis Tool'!CK49 -> 0 | DH20: ='Life Cycle Analysis Tool'!CL49 -> 251.3620931 | DI20: ='Life Cycle Analysis Tool'!CM49 -> 18673.41951 | DJ20: ='Life Cycle Analysis Tool'!CN49 -> 18924.7816 | DK20: ='Life Cycle Analysis Tool'!CO49 -> 66805.71145 | DL20: 1609280.202 | DM20: 1393943.452 | DN20: 210220.9611 | DO20: 5115.788681 | DP20: 228.8811096 | DQ20: 4425714.904 | DV20: ='Life Cycle Analysis Tool'!CT49 -> P3 | DW20: ='Life Cycle Analysis Tool'!CU49 -> 0 | DX20: ='Life Cycle Analysis Tool'!CV49 -> 42560.82653 | DY20: ='Life Cycle Analysis Tool'!CW49 -> 393188 | DZ20: ='Life Cycle Analysis Tool'!CX49 -> 0 | EA20: ='Life Cycle Analysis Tool'!CY49 -> 37.36014126 | EB20: ='Life Cycle Analysis Tool'!CZ49 -> 0 | EC20: ='Life Cycle Analysis Tool'!DA49 -> 37.36014126 | ED20: ='Life Cycle Analysis Tool'!DB49 -> 1341613.148 | EE20: ='Life Cycle Analysis Tool'!DC49 -> 73588.69103 | EF20: ='Life Cycle Analysis Tool'!DD49 -> 0 | EG20: ='Life Cycle Analysis Tool'!DE49 -> 990.5741902 | EH20: ='Life Cycle Analysis Tool'!DF49 -> 73588.69103 | EI20: ='Life Cycle Analysis Tool'!DG49 -> 74579.26522 | EJ20: ='Life Cycle Analysis Tool'!DH49 -> 117140.0917 | EK20: 1604634.574 | EL20: 756029.9824 | EM20: 828444.1607 | EN20: 20160.43138 | EO20: 901.9805533 | EP20: 17440970.92 | ET20: ='Life Cycle Analysis Tool'!DM49 -> P4 | EU20: ='Life Cycle Analysis Tool'!DN49 -> 0 | EV20: ='Life Cycle Analysis Tool'!DO49 -> 53201.03316 | EW20: ='Life Cycle Analysis Tool'!DP49 -> 266029 | EX20: ='Life Cycle Analysis Tool'!DQ49 -> 0 | EY20: ='Life Cycle Analysis Tool'!DR49 -> 25.27768146 | EZ20: ='Life Cycle Analysis Tool'!DS49 -> 0 | FA20: ='Life Cycle Analysis Tool'!DT49 -> 25.27768146 | FB20: ='Life Cycle Analysis Tool'!DU49 -> 907728.6288 | FC20: ='Life Cycle Analysis Tool'!DV49 -> 49789.73388 | FD20: ='Life Cycle Analysis Tool'!DW49 -> 0 | FE20: ='Life Cycle Analysis Tool'!DX49 -> 670.2174564 | FF20: ='Life Cycle Analysis Tool'!DY49 -> 49789.73388 | FG20: ='Life Cycle Analysis Tool'!DZ49 -> 50459.95134 | FH20: ='Life Cycle Analysis Tool'!EA49 -> 103660.9845 | FI20: 1736562.916 | FJ20: 1162401.367 | FK20: 560521.1034 | FL20: 13640.44528 | FM20: 610.2754525 | FN20: 11800472.17 | FR20: ='Life Cycle Analysis Tool'!EF49 -> P5 | FS20: ='Life Cycle Analysis Tool'!EG49 -> 0 | FT20: ='Life Cycle Analysis Tool'!EH49 -> 47880.92985 | FU20: ='Life Cycle Analysis Tool'!EI49 -> 351142 | FV20: ='Life Cycle Analysis Tool'!EJ49 -> 0 | FW20: ='Life Cycle Analysis Tool'!EK49 -> 33.36499263 | FX20: ='Life Cycle Analysis Tool'!EL49 -> 0 | FY20: ='Life Cycle Analysis Tool'!EM49 -> 33.36499263 | FZ20: ='Life Cycle Analysis Tool'!EN49 -> 1198146.24 | GA20: ='Life Cycle Analysis Tool'!EO49 -> 65719.40177 | GB20: ='Life Cycle Analysis Tool'!EP49 -> 0 | GC20: ='Life Cycle Analysis Tool'!EQ49 -> 884.6460276 | GD20: ='Life Cycle Analysis Tool'!ER49 -> 65719.40177 | GE20: ='Life Cycle Analysis Tool'!ES49 -> 66604.0478 | GF20: ='Life Cycle Analysis Tool'!ET49 -> 114484.9776 | GG20: 2151801.56 | GH20: 1393943.452 | GI20: 739853.5547 | GJ20: 18004.55302 | GK20: 805.5262506 | GL20: 15575901.12 | GP20: ='Life Cycle Analysis Tool'!EY49 -> P6 | GQ20: ='Life Cycle Analysis Tool'!EZ49 -> 0 | GR20: ='Life Cycle Analysis Tool'!FA49 -> 47880.92985 | GS20: ='Life Cycle Analysis Tool'!FB49 -> 291618 | GT20: ='Life Cycle Analysis Tool'!FC49 -> 0 | GU20: ='Life Cycle Analysis Tool'!FD49 -> 27.70911033 | GV20: ='Life Cycle Analysis Tool'!FE49 -> 0 | GW20: ='Life Cycle Analysis Tool'!FF49 -> 27.70911033 | GX20: ='Life Cycle Analysis Tool'!FG49 -> 995041.9212 | GY20: ='Life Cycle Analysis Tool'!FH49 -> 54578.94671 | GZ20: ='Life Cycle Analysis Tool'!FI49 -> 0 | HA20: ='Life Cycle Analysis Tool'!FJ49 -> 734.6848434 | HB20: ='Life Cycle Analysis Tool'!FK49 -> 54578.94671 | HC20: ='Life Cycle Analysis Tool'!FL49 -> 55313.63156 | HD20: ='Life Cycle Analysis Tool'!FM49 -> 103194.5614 | HE20: 1153877.334 | HF20: 524487.8968 | HG20: 614436.9341 | HH20: 14952.50282 | HI20: 668.9770923 | HJ20: 12935544.98
O21: A | AC21: ='Life Cycle Analysis Tool'!AM50 -> 1 | AD21: ='Life Cycle Analysis Tool'!AW50 -> 1 | AE21: ='Life Cycle Analysis Tool'!AX50 -> 14 | AF21: ='Life Cycle Analysis Tool'!AJ50*AD21 -> 2039 | AG21: 2218340.334 | AH21: 1677958.655 | AI21: 1724770.924 | AJ21: 1842983.291 | AK21: 2269258.53 | AL21: 1259783.585 | AN21: 1321540.967 | AO21: 1443260.81 | AP21: 799867.6337 | AQ21: 1217198.431 | AR21: 1443260.81 | AS21: 573805.2545 | AU21: 850280.7946 | AV21: 229361.2161 | AW21: 903872.569 | AX21: 611555.5807 | AY21: 807215.9415 | AZ21: 670380.3545 | BB21: 46518.57268 | BC21: 5336.628234 | BD21: 21030.72156 | BE21: 14229.27919 | BF21: 18781.77775 | BG21: 15597.97593 | BI21: 2018.017493 | BJ21: 237.0070662 | BK21: 934.0035315 | BL21: 631.9420366 | BM21: 834.1248157 | BN21: 692.7277583 | BP21: 38771820.96 | BQ21: 4766154.512 | BR21: 18782584.07 | BS21: 12708200.8 | BT21: 16774047.36 | BU21: 13930586.9 | BY21: ='Life Cycle Analysis Tool'!BH50 -> P1 | BZ21: ='Life Cycle Analysis Tool'!BI50 -> 0 | CA21: ='Life Cycle Analysis Tool'!BJ50 -> 43837.65133 | CB21: ='Life Cycle Analysis Tool'!BK50 -> 239795.3746 | CC21: ='Life Cycle Analysis Tool'!BL50 -> 19512 | CD21: ='Life Cycle Analysis Tool'!BM50 -> 19.53000107 | CE21: ='Life Cycle Analysis Tool'!BN50 -> 103.4566044 | CF21: ='Life Cycle Analysis Tool'!BO50 -> 122.9866055 | CG21: ='Life Cycle Analysis Tool'!BP50 -> 2769415.783 | CH21: ='Life Cycle Analysis Tool'!BQ50 -> 46001.87042 | CI21: ='Life Cycle Analysis Tool'!BR50 -> 24954.28994 | CJ21: ='Life Cycle Analysis Tool'!BS50 -> 3342.413516 | CK21: ='Life Cycle Analysis Tool'!BT50 -> 70956.16036 | CL21: ='Life Cycle Analysis Tool'!BU50 -> 74298.57387 | CM21: ='Life Cycle Analysis Tool'!BV50 -> 118136.2252 | CN21: 2218340.334 | CO21: 1321540.967 | CP21: 850280.7946 | CQ21: 46518.57268 | CR21: 2018.017493 | CS21: 38771820.96 | CW21: ='Life Cycle Analysis Tool'!CA50 -> P2 | CX21: ='Life Cycle Analysis Tool'!CB50 -> 0 | CY21: ='Life Cycle Analysis Tool'!CC50 -> 49317.35774 | CZ21: ='Life Cycle Analysis Tool'!CD50 -> 99773 | DA21: ='Life Cycle Analysis Tool'!CE50 -> 0 | DB21: ='Life Cycle Analysis Tool'!CF50 -> 8.125956556 | DC21: ='Life Cycle Analysis Tool'!CG50 -> 0 | DD21: ='Life Cycle Analysis Tool'!CH50 -> 8.125956556 | DE21: ='Life Cycle Analysis Tool'!CI50 -> 340439.608 | DF21: ='Life Cycle Analysis Tool'!CJ50 -> 19140.255 | DG21: ='Life Cycle Analysis Tool'!CK50 -> 0 | DH21: ='Life Cycle Analysis Tool'!CL50 -> 220.8395533 | DI21: ='Life Cycle Analysis Tool'!CM50 -> 19140.255 | DJ21: ='Life Cycle Analysis Tool'!CN50 -> 19361.09455 | DK21: ='Life Cycle Analysis Tool'!CO50 -> 68678.45229 | DL21: 1677958.655 | DM21: 1443260.81 | DN21: 229361.2161 | DO21: 5336.628234 | DP21: 237.0070662 | DQ21: 4766154.512 | DV21: ='Life Cycle Analysis Tool'!CT50 -> P3 | DW21: ='Life Cycle Analysis Tool'!CU50 -> 0 | DX21: ='Life Cycle Analysis Tool'!CV50 -> 43837.65133 | DY21: ='Life Cycle Analysis Tool'!CW50 -> 393188 | DZ21: ='Life Cycle Analysis Tool'!CX50 -> 0 | EA21: ='Life Cycle Analysis Tool'!CY50 -> 32.02297822 | EB21: ='Life Cycle Analysis Tool'!CZ50 -> 0 | EC21: ='Life Cycle Analysis Tool'!DA50 -> 32.02297822 | ED21: ='Life Cycle Analysis Tool'!DB50 -> 1341613.148 | EE21: ='Life Cycle Analysis Tool'!DC50 -> 75428.4083 | EF21: ='Life Cycle Analysis Tool'!DD50 -> 0 | EG21: ='Life Cycle Analysis Tool'!DE50 -> 870.2901814 | EH21: ='Life Cycle Analysis Tool'!DF50 -> 75428.4083 | EI21: ='Life Cycle Analysis Tool'!DG50 -> 76298.69848 | EJ21: ='Life Cycle Analysis Tool'!DH50 -> 120136.3498 | EK21: 1724770.924 | EL21: 799867.6337 | EM21: 903872.569 | EN21: 21030.72156 | EO21: 934.0035315 | EP21: 18782584.07 | ET21: ='Life Cycle Analysis Tool'!DM50 -> P4 | EU21: ='Life Cycle Analysis Tool'!DN50 -> 0 | EV21: ='Life Cycle Analysis Tool'!DO50 -> 54797.06416 | EW21: ='Life Cycle Analysis Tool'!DP50 -> 266029 | EX21: ='Life Cycle Analysis Tool'!DQ50 -> 0 | EY21: ='Life Cycle Analysis Tool'!DR50 -> 21.66658411 | EZ21: ='Life Cycle Analysis Tool'!DS50 -> 0 | FA21: ='Life Cycle Analysis Tool'!DT50 -> 21.66658411 | FB21: ='Life Cycle Analysis Tool'!DU50 -> 907728.6288 | FC21: ='Life Cycle Analysis Tool'!DV50 -> 51034.47723 | FD21: ='Life Cycle Analysis Tool'!DW50 -> 0 | FE21: ='Life Cycle Analysis Tool'!DX50 -> 588.8339081 | FF21: ='Life Cycle Analysis Tool'!DY50 -> 51034.47723 | FG21: ='Life Cycle Analysis Tool'!DZ50 -> 51623.31114 | FH21: ='Life Cycle Analysis Tool'!EA50 -> 106420.3753 | FI21: 1842983.291 | FJ21: 1217198.431 | FK21: 611555.5807 | FL21: 14229.27919 | FM21: 631.9420366 | FN21: 12708200.8 | FR21: ='Life Cycle Analysis Tool'!EF50 -> P5 | FS21: ='Life Cycle Analysis Tool'!EG50 -> 0 | FT21: ='Life Cycle Analysis Tool'!EH50 -> 49317.35774 | FU21: ='Life Cycle Analysis Tool'!EI50 -> 351142 | FV21: ='Life Cycle Analysis Tool'!EJ50 -> 0 | FW21: ='Life Cycle Analysis Tool'!EK50 -> 28.59856511 | FX21: ='Life Cycle Analysis Tool'!EL50 -> 0 | FY21: ='Life Cycle Analysis Tool'!EM50 -> 28.59856511 | FZ21: ='Life Cycle Analysis Tool'!EN50 -> 1198146.24 | GA21: ='Life Cycle Analysis Tool'!EO50 -> 67362.38682 | GB21: ='Life Cycle Analysis Tool'!EP50 -> 0 | GC21: ='Life Cycle Analysis Tool'!EQ50 -> 777.2247242 | GD21: ='Life Cycle Analysis Tool'!ER50 -> 67362.38682 | GE21: ='Life Cycle Analysis Tool'!ES50 -> 68139.61154 | GF21: ='Life Cycle Analysis Tool'!ET50 -> 117456.9693 | GG21: 2269258.53 | GH21: 1443260.81 | GI21: 807215.9415 | GJ21: 18781.77775 | GK21: 834.1248157 | GL21: 16774047.36 | GP21: ='Life Cycle Analysis Tool'!EY50 -> P6 | GQ21: ='Life Cycle Analysis Tool'!EZ50 -> 0 | GR21: ='Life Cycle Analysis Tool'!FA50 -> 49317.35774 | GS21: ='Life Cycle Analysis Tool'!FB50 -> 291618 | GT21: ='Life Cycle Analysis Tool'!FC50 -> 0 | GU21: ='Life Cycle Analysis Tool'!FD50 -> 23.750666 | GV21: ='Life Cycle Analysis Tool'!FE50 -> 0 | GW21: ='Life Cycle Analysis Tool'!FF50 -> 23.750666 | GX21: ='Life Cycle Analysis Tool'!FG50 -> 995041.9212 | GY21: ='Life Cycle Analysis Tool'!FH50 -> 55943.42038 | GZ21: ='Life Cycle Analysis Tool'!FI50 -> 0 | HA21: ='Life Cycle Analysis Tool'!FJ50 -> 645.4731124 | HB21: ='Life Cycle Analysis Tool'!FK50 -> 55943.42038 | HC21: ='Life Cycle Analysis Tool'!FL50 -> 56588.89349 | HD21: ='Life Cycle Analysis Tool'!FM50 -> 105906.2512 | HE21: 1259783.585 | HF21: 573805.2545 | HG21: 670380.3545 | HH21: 15597.97593 | HI21: 692.7277583 | HJ21: 13930586.9
O22: A | AC22: ='Life Cycle Analysis Tool'!AM51 -> 1 | AD22: ='Life Cycle Analysis Tool'!AW51 -> 1 | AE22: ='Life Cycle Analysis Tool'!AX51 -> 15 | AF22: ='Life Cycle Analysis Tool'!AJ51*AD22 -> 2040 | AG22: 2339558.481 | AH22: 1748562.928 | AI22: 1847981.196 | AJ22: 1952237.568 | AK22: 2389765.734 | AL22: 1368473.811 | AN22: 1366693.748 | AO22: 1494057.689 | AP22: 845020.4146 | AQ22: 1273639.407 | AR22: 1494057.689 | AS22: 624602.133 | AU22: 923010.8589 | AV22: 248979.9774 | AW22: 981186.6875 | AX22: 663865.9198 | AY22: 876262.388 | AZ22: 727722.3604 | BB22: 49853.87369 | BC22: 5525.262019 | BD22: 21774.09442 | BE22: 14732.24148 | BF22: 19445.6572 | BG22: 16149.31755 | BI22: 2137.749099 | BJ22: 243.7786967 | BK22: 960.6893467 | BL22: 649.9975233 | BM22: 857.9569533 | BN22: 712.51998 | BP22: 41541236.75 | BQ22: 5106594.12 | BR22: 20124197.22 | BS22: 13615929.43 | BT22: 17972193.6 | BU22: 14925628.82 | BY22: ='Life Cycle Analysis Tool'!BH51 -> P1 | BZ22: ='Life Cycle Analysis Tool'!BI51 -> 0 | CA22: ='Life Cycle Analysis Tool'!BJ51 -> 45152.78087 | CB22: ='Life Cycle Analysis Tool'!BK51 -> 239795.3746 | CC22: ='Life Cycle Analysis Tool'!BL51 -> 19512 | CD22: ='Life Cycle Analysis Tool'!BM51 -> 16.27500089 | CE22: ='Life Cycle Analysis Tool'!BN51 -> 103.4566044 | CF22: ='Life Cycle Analysis Tool'!BO51 -> 119.7316053 | CG22: ='Life Cycle Analysis Tool'!BP51 -> 2769415.783 | CH22: ='Life Cycle Analysis Tool'!BQ51 -> 47151.91718 | CI22: ='Life Cycle Analysis Tool'!BR51 -> 25578.14719 | CJ22: ='Life Cycle Analysis Tool'!BS51 -> 3335.301008 | CK22: ='Life Cycle Analysis Tool'!BT51 -> 72730.06436 | CL22: ='Life Cycle Analysis Tool'!BU51 -> 76065.36537 | CM22: ='Life Cycle Analysis Tool'!BV51 -> 121218.1462 | CN22: 2339558.481 | CO22: 1366693.748 | CP22: 923010.8589 | CQ22: 49853.87369 | CR22: 2137.749099 | CS22: 41541236.75 | CW22: ='Life Cycle Analysis Tool'!CA51 -> P2 | CX22: ='Life Cycle Analysis Tool'!CB51 -> 0 | CY22: ='Life Cycle Analysis Tool'!CC51 -> 50796.87848 | CZ22: ='Life Cycle Analysis Tool'!CD51 -> 99773 | DA22: ='Life Cycle Analysis Tool'!CE51 -> 0 | DB22: ='Life Cycle Analysis Tool'!CF51 -> 6.771630463 | DC22: ='Life Cycle Analysis Tool'!CG51 -> 0 | DD22: ='Life Cycle Analysis Tool'!CH51 -> 6.771630463 | DE22: ='Life Cycle Analysis Tool'!CI51 -> 340439.608 | DF22: ='Life Cycle Analysis Tool'!CJ51 -> 19618.76137 | DG22: ='Life Cycle Analysis Tool'!CK51 -> 0 | DH22: ='Life Cycle Analysis Tool'!CL51 -> 188.6337851 | DI22: ='Life Cycle Analysis Tool'!CM51 -> 19618.76137 | DJ22: ='Life Cycle Analysis Tool'!CN51 -> 19807.39516 | DK22: ='Life Cycle Analysis Tool'!CO51 -> 70604.27363 | DL22: 1748562.928 | DM22: 1494057.689 | DN22: 248979.9774 | DO22: 5525.262019 | DP22: 243.7786967 | DQ22: 5106594.12 | DV22: ='Life Cycle Analysis Tool'!CT51 -> P3 | DW22: ='Life Cycle Analysis Tool'!CU51 -> 0 | DX22: ='Life Cycle Analysis Tool'!CV51 -> 45152.78087 | DY22: ='Life Cycle Analysis Tool'!CW51 -> 393188 | DZ22: ='Life Cycle Analysis Tool'!CX51 -> 0 | EA22: ='Life Cycle Analysis Tool'!CY51 -> 26.68581519 | EB22: ='Life Cycle Analysis Tool'!CZ51 -> 0 | EC22: ='Life Cycle Analysis Tool'!DA51 -> 26.68581519 | ED22: ='Life Cycle Analysis Tool'!DB51 -> 1341613.148 | EE22: ='Life Cycle Analysis Tool'!DC51 -> 77314.11851 | EF22: ='Life Cycle Analysis Tool'!DD51 -> 0 | EG22: ='Life Cycle Analysis Tool'!DE51 -> 743.3728632 | EH22: ='Life Cycle Analysis Tool'!DF51 -> 77314.11851 | EI22: ='Life Cycle Analysis Tool'!DG51 -> 78057.49137 | EJ22: ='Life Cycle Analysis Tool'!DH51 -> 123210.2722 | EK22: 1847981.196 | EL22: 845020.4146 | EM22: 981186.6875 | EN22: 21774.09442 | EO22: 960.6893467 | EP22: 20124197.22 | ET22: ='Life Cycle Analysis Tool'!DM51 -> P4 | EU22: ='Life Cycle Analysis Tool'!DN51 -> 0 | EV22: ='Life Cycle Analysis Tool'!DO51 -> 56440.97608 | EW22: ='Life Cycle Analysis Tool'!DP51 -> 266029 | EX22: ='Life Cycle Analysis Tool'!DQ51 -> 0 | EY22: ='Life Cycle Analysis Tool'!DR51 -> 18.05548676 | EZ22: ='Life Cycle Analysis Tool'!DS51 -> 0 | FA22: ='Life Cycle Analysis Tool'!DT51 -> 18.05548676 | FB22: ='Life Cycle Analysis Tool'!DU51 -> 907728.6288 | FC22: ='Life Cycle Analysis Tool'!DV51 -> 52310.33916 | FD22: ='Life Cycle Analysis Tool'!DW51 -> 0 | FE22: ='Life Cycle Analysis Tool'!DX51 -> 502.9622965 | FF22: ='Life Cycle Analysis Tool'!DY51 -> 52310.33916 | FG22: ='Life Cycle Analysis Tool'!DZ51 -> 52813.30146 | FH22: ='Life Cycle Analysis Tool'!EA51 -> 109254.2775 | FI22: 1952237.568 | FJ22: 1273639.407 | FK22: 663865.9198 | FL22: 14732.24148 | FM22: 649.9975233 | FN22: 13615929.43 | FR22: ='Life Cycle Analysis Tool'!EF51 -> P5 | FS22: ='Life Cycle Analysis Tool'!EG51 -> 0 | FT22: ='Life Cycle Analysis Tool'!EH51 -> 50796.87848 | FU22: ='Life Cycle Analysis Tool'!EI51 -> 351142 | FV22: ='Life Cycle Analysis Tool'!EJ51 -> 0 | FW22: ='Life Cycle Analysis Tool'!EK51 -> 23.83213759 | FX22: ='Life Cycle Analysis Tool'!EL51 -> 0 | FY22: ='Life Cycle Analysis Tool'!EM51 -> 23.83213759 | FZ22: ='Life Cycle Analysis Tool'!EN51 -> 1198146.24 | GA22: ='Life Cycle Analysis Tool'!EO51 -> 69046.44649 | GB22: ='Life Cycle Analysis Tool'!EP51 -> 0 | GC22: ='Life Cycle Analysis Tool'!EQ51 -> 663.8794519 | GD22: ='Life Cycle Analysis Tool'!ER51 -> 69046.44649 | GE22: ='Life Cycle Analysis Tool'!ES51 -> 69710.32594 | GF22: ='Life Cycle Analysis Tool'!ET51 -> 120507.2044 | GG22: 2389765.734 | GH22: 1494057.689 | GI22: 876262.388 | GJ22: 19445.6572 | GK22: 857.9569533 | GL22: 17972193.6 | GP22: ='Life Cycle Analysis Tool'!EY51 -> P6 | GQ22: ='Life Cycle Analysis Tool'!EZ51 -> 0 | GR22: ='Life Cycle Analysis Tool'!FA51 -> 50796.87848 | GS22: ='Life Cycle Analysis Tool'!FB51 -> 291618 | GT22: ='Life Cycle Analysis Tool'!FC51 -> 0 | GU22: ='Life Cycle Analysis Tool'!FD51 -> 19.79222167 | GV22: ='Life Cycle Analysis Tool'!FE51 -> 0 | GW22: ='Life Cycle Analysis Tool'!FF51 -> 19.79222167 | GX22: ='Life Cycle Analysis Tool'!FG51 -> 995041.9212 | GY22: ='Life Cycle Analysis Tool'!FH51 -> 57342.00589 | GZ22: ='Life Cycle Analysis Tool'!FI51 -> 0 | HA22: ='Life Cycle Analysis Tool'!FJ51 -> 551.3416168 | HB22: ='Life Cycle Analysis Tool'!FK51 -> 57342.00589 | HC22: ='Life Cycle Analysis Tool'!FL51 -> 57893.34751 | HD22: ='Life Cycle Analysis Tool'!FM51 -> 108690.226 | HE22: 1368473.811 | HF22: 624602.133 | HG22: 727722.3604 | HH22: 16149.31755 | HI22: 712.51998 | HJ22: 14925628.82
O23: A | X23: LC1 | AC23: ='Life Cycle Analysis Tool'!AM52 -> 1 | AD23: ='Life Cycle Analysis Tool'!AW52 -> 1 | AE23: ='Life Cycle Analysis Tool'!AX52 -> 16 | AF23: ='Life Cycle Analysis Tool'!AJ52*AD23 -> 2041 | AG23: 2463939.905 | AH23: 1821147.623 | AI23: 1974345.098 | AJ23: 2064402.301 | AK23: 2513403.508 | AL23: 1480022.252 | AN23: 1413201.112 | AO23: 1546378.474 | AP23: 891527.7789 | AQ23: 1331773.612 | AR23: 1546378.474 | AS23: 676922.9178 | AU23: 997559.1749 | AV23: 269089.2078 | AW23: 1060433.659 | AX23: 717484.0175 | AY23: 947034.9957 | AZ23: 786497.9164 | BB23: 53179.61756 | BC23: 5679.941723 | BD23: 22383.66017 | BE23: 15144.67057 | BF23: 19990.03835 | BG23: 16601.41767 | BI23: 2254.225704 | BJ23: 249.196001 | BK23: 982.0379988 | BL23: 664.4419127 | BM23: 877.0226634 | BN23: 728.3537573 | BP23: 44310652.53 | BQ23: 5447033.728 | BR23: 21465810.36 | BS23: 14523658.06 | BT23: 19170339.85 | BU23: 15920670.74 | BY23: ='Life Cycle Analysis Tool'!BH52 -> P1 | BZ23: ='Life Cycle Analysis Tool'!BI52 -> 0 | CA23: ='Life Cycle Analysis Tool'!BJ52 -> 46507.36429 | CB23: ='Life Cycle Analysis Tool'!BK52 -> 239795.3746 | CC23: ='Life Cycle Analysis Tool'!BL52 -> 19512 | CD23: ='Life Cycle Analysis Tool'!BM52 -> 13.02000071 | CE23: ='Life Cycle Analysis Tool'!BN52 -> 103.4566044 | CF23: ='Life Cycle Analysis Tool'!BO52 -> 116.4766052 | CG23: ='Life Cycle Analysis Tool'!BP52 -> 2769415.783 | CH23: ='Life Cycle Analysis Tool'!BQ52 -> 48330.71511 | CI23: ='Life Cycle Analysis Tool'!BR52 -> 26217.60087 | CJ23: ='Life Cycle Analysis Tool'!BS52 -> 3325.743866 | CK23: ='Life Cycle Analysis Tool'!BT52 -> 74548.31597 | CL23: ='Life Cycle Analysis Tool'!BU52 -> 77874.05984 | CM23: ='Life Cycle Analysis Tool'!BV52 -> 124381.4241 | CN23: 2463939.905 | CO23: 1413201.112 | CP23: 997559.1749 | CQ23: 53179.61756 | CR23: 2254.225704 | CS23: 44310652.53 | CW23: ='Life Cycle Analysis Tool'!CA52 -> P2 | CX23: ='Life Cycle Analysis Tool'!CB52 -> 0 | CY23: ='Life Cycle Analysis Tool'!CC52 -> 52320.78483 | CZ23: ='Life Cycle Analysis Tool'!CD52 -> 99773 | DA23: ='Life Cycle Analysis Tool'!CE52 -> 0 | DB23: ='Life Cycle Analysis Tool'!CF52 -> 5.41730437 | DC23: ='Life Cycle Analysis Tool'!CG52 -> 0 | DD23: ='Life Cycle Analysis Tool'!CH52 -> 5.41730437 | DE23: ='Life Cycle Analysis Tool'!CI52 -> 340439.608 | DF23: ='Life Cycle Analysis Tool'!CJ52 -> 20109.23041 | DG23: ='Life Cycle Analysis Tool'!CK52 -> 0 | DH23: ='Life Cycle Analysis Tool'!CL52 -> 154.6797038 | DI23: ='Life Cycle Analysis Tool'!CM52 -> 20109.23041 | DJ23: ='Life Cycle Analysis Tool'!CN52 -> 20263.91011 | DK23: ='Life Cycle Analysis Tool'!CO52 -> 72584.69494 | DL23: 1821147.623 | DM23: 1546378.474 | DN23: 269089.2078 | DO23: 5679.941723 | DP23: 249.196001 | DQ23: 5447033.728 | DV23: ='Life Cycle Analysis Tool'!CT52 -> P3 | DW23: ='Life Cycle Analysis Tool'!CU52 -> 0 | DX23: ='Life Cycle Analysis Tool'!CV52 -> 46507.36429 | DY23: ='Life Cycle Analysis Tool'!CW52 -> 393188 | DZ23: ='Life Cycle Analysis Tool'!CX52 -> 0 | EA23: ='Life Cycle Analysis Tool'!CY52 -> 21.34865215 | EB23: ='Life Cycle Analysis Tool'!CZ52 -> 0 | EC23: ='Life Cycle Analysis Tool'!DA52 -> 21.34865215 | ED23: ='Life Cycle Analysis Tool'!DB52 -> 1341613.148 | EE23: ='Life Cycle Analysis Tool'!DC52 -> 79246.97147 | EF23: ='Life Cycle Analysis Tool'!DD52 -> 0 | EG23: ='Life Cycle Analysis Tool'!DE52 -> 609.5657479 | EH23: ='Life Cycle Analysis Tool'!DF52 -> 79246.97147 | EI23: ='Life Cycle Analysis Tool'!DG52 -> 79856.53722 | EJ23: ='Life Cycle Analysis Tool'!DH52 -> 126363.9015 | EK23: 1974345.098 | EL23: 891527.7789 | EM23: 1060433.659 | EN23: 22383.66017 | EO23: 982.0379988 | EP23: 21465810.36 | ET23: ='Life Cycle Analysis Tool'!DM52 -> P4 | EU23: ='Life Cycle Analysis Tool'!DN52 -> 0 | EV23: ='Life Cycle Analysis Tool'!DO52 -> 58134.20537 | EW23: ='Life Cycle Analysis Tool'!DP52 -> 266029 | EX23: ='Life Cycle Analysis Tool'!DQ52 -> 0 | EY23: ='Life Cycle Analysis Tool'!DR52 -> 14.44438941 | EZ23: ='Life Cycle Analysis Tool'!DS52 -> 0 | FA23: ='Life Cycle Analysis Tool'!DT52 -> 14.44438941 | FB23: ='Life Cycle Analysis Tool'!DU52 -> 907728.6288 | FC23: ='Life Cycle Analysis Tool'!DV52 -> 53618.09764 | FD23: ='Life Cycle Analysis Tool'!DW52 -> 0 | FE23: ='Life Cycle Analysis Tool'!DX52 -> 412.4290831 | FF23: ='Life Cycle Analysis Tool'!DY52 -> 53618.09764 | FG23: ='Life Cycle Analysis Tool'!DZ52 -> 54030.52672 | FH23: ='Life Cycle Analysis Tool'!EA52 -> 112164.7321 | FI23: 2064402.301 | FJ23: 1331773.612 | FK23: 717484.0175 | FL23: 15144.67057 | FM23: 664.4419127 | FN23: 14523658.06 | FR23: ='Life Cycle Analysis Tool'!EF52 -> P5 | FS23: ='Life Cycle Analysis Tool'!EG52 -> 0 | FT23: ='Life Cycle Analysis Tool'!EH52 -> 52320.78483 | FU23: ='Life Cycle Analysis Tool'!EI52 -> 351142 | FV23: ='Life Cycle Analysis Tool'!EJ52 -> 0 | FW23: ='Life Cycle Analysis Tool'!EK52 -> 19.06571007 | FX23: ='Life Cycle Analysis Tool'!EL52 -> 0 | FY23: ='Life Cycle Analysis Tool'!EM52 -> 19.06571007 | FZ23: ='Life Cycle Analysis Tool'!EN52 -> 1198146.24 | GA23: ='Life Cycle Analysis Tool'!EO52 -> 70772.60765 | GB23: ='Life Cycle Analysis Tool'!EP52 -> 0 | GC23: ='Life Cycle Analysis Tool'!EQ52 -> 544.3811506 | GD23: ='Life Cycle Analysis Tool'!ER52 -> 70772.60765 | GE23: ='Life Cycle Analysis Tool'!ES52 -> 71316.9888 | GF23: ='Life Cycle Analysis Tool'!ET52 -> 123637.7736 | GG23: 2513403.508 | GH23: 1546378.474 | GI23: 947034.9957 | GJ23: 19990.03835 | GK23: 877.0226634 | GL23: 19170339.85 | GP23: ='Life Cycle Analysis Tool'!EY52 -> P6 | GQ23: ='Life Cycle Analysis Tool'!EZ52 -> 0 | GR23: ='Life Cycle Analysis Tool'!FA52 -> 52320.78483 | GS23: ='Life Cycle Analysis Tool'!FB52 -> 291618 | GT23: ='Life Cycle Analysis Tool'!FC52 -> 0 | GU23: ='Life Cycle Analysis Tool'!FD52 -> 15.83377733 | GV23: ='Life Cycle Analysis Tool'!FE52 -> 0 | GW23: ='Life Cycle Analysis Tool'!FF52 -> 15.83377733 | GX23: ='Life Cycle Analysis Tool'!FG52 -> 995041.9212 | GY23: ='Life Cycle Analysis Tool'!FH52 -> 58775.55604 | GZ23: ='Life Cycle Analysis Tool'!FI52 -> 0 | HA23: ='Life Cycle Analysis Tool'!FJ52 -> 452.1001258 | HB23: ='Life Cycle Analysis Tool'!FK52 -> 58775.55604 | HC23: ='Life Cycle Analysis Tool'!FL52 -> 59227.65616 | HD23: ='Life Cycle Analysis Tool'!FM52 -> 111548.441 | HE23: 1480022.252 | HF23: 676922.9178 | HG23: 786497.9164 | HH23: 16601.41767 | HI23: 728.3537573 | HJ23: 15920670.74
O24: A | AC24: ='Life Cycle Analysis Tool'!AM53 -> 1 | AD24: ='Life Cycle Analysis Tool'!AW53 -> 1 | AE24: ='Life Cycle Analysis Tool'!AX53 -> 17 | AF24: ='Life Cycle Analysis Tool'!AJ53*AD24 -> 2042 | AG24: =INDEX($BY24:$HJ24,1,MATCH(AG$2,$BY$5:$HJ$5,0))*AG$5*$AD24 -> 2591568.138 | AH24: 1895768.903 | AI24: 2103944.433 | AJ24: 2179556.137 | AK24: 2640254.332 | AL24: 1594505.157 | AN24: =INDEX($BY24:$HJ24,1,MATCH(AN$2,$BY$5:$HJ$5,0))*AN$5*$AD24 -> 1461103.698 | AO24: 1600268.882 | AP24: 939430.3641 | AQ24: 1391651.844 | AR24: 1600268.882 | AS24: 730813.3262 | AU24: =INDEX($BY24:$HJ24,1,MATCH(AU$2,$BY$5:$HJ$5,0))*AU$5*$AD24 -> 1073971.199 | AV24: 289701.169 | AW24: 1141661.805 | AX24: 772442.5675 | AY24: 1019576.919 | AZ24: 846742.8614 | BB24: =INDEX($BY24:$HJ24,1,MATCH(BB$2,$BY$5:$HJ$5,0))*BB$5*$AD24 -> 56493.24186 | BC24: 5798.851745 | BD24: 22852.26384 | BE24: 15461.72543 | BF24: 20408.53136 | BG24: 16948.96964 | BI24: =INDEX($BY24:$HJ24,1,MATCH(BI$2,$BY$5:$HJ$5,0))*BI$5*$AD24 -> 2367.447309 | BJ24: 253.2589793 | BK24: 998.0494879 | BL24: 675.2752048 | BM24: 891.321946 | BN24: 740.2290903 | BP24: =INDEX($BY24:$HJ24,1,MATCH(BP$2,$BY$5:$HJ$5,0))*BP$5*$AD24 -> 47080068.31 | BQ24: 5787473.336 | BR24: 22807423.51 | BS24: 15431386.69 | BT24: 20368486.09 | BU24: 16915712.66 | BY24: ='Life Cycle Analysis Tool'!BH53 -> P1 | BZ24: ='Life Cycle Analysis Tool'!BI53 -> 0 | CA24: ='Life Cycle Analysis Tool'!BJ53 -> 47902.58522 | CB24: ='Life Cycle Analysis Tool'!BK53 -> 239795.3746 | CC24: ='Life Cycle Analysis Tool'!BL53 -> 19512 | CD24: ='Life Cycle Analysis Tool'!BM53 -> 9.765000533 | CE24: ='Life Cycle Analysis Tool'!BN53 -> 103.4566044 | CF24: ='Life Cycle Analysis Tool'!BO53 -> 113.221605 | CG24: ='Life Cycle Analysis Tool'!BP53 -> 2769415.783 | CH24: ='Life Cycle Analysis Tool'!BQ53 -> 49538.98298 | CI24: ='Life Cycle Analysis Tool'!BR53 -> 26873.04089 | CJ24: ='Life Cycle Analysis Tool'!BS53 -> 3313.624304 | CK24: ='Life Cycle Analysis Tool'!BT53 -> 76412.02387 | CL24: ='Life Cycle Analysis Tool'!BU53 -> 79725.64818 | CM24: ='Life Cycle Analysis Tool'!BV53 -> 127628.2334 | CN24: 2591568.138 | CO24: 1461103.698 | CP24: 1073971.199 | CQ24: 56493.24186 | CR24: 2367.447309 | CS24: 47080068.31 | CW24: ='Life Cycle Analysis Tool'!CA53 -> P2 | CX24: ='Life Cycle Analysis Tool'!CB53 -> 0 | CY24: ='Life Cycle Analysis Tool'!CC53 -> 53890.40837 | CZ24: ='Life Cycle Analysis Tool'!CD53 -> 99773 | DA24: ='Life Cycle Analysis Tool'!CE53 -> 0 | DB24: ='Life Cycle Analysis Tool'!CF53 -> 4.062978278 | DC24: ='Life Cycle Analysis Tool'!CG53 -> 0 | DD24: ='Life Cycle Analysis Tool'!CH53 -> 4.062978278 | DE24: ='Life Cycle Analysis Tool'!CI53 -> 340439.608 | DF24: ='Life Cycle Analysis Tool'!CJ53 -> 20611.96117 | DG24: ='Life Cycle Analysis Tool'!CK53 -> 0 | DH24: ='Life Cycle Analysis Tool'!CL53 -> 118.9100223 | DI24: ='Life Cycle Analysis Tool'!CM53 -> 20611.96117 | DJ24: ='Life Cycle Analysis Tool'!CN53 -> 20730.87119 | DK24: ='Life Cycle Analysis Tool'!CO53 -> 74621.27956 | DL24: 1895768.903 | DM24: 1600268.882 | DN24: 289701.169 | DO24: 5798.851745 | DP24: 253.2589793 | DQ24: 5787473.336 | DV24: ='Life Cycle Analysis Tool'!CT53 -> P3 | DW24: ='Life Cycle Analysis Tool'!CU53 -> 0 | DX24: ='Life Cycle Analysis Tool'!CV53 -> 47902.58522 | DY24: ='Life Cycle Analysis Tool'!CW53 -> 393188 | DZ24: ='Life Cycle Analysis Tool'!CX53 -> 0 | EA24: ='Life Cycle Analysis Tool'!CY53 -> 16.01148911 | EB24: ='Life Cycle Analysis Tool'!CZ53 -> 0 | EC24: ='Life Cycle Analysis Tool'!DA53 -> 16.01148911 | ED24: ='Life Cycle Analysis Tool'!DB53 -> 1341613.148 | EE24: ='Life Cycle Analysis Tool'!DC53 -> 81228.14576 | EF24: ='Life Cycle Analysis Tool'!DD53 -> 0 | EG24: ='Life Cycle Analysis Tool'!DE53 -> 468.6036687 | EH24: ='Life Cycle Analysis Tool'!DF53 -> 81228.14576 | EI24: ='Life Cycle Analysis Tool'!DG53 -> 81696.74943 | EJ24: ='Life Cycle Analysis Tool'!DH53 -> 129599.3347 | EK24: 2103944.433 | EL24: 939430.3641 | EM24: 1141661.805 | EN24: 22852.26384 | EO24: 998.0494879 | EP24: 22807423.51 | ET24: ='Life Cycle Analysis Tool'!DM53 -> P4 | EU24: ='Life Cycle Analysis Tool'!DN53 -> 0 | EV24: ='Life Cycle Analysis Tool'!DO53 -> 59878.23153 | EW24: ='Life Cycle Analysis Tool'!DP53 -> 266029 | EX24: ='Life Cycle Analysis Tool'!DQ53 -> 0 | EY24: ='Life Cycle Analysis Tool'!DR53 -> 10.83329206 | EZ24: ='Life Cycle Analysis Tool'!DS53 -> 0 | FA24: ='Life Cycle Analysis Tool'!DT53 -> 10.83329206 | FB24: ='Life Cycle Analysis Tool'!DU53 -> 907728.6288 | FC24: ='Life Cycle Analysis Tool'!DV53 -> 54958.55008 | FD24: ='Life Cycle Analysis Tool'!DW53 -> 0 | FE24: ='Life Cycle Analysis Tool'!DX53 -> 317.0548577 | FF24: ='Life Cycle Analysis Tool'!DY53 -> 54958.55008 | FG24: ='Life Cycle Analysis Tool'!DZ53 -> 55275.60494 | FH24: ='Life Cycle Analysis Tool'!EA53 -> 115153.8365 | FI24: 2179556.137 | FJ24: 1391651.844 | FK24: 772442.5675 | FL24: 15461.72543 | FM24: 675.2752048 | FN24: 15431386.69 | FR24: ='Life Cycle Analysis Tool'!EF53 -> P5 | FS24: ='Life Cycle Analysis Tool'!EG53 -> 0 | FT24: ='Life Cycle Analysis Tool'!EH53 -> 53890.40837 | FU24: ='Life Cycle Analysis Tool'!EI53 -> 351142 | FV24: ='Life Cycle Analysis Tool'!EJ53 -> 0 | FW24: ='Life Cycle Analysis Tool'!EK53 -> 14.29928256 | FX24: ='Life Cycle Analysis Tool'!EL53 -> 0 | FY24: ='Life Cycle Analysis Tool'!EM53 -> 14.29928256 | FZ24: ='Life Cycle Analysis Tool'!EN53 -> 1198146.24 | GA24: ='Life Cycle Analysis Tool'!EO53 -> 72541.92284 | GB24: ='Life Cycle Analysis Tool'!EP53 -> 0 | GC24: ='Life Cycle Analysis Tool'!EQ53 -> 418.4930095 | GD24: ='Life Cycle Analysis Tool'!ER53 -> 72541.92284 | GE24: ='Life Cycle Analysis Tool'!ES53 -> 72960.41585 | GF24: ='Life Cycle Analysis Tool'!ET53 -> 126850.8242 | GG24: 2640254.332 | GH24: 1600268.882 | GI24: 1019576.919 | GJ24: 20408.53136 | GK24: 891.321946 | GL24: 20368486.09 | GP24: ='Life Cycle Analysis Tool'!EY53 -> P6 | GQ24: ='Life Cycle Analysis Tool'!EZ53 -> 0 | GR24: ='Life Cycle Analysis Tool'!FA53 -> 53890.40837 | GS24: ='Life Cycle Analysis Tool'!FB53 -> 291618 | GT24: ='Life Cycle Analysis Tool'!FC53 -> 0 | GU24: ='Life Cycle Analysis Tool'!FD53 -> 11.875333 | GV24: ='Life Cycle Analysis Tool'!FE53 -> 0 | GW24: ='Life Cycle Analysis Tool'!FF53 -> 11.875333 | GX24: ='Life Cycle Analysis Tool'!FG53 -> 995041.9212 | GY24: ='Life Cycle Analysis Tool'!FH53 -> 60244.94494 | GZ24: ='Life Cycle Analysis Tool'!FI53 -> 0 | HA24: ='Life Cycle Analysis Tool'!FJ53 -> 347.5519717 | HB24: ='Life Cycle Analysis Tool'!FK53 -> 60244.94494 | HC24: ='Life Cycle Analysis Tool'!FL53 -> 60592.49691 | HD24: ='Life Cycle Analysis Tool'!FM53 -> 114482.9053 | HE24: 1594505.157 | HF24: 730813.3262 | HG24: 846742.8614 | HH24: 16948.96964 | HI24: 740.2290903 | HJ24: 16915712.66
O25: A | AC25: ='Life Cycle Analysis Tool'!AM54 -> 1 | AD25: ='Life Cycle Analysis Tool'!AW54 -> 1 | AE25: ='Life Cycle Analysis Tool'!AX54 -> 18 | AF25: ='Life Cycle Analysis Tool'!AJ54*AD25 -> 2043 | AG25: 2722528.946 | AH25: 1972484.539 | AI25: 2236863.157 | AJ25: 2297779.883 | AK25: 2770402.894 | AL25: 1712000.84 | AN25: 1510443.36 | AO25: 1655776.003 | AP25: 988770.0269 | AQ25: 1453326.422 | AR25: 1655776.003 | AS25: 786320.4468 | AU25: 1152293.523 | AV25: 310828.4292 | AW25: 1224920.654 | AX25: 828775.0814 | AY25: 1093932.389 | AZ25: 908493.9299 | BB25: 59792.06204 | BC25: 5880.106927 | BD25: 23172.47634 | BE25: 15678.37958 | BF25: 20694.50158 | BG25: 17186.46349 | BI25: 2477.413914 | BJ25: 255.9676315 | BK25: 1008.723814 | BL25: 682.4973995 | BM25: 900.854801 | BN25: 748.145979 | BP25: 49849484.1 | BQ25: 6127912.944 | BR25: 24149036.66 | BS25: 16339115.32 | BT25: 21566632.33 | BU25: 17910754.58 | BY25: ='Life Cycle Analysis Tool'!BH54 -> P1 | BZ25: ='Life Cycle Analysis Tool'!BI54 -> 0 | CA25: ='Life Cycle Analysis Tool'!BJ54 -> 49339.66278 | CB25: ='Life Cycle Analysis Tool'!BK54 -> 239795.3746 | CC25: ='Life Cycle Analysis Tool'!BL54 -> 19512 | CD25: ='Life Cycle Analysis Tool'!BM54 -> 6.510000355 | CE25: ='Life Cycle Analysis Tool'!BN54 -> 103.4566044 | CF25: ='Life Cycle Analysis Tool'!BO54 -> 109.9666048 | CG25: ='Life Cycle Analysis Tool'!BP54 -> 2769415.783 | CH25: ='Life Cycle Analysis Tool'!BQ54 -> 50777.45756 | CI25: ='Life Cycle Analysis Tool'!BR54 -> 27544.86691 | CJ25: ='Life Cycle Analysis Tool'!BS54 -> 3298.820174 | CK25: ='Life Cycle Analysis Tool'!BT54 -> 78322.32447 | CL25: ='Life Cycle Analysis Tool'!BU54 -> 81621.14464 | CM25: ='Life Cycle Analysis Tool'!BV54 -> 130960.8074 | CN25: 2722528.946 | CO25: 1510443.36 | CP25: 1152293.523 | CQ25: 59792.06204 | CR25: 2477.413914 | CS25: 49849484.1 | CW25: ='Life Cycle Analysis Tool'!CA54 -> P2 | CX25: ='Life Cycle Analysis Tool'!CB54 -> 0 | CY25: ='Life Cycle Analysis Tool'!CC54 -> 55507.12063 | CZ25: ='Life Cycle Analysis Tool'!CD54 -> 99773 | DA25: ='Life Cycle Analysis Tool'!CE54 -> 0 | DB25: ='Life Cycle Analysis Tool'!CF54 -> 2.708652185 | DC25: ='Life Cycle Analysis Tool'!CG54 -> 0 | DD25: ='Life Cycle Analysis Tool'!CH54 -> 2.708652185 | DE25: ='Life Cycle Analysis Tool'!CI54 -> 340439.608 | DF25: ='Life Cycle Analysis Tool'!CJ54 -> 21127.2602 | DG25: ='Life Cycle Analysis Tool'!CK54 -> 0 | DH25: ='Life Cycle Analysis Tool'!CL54 -> 81.25518188 | DI25: ='Life Cycle Analysis Tool'!CM54 -> 21127.2602 | DJ25: ='Life Cycle Analysis Tool'!CN54 -> 21208.51538 | DK25: ='Life Cycle Analysis Tool'!CO54 -> 76715.636 | DL25: 1972484.539 | DM25: 1655776.003 | DN25: 310828.4292 | DO25: 5880.106927 | DP25: 255.9676315 | DQ25: 6127912.944 | DV25: ='Life Cycle Analysis Tool'!CT54 -> P3 | DW25: ='Life Cycle Analysis Tool'!CU54 -> 0 | DX25: ='Life Cycle Analysis Tool'!CV54 -> 49339.66278 | DY25: ='Life Cycle Analysis Tool'!CW54 -> 393188 | DZ25: ='Life Cycle Analysis Tool'!CX54 -> 0 | EA25: ='Life Cycle Analysis Tool'!CY54 -> 10.67432607 | EB25: ='Life Cycle Analysis Tool'!CZ54 -> 0 | EC25: ='Life Cycle Analysis Tool'!DA54 -> 10.67432607 | ED25: ='Life Cycle Analysis Tool'!DB54 -> 1341613.148 | EE25: ='Life Cycle Analysis Tool'!DC54 -> 83258.8494 | EF25: ='Life Cycle Analysis Tool'!DD54 -> 0 | EG25: ='Life Cycle Analysis Tool'!DE54 -> 320.2125069 | EH25: ='Life Cycle Analysis Tool'!DF54 -> 83258.8494 | EI25: ='Life Cycle Analysis Tool'!DG54 -> 83579.06191 | EJ25: ='Life Cycle Analysis Tool'!DH54 -> 132918.7247 | EK25: 2236863.157 | EL25: 988770.0269 | EM25: 1224920.654 | EN25: 23172.47634 | EO25: 1008.723814 | EP25: 24149036.66 | ET25: ='Life Cycle Analysis Tool'!DM54 -> P4 | EU25: ='Life Cycle Analysis Tool'!DN54 -> 0 | EV25: ='Life Cycle Analysis Tool'!DO54 -> 61674.57847 | EW25: ='Life Cycle Analysis Tool'!DP54 -> 266029 | EX25: ='Life Cycle Analysis Tool'!DQ54 -> 0 | EY25: ='Life Cycle Analysis Tool'!DR54 -> 7.222194704 | EZ25: ='Life Cycle Analysis Tool'!DS54 -> 0 | FA25: ='Life Cycle Analysis Tool'!DT54 -> 7.222194704 | FB25: ='Life Cycle Analysis Tool'!DU54 -> 907728.6288 | FC25: ='Life Cycle Analysis Tool'!DV54 -> 56332.51383 | FD25: ='Life Cycle Analysis Tool'!DW54 -> 0 | FE25: ='Life Cycle Analysis Tool'!DX54 -> 216.6541527 | FF25: ='Life Cycle Analysis Tool'!DY54 -> 56332.51383 | FG25: ='Life Cycle Analysis Tool'!DZ54 -> 56549.16798 | FH25: ='Life Cycle Analysis Tool'!EA54 -> 118223.7465 | FI25: 2297779.883 | FJ25: 1453326.422 | FK25: 828775.0814 | FL25: 15678.37958 | FM25: 682.4973995 | FN25: 16339115.32 | FR25: ='Life Cycle Analysis Tool'!EF54 -> P5 | FS25: ='Life Cycle Analysis Tool'!EG54 -> 0 | FT25: ='Life Cycle Analysis Tool'!EH54 -> 55507.12063 | FU25: ='Life Cycle Analysis Tool'!EI54 -> 351142 | FV25: ='Life Cycle Analysis Tool'!EJ54 -> 0 | FW25: ='Life Cycle Analysis Tool'!EK54 -> 9.532855037 | FX25: ='Life Cycle Analysis Tool'!EL54 -> 0 | FY25: ='Life Cycle Analysis Tool'!EM54 -> 9.532855037 | FZ25: ='Life Cycle Analysis Tool'!EN54 -> 1198146.24 | GA25: ='Life Cycle Analysis Tool'!EO54 -> 74355.47091 | GB25: ='Life Cycle Analysis Tool'!EP54 -> 0 | GC25: ='Life Cycle Analysis Tool'!EQ54 -> 285.9702232 | GD25: ='Life Cycle Analysis Tool'!ER54 -> 74355.47091 | GE25: ='Life Cycle Analysis Tool'!ES54 -> 74641.44114 | GF25: ='Life Cycle Analysis Tool'!ET54 -> 130148.5618 | GG25: 2770402.894 | GH25: 1655776.003 | GI25: 1093932.389 | GJ25: 20694.50158 | GK25: 900.854801 | GL25: 21566632.33 | GP25: ='Life Cycle Analysis Tool'!EY54 -> P6 | GQ25: ='Life Cycle Analysis Tool'!EZ54 -> 0 | GR25: ='Life Cycle Analysis Tool'!FA54 -> 55507.12063 | GS25: ='Life Cycle Analysis Tool'!FB54 -> 291618 | GT25: ='Life Cycle Analysis Tool'!FC54 -> 0 | GU25: ='Life Cycle Analysis Tool'!FD54 -> 7.916888667 | GV25: ='Life Cycle Analysis Tool'!FE54 -> 0 | GW25: ='Life Cycle Analysis Tool'!FF54 -> 7.916888667 | GX25: ='Life Cycle Analysis Tool'!FG54 -> 995041.9212 | GY25: ='Life Cycle Analysis Tool'!FH54 -> 61751.06856 | GZ25: ='Life Cycle Analysis Tool'!FI54 -> 0 | HA25: ='Life Cycle Analysis Tool'!FJ54 -> 237.4938473 | HB25: ='Life Cycle Analysis Tool'!FK54 -> 61751.06856 | HC25: ='Life Cycle Analysis Tool'!FL54 -> 61988.56241 | HD25: ='Life Cycle Analysis Tool'!FM54 -> 117495.683 | HE25: 1712000.84 | HF25: 786320.4468 | HG25: 908493.9299 | HH25: 17186.46349 | HI25: 748.145979 | HJ25: 17910754.58
